Workbook

Sheet Welcome

Sheet Instructions

Sheet General Project Info
B1: General Project Information
B2: Instructions
B3: 1) User must complete all orange and blue cells. Orange cells indicate inputs critical for subsequent calculations. 2) Do not add rows to this sheet. If you do, subsequent links and calculations will not work. 3) Read the notes indicated by red corners to assist in properly completing this tab.
B7: Multifamily Building Solutions Provider Information
B8: Provider Name
B9: Provider Street Address
B10: Provider City and State
B11: Provider Zip Code
B12: Provider Contact Name
B13: Provider Email
B14: Provider Phone Number
B16: Project Information
B17: Project Name
B18: Project Primary Street Address
B19: Project City
B20: Project Zip Code
B21: Project County
B22: Population Type (seniors, families, etc.)
B23: Is the project applying for a Construction Progress Payment?
B24: If the project is 50 units or less, is it subject to Local Law 87?
B26: Project Site Information
B27: Building Street Address(es)
B28: Number of Buildings
B29: Number of Stories
B30: Year Built
B31: Heating Fuel/Type | D31: <Provide additional detail here>
B32: Electric Cooling? | D32: <Provide additional detail here>
B33: Domestic Hot Water Fuel Type
B34: Units
B35: # of Studios
B36: # of 1 Bedroom Units
B37: # of 2 Bedroom Units
B38: # of 3 Bedroom Units
B39: # of 4+ Bedroom Units
B40: Total Units | C40: =SUM(C35:C39) -> 0
B41: Site Square Footage - For multiple building projects, enter total across entire project
B42: Apartments (sq. ft.)
B43: Common Area - Residentially Associated (sq. ft.)
B44: Common Area - Non-Residentially Associated (sq. ft.)
B45: Commercial (sq. ft.)
B46: Conditioned Garage (sq. ft.)
B47: Total Site Sq. Ft. | C47: =SUM(C42:C46) -> 0
B48: Total Project Related Sq. Ft. | C48: =SUM(C42:C43) -> 0
B49: Occupancy
B50: Current # of Occupants
B51: Estimated Vacancy Rate (%)
B53: Audit Information
B54: Name of Auditor(s)
B55: Name of Owner Representative at Audit
B56: Date(s) of Audit Site Visit
B58: Modeling Information
B59: Modeling Software Used
B61: Project Implementation Team Information
B62: Project Role | C62: Company Name | D62: Contact Name | E62: Contact Phone # | F62: Contact E-Mail | G62: Street Address | H62: City, State

Sheet Utility Info
B1: Utility Information
B2: Instructions
B3: 1) Complete the Pre-Construction Utility Information table based on your knowledge of the building 2) Complete rows 14 - 19 in the PRE-CONSTRUCTION ENERGY USAGE & COST table using the Energy Use Snapshot Report provided by NYSERDA. 3) Copy the range B22:F45 from the project's Energy Use Snapshot Report and PASTE VALUES into cells B22:F45 below. 4) When the post-construction performance period ends, complete rows 49 - 54 in the POST-CONSTRUCTION ENERGY USAGE & COST table using the energy data provided by NYSERDA.
B5: UTILITY INFORMATION
C6: Electric | D6: Gas | E6: Fuel Oil | F6: Steam | G6: Propane | H6: Select Other Fuel Type…
B7: Utility Company | C7: <Select One> | D7: <Select One>
B8: 3rd Party Supplier
B9: Metering Configuration
B11: ALL INFORMATION ENTERED IN THE TABLE BELOW SHOULD COME DIRECTLY FROM THE PROJECT'S ENERGY USE SNAPSHOT REPORT.
B12: PRE-CONSTRUCTION ENERGY USAGE & COST
B13: Fuel Type | C13: Site-Source Ratio | D13: Pre-Construction Site MMBtu | E13: Pre-Construction Source MMBtu | F13: Energy Cost | G13: Energy Cost Unit
B14: Electricity | C14: =Calcs!$B89 -> 2.55 | E14: =D14*C14 -> 0 | G14: per kWh
B15: Natural Gas | C15: =Calcs!$B90 -> 1.05 | E15: 0 | G15: per MMBtu
B16: Fuel Oil | C16: =Calcs!$B91 -> 1.01 | E16: 0 | G16: per MMBtu
B17: Steam | C17: =Calcs!$B92 -> 1.45 | E17: 0 | G17: per MMBtu
B18: Propane | C18: =Calcs!$B93 -> 1.01 | E18: 0 | G18: per MMBtu
B19: =H6 -> Select Other Fuel Type… | C19: 1 | E19: 0 | G19: per MMBtu
B20: Total | D20: =SUM(D14:D19) -> 0 | E20: 0
B22: Electricity | H22: OPTIONAL Model True-Up Check
B23: Heating | C23: Cooling | D23: Baseload | E23: Total | F23: Units | H23: The below table is an optional model true-up check. To use, enter the usage determined by the modeling software (TREAT, eQUEST, etc.) in the appropriate sections. As per the Simulation Guidelines, the difference between the annual modeled use and the actual consumption for heating, cooling, and baseload must differ by no more than -10% to 0%. The model should not show more energy consumption than the bills.
F24: kWh / year
F25: MMBtu / year
B27: Natural Gas
B28: Heating | C28: Cooling | D28: Baseload | E28: Total | F28: Units
F29: Therms / year | I29: Heating | J29: Cooling | K29: Baseload | L29: Total | M29: Units
F30: MMBtu / year | H30: Electric | M30: kWh/year
H31: % Difference | I31: =(B24-I30)/B24 ->  | J31: =(C24-J30)/C24 ->  | K31: =(D24-K30)/D24 ->  | L31: =(E24-L30)/E24 ->  | M31: kWh/year
B32: Oil | H32: Natural Gas | M32: Therms/year
B33: Heating | C33: Cooling | D33: Baseload | E33: Total | F33: Units | H33: % Difference | I33: =(B29-I32)/B29 ->  | J33: =(C29-J32)/C29 ->  | M33: Therms/year
F34: Gallons / year | H34: Oil | M34: Gallons/year
F35: MMBtu / year | H35: % Difference | I35: =(B34-I34)/B34 ->  | J35: =(C34-J34)/C34 ->  | M35: Gallons/year
H36: District Steam | M36: kLbs/year
B37: District Steam | H37: % Difference | I37: =(B39-I36)/B39 ->  | J37: =(C39-J36)/C39 ->  | M37: kLbs/year
B38: Heating | C38: Cooling | D38: Baseload | E38: Total | F38: Units | H38: Propane | M38: Gallons/year
F39: kLbs / year | H39: % Difference | I39: =(B44-I38)/B44 ->  | J39: =(C44-J38)/C44 ->  | M39: Gallons/year
F40: MMBtu / year
B42: Propane
B43: Heating | C43: Cooling | D43: Baseload | E43: Total | F43: Units
F44: Gallons / year
F45: MMBtu / year
B47: POST-CONSTRUCTION ENERGY USAGE & COST
B48: Fuel Type | C48: Site-Source Ratio | D48: Post-Construction Site MMBtu | E48: Post-Construction Source MMBtu | F48: Energy Cost | G48: Energy Cost Unit
B49: Electricity (Utility) | C49: =Calcs!$B89 -> 2.55 | E49: =D49*C49 -> 0 | G49: per kWh
B50: Natural Gas (Utility) | C50: =Calcs!$B90 -> 1.05 | E50: 0 | G50: per MMBtu
B51: Fuel Oil | C51: =Calcs!$B91 -> 1.01 | E51: 0 | G51: per MMBtu
B52: Steam | C52: =Calcs!$B92 -> 1.45 | E52: 0 | G52: per MMBtu
B53: Propane | C53: =Calcs!$B93 -> 1.01 | E53: 0 | G53: per MMBtu
B54: =H6 -> Select Other Fuel Type… | C54: =Calcs!$B94 -> 1 | E54: 0 | G54: per MMBtu
B55: Total | D55: =SUM(D49:D54) -> 0 | E55: 0

Sheet Measure Descriptions
B1: Measure Descriptions
B2: Instructions
B3: 1) Provide detailed descriptions of all measures proposed under the project's workscope. 2) Note that this table contains two sections for measure entry: a section for those measures whose benefits accrue to the building (Measures 1-15) and a section for those whose benefits accrue to tenants (Measures 16-25). 3) Read the notes indicated by red corners in the header row to properly complete this tab with the required information.
B5: Measures Included in Workscope
A6: * * * | B6: Measure # | C6: Measure Name | D6: Measure Category | E6: Measure Classification | F6: Existing Conditions | G6: Measure Description | H6: Important Assumptions | I6: Measure Location | AA6: Row Check
B7: Measures to be undertaken by building - Savings accrue to building
A8: * * | B8: 1 | AA8: =IF(AND(COUNTA(C8:E8)<>0,COUNTA(C8:E8)<>3)=TRUE,"ERR","") -> 
A9: * * | B9: 2 | AA9: =IF(AND(COUNTA(C9:E9)<>0,COUNTA(C9:E9)<>3)=TRUE,"ERR","") -> 
A10: * * | B10: 3
A11: * * | B11: 4
A12: * * | B12: 5
A13: * * | B13: 6
A14: * * | B14: 7
A15: * * | B15: 8
A16: * * | B16: 9
A17: * * | B17: 10
A18: * * | B18: 11
A19: * * | B19: 12
A20: * * | B20: 13
A21: * * | B21: 14
A22: * * | B22: 15
B23: Measures to be undertaken by building - Savings accrue to tenants
A24: * * | B24: 16
A25: * * | B25: 17
A26: * * | B26: 18
A27: * * | B27: 19
A28: * * | B28: 20
A29: * * | B29: 21
A30: * * | B30: 22
A31: * * | B31: 23
A32: * * | B32: 24
A33: * * | B33: 25

Sheet Existing Conditions
A1: 1 | C1: Existing Conditions
A2: 1 | C2: Instructions
A3: 1 | C3: 1) Enter building system details in the tables below to the fullest extent possible. 2) The data entered on this tab should represent ALL buildings in the project. 3) Read the notes indicated by red corners to assist in properly completing this tab. 4) Use the Additional Notes column to provide additional detail, including special operating conditions or other information to support baseline assumptions. 5) Use the buttons provided to the right to jump to the various sections of this tab.
A4: 1
A5: 1 | C5: Envelope
A6: 1 | B6: * * * * | C6: General Building/Envelope Description
A7: 1 | B7: * * | C7: Envelope Components | D7: Construction Description | J7: Total R-Value | K7: Verification method | L7: Additional Notes
A8: 1 | B8: * * | C8: Above Grade Exterior Walls
A9: 1 | B9: * * | C9: Floor Perimeter/ Rim Joists
A10: 1 | B10: * * | C10: Below Grade Walls
A11: 1 | B11: * * | C11: Floor Above Unconditioned Space
A12: 1 | B12: * * | C12: Slab On/Below Grade
A13: 1 | B13: * * | C13: Roof
A14: 1 | B14: * * | C14: Ceilings to Unconditioned Attics
A15: 1 | B15: * * | C15: Wall to Unconditioned Space
A16: 1 | B16: * *
A17: 1 | B17: * *
A18: 1 | B18: * *
A19: 1 | B19: * * | C19: Windows | D19: Location | F19: Operation Type | H19: Framing Material | J19: Thermal Break | K19: # of Panes | L19: Glass Coating | N19: Gas Filled | P19: U-value | Q19: Weather-stripping | S19: Qty. | T19: Additional Notes
A20: 1 | C20: Window Type 1
A21: 1 | C21: Window Type 2
A22: 1 | C22: Window Type 3
A23: 1 | C23: Window Type 4
A24: 1 | C24: Window Type 5
A25: 1 | C25: Exterior Doors | D25: Location | F25: Material | H25: % Glazing | I25: Glazing Type | K25: Weather-stripping | M25: Qty. | N25: Additional Notes
A26: 1 | C26: Door Type 1
A27: 1 | C27: Door Type 2
A28: 1 | C28: Door Type 3
A29: 1 | C29: Door Type 4
A30: 1 | C30: Door Type 5
A31: 1 | C31: Air Infiltration | D31: Location of Leakage | F31: Tightness | H31: Additional Notes
A32: 1 | C32: Common Area Windows | D32: Frame
A33: 1 | D33: Moving Surfaces
A34: 1 | C34: In-unit Windows | D34: Frame
A35: 1 | D35: Moving Surfaces
A36: 1 | C36: Exterior Doors | D36: Frame
A37: 1 | D37: Moving Surfaces
A38: 1 | C38: Laundry Room | D38: Dryer Vent
A39: 1 | D39: Exhaust Fans
A40: 1 | C40: Attic | D40: Hatch Frame
A41: 1 | D41: Hatch Door
A42: 1 | D42: Pipe Penetrations
A43: 1 | D43: Electrical Boxes
A44: 1 | D44: Recessed Lights
A45: 1 | D45: Wall Caps
A46: 1 | D46: Exhaust Fans
A47: 1 | D47: Open Chases
A48: 1 | C48: Apartments | D48: Pipe Penetrations
A49: 1 | D49: Exhaust Fans
A50: 1 | D50: Electrical Boxes
A51: 1 | D51: Patio Doors
A52: 1 | C52: AC Sleeves | D52: Sleeve-to-wall Junction
A53: 1 | D53: Unit Fit in Sleeve
A54: 1 | C54: Basement Penetrations
A55: 1 | C55: Roof Penetrations
A56: 1 | C56: Elevator Penthouses
A57: 1 | C57: Stairwells
A58: 1
A59: 1
A60: 1
A61: 1 | C61: Blower Door Test (CFM50)
A62: 1 | C62: Assumed or Modeled ACHn
A63: =IF((COUNTIF('Measure Descriptions'!$D$8:$D$33,DropDowns!$S$49)+COUNTIF('Measure Descriptions'!$D$8:$D$33,DropDowns!$S$51))>0,1,"") -> 
A64: =IF((COUNTIF('Measure Descriptions'!$D$8:$D$33,DropDowns!$S$49)+COUNTIF('Measure Descriptions'!$D$8:$D$33,DropDowns!$S$51))>0,1,"") ->  | C64: Fans
A65: =IF((COUNTIF('Measure Descriptions'!$D$8:$D$33,DropDowns!$S$49)+COUNTIF('Measure Descriptions'!$D$8:$D$33,DropDowns!$S$51))>0,1,"") ->  | C65: System/Equipment Type | D65: Motor Type | F65: Spaces/Systems Served | H65: Qty | I65: Location | K65: Annual Hours | L65: Controls | N65: Setpoints | O65: Motor HP | P65: Phase | Q65: CFM at Fan | R65: CFM Data Source | S65: CFM at Registers | T65: CFM Data Source | U65: CAR Dampers? | V65: Motor Efficiency | W65: NEMA Premium? | X65: Annual kWh | Y65: Additional Notes
A66: =IF((COUNTIF('Measure Descriptions'!$D$8:$D$33,DropDowns!$S$49)+COUNTIF('Measure Descriptions'!$D$8:$D$33,DropDowns!$S$51))>0,1,"") -> 
A67: =IF((COUNTIF('Measure Descriptions'!$D$8:$D$33,DropDowns!$S$49)+COUNTIF('Measure Descriptions'!$D$8:$D$33,DropDowns!$S$51))>0,1,"") -> 
A68: =IF((COUNTIF('Measure Descriptions'!$D$8:$D$33,DropDowns!$S$49)+COUNTIF('Measure Descriptions'!$D$8:$D$33,DropDowns!$S$51))>0,1,"") -> 
A69: =IF((COUNTIF('Measure Descriptions'!$D$8:$D$33,DropDowns!$S$49)+COUNTIF('Measure Descriptions'!$D$8:$D$33,DropDowns!$S$51))>0,1,"") -> 
A70: =IF((COUNTIF('Measure Descriptions'!$D$8:$D$33,DropDowns!$S$49)+COUNTIF('Measure Descriptions'!$D$8:$D$33,DropDowns!$S$51))>0,1,"") -> 
A71: =IF((COUNTIF('Measure Descriptions'!$D$8:$D$33,DropDowns!$S$49)+COUNTIF('Measure Descriptions'!$D$8:$D$33,DropDowns!$S$51))>0,1,"") -> 
A72: =IF((COUNTIF('Measure Descriptions'!$D$8:$D$33,DropDowns!$S$49)+COUNTIF('Measure Descriptions'!$D$8:$D$33,DropDowns!$S$51))>0,1,"") -> 
A73: =IF((COUNTIF('Measure Descriptions'!$D$8:$D$33,DropDowns!$S$49)+COUNTIF('Measure Descriptions'!$D$8:$D$33,DropDowns!$S$51))>0,1,"") -> 
A74: =IF((COUNTIF('Measure Descriptions'!$D$8:$D$33,DropDowns!$S$49)+COUNTIF('Measure Descriptions'!$D$8:$D$33,DropDowns!$S$51))>0,1,"") -> 
A75: =IF((COUNTIF('Measure Descriptions'!$D$8:$D$33,DropDowns!$S$49)+COUNTIF('Measure Descriptions'!$D$8:$D$33,DropDowns!$S$51))>0,1,"") -> 
A76: =IF((COUNTIF('Measure Descriptions'!$D$8:$D$33,DropDowns!$S$49)+COUNTIF('Measure Descriptions'!$D$8:$D$33,DropDowns!$S$51))>0,1,"") -> 
A77: =IF((COUNTIF('Measure Descriptions'!$D$8:$D$33,DropDowns!$S$49)+COUNTIF('Measure Descriptions'!$D$8:$D$33,DropDowns!$S$51))>0,1,"") -> 
A78: =IF((COUNTIF('Measure Descriptions'!$D$8:$D$33,DropDowns!$S$49)+COUNTIF('Measure Descriptions'!$D$8:$D$33,DropDowns!$S$51))>0,1,"") -> 
A79: =IF((COUNTIF('Measure Descriptions'!$D$8:$D$33,DropDowns!$S$49)+COUNTIF('Measure Descriptions'!$D$8:$D$33,DropDowns!$S$51))>0,1,"") -> 
A80: =IF((COUNTIF('Measure Descriptions'!$D$8:$D$33,DropDowns!$S$49)+COUNTIF('Measure Descriptions'!$D$8:$D$33,DropDowns!$S$51))>0,1,"") -> 
A81: =IF(COUNTIF('Measure Descriptions'!$D$8:$D$33,DropDowns!$S$49)>0,1,"") -> 
A82: =IF(COUNTIF('Measure Descriptions'!$D$8:$D$33,DropDowns!$S$49)>0,1,"") ->  | C82: Pumps
A83: =IF(COUNTIF('Measure Descriptions'!$D$8:$D$33,DropDowns!$S$49)>0,1,"") ->  | C83: System/Equipment Type | D83: Motor Type | F83: Spaces/Systems Served | H83: Qty | I83: Location | K83: Annual Hours | L83: Controls | N83: Setpoints | O83: Motor HP | P83: Phase | Q83: GPM at Pump | R83: GPM Data Source | S83: Motor Efficiency | T83: NEMA Premium? | U83: Annual kWh | V83: Additional Notes
A84: =IF(COUNTIF('Measure Descriptions'!$D$8:$D$33,DropDowns!$S$49)>0,1,"") -> 
A85: =IF(COUNTIF('Measure Descriptions'!$D$8:$D$33,DropDowns!$S$49)>0,1,"") -> 
A86: =IF(COUNTIF('Measure Descriptions'!$D$8:$D$33,DropDowns!$S$49)>0,1,"") -> 
A87: =IF(COUNTIF('Measure Descriptions'!$D$8:$D$33,DropDowns!$S$49)>0,1,"") -> 
A88: =IF(COUNTIF('Measure Descriptions'!$D$8:$D$33,DropDowns!$S$49)>0,1,"") -> 
A89: =IF(COUNTIF('Measure Descriptions'!$D$8:$D$33,DropDowns!$S$49)>0,1,"") -> 
A90: =IF(COUNTIF('Measure Descriptions'!$D$8:$D$33,DropDowns!$S$49)>0,1,"") -> 
A91: =IF(COUNTIF('Measure Descriptions'!$D$8:$D$33,DropDowns!$S$49)>0,1,"") -> 
A92: =IF(COUNTIF('Measure Descriptions'!$D$8:$D$33,DropDowns!$S$49)>0,1,"") -> 
A93: =IF(COUNTIF('Measure Descriptions'!$D$8:$D$33,DropDowns!$S$49)>0,1,"") -> 
A94: =IF(COUNTIF('Measure Descriptions'!$D$8:$D$33,DropDowns!$S$49)>0,1,"") -> 
A95: =IF(COUNTIF('Measure Descriptions'!$D$8:$D$33,DropDowns!$S$49)>0,1,"") ->  | C95: Other Motors
A96: =IF(COUNTIF('Measure Descriptions'!$D$8:$D$33,DropDowns!$S$49)>0,1,"") ->  | C96: System/Equipment Type | D96: Motor Type | F96: Spaces/Systems Served | H96: Qty | I96: Location | K96: Annual Hours | L96: Controls | N96: Setpoints | O96: Motor HP | P96: Phase | Q96: Motor Efficiency | R96: NEMA Premium? | S96: Annual kWh | T96: Additional Notes
A97: =IF(COUNTIF('Measure Descriptions'!$D$8:$D$33,DropDowns!$S$49)>0,1,"") -> 
A98: =IF(COUNTIF('Measure Descriptions'!$D$8:$D$33,DropDowns!$S$49)>0,1,"") -> 
A99: =IF(COUNTIF('Measure Descriptions'!$D$8:$D$33,DropDowns!$S$49)>0,1,"") -> 
A100: =IF(COUNTIF('Measure Descriptions'!$D$8:$D$33,DropDowns!$S$49)>0,1,"") -> 
A101: =IF(COUNTIF('Measure Descriptions'!$D$8:$D$33,DropDowns!$S$49)>0,1,"") -> 
A102: =IF(COUNTIF('Measure Descriptions'!$D$8:$D$33,DropDowns!$S$49)>0,1,"") -> 
A103: =IF(COUNTIF('Measure Descriptions'!$D$8:$D$33,DropDowns!$S$49)>0,1,"") -> 
A104: =IF(COUNTIF('Measure Descriptions'!$D$8:$D$33,DropDowns!$S$49)>0,1,"") -> 
A105: =IF(COUNTIF('Measure Descriptions'!$D$8:$D$33,DropDowns!$S$49)>0,1,"") -> 
A106: =IF(COUNTIF('Measure Descriptions'!$D$8:$D$33,DropDowns!$S$49)>0,1,"") -> 
A107: 1
A108: 1 | C108: Mechanical Systems
A109: 1 | C109: Heating Components | D109: Equipment Type | G109: Qty. | H109: Location of Equipment | J109: Spaces Served | L109: EStar? | M109: Manufacturer | O109: Model No. | P109: Year Installed | Q109: Fuel Source | R109: Rated Efficiency Units | S109: Rated Efficiency | T109: Venting Type | U109: Total System Input (Mbh) | V109: Total System Output (Mbh) | W109: Combustion Testing | AC109: Supply Temp. | AD109: Return Temp. | AE109: Controls | AK109: Thermostat Setpoints | AM109: Additional Notes
A110: 1 | W110: Draft | X110: Stack Temp. | Y110: % O2 | Z110: % CO2 | AA110: CO/ CO air free | AB110: Combustion Efficiency | AE110: Heat Timer | AF110: Energy Mgt. System (EMS) | AG110: Outdoor Air Reset | AH110: Night Setback | AI110: Sequencing Controls | AJ110: Aquastat/ Pressuretrol
A111: 1 | C111: Primary Heating System
A112: 1 | B112: * * | C112: Heating System
A113: 1 | B113: * * | C113: Burner
A114: 1 | B114: * * | C114: End Use Equipment
A115: 1 | C115: Secondary Heating System
A116: 1 | B116: * * | C116: Heating System
A117: 1 | B117: * * | C117: Burner
A118: 1 | B118: * * | C118: End Use Equipment
A119: 1 | C119: Tertiary Heating System
A120: 1 | B120: * * | C120: Heating System
A121: 1 | B121: * * | C121: Burner
A122: 1 | B122: * * | C122: End Use Equipment
A123: 1 | C123: Cooling Components | D123: Equipment Type | G123: Qty. | H123: Location of Equipment | J123: Spaces Served | L123: Manufacturer | N123: Model No. | O123: EStar? | P123: Year Installed | Q123: Fuel Source | R123: Btu/h | S123: Rated Efficiency | T123: Rated Efficiency Units | U123: Controls | X123: Thermostat Setpoints | Z123: Ownership | AA123: % of Apartments w/ Cooling | AB123: Additional Notes
A124: 1 | B124: * * | C124: Primary Cooling System
A125: 1 | B125: * * | C125: Secondary Cooling System
A126: 1 | B126: * * | C126: Tertiary Cooling System
A127: =IF(COUNTIF('Measure Descriptions'!$D$8:$D$33,DropDowns!$S$45)>0,1,"") ->  | C127: DHW System | D127: Equipment Description | G127: Qty. | H127: DHW from Space Heating Boiler? | I127: External Heat Exchanger? | J127: Tankless Coil? | K127: Mixing Valve? | L127: Recirc. Pump? | M127: Storage Tank | S127: Location of Equipment | U127: Spaces Served | W127: EStar? | X127: Manufacturer | Z127: Model No. | AA127: Year Installed | AB127: Fuel Source | AC127: Rated Efficiency | AD127: Rated Efficiency (units) | AE127: Venting Type | AF127: Input (Mbh) | AG127: Output (Mbh) | AH127: Combustion Testing | AN127: Controls | AO127: Thermostat Setpoints | AQ127: Additional Notes
A128: =IF(COUNTIF('Measure Descriptions'!$D$8:$D$33,DropDowns!$S$45)>0,1,"") ->  | M128: Storage Tank? | N128: Heating Element? | O128: Capacity | P128: Water Temp. | Q128: Insulated? | R128: Insulation Thickness | AH128: Draft | AI128: Stack Temp. | AJ128: % O2 | AK128: % CO2 | AL128: CO/ CO air free | AM128: Combustion Efficiency
A129: =IF(COUNTIF('Measure Descriptions'!$D$8:$D$33,DropDowns!$S$45)>0,1,"") ->  | B129: * * | C129: DHW System 1
A130: =IF(COUNTIF('Measure Descriptions'!$D$8:$D$33,DropDowns!$S$45)>0,1,"") ->  | B130: * * | C130: DHW System 2
A131: 1 | B131: * * | C131: Distribution Systems | D131: Central Distribution Type | F131: Qty. of Zones | G131: Description of Zones | J131: Insulation Material | L131: Insulation Thickness | M131: Linear ft. un-insulated | N131: Additional Notes
A132: 1 | C132: Heating System Distribution
A133: 1 | B133: * * | C133: Primary Heating System Distribution
A134: 1 | B134: * * | C134: Secondary Heating System Distribution
A135: 1 | B135: * * | C135: Tertiary Heating System Distribution
A136: 1 | C136: Cooling System Distribution
A137: 1 | B137: * * | C137: Primary Cooling System Distribution
A138: 1 | B138: * * | C138: Secondary Cooling System Distribution
A139: 1 | B139: * * | C139: Tertiary Cooling System Distribution
A140: =IF(COUNTIF('Measure Descriptions'!$D$8:$D$33,DropDowns!$S$45)>0,1,"") ->  | C140: DHW System Distribution
A141: =IF(COUNTIF('Measure Descriptions'!$D$8:$D$33,DropDowns!$S$45)>0,1,"") ->  | B141: * * | C141: DHW System 1 Distribution
A142: =IF(COUNTIF('Measure Descriptions'!$D$8:$D$33,DropDowns!$S$45)>0,1,"") ->  | B142: * * | C142: DHW System 2 Distribution
A143: 1 | C143: Temperature Measurements
A144: 1 | C144: Interior Temperatures | E144: Measurement 1 | G144: Measurement 2 | I144: Measurement 3 | K144: Measurement 4 | M144: Measurement 5 | O144: Measurement 6 | Q144: Measurement 7 | S144: Measurement 8 | U144: Measurement 9 | W144: Measurement 10 | Y144: Measurement 11 | AA144: Measurement 12 | AC144: Measurement 13 | AE144: Measurement 14 | AG144: Measurement 15 | AI144: Measurement 16 | AK144: Measurement 17 | AM144: Measurement 18 | AO144: Measurement 19 | AQ144: Measurement 20
A145: 1 | C145: Location / Apartment Number
A146: 1 | C146: Measured Room Temperature
A147: 1 | C147: Overheating Observations
A148: 1 | C148: Outdoor Temp. at Time of Measurements
A149: 1 | C149: Was heating/cooling system in operation at time of measurements?
A150: 1 | C150: Avg. Indoor Temp. in Heating Season
A151: 1 | B151: * * | C151: Additional Notes
A152: =IF(COUNTIF('Measure Descriptions'!$D$8:$D$33,DropDowns!$S$45)>0,1,"") ->  | C152: DHW Temperatures/ Fixture Flow Rates | D152: Measurement 1 | F152: Measurement 2 | H152: Measurement 3 | J152: Measurement 4 | L152: Measurement 5 | N152: Measurement 6 | P152: Measurement 7 | R152: Measurement 8 | T152: Measurement 9 | V152: Measurement 10 | X152: Measurement 11 | Z152: Measurement 12 | AB152: Measurement 13 | AD152: Measurement 14 | AF152: Measurement 15 | AH152: Measurement 16 | AJ152: Measurement 17 | AL152: Measurement 18 | AN152: Measurement 19 | AP152: Measurement 20
A153: =IF(COUNTIF('Measure Descriptions'!$D$8:$D$33,DropDowns!$S$45)>0,1,"") ->  | C153: Location / Apartment Number
A154: =IF(COUNTIF('Measure Descriptions'!$D$8:$D$33,DropDowns!$S$45)>0,1,"") ->  | C154: Measured Tap Temperature
A155: =IF(COUNTIF('Measure Descriptions'!$D$8:$D$33,DropDowns!$S$45)>0,1,"") ->  | C155: Showerhead Flow Rate (GPM)
A156: =IF(COUNTIF('Measure Descriptions'!$D$8:$D$33,DropDowns!$S$45)>0,1,"") ->  | C156: Kitchen Faucet Flow Rate (GPM)
A157: =IF(COUNTIF('Measure Descriptions'!$D$8:$D$33,DropDowns!$S$45)>0,1,"") ->  | C157: Bathroom Faucet Flow Rate (GPM)
A158: =IF(COUNTIF('Measure Descriptions'!$D$8:$D$33,DropDowns!$S$45)>0,1,"") ->  | B158: * * | C158: Average Flow Rates | E158: Showerhead GPM | F158: =IF(D153>0,AVERAGEIF(D155:AQ155,">0",D155:AQ155),"") ->  | H158: Kitchen Faucet GPM | I158: =IF(D153>0,AVERAGEIF(D156:AQ156,">0",D156:AQ156),"") ->  | K158: Bathroom Faucet GPM | L158: =IF(D153>0,AVERAGEIF(D157:AQ157,">0",D157:AQ157),"") -> 
A159: =IF(COUNTIF('Measure Descriptions'!$D$8:$D$33,DropDowns!$S$45)>0,1,"") ->  | B159: * * | C159: Additional Notes
A160: 1 | C160: Ventilation | D160: Equipment Type | F160: System Type | G160: Qty. | H160: Location of Equipment | J160: Manufacturer | L160: Model No. | M160: Year Installed | N160: EStar? | O160: Total CFM | P160: Annual Hours | Q160: Conditioned Supply? | R160: % Outdoor Air | S160: Duct Leakiness | T160: System Operational? | U160: Additional Notes
A161: 1 | C161: Supply Location
A162: 1 | B162: * * | C162: Corridors
A163: 1 | B163: * * | C163: Apartments
A164: 1 | B164: * * | C164: Whole Building
A165: 1 | B165: * *
A166: 1 | C166: Exhaust Location
A167: 1 | B167: * * | C167: Corridors
A168: 1 | B168: * * | C168: Apartment Bathrooms
A169: 1 | B169: * * | C169: Apartment Kitchens
A170: 1 | B170: * * | C170: Common Area Bathrooms
A171: 1 | B171: * * | C171: Common Area/Commercial Kitchen
A172: 1 | B172: * * | C172: Garage
A173: 1 | B173: * * | C173: Laundry
A174: 1 | B174: * *
A175: 1
A176: 1 | B176: * * | C176: List In-Unit CFM/Static Pressure Measurements, with location
A177: 1 | B177: * * | C177: Source of Intake Air
A178: 1 | B178: * * | C178: Indoor Air Quality Concerns
A179: 1 | B179: * * | C179: Ventilation Concerns
A180: 1 | B180: * * | C180: Passive Ventilation Systems
A181: =IF((COUNTIF('Measure Descriptions'!$E$8:$E$33,Calcs!$A$17)+COUNTIF('Measure Descriptions'!$E$8:$E$33,Calcs!$A$44)+COUNTIF('Measure Descriptions'!$E$8:$E$33,Calcs!$A$57))>0,1,"") -> 
A182: =IF((COUNTIF('Measure Descriptions'!$E$8:$E$33,Calcs!$A$17)+COUNTIF('Measure Descriptions'!$E$8:$E$33,Calcs!$A$44)+COUNTIF('Measure Descriptions'!$E$8:$E$33,Calcs!$A$57))>0,1,"") ->  | C182: Appliances
A183: =IF((COUNTIF('Measure Descriptions'!$E$8:$E$33,Calcs!$A$17)+COUNTIF('Measure Descriptions'!$E$8:$E$33,Calcs!$A$44)+COUNTIF('Measure Descriptions'!$E$8:$E$33,Calcs!$A$57))>0,1,"") ->  | C183: Common Area Appliances | D183: Location of Equipment | F183: Manufacturer | H183: Model No. | I183: EStar? | J183: Qty. | K183: Year Manufactured | L183: Capacity (ft.3) | M183: Annual kWh/unit | N183: Fuel Source | O183: Additional Notes
A184: =IF(COUNTIF('Measure Descriptions'!$E$8:$E$33,Calcs!$A$57)>0,1,"") ->  | C184: Refrigerator
A185: =IF(COUNTIF('Measure Descriptions'!$E$8:$E$33,Calcs!$A$44)>0,1,"") ->  | C185: Stove/Range
A186: =IF(COUNTIF('Measure Descriptions'!$E$8:$E$33,Calcs!$A$44)>0,1,"") ->  | C186: Vending Machine
A187: =IF(COUNTIF('Measure Descriptions'!$E$8:$E$33,Calcs!$A$44)>0,1,"") -> 
A188: =IF(COUNTIF('Measure Descriptions'!$E$8:$E$33,Calcs!$A$44)>0,1,"") -> 
A189: =IF((COUNTIF('Measure Descriptions'!$E$8:$E$33,Calcs!$A$17)+COUNTIF('Measure Descriptions'!$E$8:$E$33,Calcs!$A$44)+COUNTIF('Measure Descriptions'!$E$8:$E$33,Calcs!$A$57))>0,1,"") ->  | C189: Apartment Appliances | D189: List Apartment Numbers | F189: Manufacturer | H189: Model No. | I189: EStar? | J189: Qty. | K189: Year Manufactured | L189: Capacity (ft.3) | M189: Annual kWh/unit | N189: Fuel Source | O189: Additional Notes
A190: =IF(COUNTIF('Measure Descriptions'!$E$8:$E$33,Calcs!$A$57)>0,1,"") ->  | C190: Refrigerators
A191: =IF(COUNTIF('Measure Descriptions'!$E$8:$E$33,Calcs!$A$57)>0,1,"") -> 
A192: =IF(COUNTIF('Measure Descriptions'!$E$8:$E$33,Calcs!$A$57)>0,1,"") -> 
A193: =IF(COUNTIF('Measure Descriptions'!$E$8:$E$33,Calcs!$A$57)>0,1,"") -> 
A194: =IF(COUNTIF('Measure Descriptions'!$E$8:$E$33,Calcs!$A$57)>0,1,"") -> 
A195: =IF(COUNTIF('Measure Descriptions'!$E$8:$E$33,Calcs!$A$57)>0,1,"") -> 
A196: =IF(COUNTIF('Measure Descriptions'!$E$8:$E$33,Calcs!$A$17)>0,1,"") ->  | C196: Dishwashers
A197: =IF(COUNTIF('Measure Descriptions'!$E$8:$E$33,Calcs!$A$44)>0,1,"") ->  | C197: Stove/Range
A198: =IF(COUNTIF('Measure Descriptions'!$E$8:$E$33,Calcs!$A$44)>0,1,"") -> 
A199: =IF(COUNTIF('Measure Descriptions'!$E$8:$E$33,Calcs!$A$44)>0,1,"") -> 
A200: =IF(COUNTIF('Measure Descriptions'!$E$8:$E$33,Calcs!$A$44)>0,1,"") -> 
... 34 more rows

Sheet Measure Summary
B1: Detailed Cost and Savings Summary for Proposed Measures
B2: Instructions
A3: FALSE | B3: 1) Prior to entering any data on this tab, ensure the General Project Info, Existing Conditions, Utility Info and Measure Descriptions tabs have been properly completed. 2) Enter measure specific metrics in all orange and blue input cells. Note that in some cases, a Measure Life will need to be entered manually. 3) Read the notes indicated by red corners, where appropriate, to assist in properly completing this tab. 4) Choose Furnace/Chiller/AC Type: If you are installing a gas furnace, chiller, or central AC, you must choose the appropriate capacity/efficiency in the Measure Data section (starting in cell W36). 5) The energy savings entered on the Measure Summary tab should reflect site usage reduction. These values are converted to source energy savings by the SAV-IT tool for evaluation of project eligibility. 6) Use the "Show Financial Performance Metrics >>" link in cell N4 to display measure and project-level SIR, IRR and TRC B/C Ratio.
B5: Measure Name | D5: Measure Cateogry | E5: Measure Classification | F5: Cost | G5: Annual SITE Energy Savings | K5: Demand Savings (kW) | L5: Annual Water/Sewer Savings (1000 gal) | M5: Annual O&M Savings | N5: Affected Fuel (for MMBtu Savings) | O5: Annual Cost Savings | P5: Water Cost ($/1000 gal) | Q5: Payback (years) | R5: S.I.R. | S5: IRR (%) | T5: TRC B/C Ratio | U5: Source Energy Savings (%) | W5: Quantity | X5: Units | Y5: Previously Installed Measure? | Z5: Incentive Previously Received ($) | AA5: Measure Life (years) | AB5: Full or Incremental Savings | AC5: Existing Equipment Year of Manufacture | AD5: Life Cycle Savings
G6: Heating MMBtu | H6: Non-Heating MMBtu | I6: Cooling kWh | J6: Non-Cooling kWh | AG6: Cash Flow for IRR Calculation | CA6: Row Check
B7: Measures to be undertaken by building - Savings accrue to building | AG7: Year 0 | AH7: Year 1 | AI7: Year 2 | AJ7: Year 3 | AK7: Year 4 | AL7: Year 5 | AM7: Year 6 | AN7: Year 7 | AO7: Year 8 | AP7: Year 9 | AQ7: Year 10 | AR7: Year 11 | AS7: Year 12 | AT7: Year 13 | AU7: Year 14 | AV7: Year 15 | AW7: Year 16 | AX7: Year 17 | AY7: Year 18 | AZ7: Year 19 | BA7: Year 20 | BB7: Year 21 | BC7: Year 22 | BD7: Year 23 | BE7: Year 24 | BF7: Year 25 | BG7: Year 26 | BH7: Year 27 | BI7: Year 28 | BJ7: Year 29 | BK7: Year 30 | BL7: Year 31 | BM7: Year 32 | BN7: Year 33 | BO7: Year 34 | BP7: Year 35 | BQ7: Year 36 | BR7: Year 37 | BS7: Year 38 | BT7: Year 39 | BU7: Year 40 | BV7: IRR Estimate
B8: 1 | C8: =IF(OR('Measure Descriptions'!C8="",'Measure Descriptions'!D8="",'Measure Descriptions'!E8="")=TRUE,"",'Measure Descriptions'!C8) ->  | D8: =IF(OR('Measure Descriptions'!C8="",'Measure Descriptions'!D8="",'Measure Descriptions'!E8="")=TRUE,"",'Measure Descriptions'!D8) ->  | E8: =IF(OR('Measure Descriptions'!C8="",'Measure Descriptions'!D8="",'Measure Descriptions'!E8="")=TRUE,"",'Measure Descriptions'!E8) ->  | O8: =IF(E8="","",(G8+H8)*VLOOKUP(N8,'Utility Info'!$B$15:$G$19,5,FALSE)+(I8+J8)*'Utility Info'!$F$14) ->  | P8: =IFERROR(IF(UpDown="U",3,7),0) -> 0 | Q8: =IF(N(O8)=0,"",F8/O8) ->  | R8: =IF(N(O8)=0,"",PV($Y$42,AA8,-O8)/F8) ->  | S8: =IFERROR(IFERROR(IF(O8=0,0,(IRR(AG8:BU8,BV8))),IF(O8=0,0,(IRR(AG8:BU8,10%)))),0) -> 0 | T8: =IFERROR(IF(F8=0,0,IF(OR(C8="Fuel Conversion",Y8="Yes")=TRUE,"N/A",'TRC Test'!K6/'TRC Test'!M6)),0) -> 0 | U8: ='Measure QC'!H6 -> 0 | X8: =IFERROR(IF(E8="","",IF(VLOOKUP(E8,MeasureQCData,2,FALSE)="","",VLOOKUP(E8,MeasureQCData,2,FALSE))),"") ->  | AA8: =IFERROR(IF(E8="","",IF(VLOOKUP(E8,MeasureQCData,3,FALSE)="","",VLOOKUP(E8,MeasureQCData,3,FALSE))),"") ->  | AB8: =IFERROR(IF(E8="","",IF(VLOOKUP(E8,MeasureQCData,27,FALSE)="","",VLOOKUP(E8,MeasureQCData,27,FALSE))),"") ->  | AD8: =IFERROR(IF(E8="","",-PV($Y$42,AA8,O8)-F8),"") ->  | AG8: =-F8 -> 0 | AH8: =O8 ->  | AI8: =IF(COUNTIF(AH8,O8)<AA8,O8,0) ->  | AJ8: =IF(COUNTIF($AH8:AI8,$O8)<$AA8,$O8,0) ->  | AK8: =IF(COUNTIF($AH8:AJ8,$O8)<$AA8,$O8,0) ->  | AL8: =IF(COUNTIF($AH8:AK8,$O8)<$AA8,$O8,0) ->  | AM8: =IF(COUNTIF($AH8:AL8,$O8)<$AA8,$O8,0) ->  | AN8: =IF(COUNTIF($AH8:AM8,$O8)<$AA8,$O8,0) ->  | AO8: =IF(COUNTIF($AH8:AN8,$O8)<$AA8,$O8,0) ->  | AP8: =IF(COUNTIF($AH8:AO8,$O8)<$AA8,$O8,0) ->  | AQ8: =IF(COUNTIF($AH8:AP8,$O8)<$AA8,$O8,0) ->  | AR8: =IF(COUNTIF($AH8:AQ8,$O8)<$AA8,$O8,0) ->  | AS8: =IF(COUNTIF($AH8:AR8,$O8)<$AA8,$O8,0) ->  | AT8: =IF(COUNTIF($AH8:AS8,$O8)<$AA8,$O8,0) ->  | AU8: =IF(COUNTIF($AH8:AT8,$O8)<$AA8,$O8,0) ->  | AV8: =IF(COUNTIF($AH8:AU8,$O8)<$AA8,$O8,0) ->  | AW8: =IF(COUNTIF($AH8:AV8,$O8)<$AA8,$O8,0) ->  | AX8: =IF(COUNTIF($AH8:AW8,$O8)<$AA8,$O8,0) ->  | AY8: =IF(COUNTIF($AH8:AX8,$O8)<$AA8,$O8,0) ->  | AZ8: =IF(COUNTIF($AH8:AY8,$O8)<$AA8,$O8,0) ->  | BA8: =IF(COUNTIF($AH8:AZ8,$O8)<$AA8,$O8,0) ->  | BB8: =IF(COUNTIF($AH8:BA8,$O8)<$AA8,$O8,0) ->  | BC8: =IF(COUNTIF($AH8:BB8,$O8)<$AA8,$O8,0) ->  | BD8: =IF(COUNTIF($AH8:BC8,$O8)<$AA8,$O8,0) ->  | BE8: =IF(COUNTIF($AH8:BD8,$O8)<$AA8,$O8,0) ->  | BF8: =IF(COUNTIF($AH8:BE8,$O8)<$AA8,$O8,0) ->  | BG8: =IF(COUNTIF($AH8:BF8,$O8)<$AA8,$O8,0) ->  | BH8: =IF(COUNTIF($AH8:BG8,$O8)<$AA8,$O8,0) ->  | BI8: =IF(COUNTIF($AH8:BH8,$O8)<$AA8,$O8,0) ->  | BJ8: =IF(COUNTIF($AH8:BI8,$O8)<$AA8,$O8,0) ->  | BK8: =IF(COUNTIF($AH8:BJ8,$O8)<$AA8,$O8,0) ->  | BL8: =IF(COUNTIF($AH8:BK8,$O8)<$AA8,$O8,0) ->  | BM8: =IF(COUNTIF($AH8:BL8,$O8)<$AA8,$O8,0) ->  | BN8: =IF(COUNTIF($AH8:BM8,$O8)<$AA8,$O8,0) ->  | BO8: =IF(COUNTIF($AH8:BN8,$O8)<$AA8,$O8,0) ->  | BP8: =IF(COUNTIF($AH8:BO8,$O8)<$AA8,$O8,0) ->  | BQ8: =IF(COUNTIF($AH8:BP8,$O8)<$AA8,$O8,0) ->  | BR8: =IF(COUNTIF($AH8:BQ8,$O8)<$AA8,$O8,0) ->  | BS8: =IF(COUNTIF($AH8:BR8,$O8)<$AA8,$O8,0) ->  | BT8: =IF(COUNTIF($AH8:BS8,$O8)<$AA8,$O8,0) ->  | BU8: =IF(COUNTIF($AH8:BT8,$O8)<$AA8,$O8,0) ->  | BV8: =IF(N(O8)*N(AA8)>N(F8),0.3,-0.3) -> -0.3 | CA8: =IF(C8="","",IF(OR(F8="",G8="",H8="",I8="",J8="",K8="",L8="",M8="",O8="",W8="",X8="",N8="",N8="",Y8="",Z8="",AA8="",AND(AB8="Inc",AC8="")=TRUE)=TRUE,"ERR","")) -> 
B9: 2 | C9: =IF(OR('Measure Descriptions'!C9="",'Measure Descriptions'!D9="",'Measure Descriptions'!E9="")=TRUE,"",'Measure Descriptions'!C9) ->  | D9: =IF(OR('Measure Descriptions'!C9="",'Measure Descriptions'!D9="",'Measure Descriptions'!E9="")=TRUE,"",'Measure Descriptions'!D9) ->  | E9: =IF(OR('Measure Descriptions'!C9="",'Measure Descriptions'!D9="",'Measure Descriptions'!E9="")=TRUE,"",'Measure Descriptions'!E9) ->  | O9: =IF(E9="","",(G9+H9)*VLOOKUP(N9,'Utility Info'!$B$15:$G$19,5,FALSE)+(I9+J9)*'Utility Info'!$F$14) ->  | P9: 0 | Q9: =IF(N(O9)=0,"",F9/O9) ->  | R9: =IF(N(O9)=0,"",PV($Y$42,AA9,-O9)/F9) ->  | S9: 0 | T9: =IFERROR(IF(F9=0,0,IF(OR(C9="Fuel Conversion",Y9="Yes")=TRUE,"N/A",'TRC Test'!K7/'TRC Test'!M7)),0) -> 0 | U9: ='Measure QC'!H7 -> 0 | AG9: 0 | AJ9: =IF(COUNTIF($AH9:AI9,$O9)<$AA9,$O9,0) ->  | AK9: =IF(COUNTIF($AH9:AJ9,$O9)<$AA9,$O9,0) ->  | AL9: =IF(COUNTIF($AH9:AK9,$O9)<$AA9,$O9,0) ->  | AM9: =IF(COUNTIF($AH9:AL9,$O9)<$AA9,$O9,0) ->  | AN9: =IF(COUNTIF($AH9:AM9,$O9)<$AA9,$O9,0) ->  | AO9: =IF(COUNTIF($AH9:AN9,$O9)<$AA9,$O9,0) ->  | AP9: =IF(COUNTIF($AH9:AO9,$O9)<$AA9,$O9,0) ->  | AQ9: =IF(COUNTIF($AH9:AP9,$O9)<$AA9,$O9,0) ->  | AR9: =IF(COUNTIF($AH9:AQ9,$O9)<$AA9,$O9,0) ->  | AS9: =IF(COUNTIF($AH9:AR9,$O9)<$AA9,$O9,0) ->  | AT9: =IF(COUNTIF($AH9:AS9,$O9)<$AA9,$O9,0) ->  | AU9: =IF(COUNTIF($AH9:AT9,$O9)<$AA9,$O9,0) ->  | AV9: =IF(COUNTIF($AH9:AU9,$O9)<$AA9,$O9,0) ->  | AW9: =IF(COUNTIF($AH9:AV9,$O9)<$AA9,$O9,0) ->  | AX9: =IF(COUNTIF($AH9:AW9,$O9)<$AA9,$O9,0) ->  | AY9: =IF(COUNTIF($AH9:AX9,$O9)<$AA9,$O9,0) ->  | AZ9: =IF(COUNTIF($AH9:AY9,$O9)<$AA9,$O9,0) ->  | BA9: =IF(COUNTIF($AH9:AZ9,$O9)<$AA9,$O9,0) ->  | BB9: =IF(COUNTIF($AH9:BA9,$O9)<$AA9,$O9,0) ->  | BC9: =IF(COUNTIF($AH9:BB9,$O9)<$AA9,$O9,0) ->  | BD9: =IF(COUNTIF($AH9:BC9,$O9)<$AA9,$O9,0) ->  | BE9: =IF(COUNTIF($AH9:BD9,$O9)<$AA9,$O9,0) ->  | BF9: =IF(COUNTIF($AH9:BE9,$O9)<$AA9,$O9,0) ->  | BG9: =IF(COUNTIF($AH9:BF9,$O9)<$AA9,$O9,0) ->  | BH9: =IF(COUNTIF($AH9:BG9,$O9)<$AA9,$O9,0) ->  | BI9: =IF(COUNTIF($AH9:BH9,$O9)<$AA9,$O9,0) ->  | BJ9: =IF(COUNTIF($AH9:BI9,$O9)<$AA9,$O9,0) ->  | BK9: =IF(COUNTIF($AH9:BJ9,$O9)<$AA9,$O9,0) ->  | BL9: =IF(COUNTIF($AH9:BK9,$O9)<$AA9,$O9,0) ->  | BM9: =IF(COUNTIF($AH9:BL9,$O9)<$AA9,$O9,0) ->  | BN9: =IF(COUNTIF($AH9:BM9,$O9)<$AA9,$O9,0) ->  | BO9: =IF(COUNTIF($AH9:BN9,$O9)<$AA9,$O9,0) ->  | BP9: =IF(COUNTIF($AH9:BO9,$O9)<$AA9,$O9,0) ->  | BQ9: =IF(COUNTIF($AH9:BP9,$O9)<$AA9,$O9,0) ->  | BR9: =IF(COUNTIF($AH9:BQ9,$O9)<$AA9,$O9,0) ->  | BS9: =IF(COUNTIF($AH9:BR9,$O9)<$AA9,$O9,0) ->  | BT9: =IF(COUNTIF($AH9:BS9,$O9)<$AA9,$O9,0) ->  | BU9: =IF(COUNTIF($AH9:BT9,$O9)<$AA9,$O9,0) ->  | BV9: =IF(N(O9)*N(AA9)>N(F9),0.3,-0.3) -> -0.3
B10: 3 | C10: =IF(OR('Measure Descriptions'!C10="",'Measure Descriptions'!D10="",'Measure Descriptions'!E10="")=TRUE,"",'Measure Descriptions'!C10) ->  | D10: =IF(OR('Measure Descriptions'!C10="",'Measure Descriptions'!D10="",'Measure Descriptions'!E10="")=TRUE,"",'Measure Descriptions'!D10) ->  | E10: =IF(OR('Measure Descriptions'!C10="",'Measure Descriptions'!D10="",'Measure Descriptions'!E10="")=TRUE,"",'Measure Descriptions'!E10) ->  | O10: =IF(E10="","",(G10+H10)*VLOOKUP(N10,'Utility Info'!$B$15:$G$19,5,FALSE)+(I10+J10)*'Utility Info'!$F$14) ->  | P10: 0 | S10: 0 | T10: =IFERROR(IF(F10=0,0,IF(OR(C10="Fuel Conversion",Y10="Yes")=TRUE,"N/A",'TRC Test'!K8/'TRC Test'!M8)),0) -> 0 | U10: ='Measure QC'!H8 -> 0 | AG10: 0 | AJ10: =IF(COUNTIF($AH10:AI10,$O10)<$AA10,$O10,0) ->  | AK10: =IF(COUNTIF($AH10:AJ10,$O10)<$AA10,$O10,0) ->  | AL10: =IF(COUNTIF($AH10:AK10,$O10)<$AA10,$O10,0) ->  | AM10: =IF(COUNTIF($AH10:AL10,$O10)<$AA10,$O10,0) ->  | AN10: =IF(COUNTIF($AH10:AM10,$O10)<$AA10,$O10,0) ->  | AO10: =IF(COUNTIF($AH10:AN10,$O10)<$AA10,$O10,0) ->  | AP10: =IF(COUNTIF($AH10:AO10,$O10)<$AA10,$O10,0) ->  | AQ10: =IF(COUNTIF($AH10:AP10,$O10)<$AA10,$O10,0) ->  | AR10: =IF(COUNTIF($AH10:AQ10,$O10)<$AA10,$O10,0) ->  | AS10: =IF(COUNTIF($AH10:AR10,$O10)<$AA10,$O10,0) ->  | AT10: =IF(COUNTIF($AH10:AS10,$O10)<$AA10,$O10,0) ->  | AU10: =IF(COUNTIF($AH10:AT10,$O10)<$AA10,$O10,0) ->  | AV10: =IF(COUNTIF($AH10:AU10,$O10)<$AA10,$O10,0) ->  | AW10: =IF(COUNTIF($AH10:AV10,$O10)<$AA10,$O10,0) ->  | AX10: =IF(COUNTIF($AH10:AW10,$O10)<$AA10,$O10,0) ->  | AY10: =IF(COUNTIF($AH10:AX10,$O10)<$AA10,$O10,0) ->  | AZ10: =IF(COUNTIF($AH10:AY10,$O10)<$AA10,$O10,0) ->  | BA10: =IF(COUNTIF($AH10:AZ10,$O10)<$AA10,$O10,0) ->  | BB10: =IF(COUNTIF($AH10:BA10,$O10)<$AA10,$O10,0) ->  | BC10: =IF(COUNTIF($AH10:BB10,$O10)<$AA10,$O10,0) ->  | BD10: =IF(COUNTIF($AH10:BC10,$O10)<$AA10,$O10,0) ->  | BE10: =IF(COUNTIF($AH10:BD10,$O10)<$AA10,$O10,0) ->  | BF10: =IF(COUNTIF($AH10:BE10,$O10)<$AA10,$O10,0) ->  | BG10: =IF(COUNTIF($AH10:BF10,$O10)<$AA10,$O10,0) ->  | BH10: =IF(COUNTIF($AH10:BG10,$O10)<$AA10,$O10,0) ->  | BI10: =IF(COUNTIF($AH10:BH10,$O10)<$AA10,$O10,0) ->  | BJ10: =IF(COUNTIF($AH10:BI10,$O10)<$AA10,$O10,0) ->  | BK10: =IF(COUNTIF($AH10:BJ10,$O10)<$AA10,$O10,0) ->  | BL10: =IF(COUNTIF($AH10:BK10,$O10)<$AA10,$O10,0) ->  | BM10: =IF(COUNTIF($AH10:BL10,$O10)<$AA10,$O10,0) ->  | BN10: =IF(COUNTIF($AH10:BM10,$O10)<$AA10,$O10,0) ->  | BO10: =IF(COUNTIF($AH10:BN10,$O10)<$AA10,$O10,0) ->  | BP10: =IF(COUNTIF($AH10:BO10,$O10)<$AA10,$O10,0) ->  | BQ10: =IF(COUNTIF($AH10:BP10,$O10)<$AA10,$O10,0) ->  | BR10: =IF(COUNTIF($AH10:BQ10,$O10)<$AA10,$O10,0) ->  | BS10: =IF(COUNTIF($AH10:BR10,$O10)<$AA10,$O10,0) ->  | BT10: =IF(COUNTIF($AH10:BS10,$O10)<$AA10,$O10,0) ->  | BU10: =IF(COUNTIF($AH10:BT10,$O10)<$AA10,$O10,0) ->  | BV10: -0.3
B11: 4 | C11: =IF(OR('Measure Descriptions'!C11="",'Measure Descriptions'!D11="",'Measure Descriptions'!E11="")=TRUE,"",'Measure Descriptions'!C11) ->  | D11: =IF(OR('Measure Descriptions'!C11="",'Measure Descriptions'!D11="",'Measure Descriptions'!E11="")=TRUE,"",'Measure Descriptions'!D11) ->  | E11: =IF(OR('Measure Descriptions'!C11="",'Measure Descriptions'!D11="",'Measure Descriptions'!E11="")=TRUE,"",'Measure Descriptions'!E11) ->  | O11: =IF(E11="","",(G11+H11)*VLOOKUP(N11,'Utility Info'!$B$15:$G$19,5,FALSE)+(I11+J11)*'Utility Info'!$F$14) ->  | P11: 0 | S11: 0 | T11: =IFERROR(IF(F11=0,0,IF(OR(C11="Fuel Conversion",Y11="Yes")=TRUE,"N/A",'TRC Test'!K9/'TRC Test'!M9)),0) -> 0 | U11: ='Measure QC'!H9 -> 0 | AG11: 0 | AJ11: =IF(COUNTIF($AH11:AI11,$O11)<$AA11,$O11,0) ->  | AK11: =IF(COUNTIF($AH11:AJ11,$O11)<$AA11,$O11,0) ->  | AL11: =IF(COUNTIF($AH11:AK11,$O11)<$AA11,$O11,0) ->  | AM11: =IF(COUNTIF($AH11:AL11,$O11)<$AA11,$O11,0) ->  | AN11: =IF(COUNTIF($AH11:AM11,$O11)<$AA11,$O11,0) ->  | AO11: =IF(COUNTIF($AH11:AN11,$O11)<$AA11,$O11,0) ->  | AP11: =IF(COUNTIF($AH11:AO11,$O11)<$AA11,$O11,0) ->  | AQ11: =IF(COUNTIF($AH11:AP11,$O11)<$AA11,$O11,0) ->  | AR11: =IF(COUNTIF($AH11:AQ11,$O11)<$AA11,$O11,0) ->  | AS11: =IF(COUNTIF($AH11:AR11,$O11)<$AA11,$O11,0) ->  | AT11: =IF(COUNTIF($AH11:AS11,$O11)<$AA11,$O11,0) ->  | AU11: =IF(COUNTIF($AH11:AT11,$O11)<$AA11,$O11,0) ->  | AV11: =IF(COUNTIF($AH11:AU11,$O11)<$AA11,$O11,0) ->  | AW11: =IF(COUNTIF($AH11:AV11,$O11)<$AA11,$O11,0) ->  | AX11: =IF(COUNTIF($AH11:AW11,$O11)<$AA11,$O11,0) ->  | AY11: =IF(COUNTIF($AH11:AX11,$O11)<$AA11,$O11,0) ->  | AZ11: =IF(COUNTIF($AH11:AY11,$O11)<$AA11,$O11,0) ->  | BA11: =IF(COUNTIF($AH11:AZ11,$O11)<$AA11,$O11,0) ->  | BB11: =IF(COUNTIF($AH11:BA11,$O11)<$AA11,$O11,0) ->  | BC11: =IF(COUNTIF($AH11:BB11,$O11)<$AA11,$O11,0) ->  | BD11: =IF(COUNTIF($AH11:BC11,$O11)<$AA11,$O11,0) ->  | BE11: =IF(COUNTIF($AH11:BD11,$O11)<$AA11,$O11,0) ->  | BF11: =IF(COUNTIF($AH11:BE11,$O11)<$AA11,$O11,0) ->  | BG11: =IF(COUNTIF($AH11:BF11,$O11)<$AA11,$O11,0) ->  | BH11: =IF(COUNTIF($AH11:BG11,$O11)<$AA11,$O11,0) ->  | BI11: =IF(COUNTIF($AH11:BH11,$O11)<$AA11,$O11,0) ->  | BJ11: =IF(COUNTIF($AH11:BI11,$O11)<$AA11,$O11,0) ->  | BK11: =IF(COUNTIF($AH11:BJ11,$O11)<$AA11,$O11,0) ->  | BL11: =IF(COUNTIF($AH11:BK11,$O11)<$AA11,$O11,0) ->  | BM11: =IF(COUNTIF($AH11:BL11,$O11)<$AA11,$O11,0) ->  | BN11: =IF(COUNTIF($AH11:BM11,$O11)<$AA11,$O11,0) ->  | BO11: =IF(COUNTIF($AH11:BN11,$O11)<$AA11,$O11,0) ->  | BP11: =IF(COUNTIF($AH11:BO11,$O11)<$AA11,$O11,0) ->  | BQ11: =IF(COUNTIF($AH11:BP11,$O11)<$AA11,$O11,0) ->  | BR11: =IF(COUNTIF($AH11:BQ11,$O11)<$AA11,$O11,0) ->  | BS11: =IF(COUNTIF($AH11:BR11,$O11)<$AA11,$O11,0) ->  | BT11: =IF(COUNTIF($AH11:BS11,$O11)<$AA11,$O11,0) ->  | BU11: =IF(COUNTIF($AH11:BT11,$O11)<$AA11,$O11,0) ->  | BV11: -0.3
B12: 5 | C12: =IF(OR('Measure Descriptions'!C12="",'Measure Descriptions'!D12="",'Measure Descriptions'!E12="")=TRUE,"",'Measure Descriptions'!C12) ->  | D12: =IF(OR('Measure Descriptions'!C12="",'Measure Descriptions'!D12="",'Measure Descriptions'!E12="")=TRUE,"",'Measure Descriptions'!D12) ->  | E12: =IF(OR('Measure Descriptions'!C12="",'Measure Descriptions'!D12="",'Measure Descriptions'!E12="")=TRUE,"",'Measure Descriptions'!E12) ->  | O12: =IF(E12="","",(G12+H12)*VLOOKUP(N12,'Utility Info'!$B$15:$G$19,5,FALSE)+(I12+J12)*'Utility Info'!$F$14) ->  | P12: 0 | S12: 0 | T12: =IFERROR(IF(F12=0,0,IF(OR(C12="Fuel Conversion",Y12="Yes")=TRUE,"N/A",'TRC Test'!K10/'TRC Test'!M10)),0) -> 0 | U12: ='Measure QC'!H10 -> 0 | AG12: 0 | AJ12: =IF(COUNTIF($AH12:AI12,$O12)<$AA12,$O12,0) ->  | AK12: =IF(COUNTIF($AH12:AJ12,$O12)<$AA12,$O12,0) ->  | AL12: =IF(COUNTIF($AH12:AK12,$O12)<$AA12,$O12,0) ->  | AM12: =IF(COUNTIF($AH12:AL12,$O12)<$AA12,$O12,0) ->  | AN12: =IF(COUNTIF($AH12:AM12,$O12)<$AA12,$O12,0) ->  | AO12: =IF(COUNTIF($AH12:AN12,$O12)<$AA12,$O12,0) ->  | AP12: =IF(COUNTIF($AH12:AO12,$O12)<$AA12,$O12,0) ->  | AQ12: =IF(COUNTIF($AH12:AP12,$O12)<$AA12,$O12,0) ->  | AR12: =IF(COUNTIF($AH12:AQ12,$O12)<$AA12,$O12,0) ->  | AS12: =IF(COUNTIF($AH12:AR12,$O12)<$AA12,$O12,0) ->  | AT12: =IF(COUNTIF($AH12:AS12,$O12)<$AA12,$O12,0) ->  | AU12: =IF(COUNTIF($AH12:AT12,$O12)<$AA12,$O12,0) ->  | AV12: =IF(COUNTIF($AH12:AU12,$O12)<$AA12,$O12,0) ->  | AW12: =IF(COUNTIF($AH12:AV12,$O12)<$AA12,$O12,0) ->  | AX12: =IF(COUNTIF($AH12:AW12,$O12)<$AA12,$O12,0) ->  | AY12: =IF(COUNTIF($AH12:AX12,$O12)<$AA12,$O12,0) ->  | AZ12: =IF(COUNTIF($AH12:AY12,$O12)<$AA12,$O12,0) ->  | BA12: =IF(COUNTIF($AH12:AZ12,$O12)<$AA12,$O12,0) ->  | BB12: =IF(COUNTIF($AH12:BA12,$O12)<$AA12,$O12,0) ->  | BC12: =IF(COUNTIF($AH12:BB12,$O12)<$AA12,$O12,0) ->  | BD12: =IF(COUNTIF($AH12:BC12,$O12)<$AA12,$O12,0) ->  | BE12: =IF(COUNTIF($AH12:BD12,$O12)<$AA12,$O12,0) ->  | BF12: =IF(COUNTIF($AH12:BE12,$O12)<$AA12,$O12,0) ->  | BG12: =IF(COUNTIF($AH12:BF12,$O12)<$AA12,$O12,0) ->  | BH12: =IF(COUNTIF($AH12:BG12,$O12)<$AA12,$O12,0) ->  | BI12: =IF(COUNTIF($AH12:BH12,$O12)<$AA12,$O12,0) ->  | BJ12: =IF(COUNTIF($AH12:BI12,$O12)<$AA12,$O12,0) ->  | BK12: =IF(COUNTIF($AH12:BJ12,$O12)<$AA12,$O12,0) ->  | BL12: =IF(COUNTIF($AH12:BK12,$O12)<$AA12,$O12,0) ->  | BM12: =IF(COUNTIF($AH12:BL12,$O12)<$AA12,$O12,0) ->  | BN12: =IF(COUNTIF($AH12:BM12,$O12)<$AA12,$O12,0) ->  | BO12: =IF(COUNTIF($AH12:BN12,$O12)<$AA12,$O12,0) ->  | BP12: =IF(COUNTIF($AH12:BO12,$O12)<$AA12,$O12,0) ->  | BQ12: =IF(COUNTIF($AH12:BP12,$O12)<$AA12,$O12,0) ->  | BR12: =IF(COUNTIF($AH12:BQ12,$O12)<$AA12,$O12,0) ->  | BS12: =IF(COUNTIF($AH12:BR12,$O12)<$AA12,$O12,0) ->  | BT12: =IF(COUNTIF($AH12:BS12,$O12)<$AA12,$O12,0) ->  | BU12: =IF(COUNTIF($AH12:BT12,$O12)<$AA12,$O12,0) ->  | BV12: -0.3
B13: 6 | C13: =IF(OR('Measure Descriptions'!C13="",'Measure Descriptions'!D13="",'Measure Descriptions'!E13="")=TRUE,"",'Measure Descriptions'!C13) ->  | D13: =IF(OR('Measure Descriptions'!C13="",'Measure Descriptions'!D13="",'Measure Descriptions'!E13="")=TRUE,"",'Measure Descriptions'!D13) ->  | E13: =IF(OR('Measure Descriptions'!C13="",'Measure Descriptions'!D13="",'Measure Descriptions'!E13="")=TRUE,"",'Measure Descriptions'!E13) ->  | O13: =IF(E13="","",(G13+H13)*VLOOKUP(N13,'Utility Info'!$B$15:$G$19,5,FALSE)+(I13+J13)*'Utility Info'!$F$14) ->  | P13: 0 | S13: 0 | T13: =IFERROR(IF(F13=0,0,IF(OR(C13="Fuel Conversion",Y13="Yes")=TRUE,"N/A",'TRC Test'!K11/'TRC Test'!M11)),0) -> 0 | U13: ='Measure QC'!H11 -> 0 | AG13: 0 | AJ13: =IF(COUNTIF($AH13:AI13,$O13)<$AA13,$O13,0) ->  | AK13: =IF(COUNTIF($AH13:AJ13,$O13)<$AA13,$O13,0) ->  | AL13: =IF(COUNTIF($AH13:AK13,$O13)<$AA13,$O13,0) ->  | AM13: =IF(COUNTIF($AH13:AL13,$O13)<$AA13,$O13,0) ->  | AN13: =IF(COUNTIF($AH13:AM13,$O13)<$AA13,$O13,0) ->  | AO13: =IF(COUNTIF($AH13:AN13,$O13)<$AA13,$O13,0) ->  | AP13: =IF(COUNTIF($AH13:AO13,$O13)<$AA13,$O13,0) ->  | AQ13: =IF(COUNTIF($AH13:AP13,$O13)<$AA13,$O13,0) ->  | AR13: =IF(COUNTIF($AH13:AQ13,$O13)<$AA13,$O13,0) ->  | AS13: =IF(COUNTIF($AH13:AR13,$O13)<$AA13,$O13,0) ->  | AT13: =IF(COUNTIF($AH13:AS13,$O13)<$AA13,$O13,0) ->  | AU13: =IF(COUNTIF($AH13:AT13,$O13)<$AA13,$O13,0) ->  | AV13: =IF(COUNTIF($AH13:AU13,$O13)<$AA13,$O13,0) ->  | AW13: =IF(COUNTIF($AH13:AV13,$O13)<$AA13,$O13,0) ->  | AX13: =IF(COUNTIF($AH13:AW13,$O13)<$AA13,$O13,0) ->  | AY13: =IF(COUNTIF($AH13:AX13,$O13)<$AA13,$O13,0) ->  | AZ13: =IF(COUNTIF($AH13:AY13,$O13)<$AA13,$O13,0) ->  | BA13: =IF(COUNTIF($AH13:AZ13,$O13)<$AA13,$O13,0) ->  | BB13: =IF(COUNTIF($AH13:BA13,$O13)<$AA13,$O13,0) ->  | BC13: =IF(COUNTIF($AH13:BB13,$O13)<$AA13,$O13,0) ->  | BD13: =IF(COUNTIF($AH13:BC13,$O13)<$AA13,$O13,0) ->  | BE13: =IF(COUNTIF($AH13:BD13,$O13)<$AA13,$O13,0) ->  | BF13: =IF(COUNTIF($AH13:BE13,$O13)<$AA13,$O13,0) ->  | BG13: =IF(COUNTIF($AH13:BF13,$O13)<$AA13,$O13,0) ->  | BH13: =IF(COUNTIF($AH13:BG13,$O13)<$AA13,$O13,0) ->  | BI13: =IF(COUNTIF($AH13:BH13,$O13)<$AA13,$O13,0) ->  | BJ13: =IF(COUNTIF($AH13:BI13,$O13)<$AA13,$O13,0) ->  | BK13: =IF(COUNTIF($AH13:BJ13,$O13)<$AA13,$O13,0) ->  | BL13: =IF(COUNTIF($AH13:BK13,$O13)<$AA13,$O13,0) ->  | BM13: =IF(COUNTIF($AH13:BL13,$O13)<$AA13,$O13,0) ->  | BN13: =IF(COUNTIF($AH13:BM13,$O13)<$AA13,$O13,0) ->  | BO13: =IF(COUNTIF($AH13:BN13,$O13)<$AA13,$O13,0) ->  | BP13: =IF(COUNTIF($AH13:BO13,$O13)<$AA13,$O13,0) ->  | BQ13: =IF(COUNTIF($AH13:BP13,$O13)<$AA13,$O13,0) ->  | BR13: =IF(COUNTIF($AH13:BQ13,$O13)<$AA13,$O13,0) ->  | BS13: =IF(COUNTIF($AH13:BR13,$O13)<$AA13,$O13,0) ->  | BT13: =IF(COUNTIF($AH13:BS13,$O13)<$AA13,$O13,0) ->  | BU13: =IF(COUNTIF($AH13:BT13,$O13)<$AA13,$O13,0) ->  | BV13: -0.3
B14: 7 | C14: =IF(OR('Measure Descriptions'!C14="",'Measure Descriptions'!D14="",'Measure Descriptions'!E14="")=TRUE,"",'Measure Descriptions'!C14) ->  | D14: =IF(OR('Measure Descriptions'!C14="",'Measure Descriptions'!D14="",'Measure Descriptions'!E14="")=TRUE,"",'Measure Descriptions'!D14) ->  | E14: =IF(OR('Measure Descriptions'!C14="",'Measure Descriptions'!D14="",'Measure Descriptions'!E14="")=TRUE,"",'Measure Descriptions'!E14) ->  | O14: =IF(E14="","",(G14+H14)*VLOOKUP(N14,'Utility Info'!$B$15:$G$19,5,FALSE)+(I14+J14)*'Utility Info'!$F$14) ->  | P14: 0 | S14: 0 | T14: =IFERROR(IF(F14=0,0,IF(OR(C14="Fuel Conversion",Y14="Yes")=TRUE,"N/A",'TRC Test'!K12/'TRC Test'!M12)),0) -> 0 | U14: ='Measure QC'!H12 -> 0 | AG14: 0 | AJ14: =IF(COUNTIF($AH14:AI14,$O14)<$AA14,$O14,0) ->  | AK14: =IF(COUNTIF($AH14:AJ14,$O14)<$AA14,$O14,0) ->  | AL14: =IF(COUNTIF($AH14:AK14,$O14)<$AA14,$O14,0) ->  | AM14: =IF(COUNTIF($AH14:AL14,$O14)<$AA14,$O14,0) ->  | AN14: =IF(COUNTIF($AH14:AM14,$O14)<$AA14,$O14,0) ->  | AO14: =IF(COUNTIF($AH14:AN14,$O14)<$AA14,$O14,0) ->  | AP14: =IF(COUNTIF($AH14:AO14,$O14)<$AA14,$O14,0) ->  | AQ14: =IF(COUNTIF($AH14:AP14,$O14)<$AA14,$O14,0) ->  | AR14: =IF(COUNTIF($AH14:AQ14,$O14)<$AA14,$O14,0) ->  | AS14: =IF(COUNTIF($AH14:AR14,$O14)<$AA14,$O14,0) ->  | AT14: =IF(COUNTIF($AH14:AS14,$O14)<$AA14,$O14,0) ->  | AU14: =IF(COUNTIF($AH14:AT14,$O14)<$AA14,$O14,0) ->  | AV14: =IF(COUNTIF($AH14:AU14,$O14)<$AA14,$O14,0) ->  | AW14: =IF(COUNTIF($AH14:AV14,$O14)<$AA14,$O14,0) ->  | AX14: =IF(COUNTIF($AH14:AW14,$O14)<$AA14,$O14,0) ->  | AY14: =IF(COUNTIF($AH14:AX14,$O14)<$AA14,$O14,0) ->  | AZ14: =IF(COUNTIF($AH14:AY14,$O14)<$AA14,$O14,0) ->  | BA14: =IF(COUNTIF($AH14:AZ14,$O14)<$AA14,$O14,0) ->  | BB14: =IF(COUNTIF($AH14:BA14,$O14)<$AA14,$O14,0) ->  | BC14: =IF(COUNTIF($AH14:BB14,$O14)<$AA14,$O14,0) ->  | BD14: =IF(COUNTIF($AH14:BC14,$O14)<$AA14,$O14,0) ->  | BE14: =IF(COUNTIF($AH14:BD14,$O14)<$AA14,$O14,0) ->  | BF14: =IF(COUNTIF($AH14:BE14,$O14)<$AA14,$O14,0) ->  | BG14: =IF(COUNTIF($AH14:BF14,$O14)<$AA14,$O14,0) ->  | BH14: =IF(COUNTIF($AH14:BG14,$O14)<$AA14,$O14,0) ->  | BI14: =IF(COUNTIF($AH14:BH14,$O14)<$AA14,$O14,0) ->  | BJ14: =IF(COUNTIF($AH14:BI14,$O14)<$AA14,$O14,0) ->  | BK14: =IF(COUNTIF($AH14:BJ14,$O14)<$AA14,$O14,0) ->  | BL14: =IF(COUNTIF($AH14:BK14,$O14)<$AA14,$O14,0) ->  | BM14: =IF(COUNTIF($AH14:BL14,$O14)<$AA14,$O14,0) ->  | BN14: =IF(COUNTIF($AH14:BM14,$O14)<$AA14,$O14,0) ->  | BO14: =IF(COUNTIF($AH14:BN14,$O14)<$AA14,$O14,0) ->  | BP14: =IF(COUNTIF($AH14:BO14,$O14)<$AA14,$O14,0) ->  | BQ14: =IF(COUNTIF($AH14:BP14,$O14)<$AA14,$O14,0) ->  | BR14: =IF(COUNTIF($AH14:BQ14,$O14)<$AA14,$O14,0) ->  | BS14: =IF(COUNTIF($AH14:BR14,$O14)<$AA14,$O14,0) ->  | BT14: =IF(COUNTIF($AH14:BS14,$O14)<$AA14,$O14,0) ->  | BU14: =IF(COUNTIF($AH14:BT14,$O14)<$AA14,$O14,0) ->  | BV14: -0.3
B15: 8 | C15: =IF(OR('Measure Descriptions'!C15="",'Measure Descriptions'!D15="",'Measure Descriptions'!E15="")=TRUE,"",'Measure Descriptions'!C15) ->  | D15: =IF(OR('Measure Descriptions'!C15="",'Measure Descriptions'!D15="",'Measure Descriptions'!E15="")=TRUE,"",'Measure Descriptions'!D15) ->  | E15: =IF(OR('Measure Descriptions'!C15="",'Measure Descriptions'!D15="",'Measure Descriptions'!E15="")=TRUE,"",'Measure Descriptions'!E15) ->  | O15: =IF(E15="","",(G15+H15)*VLOOKUP(N15,'Utility Info'!$B$15:$G$19,5,FALSE)+(I15+J15)*'Utility Info'!$F$14) ->  | P15: 0 | S15: 0 | T15: =IFERROR(IF(F15=0,0,IF(OR(C15="Fuel Conversion",Y15="Yes")=TRUE,"N/A",'TRC Test'!K13/'TRC Test'!M13)),0) -> 0 | U15: ='Measure QC'!H13 -> 0 | AG15: 0 | AJ15: =IF(COUNTIF($AH15:AI15,$O15)<$AA15,$O15,0) ->  | AK15: =IF(COUNTIF($AH15:AJ15,$O15)<$AA15,$O15,0) ->  | AL15: =IF(COUNTIF($AH15:AK15,$O15)<$AA15,$O15,0) ->  | AM15: =IF(COUNTIF($AH15:AL15,$O15)<$AA15,$O15,0) ->  | AN15: =IF(COUNTIF($AH15:AM15,$O15)<$AA15,$O15,0) ->  | AO15: =IF(COUNTIF($AH15:AN15,$O15)<$AA15,$O15,0) ->  | AP15: =IF(COUNTIF($AH15:AO15,$O15)<$AA15,$O15,0) ->  | AQ15: =IF(COUNTIF($AH15:AP15,$O15)<$AA15,$O15,0) ->  | AR15: =IF(COUNTIF($AH15:AQ15,$O15)<$AA15,$O15,0) ->  | AS15: =IF(COUNTIF($AH15:AR15,$O15)<$AA15,$O15,0) ->  | AT15: =IF(COUNTIF($AH15:AS15,$O15)<$AA15,$O15,0) ->  | AU15: =IF(COUNTIF($AH15:AT15,$O15)<$AA15,$O15,0) ->  | AV15: =IF(COUNTIF($AH15:AU15,$O15)<$AA15,$O15,0) ->  | AW15: =IF(COUNTIF($AH15:AV15,$O15)<$AA15,$O15,0) ->  | AX15: =IF(COUNTIF($AH15:AW15,$O15)<$AA15,$O15,0) ->  | AY15: =IF(COUNTIF($AH15:AX15,$O15)<$AA15,$O15,0) ->  | AZ15: =IF(COUNTIF($AH15:AY15,$O15)<$AA15,$O15,0) ->  | BA15: =IF(COUNTIF($AH15:AZ15,$O15)<$AA15,$O15,0) ->  | BB15: =IF(COUNTIF($AH15:BA15,$O15)<$AA15,$O15,0) ->  | BC15: =IF(COUNTIF($AH15:BB15,$O15)<$AA15,$O15,0) ->  | BD15: =IF(COUNTIF($AH15:BC15,$O15)<$AA15,$O15,0) ->  | BE15: =IF(COUNTIF($AH15:BD15,$O15)<$AA15,$O15,0) ->  | BF15: =IF(COUNTIF($AH15:BE15,$O15)<$AA15,$O15,0) ->  | BG15: =IF(COUNTIF($AH15:BF15,$O15)<$AA15,$O15,0) ->  | BH15: =IF(COUNTIF($AH15:BG15,$O15)<$AA15,$O15,0) ->  | BI15: =IF(COUNTIF($AH15:BH15,$O15)<$AA15,$O15,0) ->  | BJ15: =IF(COUNTIF($AH15:BI15,$O15)<$AA15,$O15,0) ->  | BK15: =IF(COUNTIF($AH15:BJ15,$O15)<$AA15,$O15,0) ->  | BL15: =IF(COUNTIF($AH15:BK15,$O15)<$AA15,$O15,0) ->  | BM15: =IF(COUNTIF($AH15:BL15,$O15)<$AA15,$O15,0) ->  | BN15: =IF(COUNTIF($AH15:BM15,$O15)<$AA15,$O15,0) ->  | BO15: =IF(COUNTIF($AH15:BN15,$O15)<$AA15,$O15,0) ->  | BP15: =IF(COUNTIF($AH15:BO15,$O15)<$AA15,$O15,0) ->  | BQ15: =IF(COUNTIF($AH15:BP15,$O15)<$AA15,$O15,0) ->  | BR15: =IF(COUNTIF($AH15:BQ15,$O15)<$AA15,$O15,0) ->  | BS15: =IF(COUNTIF($AH15:BR15,$O15)<$AA15,$O15,0) ->  | BT15: =IF(COUNTIF($AH15:BS15,$O15)<$AA15,$O15,0) ->  | BU15: =IF(COUNTIF($AH15:BT15,$O15)<$AA15,$O15,0) ->  | BV15: -0.3
B16: 9 | C16: =IF(OR('Measure Descriptions'!C16="",'Measure Descriptions'!D16="",'Measure Descriptions'!E16="")=TRUE,"",'Measure Descriptions'!C16) ->  | D16: =IF(OR('Measure Descriptions'!C16="",'Measure Descriptions'!D16="",'Measure Descriptions'!E16="")=TRUE,"",'Measure Descriptions'!D16) ->  | E16: =IF(OR('Measure Descriptions'!C16="",'Measure Descriptions'!D16="",'Measure Descriptions'!E16="")=TRUE,"",'Measure Descriptions'!E16) ->  | O16: =IF(E16="","",(G16+H16)*VLOOKUP(N16,'Utility Info'!$B$15:$G$19,5,FALSE)+(I16+J16)*'Utility Info'!$F$14) ->  | P16: 0 | S16: 0 | T16: =IFERROR(IF(F16=0,0,IF(OR(C16="Fuel Conversion",Y16="Yes")=TRUE,"N/A",'TRC Test'!K14/'TRC Test'!M14)),0) -> 0 | U16: ='Measure QC'!H14 -> 0 | AG16: 0 | AJ16: =IF(COUNTIF($AH16:AI16,$O16)<$AA16,$O16,0) ->  | AK16: =IF(COUNTIF($AH16:AJ16,$O16)<$AA16,$O16,0) ->  | AL16: =IF(COUNTIF($AH16:AK16,$O16)<$AA16,$O16,0) ->  | AM16: =IF(COUNTIF($AH16:AL16,$O16)<$AA16,$O16,0) ->  | AN16: =IF(COUNTIF($AH16:AM16,$O16)<$AA16,$O16,0) ->  | AO16: =IF(COUNTIF($AH16:AN16,$O16)<$AA16,$O16,0) ->  | AP16: =IF(COUNTIF($AH16:AO16,$O16)<$AA16,$O16,0) ->  | AQ16: =IF(COUNTIF($AH16:AP16,$O16)<$AA16,$O16,0) ->  | AR16: =IF(COUNTIF($AH16:AQ16,$O16)<$AA16,$O16,0) ->  | AS16: =IF(COUNTIF($AH16:AR16,$O16)<$AA16,$O16,0) ->  | AT16: =IF(COUNTIF($AH16:AS16,$O16)<$AA16,$O16,0) ->  | AU16: =IF(COUNTIF($AH16:AT16,$O16)<$AA16,$O16,0) ->  | AV16: =IF(COUNTIF($AH16:AU16,$O16)<$AA16,$O16,0) ->  | AW16: =IF(COUNTIF($AH16:AV16,$O16)<$AA16,$O16,0) ->  | AX16: =IF(COUNTIF($AH16:AW16,$O16)<$AA16,$O16,0) ->  | AY16: =IF(COUNTIF($AH16:AX16,$O16)<$AA16,$O16,0) ->  | AZ16: =IF(COUNTIF($AH16:AY16,$O16)<$AA16,$O16,0) ->  | BA16: =IF(COUNTIF($AH16:AZ16,$O16)<$AA16,$O16,0) ->  | BB16: =IF(COUNTIF($AH16:BA16,$O16)<$AA16,$O16,0) ->  | BC16: =IF(COUNTIF($AH16:BB16,$O16)<$AA16,$O16,0) ->  | BD16: =IF(COUNTIF($AH16:BC16,$O16)<$AA16,$O16,0) ->  | BE16: =IF(COUNTIF($AH16:BD16,$O16)<$AA16,$O16,0) ->  | BF16: =IF(COUNTIF($AH16:BE16,$O16)<$AA16,$O16,0) ->  | BG16: =IF(COUNTIF($AH16:BF16,$O16)<$AA16,$O16,0) ->  | BH16: =IF(COUNTIF($AH16:BG16,$O16)<$AA16,$O16,0) ->  | BI16: =IF(COUNTIF($AH16:BH16,$O16)<$AA16,$O16,0) ->  | BJ16: =IF(COUNTIF($AH16:BI16,$O16)<$AA16,$O16,0) ->  | BK16: =IF(COUNTIF($AH16:BJ16,$O16)<$AA16,$O16,0) ->  | BL16: =IF(COUNTIF($AH16:BK16,$O16)<$AA16,$O16,0) ->  | BM16: =IF(COUNTIF($AH16:BL16,$O16)<$AA16,$O16,0) ->  | BN16: =IF(COUNTIF($AH16:BM16,$O16)<$AA16,$O16,0) ->  | BO16: =IF(COUNTIF($AH16:BN16,$O16)<$AA16,$O16,0) ->  | BP16: =IF(COUNTIF($AH16:BO16,$O16)<$AA16,$O16,0) ->  | BQ16: =IF(COUNTIF($AH16:BP16,$O16)<$AA16,$O16,0) ->  | BR16: =IF(COUNTIF($AH16:BQ16,$O16)<$AA16,$O16,0) ->  | BS16: =IF(COUNTIF($AH16:BR16,$O16)<$AA16,$O16,0) ->  | BT16: =IF(COUNTIF($AH16:BS16,$O16)<$AA16,$O16,0) ->  | BU16: =IF(COUNTIF($AH16:BT16,$O16)<$AA16,$O16,0) ->  | BV16: -0.3
B17: 10 | C17: =IF(OR('Measure Descriptions'!C17="",'Measure Descriptions'!D17="",'Measure Descriptions'!E17="")=TRUE,"",'Measure Descriptions'!C17) ->  | D17: =IF(OR('Measure Descriptions'!C17="",'Measure Descriptions'!D17="",'Measure Descriptions'!E17="")=TRUE,"",'Measure Descriptions'!D17) ->  | E17: =IF(OR('Measure Descriptions'!C17="",'Measure Descriptions'!D17="",'Measure Descriptions'!E17="")=TRUE,"",'Measure Descriptions'!E17) ->  | O17: =IF(E17="","",(G17+H17)*VLOOKUP(N17,'Utility Info'!$B$15:$G$19,5,FALSE)+(I17+J17)*'Utility Info'!$F$14) ->  | P17: 0 | S17: 0 | T17: =IFERROR(IF(F17=0,0,IF(OR(C17="Fuel Conversion",Y17="Yes")=TRUE,"N/A",'TRC Test'!K15/'TRC Test'!M15)),0) -> 0 | U17: ='Measure QC'!H15 -> 0 | AG17: 0 | AJ17: =IF(COUNTIF($AH17:AI17,$O17)<$AA17,$O17,0) ->  | AK17: =IF(COUNTIF($AH17:AJ17,$O17)<$AA17,$O17,0) ->  | AL17: =IF(COUNTIF($AH17:AK17,$O17)<$AA17,$O17,0) ->  | AM17: =IF(COUNTIF($AH17:AL17,$O17)<$AA17,$O17,0) ->  | AN17: =IF(COUNTIF($AH17:AM17,$O17)<$AA17,$O17,0) ->  | AO17: =IF(COUNTIF($AH17:AN17,$O17)<$AA17,$O17,0) ->  | AP17: =IF(COUNTIF($AH17:AO17,$O17)<$AA17,$O17,0) ->  | AQ17: =IF(COUNTIF($AH17:AP17,$O17)<$AA17,$O17,0) ->  | AR17: =IF(COUNTIF($AH17:AQ17,$O17)<$AA17,$O17,0) ->  | AS17: =IF(COUNTIF($AH17:AR17,$O17)<$AA17,$O17,0) ->  | AT17: =IF(COUNTIF($AH17:AS17,$O17)<$AA17,$O17,0) ->  | AU17: =IF(COUNTIF($AH17:AT17,$O17)<$AA17,$O17,0) ->  | AV17: =IF(COUNTIF($AH17:AU17,$O17)<$AA17,$O17,0) ->  | AW17: =IF(COUNTIF($AH17:AV17,$O17)<$AA17,$O17,0) ->  | AX17: =IF(COUNTIF($AH17:AW17,$O17)<$AA17,$O17,0) ->  | AY17: =IF(COUNTIF($AH17:AX17,$O17)<$AA17,$O17,0) ->  | AZ17: =IF(COUNTIF($AH17:AY17,$O17)<$AA17,$O17,0) ->  | BA17: =IF(COUNTIF($AH17:AZ17,$O17)<$AA17,$O17,0) ->  | BB17: =IF(COUNTIF($AH17:BA17,$O17)<$AA17,$O17,0) ->  | BC17: =IF(COUNTIF($AH17:BB17,$O17)<$AA17,$O17,0) ->  | BD17: =IF(COUNTIF($AH17:BC17,$O17)<$AA17,$O17,0) ->  | BE17: =IF(COUNTIF($AH17:BD17,$O17)<$AA17,$O17,0) ->  | BF17: =IF(COUNTIF($AH17:BE17,$O17)<$AA17,$O17,0) ->  | BG17: =IF(COUNTIF($AH17:BF17,$O17)<$AA17,$O17,0) ->  | BH17: =IF(COUNTIF($AH17:BG17,$O17)<$AA17,$O17,0) ->  | BI17: =IF(COUNTIF($AH17:BH17,$O17)<$AA17,$O17,0) ->  | BJ17: =IF(COUNTIF($AH17:BI17,$O17)<$AA17,$O17,0) ->  | BK17: =IF(COUNTIF($AH17:BJ17,$O17)<$AA17,$O17,0) ->  | BL17: =IF(COUNTIF($AH17:BK17,$O17)<$AA17,$O17,0) ->  | BM17: =IF(COUNTIF($AH17:BL17,$O17)<$AA17,$O17,0) ->  | BN17: =IF(COUNTIF($AH17:BM17,$O17)<$AA17,$O17,0) ->  | BO17: =IF(COUNTIF($AH17:BN17,$O17)<$AA17,$O17,0) ->  | BP17: =IF(COUNTIF($AH17:BO17,$O17)<$AA17,$O17,0) ->  | BQ17: =IF(COUNTIF($AH17:BP17,$O17)<$AA17,$O17,0) ->  | BR17: =IF(COUNTIF($AH17:BQ17,$O17)<$AA17,$O17,0) ->  | BS17: =IF(COUNTIF($AH17:BR17,$O17)<$AA17,$O17,0) ->  | BT17: =IF(COUNTIF($AH17:BS17,$O17)<$AA17,$O17,0) ->  | BU17: =IF(COUNTIF($AH17:BT17,$O17)<$AA17,$O17,0) ->  | BV17: -0.3
B18: 11 | C18: =IF(OR('Measure Descriptions'!C18="",'Measure Descriptions'!D18="",'Measure Descriptions'!E18="")=TRUE,"",'Measure Descriptions'!C18) ->  | D18: =IF(OR('Measure Descriptions'!C18="",'Measure Descriptions'!D18="",'Measure Descriptions'!E18="")=TRUE,"",'Measure Descriptions'!D18) ->  | E18: =IF(OR('Measure Descriptions'!C18="",'Measure Descriptions'!D18="",'Measure Descriptions'!E18="")=TRUE,"",'Measure Descriptions'!E18) ->  | O18: =IF(E18="","",(G18+H18)*VLOOKUP(N18,'Utility Info'!$B$15:$G$19,5,FALSE)+(I18+J18)*'Utility Info'!$F$14) ->  | P18: 0 | S18: 0 | T18: =IFERROR(IF(F18=0,0,IF(OR(C18="Fuel Conversion",Y18="Yes")=TRUE,"N/A",'TRC Test'!K16/'TRC Test'!M16)),0) -> 0 | U18: ='Measure QC'!H16 -> 0 | AG18: 0 | AJ18: =IF(COUNTIF($AH18:AI18,$O18)<$AA18,$O18,0) ->  | AK18: =IF(COUNTIF($AH18:AJ18,$O18)<$AA18,$O18,0) ->  | AL18: =IF(COUNTIF($AH18:AK18,$O18)<$AA18,$O18,0) ->  | AM18: =IF(COUNTIF($AH18:AL18,$O18)<$AA18,$O18,0) ->  | AN18: =IF(COUNTIF($AH18:AM18,$O18)<$AA18,$O18,0) ->  | AO18: =IF(COUNTIF($AH18:AN18,$O18)<$AA18,$O18,0) ->  | AP18: =IF(COUNTIF($AH18:AO18,$O18)<$AA18,$O18,0) ->  | AQ18: =IF(COUNTIF($AH18:AP18,$O18)<$AA18,$O18,0) ->  | AR18: =IF(COUNTIF($AH18:AQ18,$O18)<$AA18,$O18,0) ->  | AS18: =IF(COUNTIF($AH18:AR18,$O18)<$AA18,$O18,0) ->  | AT18: =IF(COUNTIF($AH18:AS18,$O18)<$AA18,$O18,0) ->  | AU18: =IF(COUNTIF($AH18:AT18,$O18)<$AA18,$O18,0) ->  | AV18: =IF(COUNTIF($AH18:AU18,$O18)<$AA18,$O18,0) ->  | AW18: =IF(COUNTIF($AH18:AV18,$O18)<$AA18,$O18,0) ->  | AX18: =IF(COUNTIF($AH18:AW18,$O18)<$AA18,$O18,0) ->  | AY18: =IF(COUNTIF($AH18:AX18,$O18)<$AA18,$O18,0) ->  | AZ18: =IF(COUNTIF($AH18:AY18,$O18)<$AA18,$O18,0) ->  | BA18: =IF(COUNTIF($AH18:AZ18,$O18)<$AA18,$O18,0) ->  | BB18: =IF(COUNTIF($AH18:BA18,$O18)<$AA18,$O18,0) ->  | BC18: =IF(COUNTIF($AH18:BB18,$O18)<$AA18,$O18,0) ->  | BD18: =IF(COUNTIF($AH18:BC18,$O18)<$AA18,$O18,0) ->  | BE18: =IF(COUNTIF($AH18:BD18,$O18)<$AA18,$O18,0) ->  | BF18: =IF(COUNTIF($AH18:BE18,$O18)<$AA18,$O18,0) ->  | BG18: =IF(COUNTIF($AH18:BF18,$O18)<$AA18,$O18,0) ->  | BH18: =IF(COUNTIF($AH18:BG18,$O18)<$AA18,$O18,0) ->  | BI18: =IF(COUNTIF($AH18:BH18,$O18)<$AA18,$O18,0) ->  | BJ18: =IF(COUNTIF($AH18:BI18,$O18)<$AA18,$O18,0) ->  | BK18: =IF(COUNTIF($AH18:BJ18,$O18)<$AA18,$O18,0) ->  | BL18: =IF(COUNTIF($AH18:BK18,$O18)<$AA18,$O18,0) ->  | BM18: =IF(COUNTIF($AH18:BL18,$O18)<$AA18,$O18,0) ->  | BN18: =IF(COUNTIF($AH18:BM18,$O18)<$AA18,$O18,0) ->  | BO18: =IF(COUNTIF($AH18:BN18,$O18)<$AA18,$O18,0) ->  | BP18: =IF(COUNTIF($AH18:BO18,$O18)<$AA18,$O18,0) ->  | BQ18: =IF(COUNTIF($AH18:BP18,$O18)<$AA18,$O18,0) ->  | BR18: =IF(COUNTIF($AH18:BQ18,$O18)<$AA18,$O18,0) ->  | BS18: =IF(COUNTIF($AH18:BR18,$O18)<$AA18,$O18,0) ->  | BT18: =IF(COUNTIF($AH18:BS18,$O18)<$AA18,$O18,0) ->  | BU18: =IF(COUNTIF($AH18:BT18,$O18)<$AA18,$O18,0) ->  | BV18: -0.3
B19: 12 | C19: =IF(OR('Measure Descriptions'!C19="",'Measure Descriptions'!D19="",'Measure Descriptions'!E19="")=TRUE,"",'Measure Descriptions'!C19) ->  | D19: =IF(OR('Measure Descriptions'!C19="",'Measure Descriptions'!D19="",'Measure Descriptions'!E19="")=TRUE,"",'Measure Descriptions'!D19) ->  | E19: =IF(OR('Measure Descriptions'!C19="",'Measure Descriptions'!D19="",'Measure Descriptions'!E19="")=TRUE,"",'Measure Descriptions'!E19) ->  | O19: =IF(E19="","",(G19+H19)*VLOOKUP(N19,'Utility Info'!$B$15:$G$19,5,FALSE)+(I19+J19)*'Utility Info'!$F$14) ->  | P19: 0 | S19: 0 | T19: =IFERROR(IF(F19=0,0,IF(OR(C19="Fuel Conversion",Y19="Yes")=TRUE,"N/A",'TRC Test'!K17/'TRC Test'!M17)),0) -> 0 | U19: ='Measure QC'!H17 -> 0 | AG19: 0 | AJ19: =IF(COUNTIF($AH19:AI19,$O19)<$AA19,$O19,0) ->  | AK19: =IF(COUNTIF($AH19:AJ19,$O19)<$AA19,$O19,0) ->  | AL19: =IF(COUNTIF($AH19:AK19,$O19)<$AA19,$O19,0) ->  | AM19: =IF(COUNTIF($AH19:AL19,$O19)<$AA19,$O19,0) ->  | AN19: =IF(COUNTIF($AH19:AM19,$O19)<$AA19,$O19,0) ->  | AO19: =IF(COUNTIF($AH19:AN19,$O19)<$AA19,$O19,0) ->  | AP19: =IF(COUNTIF($AH19:AO19,$O19)<$AA19,$O19,0) ->  | AQ19: =IF(COUNTIF($AH19:AP19,$O19)<$AA19,$O19,0) ->  | AR19: =IF(COUNTIF($AH19:AQ19,$O19)<$AA19,$O19,0) ->  | AS19: =IF(COUNTIF($AH19:AR19,$O19)<$AA19,$O19,0) ->  | AT19: =IF(COUNTIF($AH19:AS19,$O19)<$AA19,$O19,0) ->  | AU19: =IF(COUNTIF($AH19:AT19,$O19)<$AA19,$O19,0) ->  | AV19: =IF(COUNTIF($AH19:AU19,$O19)<$AA19,$O19,0) ->  | AW19: =IF(COUNTIF($AH19:AV19,$O19)<$AA19,$O19,0) ->  | AX19: =IF(COUNTIF($AH19:AW19,$O19)<$AA19,$O19,0) ->  | AY19: =IF(COUNTIF($AH19:AX19,$O19)<$AA19,$O19,0) ->  | AZ19: =IF(COUNTIF($AH19:AY19,$O19)<$AA19,$O19,0) ->  | BA19: =IF(COUNTIF($AH19:AZ19,$O19)<$AA19,$O19,0) ->  | BB19: =IF(COUNTIF($AH19:BA19,$O19)<$AA19,$O19,0) ->  | BC19: =IF(COUNTIF($AH19:BB19,$O19)<$AA19,$O19,0) ->  | BD19: =IF(COUNTIF($AH19:BC19,$O19)<$AA19,$O19,0) ->  | BE19: =IF(COUNTIF($AH19:BD19,$O19)<$AA19,$O19,0) ->  | BF19: =IF(COUNTIF($AH19:BE19,$O19)<$AA19,$O19,0) ->  | BG19: =IF(COUNTIF($AH19:BF19,$O19)<$AA19,$O19,0) ->  | BH19: =IF(COUNTIF($AH19:BG19,$O19)<$AA19,$O19,0) ->  | BI19: =IF(COUNTIF($AH19:BH19,$O19)<$AA19,$O19,0) ->  | BJ19: =IF(COUNTIF($AH19:BI19,$O19)<$AA19,$O19,0) ->  | BK19: =IF(COUNTIF($AH19:BJ19,$O19)<$AA19,$O19,0) ->  | BL19: =IF(COUNTIF($AH19:BK19,$O19)<$AA19,$O19,0) ->  | BM19: =IF(COUNTIF($AH19:BL19,$O19)<$AA19,$O19,0) ->  | BN19: =IF(COUNTIF($AH19:BM19,$O19)<$AA19,$O19,0) ->  | BO19: =IF(COUNTIF($AH19:BN19,$O19)<$AA19,$O19,0) ->  | BP19: =IF(COUNTIF($AH19:BO19,$O19)<$AA19,$O19,0) ->  | BQ19: =IF(COUNTIF($AH19:BP19,$O19)<$AA19,$O19,0) ->  | BR19: =IF(COUNTIF($AH19:BQ19,$O19)<$AA19,$O19,0) ->  | BS19: =IF(COUNTIF($AH19:BR19,$O19)<$AA19,$O19,0) ->  | BT19: =IF(COUNTIF($AH19:BS19,$O19)<$AA19,$O19,0) ->  | BU19: =IF(COUNTIF($AH19:BT19,$O19)<$AA19,$O19,0) ->  | BV19: -0.3
B20: 13 | C20: =IF(OR('Measure Descriptions'!C20="",'Measure Descriptions'!D20="",'Measure Descriptions'!E20="")=TRUE,"",'Measure Descriptions'!C20) ->  | D20: =IF(OR('Measure Descriptions'!C20="",'Measure Descriptions'!D20="",'Measure Descriptions'!E20="")=TRUE,"",'Measure Descriptions'!D20) ->  | E20: =IF(OR('Measure Descriptions'!C20="",'Measure Descriptions'!D20="",'Measure Descriptions'!E20="")=TRUE,"",'Measure Descriptions'!E20) ->  | O20: =IF(E20="","",(G20+H20)*VLOOKUP(N20,'Utility Info'!$B$15:$G$19,5,FALSE)+(I20+J20)*'Utility Info'!$F$14) ->  | P20: 0 | S20: 0 | T20: =IFERROR(IF(F20=0,0,IF(OR(C20="Fuel Conversion",Y20="Yes")=TRUE,"N/A",'TRC Test'!K18/'TRC Test'!M18)),0) -> 0 | U20: ='Measure QC'!H18 -> 0 | AG20: 0 | AJ20: =IF(COUNTIF($AH20:AI20,$O20)<$AA20,$O20,0) ->  | AK20: =IF(COUNTIF($AH20:AJ20,$O20)<$AA20,$O20,0) ->  | AL20: =IF(COUNTIF($AH20:AK20,$O20)<$AA20,$O20,0) ->  | AM20: =IF(COUNTIF($AH20:AL20,$O20)<$AA20,$O20,0) ->  | AN20: =IF(COUNTIF($AH20:AM20,$O20)<$AA20,$O20,0) ->  | AO20: =IF(COUNTIF($AH20:AN20,$O20)<$AA20,$O20,0) ->  | AP20: =IF(COUNTIF($AH20:AO20,$O20)<$AA20,$O20,0) ->  | AQ20: =IF(COUNTIF($AH20:AP20,$O20)<$AA20,$O20,0) ->  | AR20: =IF(COUNTIF($AH20:AQ20,$O20)<$AA20,$O20,0) ->  | AS20: =IF(COUNTIF($AH20:AR20,$O20)<$AA20,$O20,0) ->  | AT20: =IF(COUNTIF($AH20:AS20,$O20)<$AA20,$O20,0) ->  | AU20: =IF(COUNTIF($AH20:AT20,$O20)<$AA20,$O20,0) ->  | AV20: =IF(COUNTIF($AH20:AU20,$O20)<$AA20,$O20,0) ->  | AW20: =IF(COUNTIF($AH20:AV20,$O20)<$AA20,$O20,0) ->  | AX20: =IF(COUNTIF($AH20:AW20,$O20)<$AA20,$O20,0) ->  | AY20: =IF(COUNTIF($AH20:AX20,$O20)<$AA20,$O20,0) ->  | AZ20: =IF(COUNTIF($AH20:AY20,$O20)<$AA20,$O20,0) ->  | BA20: =IF(COUNTIF($AH20:AZ20,$O20)<$AA20,$O20,0) ->  | BB20: =IF(COUNTIF($AH20:BA20,$O20)<$AA20,$O20,0) ->  | BC20: =IF(COUNTIF($AH20:BB20,$O20)<$AA20,$O20,0) ->  | BD20: =IF(COUNTIF($AH20:BC20,$O20)<$AA20,$O20,0) ->  | BE20: =IF(COUNTIF($AH20:BD20,$O20)<$AA20,$O20,0) ->  | BF20: =IF(COUNTIF($AH20:BE20,$O20)<$AA20,$O20,0) ->  | BG20: =IF(COUNTIF($AH20:BF20,$O20)<$AA20,$O20,0) ->  | BH20: =IF(COUNTIF($AH20:BG20,$O20)<$AA20,$O20,0) ->  | BI20: =IF(COUNTIF($AH20:BH20,$O20)<$AA20,$O20,0) ->  | BJ20: =IF(COUNTIF($AH20:BI20,$O20)<$AA20,$O20,0) ->  | BK20: =IF(COUNTIF($AH20:BJ20,$O20)<$AA20,$O20,0) ->  | BL20: =IF(COUNTIF($AH20:BK20,$O20)<$AA20,$O20,0) ->  | BM20: =IF(COUNTIF($AH20:BL20,$O20)<$AA20,$O20,0) ->  | BN20: =IF(COUNTIF($AH20:BM20,$O20)<$AA20,$O20,0) ->  | BO20: =IF(COUNTIF($AH20:BN20,$O20)<$AA20,$O20,0) ->  | BP20: =IF(COUNTIF($AH20:BO20,$O20)<$AA20,$O20,0) ->  | BQ20: =IF(COUNTIF($AH20:BP20,$O20)<$AA20,$O20,0) ->  | BR20: =IF(COUNTIF($AH20:BQ20,$O20)<$AA20,$O20,0) ->  | BS20: =IF(COUNTIF($AH20:BR20,$O20)<$AA20,$O20,0) ->  | BT20: =IF(COUNTIF($AH20:BS20,$O20)<$AA20,$O20,0) ->  | BU20: =IF(COUNTIF($AH20:BT20,$O20)<$AA20,$O20,0) ->  | BV20: -0.3
B21: 14 | C21: =IF(OR('Measure Descriptions'!C21="",'Measure Descriptions'!D21="",'Measure Descriptions'!E21="")=TRUE,"",'Measure Descriptions'!C21) ->  | D21: =IF(OR('Measure Descriptions'!C21="",'Measure Descriptions'!D21="",'Measure Descriptions'!E21="")=TRUE,"",'Measure Descriptions'!D21) ->  | E21: =IF(OR('Measure Descriptions'!C21="",'Measure Descriptions'!D21="",'Measure Descriptions'!E21="")=TRUE,"",'Measure Descriptions'!E21) ->  | O21: =IF(E21="","",(G21+H21)*VLOOKUP(N21,'Utility Info'!$B$15:$G$19,5,FALSE)+(I21+J21)*'Utility Info'!$F$14) ->  | P21: 0 | S21: 0 | T21: =IFERROR(IF(F21=0,0,IF(OR(C21="Fuel Conversion",Y21="Yes")=TRUE,"N/A",'TRC Test'!K19/'TRC Test'!M19)),0) -> 0 | U21: ='Measure QC'!H19 -> 0 | AG21: 0 | AJ21: =IF(COUNTIF($AH21:AI21,$O21)<$AA21,$O21,0) ->  | AK21: =IF(COUNTIF($AH21:AJ21,$O21)<$AA21,$O21,0) ->  | AL21: =IF(COUNTIF($AH21:AK21,$O21)<$AA21,$O21,0) ->  | AM21: =IF(COUNTIF($AH21:AL21,$O21)<$AA21,$O21,0) ->  | AN21: =IF(COUNTIF($AH21:AM21,$O21)<$AA21,$O21,0) ->  | AO21: =IF(COUNTIF($AH21:AN21,$O21)<$AA21,$O21,0) ->  | AP21: =IF(COUNTIF($AH21:AO21,$O21)<$AA21,$O21,0) ->  | AQ21: =IF(COUNTIF($AH21:AP21,$O21)<$AA21,$O21,0) ->  | AR21: =IF(COUNTIF($AH21:AQ21,$O21)<$AA21,$O21,0) ->  | AS21: =IF(COUNTIF($AH21:AR21,$O21)<$AA21,$O21,0) ->  | AT21: =IF(COUNTIF($AH21:AS21,$O21)<$AA21,$O21,0) ->  | AU21: =IF(COUNTIF($AH21:AT21,$O21)<$AA21,$O21,0) ->  | AV21: =IF(COUNTIF($AH21:AU21,$O21)<$AA21,$O21,0) ->  | AW21: =IF(COUNTIF($AH21:AV21,$O21)<$AA21,$O21,0) ->  | AX21: =IF(COUNTIF($AH21:AW21,$O21)<$AA21,$O21,0) ->  | AY21: =IF(COUNTIF($AH21:AX21,$O21)<$AA21,$O21,0) ->  | AZ21: =IF(COUNTIF($AH21:AY21,$O21)<$AA21,$O21,0) ->  | BA21: =IF(COUNTIF($AH21:AZ21,$O21)<$AA21,$O21,0) ->  | BB21: =IF(COUNTIF($AH21:BA21,$O21)<$AA21,$O21,0) ->  | BC21: =IF(COUNTIF($AH21:BB21,$O21)<$AA21,$O21,0) ->  | BD21: =IF(COUNTIF($AH21:BC21,$O21)<$AA21,$O21,0) ->  | BE21: =IF(COUNTIF($AH21:BD21,$O21)<$AA21,$O21,0) ->  | BF21: =IF(COUNTIF($AH21:BE21,$O21)<$AA21,$O21,0) ->  | BG21: =IF(COUNTIF($AH21:BF21,$O21)<$AA21,$O21,0) ->  | BH21: =IF(COUNTIF($AH21:BG21,$O21)<$AA21,$O21,0) ->  | BI21: =IF(COUNTIF($AH21:BH21,$O21)<$AA21,$O21,0) ->  | BJ21: =IF(COUNTIF($AH21:BI21,$O21)<$AA21,$O21,0) ->  | BK21: =IF(COUNTIF($AH21:BJ21,$O21)<$AA21,$O21,0) ->  | BL21: =IF(COUNTIF($AH21:BK21,$O21)<$AA21,$O21,0) ->  | BM21: =IF(COUNTIF($AH21:BL21,$O21)<$AA21,$O21,0) ->  | BN21: =IF(COUNTIF($AH21:BM21,$O21)<$AA21,$O21,0) ->  | BO21: =IF(COUNTIF($AH21:BN21,$O21)<$AA21,$O21,0) ->  | BP21: =IF(COUNTIF($AH21:BO21,$O21)<$AA21,$O21,0) ->  | BQ21: =IF(COUNTIF($AH21:BP21,$O21)<$AA21,$O21,0) ->  | BR21: =IF(COUNTIF($AH21:BQ21,$O21)<$AA21,$O21,0) ->  | BS21: =IF(COUNTIF($AH21:BR21,$O21)<$AA21,$O21,0) ->  | BT21: =IF(COUNTIF($AH21:BS21,$O21)<$AA21,$O21,0) ->  | BU21: =IF(COUNTIF($AH21:BT21,$O21)<$AA21,$O21,0) ->  | BV21: -0.3
B22: 15 | C22: =IF(OR('Measure Descriptions'!C22="",'Measure Descriptions'!D22="",'Measure Descriptions'!E22="")=TRUE,"",'Measure Descriptions'!C22) ->  | D22: =IF(OR('Measure Descriptions'!C22="",'Measure Descriptions'!D22="",'Measure Descriptions'!E22="")=TRUE,"",'Measure Descriptions'!D22) ->  | E22: =IF(OR('Measure Descriptions'!C22="",'Measure Descriptions'!D22="",'Measure Descriptions'!E22="")=TRUE,"",'Measure Descriptions'!E22) ->  | O22: =IF(E22="","",(G22+H22)*VLOOKUP(N22,'Utility Info'!$B$15:$G$19,5,FALSE)+(I22+J22)*'Utility Info'!$F$14) ->  | P22: 0 | S22: 0 | T22: =IFERROR(IF(F22=0,0,IF(OR(C22="Fuel Conversion",Y22="Yes")=TRUE,"N/A",'TRC Test'!K20/'TRC Test'!M20)),0) -> 0 | U22: ='Measure QC'!H20 -> 0 | AG22: 0 | AJ22: =IF(COUNTIF($AH22:AI22,$O22)<$AA22,$O22,0) ->  | AK22: =IF(COUNTIF($AH22:AJ22,$O22)<$AA22,$O22,0) ->  | AL22: =IF(COUNTIF($AH22:AK22,$O22)<$AA22,$O22,0) ->  | AM22: =IF(COUNTIF($AH22:AL22,$O22)<$AA22,$O22,0) ->  | AN22: =IF(COUNTIF($AH22:AM22,$O22)<$AA22,$O22,0) ->  | AO22: =IF(COUNTIF($AH22:AN22,$O22)<$AA22,$O22,0) ->  | AP22: =IF(COUNTIF($AH22:AO22,$O22)<$AA22,$O22,0) ->  | AQ22: =IF(COUNTIF($AH22:AP22,$O22)<$AA22,$O22,0) ->  | AR22: =IF(COUNTIF($AH22:AQ22,$O22)<$AA22,$O22,0) ->  | AS22: =IF(COUNTIF($AH22:AR22,$O22)<$AA22,$O22,0) ->  | AT22: =IF(COUNTIF($AH22:AS22,$O22)<$AA22,$O22,0) ->  | AU22: =IF(COUNTIF($AH22:AT22,$O22)<$AA22,$O22,0) ->  | AV22: =IF(COUNTIF($AH22:AU22,$O22)<$AA22,$O22,0) ->  | AW22: =IF(COUNTIF($AH22:AV22,$O22)<$AA22,$O22,0) ->  | AX22: =IF(COUNTIF($AH22:AW22,$O22)<$AA22,$O22,0) ->  | AY22: =IF(COUNTIF($AH22:AX22,$O22)<$AA22,$O22,0) ->  | AZ22: =IF(COUNTIF($AH22:AY22,$O22)<$AA22,$O22,0) ->  | BA22: =IF(COUNTIF($AH22:AZ22,$O22)<$AA22,$O22,0) ->  | BB22: =IF(COUNTIF($AH22:BA22,$O22)<$AA22,$O22,0) ->  | BC22: =IF(COUNTIF($AH22:BB22,$O22)<$AA22,$O22,0) ->  | BD22: =IF(COUNTIF($AH22:BC22,$O22)<$AA22,$O22,0) ->  | BE22: =IF(COUNTIF($AH22:BD22,$O22)<$AA22,$O22,0) ->  | BF22: =IF(COUNTIF($AH22:BE22,$O22)<$AA22,$O22,0) ->  | BG22: =IF(COUNTIF($AH22:BF22,$O22)<$AA22,$O22,0) ->  | BH22: =IF(COUNTIF($AH22:BG22,$O22)<$AA22,$O22,0) ->  | BI22: =IF(COUNTIF($AH22:BH22,$O22)<$AA22,$O22,0) ->  | BJ22: =IF(COUNTIF($AH22:BI22,$O22)<$AA22,$O22,0) ->  | BK22: =IF(COUNTIF($AH22:BJ22,$O22)<$AA22,$O22,0) ->  | BL22: =IF(COUNTIF($AH22:BK22,$O22)<$AA22,$O22,0) ->  | BM22: =IF(COUNTIF($AH22:BL22,$O22)<$AA22,$O22,0) ->  | BN22: =IF(COUNTIF($AH22:BM22,$O22)<$AA22,$O22,0) ->  | BO22: =IF(COUNTIF($AH22:BN22,$O22)<$AA22,$O22,0) ->  | BP22: =IF(COUNTIF($AH22:BO22,$O22)<$AA22,$O22,0) ->  | BQ22: =IF(COUNTIF($AH22:BP22,$O22)<$AA22,$O22,0) ->  | BR22: =IF(COUNTIF($AH22:BQ22,$O22)<$AA22,$O22,0) ->  | BS22: =IF(COUNTIF($AH22:BR22,$O22)<$AA22,$O22,0) ->  | BT22: =IF(COUNTIF($AH22:BS22,$O22)<$AA22,$O22,0) ->  | BU22: =IF(COUNTIF($AH22:BT22,$O22)<$AA22,$O22,0) ->  | BV22: -0.3
B23: Measures to be undertaken by building - Savings accrue to tenants
B24: 16 | C24: =IF(OR('Measure Descriptions'!C24="",'Measure Descriptions'!D24="",'Measure Descriptions'!E24="")=TRUE,"",'Measure Descriptions'!C24) ->  | D24: =IF(OR('Measure Descriptions'!C24="",'Measure Descriptions'!D24="",'Measure Descriptions'!E24="")=TRUE,"",'Measure Descriptions'!D24) ->  | E24: =IF(OR('Measure Descriptions'!C24="",'Measure Descriptions'!D24="",'Measure Descriptions'!E24="")=TRUE,"",'Measure Descriptions'!E24) ->  | O24: =IF(E24="","",(G24+H24)*VLOOKUP(N24,'Utility Info'!$B$15:$G$19,5,FALSE)+(I24+J24)*'Utility Info'!$F$14) ->  | P24: 0 | Q24: =IF(N(O24)=0,"",F24/O24) ->  | S24: =IFERROR(IFERROR(IF(O24=0,0,(IRR(AG24:BU24,BV24))),IF(O24=0,0,(IRR(AG24:BU24,10%)))),0) -> 0 | T24: =IFERROR(IF(F24=0,0,IF(OR(C24="Fuel Conversion",Y24="Yes")=TRUE,"N/A",'TRC Test'!K22/'TRC Test'!M22)),0) -> 0 | U24: ='Measure QC'!H22 -> 0 | X24: =IFERROR(IF(E24="","",IF(VLOOKUP(E24,MeasureQCData,2,FALSE)="","",VLOOKUP(E24,MeasureQCData,2,FALSE))),"") ->  | AA24: =IFERROR(IF(E24="","",IF(VLOOKUP(E24,MeasureQCData,3,FALSE)="","",VLOOKUP(E24,MeasureQCData,3,FALSE))),"") ->  | AB24: =IFERROR(IF(E24="","",IF(VLOOKUP(E24,MeasureQCData,27,FALSE)="","",VLOOKUP(E24,MeasureQCData,27,FALSE))),"") ->  | AD24: =IFERROR(IF(E24="","",-PV($Y$42,AA24,O24)-F24),"") ->  | AG24: =-F24 -> 0 | AH24: =O24 ->  | AI24: =IF(COUNTIF(AH24,O24)<AA24,O24,0) ->  | AJ24: =IF(COUNTIF($AH24:AI24,$O24)<$AA24,$O24,0) ->  | AK24: =IF(COUNTIF($AH24:AJ24,$O24)<$AA24,$O24,0) ->  | AL24: =IF(COUNTIF($AH24:AK24,$O24)<$AA24,$O24,0) ->  | AM24: =IF(COUNTIF($AH24:AL24,$O24)<$AA24,$O24,0) ->  | AN24: =IF(COUNTIF($AH24:AM24,$O24)<$AA24,$O24,0) ->  | AO24: =IF(COUNTIF($AH24:AN24,$O24)<$AA24,$O24,0) ->  | AP24: =IF(COUNTIF($AH24:AO24,$O24)<$AA24,$O24,0) ->  | AQ24: =IF(COUNTIF($AH24:AP24,$O24)<$AA24,$O24,0) ->  | AR24: =IF(COUNTIF($AH24:AQ24,$O24)<$AA24,$O24,0) ->  | AS24: =IF(COUNTIF($AH24:AR24,$O24)<$AA24,$O24,0) ->  | AT24: =IF(COUNTIF($AH24:AS24,$O24)<$AA24,$O24,0) ->  | AU24: =IF(COUNTIF($AH24:AT24,$O24)<$AA24,$O24,0) ->  | AV24: =IF(COUNTIF($AH24:AU24,$O24)<$AA24,$O24,0) ->  | AW24: =IF(COUNTIF($AH24:AV24,$O24)<$AA24,$O24,0) ->  | AX24: =IF(COUNTIF($AH24:AW24,$O24)<$AA24,$O24,0) ->  | AY24: =IF(COUNTIF($AH24:AX24,$O24)<$AA24,$O24,0) ->  | AZ24: =IF(COUNTIF($AH24:AY24,$O24)<$AA24,$O24,0) ->  | BA24: =IF(COUNTIF($AH24:AZ24,$O24)<$AA24,$O24,0) ->  | BB24: =IF(COUNTIF($AH24:BA24,$O24)<$AA24,$O24,0) ->  | BC24: =IF(COUNTIF($AH24:BB24,$O24)<$AA24,$O24,0) ->  | BD24: =IF(COUNTIF($AH24:BC24,$O24)<$AA24,$O24,0) ->  | BE24: =IF(COUNTIF($AH24:BD24,$O24)<$AA24,$O24,0) ->  | BF24: =IF(COUNTIF($AH24:BE24,$O24)<$AA24,$O24,0) ->  | BG24: =IF(COUNTIF($AH24:BF24,$O24)<$AA24,$O24,0) ->  | BH24: =IF(COUNTIF($AH24:BG24,$O24)<$AA24,$O24,0) ->  | BI24: =IF(COUNTIF($AH24:BH24,$O24)<$AA24,$O24,0) ->  | BJ24: =IF(COUNTIF($AH24:BI24,$O24)<$AA24,$O24,0) ->  | BK24: =IF(COUNTIF($AH24:BJ24,$O24)<$AA24,$O24,0) ->  | BL24: =IF(COUNTIF($AH24:BK24,$O24)<$AA24,$O24,0) ->  | BM24: =IF(COUNTIF($AH24:BL24,$O24)<$AA24,$O24,0) ->  | BN24: =IF(COUNTIF($AH24:BM24,$O24)<$AA24,$O24,0) ->  | BO24: =IF(COUNTIF($AH24:BN24,$O24)<$AA24,$O24,0) ->  | BP24: =IF(COUNTIF($AH24:BO24,$O24)<$AA24,$O24,0) ->  | BQ24: =IF(COUNTIF($AH24:BP24,$O24)<$AA24,$O24,0) ->  | BR24: =IF(COUNTIF($AH24:BQ24,$O24)<$AA24,$O24,0) ->  | BS24: =IF(COUNTIF($AH24:BR24,$O24)<$AA24,$O24,0) ->  | BT24: =IF(COUNTIF($AH24:BS24,$O24)<$AA24,$O24,0) ->  | BU24: =IF(COUNTIF($AH24:BT24,$O24)<$AA24,$O24,0) ->  | BV24: -0.3 | CA24: =IF(C24="","",IF(OR(F24="",G24="",H24="",I24="",J24="",K24="",L24="",M24="",O24="",W24="",X24="",N24="",N24="",Y24="",Z24="",AA24="",AND(AB24="Inc",AC24="")=TRUE)=TRUE,"ERR","")) -> 
B25: 17 | C25: =IF(OR('Measure Descriptions'!C25="",'Measure Descriptions'!D25="",'Measure Descriptions'!E25="")=TRUE,"",'Measure Descriptions'!C25) ->  | D25: =IF(OR('Measure Descriptions'!C25="",'Measure Descriptions'!D25="",'Measure Descriptions'!E25="")=TRUE,"",'Measure Descriptions'!D25) ->  | E25: =IF(OR('Measure Descriptions'!C25="",'Measure Descriptions'!D25="",'Measure Descriptions'!E25="")=TRUE,"",'Measure Descriptions'!E25) ->  | O25: =IF(E25="","",(G25+H25)*VLOOKUP(N25,'Utility Info'!$B$15:$G$19,5,FALSE)+(I25+J25)*'Utility Info'!$F$14) ->  | P25: 0 | Q25: =IF(N(O25)=0,"",F25/O25) ->  | S25: 0 | T25: =IFERROR(IF(F25=0,0,IF(OR(C25="Fuel Conversion",Y25="Yes")=TRUE,"N/A",'TRC Test'!K23/'TRC Test'!M23)),0) -> 0 | U25: ='Measure QC'!H23 -> 0 | AG25: 0 | AJ25: =IF(COUNTIF($AH25:AI25,$O25)<$AA25,$O25,0) ->  | AK25: =IF(COUNTIF($AH25:AJ25,$O25)<$AA25,$O25,0) ->  | AL25: =IF(COUNTIF($AH25:AK25,$O25)<$AA25,$O25,0) ->  | AM25: =IF(COUNTIF($AH25:AL25,$O25)<$AA25,$O25,0) ->  | AN25: =IF(COUNTIF($AH25:AM25,$O25)<$AA25,$O25,0) ->  | AO25: =IF(COUNTIF($AH25:AN25,$O25)<$AA25,$O25,0) ->  | AP25: =IF(COUNTIF($AH25:AO25,$O25)<$AA25,$O25,0) ->  | AQ25: =IF(COUNTIF($AH25:AP25,$O25)<$AA25,$O25,0) ->  | AR25: =IF(COUNTIF($AH25:AQ25,$O25)<$AA25,$O25,0) ->  | AS25: =IF(COUNTIF($AH25:AR25,$O25)<$AA25,$O25,0) ->  | AT25: =IF(COUNTIF($AH25:AS25,$O25)<$AA25,$O25,0) ->  | AU25: =IF(COUNTIF($AH25:AT25,$O25)<$AA25,$O25,0) ->  | AV25: =IF(COUNTIF($AH25:AU25,$O25)<$AA25,$O25,0) ->  | AW25: =IF(COUNTIF($AH25:AV25,$O25)<$AA25,$O25,0) ->  | AX25: =IF(COUNTIF($AH25:AW25,$O25)<$AA25,$O25,0) ->  | AY25: =IF(COUNTIF($AH25:AX25,$O25)<$AA25,$O25,0) ->  | AZ25: =IF(COUNTIF($AH25:AY25,$O25)<$AA25,$O25,0) ->  | BA25: =IF(COUNTIF($AH25:AZ25,$O25)<$AA25,$O25,0) ->  | BB25: =IF(COUNTIF($AH25:BA25,$O25)<$AA25,$O25,0) ->  | BC25: =IF(COUNTIF($AH25:BB25,$O25)<$AA25,$O25,0) ->  | BD25: =IF(COUNTIF($AH25:BC25,$O25)<$AA25,$O25,0) ->  | BE25: =IF(COUNTIF($AH25:BD25,$O25)<$AA25,$O25,0) ->  | BF25: =IF(COUNTIF($AH25:BE25,$O25)<$AA25,$O25,0) ->  | BG25: =IF(COUNTIF($AH25:BF25,$O25)<$AA25,$O25,0) ->  | BH25: =IF(COUNTIF($AH25:BG25,$O25)<$AA25,$O25,0) ->  | BI25: =IF(COUNTIF($AH25:BH25,$O25)<$AA25,$O25,0) ->  | BJ25: =IF(COUNTIF($AH25:BI25,$O25)<$AA25,$O25,0) ->  | BK25: =IF(COUNTIF($AH25:BJ25,$O25)<$AA25,$O25,0) ->  | BL25: =IF(COUNTIF($AH25:BK25,$O25)<$AA25,$O25,0) ->  | BM25: =IF(COUNTIF($AH25:BL25,$O25)<$AA25,$O25,0) ->  | BN25: =IF(COUNTIF($AH25:BM25,$O25)<$AA25,$O25,0) ->  | BO25: =IF(COUNTIF($AH25:BN25,$O25)<$AA25,$O25,0) ->  | BP25: =IF(COUNTIF($AH25:BO25,$O25)<$AA25,$O25,0) ->  | BQ25: =IF(COUNTIF($AH25:BP25,$O25)<$AA25,$O25,0) ->  | BR25: =IF(COUNTIF($AH25:BQ25,$O25)<$AA25,$O25,0) ->  | BS25: =IF(COUNTIF($AH25:BR25,$O25)<$AA25,$O25,0) ->  | BT25: =IF(COUNTIF($AH25:BS25,$O25)<$AA25,$O25,0) ->  | BU25: =IF(COUNTIF($AH25:BT25,$O25)<$AA25,$O25,0) ->  | BV25: -0.3
B26: 18 | C26: =IF(OR('Measure Descriptions'!C26="",'Measure Descriptions'!D26="",'Measure Descriptions'!E26="")=TRUE,"",'Measure Descriptions'!C26) ->  | D26: =IF(OR('Measure Descriptions'!C26="",'Measure Descriptions'!D26="",'Measure Descriptions'!E26="")=TRUE,"",'Measure Descriptions'!D26) ->  | E26: =IF(OR('Measure Descriptions'!C26="",'Measure Descriptions'!D26="",'Measure Descriptions'!E26="")=TRUE,"",'Measure Descriptions'!E26) ->  | O26: =IF(E26="","",(G26+H26)*VLOOKUP(N26,'Utility Info'!$B$15:$G$19,5,FALSE)+(I26+J26)*'Utility Info'!$F$14) ->  | P26: 0 | S26: 0 | T26: =IFERROR(IF(F26=0,0,IF(OR(C26="Fuel Conversion",Y26="Yes")=TRUE,"N/A",'TRC Test'!K24/'TRC Test'!M24)),0) -> 0 | U26: ='Measure QC'!H24 -> 0 | AG26: 0 | AJ26: =IF(COUNTIF($AH26:AI26,$O26)<$AA26,$O26,0) ->  | AK26: =IF(COUNTIF($AH26:AJ26,$O26)<$AA26,$O26,0) ->  | AL26: =IF(COUNTIF($AH26:AK26,$O26)<$AA26,$O26,0) ->  | AM26: =IF(COUNTIF($AH26:AL26,$O26)<$AA26,$O26,0) ->  | AN26: =IF(COUNTIF($AH26:AM26,$O26)<$AA26,$O26,0) ->  | AO26: =IF(COUNTIF($AH26:AN26,$O26)<$AA26,$O26,0) ->  | AP26: =IF(COUNTIF($AH26:AO26,$O26)<$AA26,$O26,0) ->  | AQ26: =IF(COUNTIF($AH26:AP26,$O26)<$AA26,$O26,0) ->  | AR26: =IF(COUNTIF($AH26:AQ26,$O26)<$AA26,$O26,0) ->  | AS26: =IF(COUNTIF($AH26:AR26,$O26)<$AA26,$O26,0) ->  | AT26: =IF(COUNTIF($AH26:AS26,$O26)<$AA26,$O26,0) ->  | AU26: =IF(COUNTIF($AH26:AT26,$O26)<$AA26,$O26,0) ->  | AV26: =IF(COUNTIF($AH26:AU26,$O26)<$AA26,$O26,0) ->  | AW26: =IF(COUNTIF($AH26:AV26,$O26)<$AA26,$O26,0) ->  | AX26: =IF(COUNTIF($AH26:AW26,$O26)<$AA26,$O26,0) ->  | AY26: =IF(COUNTIF($AH26:AX26,$O26)<$AA26,$O26,0) ->  | AZ26: =IF(COUNTIF($AH26:AY26,$O26)<$AA26,$O26,0) ->  | BA26: =IF(COUNTIF($AH26:AZ26,$O26)<$AA26,$O26,0) ->  | BB26: =IF(COUNTIF($AH26:BA26,$O26)<$AA26,$O26,0) ->  | BC26: =IF(COUNTIF($AH26:BB26,$O26)<$AA26,$O26,0) ->  | BD26: =IF(COUNTIF($AH26:BC26,$O26)<$AA26,$O26,0) ->  | BE26: =IF(COUNTIF($AH26:BD26,$O26)<$AA26,$O26,0) ->  | BF26: =IF(COUNTIF($AH26:BE26,$O26)<$AA26,$O26,0) ->  | BG26: =IF(COUNTIF($AH26:BF26,$O26)<$AA26,$O26,0) ->  | BH26: =IF(COUNTIF($AH26:BG26,$O26)<$AA26,$O26,0) ->  | BI26: =IF(COUNTIF($AH26:BH26,$O26)<$AA26,$O26,0) ->  | BJ26: =IF(COUNTIF($AH26:BI26,$O26)<$AA26,$O26,0) ->  | BK26: =IF(COUNTIF($AH26:BJ26,$O26)<$AA26,$O26,0) ->  | BL26: =IF(COUNTIF($AH26:BK26,$O26)<$AA26,$O26,0) ->  | BM26: =IF(COUNTIF($AH26:BL26,$O26)<$AA26,$O26,0) ->  | BN26: =IF(COUNTIF($AH26:BM26,$O26)<$AA26,$O26,0) ->  | BO26: =IF(COUNTIF($AH26:BN26,$O26)<$AA26,$O26,0) ->  | BP26: =IF(COUNTIF($AH26:BO26,$O26)<$AA26,$O26,0) ->  | BQ26: =IF(COUNTIF($AH26:BP26,$O26)<$AA26,$O26,0) ->  | BR26: =IF(COUNTIF($AH26:BQ26,$O26)<$AA26,$O26,0) ->  | BS26: =IF(COUNTIF($AH26:BR26,$O26)<$AA26,$O26,0) ->  | BT26: =IF(COUNTIF($AH26:BS26,$O26)<$AA26,$O26,0) ->  | BU26: =IF(COUNTIF($AH26:BT26,$O26)<$AA26,$O26,0) ->  | BV26: -0.3
B27: 19 | C27: =IF(OR('Measure Descriptions'!C27="",'Measure Descriptions'!D27="",'Measure Descriptions'!E27="")=TRUE,"",'Measure Descriptions'!C27) ->  | D27: =IF(OR('Measure Descriptions'!C27="",'Measure Descriptions'!D27="",'Measure Descriptions'!E27="")=TRUE,"",'Measure Descriptions'!D27) ->  | E27: =IF(OR('Measure Descriptions'!C27="",'Measure Descriptions'!D27="",'Measure Descriptions'!E27="")=TRUE,"",'Measure Descriptions'!E27) ->  | O27: =IF(E27="","",(G27+H27)*VLOOKUP(N27,'Utility Info'!$B$15:$G$19,5,FALSE)+(I27+J27)*'Utility Info'!$F$14) ->  | P27: 0 | S27: 0 | T27: =IFERROR(IF(F27=0,0,IF(OR(C27="Fuel Conversion",Y27="Yes")=TRUE,"N/A",'TRC Test'!K25/'TRC Test'!M25)),0) -> 0 | U27: ='Measure QC'!H25 -> 0 | AG27: 0 | AJ27: =IF(COUNTIF($AH27:AI27,$O27)<$AA27,$O27,0) ->  | AK27: =IF(COUNTIF($AH27:AJ27,$O27)<$AA27,$O27,0) ->  | AL27: =IF(COUNTIF($AH27:AK27,$O27)<$AA27,$O27,0) ->  | AM27: =IF(COUNTIF($AH27:AL27,$O27)<$AA27,$O27,0) ->  | AN27: =IF(COUNTIF($AH27:AM27,$O27)<$AA27,$O27,0) ->  | AO27: =IF(COUNTIF($AH27:AN27,$O27)<$AA27,$O27,0) ->  | AP27: =IF(COUNTIF($AH27:AO27,$O27)<$AA27,$O27,0) ->  | AQ27: =IF(COUNTIF($AH27:AP27,$O27)<$AA27,$O27,0) ->  | AR27: =IF(COUNTIF($AH27:AQ27,$O27)<$AA27,$O27,0) ->  | AS27: =IF(COUNTIF($AH27:AR27,$O27)<$AA27,$O27,0) ->  | AT27: =IF(COUNTIF($AH27:AS27,$O27)<$AA27,$O27,0) ->  | AU27: =IF(COUNTIF($AH27:AT27,$O27)<$AA27,$O27,0) ->  | AV27: =IF(COUNTIF($AH27:AU27,$O27)<$AA27,$O27,0) ->  | AW27: =IF(COUNTIF($AH27:AV27,$O27)<$AA27,$O27,0) ->  | AX27: =IF(COUNTIF($AH27:AW27,$O27)<$AA27,$O27,0) ->  | AY27: =IF(COUNTIF($AH27:AX27,$O27)<$AA27,$O27,0) ->  | AZ27: =IF(COUNTIF($AH27:AY27,$O27)<$AA27,$O27,0) ->  | BA27: =IF(COUNTIF($AH27:AZ27,$O27)<$AA27,$O27,0) ->  | BB27: =IF(COUNTIF($AH27:BA27,$O27)<$AA27,$O27,0) ->  | BC27: =IF(COUNTIF($AH27:BB27,$O27)<$AA27,$O27,0) ->  | BD27: =IF(COUNTIF($AH27:BC27,$O27)<$AA27,$O27,0) ->  | BE27: =IF(COUNTIF($AH27:BD27,$O27)<$AA27,$O27,0) ->  | BF27: =IF(COUNTIF($AH27:BE27,$O27)<$AA27,$O27,0) ->  | BG27: =IF(COUNTIF($AH27:BF27,$O27)<$AA27,$O27,0) ->  | BH27: =IF(COUNTIF($AH27:BG27,$O27)<$AA27,$O27,0) ->  | BI27: =IF(COUNTIF($AH27:BH27,$O27)<$AA27,$O27,0) ->  | BJ27: =IF(COUNTIF($AH27:BI27,$O27)<$AA27,$O27,0) ->  | BK27: =IF(COUNTIF($AH27:BJ27,$O27)<$AA27,$O27,0) ->  | BL27: =IF(COUNTIF($AH27:BK27,$O27)<$AA27,$O27,0) ->  | BM27: =IF(COUNTIF($AH27:BL27,$O27)<$AA27,$O27,0) ->  | BN27: =IF(COUNTIF($AH27:BM27,$O27)<$AA27,$O27,0) ->  | BO27: =IF(COUNTIF($AH27:BN27,$O27)<$AA27,$O27,0) ->  | BP27: =IF(COUNTIF($AH27:BO27,$O27)<$AA27,$O27,0) ->  | BQ27: =IF(COUNTIF($AH27:BP27,$O27)<$AA27,$O27,0) ->  | BR27: =IF(COUNTIF($AH27:BQ27,$O27)<$AA27,$O27,0) ->  | BS27: =IF(COUNTIF($AH27:BR27,$O27)<$AA27,$O27,0) ->  | BT27: =IF(COUNTIF($AH27:BS27,$O27)<$AA27,$O27,0) ->  | BU27: =IF(COUNTIF($AH27:BT27,$O27)<$AA27,$O27,0) ->  | BV27: -0.3
B28: 20 | C28: =IF(OR('Measure Descriptions'!C28="",'Measure Descriptions'!D28="",'Measure Descriptions'!E28="")=TRUE,"",'Measure Descriptions'!C28) ->  | D28: =IF(OR('Measure Descriptions'!C28="",'Measure Descriptions'!D28="",'Measure Descriptions'!E28="")=TRUE,"",'Measure Descriptions'!D28) ->  | E28: =IF(OR('Measure Descriptions'!C28="",'Measure Descriptions'!D28="",'Measure Descriptions'!E28="")=TRUE,"",'Measure Descriptions'!E28) ->  | O28: =IF(E28="","",(G28+H28)*VLOOKUP(N28,'Utility Info'!$B$15:$G$19,5,FALSE)+(I28+J28)*'Utility Info'!$F$14) ->  | P28: 0 | S28: 0 | T28: =IFERROR(IF(F28=0,0,IF(OR(C28="Fuel Conversion",Y28="Yes")=TRUE,"N/A",'TRC Test'!K26/'TRC Test'!M26)),0) -> 0 | U28: ='Measure QC'!H26 -> 0 | AG28: 0 | AJ28: =IF(COUNTIF($AH28:AI28,$O28)<$AA28,$O28,0) ->  | AK28: =IF(COUNTIF($AH28:AJ28,$O28)<$AA28,$O28,0) ->  | AL28: =IF(COUNTIF($AH28:AK28,$O28)<$AA28,$O28,0) ->  | AM28: =IF(COUNTIF($AH28:AL28,$O28)<$AA28,$O28,0) ->  | AN28: =IF(COUNTIF($AH28:AM28,$O28)<$AA28,$O28,0) ->  | AO28: =IF(COUNTIF($AH28:AN28,$O28)<$AA28,$O28,0) ->  | AP28: =IF(COUNTIF($AH28:AO28,$O28)<$AA28,$O28,0) ->  | AQ28: =IF(COUNTIF($AH28:AP28,$O28)<$AA28,$O28,0) ->  | AR28: =IF(COUNTIF($AH28:AQ28,$O28)<$AA28,$O28,0) ->  | AS28: =IF(COUNTIF($AH28:AR28,$O28)<$AA28,$O28,0) ->  | AT28: =IF(COUNTIF($AH28:AS28,$O28)<$AA28,$O28,0) ->  | AU28: =IF(COUNTIF($AH28:AT28,$O28)<$AA28,$O28,0) ->  | AV28: =IF(COUNTIF($AH28:AU28,$O28)<$AA28,$O28,0) ->  | AW28: =IF(COUNTIF($AH28:AV28,$O28)<$AA28,$O28,0) ->  | AX28: =IF(COUNTIF($AH28:AW28,$O28)<$AA28,$O28,0) ->  | AY28: =IF(COUNTIF($AH28:AX28,$O28)<$AA28,$O28,0) ->  | AZ28: =IF(COUNTIF($AH28:AY28,$O28)<$AA28,$O28,0) ->  | BA28: =IF(COUNTIF($AH28:AZ28,$O28)<$AA28,$O28,0) ->  | BB28: =IF(COUNTIF($AH28:BA28,$O28)<$AA28,$O28,0) ->  | BC28: =IF(COUNTIF($AH28:BB28,$O28)<$AA28,$O28,0) ->  | BD28: =IF(COUNTIF($AH28:BC28,$O28)<$AA28,$O28,0) ->  | BE28: =IF(COUNTIF($AH28:BD28,$O28)<$AA28,$O28,0) ->  | BF28: =IF(COUNTIF($AH28:BE28,$O28)<$AA28,$O28,0) ->  | BG28: =IF(COUNTIF($AH28:BF28,$O28)<$AA28,$O28,0) ->  | BH28: =IF(COUNTIF($AH28:BG28,$O28)<$AA28,$O28,0) ->  | BI28: =IF(COUNTIF($AH28:BH28,$O28)<$AA28,$O28,0) ->  | BJ28: =IF(COUNTIF($AH28:BI28,$O28)<$AA28,$O28,0) ->  | BK28: =IF(COUNTIF($AH28:BJ28,$O28)<$AA28,$O28,0) ->  | BL28: =IF(COUNTIF($AH28:BK28,$O28)<$AA28,$O28,0) ->  | BM28: =IF(COUNTIF($AH28:BL28,$O28)<$AA28,$O28,0) ->  | BN28: =IF(COUNTIF($AH28:BM28,$O28)<$AA28,$O28,0) ->  | BO28: =IF(COUNTIF($AH28:BN28,$O28)<$AA28,$O28,0) ->  | BP28: =IF(COUNTIF($AH28:BO28,$O28)<$AA28,$O28,0) ->  | BQ28: =IF(COUNTIF($AH28:BP28,$O28)<$AA28,$O28,0) ->  | BR28: =IF(COUNTIF($AH28:BQ28,$O28)<$AA28,$O28,0) ->  | BS28: =IF(COUNTIF($AH28:BR28,$O28)<$AA28,$O28,0) ->  | BT28: =IF(COUNTIF($AH28:BS28,$O28)<$AA28,$O28,0) ->  | BU28: =IF(COUNTIF($AH28:BT28,$O28)<$AA28,$O28,0) ->  | BV28: -0.3
B29: 21 | C29: =IF(OR('Measure Descriptions'!C29="",'Measure Descriptions'!D29="",'Measure Descriptions'!E29="")=TRUE,"",'Measure Descriptions'!C29) ->  | D29: =IF(OR('Measure Descriptions'!C29="",'Measure Descriptions'!D29="",'Measure Descriptions'!E29="")=TRUE,"",'Measure Descriptions'!D29) ->  | E29: =IF(OR('Measure Descriptions'!C29="",'Measure Descriptions'!D29="",'Measure Descriptions'!E29="")=TRUE,"",'Measure Descriptions'!E29) ->  | O29: =IF(E29="","",(G29+H29)*VLOOKUP(N29,'Utility Info'!$B$15:$G$19,5,FALSE)+(I29+J29)*'Utility Info'!$F$14) ->  | P29: 0 | S29: 0 | T29: =IFERROR(IF(F29=0,0,IF(OR(C29="Fuel Conversion",Y29="Yes")=TRUE,"N/A",'TRC Test'!K27/'TRC Test'!M27)),0) -> 0 | U29: ='Measure QC'!H27 -> 0 | AG29: 0 | AJ29: =IF(COUNTIF($AH29:AI29,$O29)<$AA29,$O29,0) ->  | AK29: =IF(COUNTIF($AH29:AJ29,$O29)<$AA29,$O29,0) ->  | AL29: =IF(COUNTIF($AH29:AK29,$O29)<$AA29,$O29,0) ->  | AM29: =IF(COUNTIF($AH29:AL29,$O29)<$AA29,$O29,0) ->  | AN29: =IF(COUNTIF($AH29:AM29,$O29)<$AA29,$O29,0) ->  | AO29: =IF(COUNTIF($AH29:AN29,$O29)<$AA29,$O29,0) ->  | AP29: =IF(COUNTIF($AH29:AO29,$O29)<$AA29,$O29,0) ->  | AQ29: =IF(COUNTIF($AH29:AP29,$O29)<$AA29,$O29,0) ->  | AR29: =IF(COUNTIF($AH29:AQ29,$O29)<$AA29,$O29,0) ->  | AS29: =IF(COUNTIF($AH29:AR29,$O29)<$AA29,$O29,0) ->  | AT29: =IF(COUNTIF($AH29:AS29,$O29)<$AA29,$O29,0) ->  | AU29: =IF(COUNTIF($AH29:AT29,$O29)<$AA29,$O29,0) ->  | AV29: =IF(COUNTIF($AH29:AU29,$O29)<$AA29,$O29,0) ->  | AW29: =IF(COUNTIF($AH29:AV29,$O29)<$AA29,$O29,0) ->  | AX29: =IF(COUNTIF($AH29:AW29,$O29)<$AA29,$O29,0) ->  | AY29: =IF(COUNTIF($AH29:AX29,$O29)<$AA29,$O29,0) ->  | AZ29: =IF(COUNTIF($AH29:AY29,$O29)<$AA29,$O29,0) ->  | BA29: =IF(COUNTIF($AH29:AZ29,$O29)<$AA29,$O29,0) ->  | BB29: =IF(COUNTIF($AH29:BA29,$O29)<$AA29,$O29,0) ->  | BC29: =IF(COUNTIF($AH29:BB29,$O29)<$AA29,$O29,0) ->  | BD29: =IF(COUNTIF($AH29:BC29,$O29)<$AA29,$O29,0) ->  | BE29: =IF(COUNTIF($AH29:BD29,$O29)<$AA29,$O29,0) ->  | BF29: =IF(COUNTIF($AH29:BE29,$O29)<$AA29,$O29,0) ->  | BG29: =IF(COUNTIF($AH29:BF29,$O29)<$AA29,$O29,0) ->  | BH29: =IF(COUNTIF($AH29:BG29,$O29)<$AA29,$O29,0) ->  | BI29: =IF(COUNTIF($AH29:BH29,$O29)<$AA29,$O29,0) ->  | BJ29: =IF(COUNTIF($AH29:BI29,$O29)<$AA29,$O29,0) ->  | BK29: =IF(COUNTIF($AH29:BJ29,$O29)<$AA29,$O29,0) ->  | BL29: =IF(COUNTIF($AH29:BK29,$O29)<$AA29,$O29,0) ->  | BM29: =IF(COUNTIF($AH29:BL29,$O29)<$AA29,$O29,0) ->  | BN29: =IF(COUNTIF($AH29:BM29,$O29)<$AA29,$O29,0) ->  | BO29: =IF(COUNTIF($AH29:BN29,$O29)<$AA29,$O29,0) ->  | BP29: =IF(COUNTIF($AH29:BO29,$O29)<$AA29,$O29,0) ->  | BQ29: =IF(COUNTIF($AH29:BP29,$O29)<$AA29,$O29,0) ->  | BR29: =IF(COUNTIF($AH29:BQ29,$O29)<$AA29,$O29,0) ->  | BS29: =IF(COUNTIF($AH29:BR29,$O29)<$AA29,$O29,0) ->  | BT29: =IF(COUNTIF($AH29:BS29,$O29)<$AA29,$O29,0) ->  | BU29: =IF(COUNTIF($AH29:BT29,$O29)<$AA29,$O29,0) ->  | BV29: -0.3
B30: 22 | C30: =IF(OR('Measure Descriptions'!C30="",'Measure Descriptions'!D30="",'Measure Descriptions'!E30="")=TRUE,"",'Measure Descriptions'!C30) ->  | D30: =IF(OR('Measure Descriptions'!C30="",'Measure Descriptions'!D30="",'Measure Descriptions'!E30="")=TRUE,"",'Measure Descriptions'!D30) ->  | E30: =IF(OR('Measure Descriptions'!C30="",'Measure Descriptions'!D30="",'Measure Descriptions'!E30="")=TRUE,"",'Measure Descriptions'!E30) ->  | O30: =IF(E30="","",(G30+H30)*VLOOKUP(N30,'Utility Info'!$B$15:$G$19,5,FALSE)+(I30+J30)*'Utility Info'!$F$14) ->  | P30: 0 | S30: 0 | T30: =IFERROR(IF(F30=0,0,IF(OR(C30="Fuel Conversion",Y30="Yes")=TRUE,"N/A",'TRC Test'!K28/'TRC Test'!M28)),0) -> 0 | U30: ='Measure QC'!H28 -> 0 | AG30: 0 | AJ30: =IF(COUNTIF($AH30:AI30,$O30)<$AA30,$O30,0) ->  | AK30: =IF(COUNTIF($AH30:AJ30,$O30)<$AA30,$O30,0) ->  | AL30: =IF(COUNTIF($AH30:AK30,$O30)<$AA30,$O30,0) ->  | AM30: =IF(COUNTIF($AH30:AL30,$O30)<$AA30,$O30,0) ->  | AN30: =IF(COUNTIF($AH30:AM30,$O30)<$AA30,$O30,0) ->  | AO30: =IF(COUNTIF($AH30:AN30,$O30)<$AA30,$O30,0) ->  | AP30: =IF(COUNTIF($AH30:AO30,$O30)<$AA30,$O30,0) ->  | AQ30: =IF(COUNTIF($AH30:AP30,$O30)<$AA30,$O30,0) ->  | AR30: =IF(COUNTIF($AH30:AQ30,$O30)<$AA30,$O30,0) ->  | AS30: =IF(COUNTIF($AH30:AR30,$O30)<$AA30,$O30,0) ->  | AT30: =IF(COUNTIF($AH30:AS30,$O30)<$AA30,$O30,0) ->  | AU30: =IF(COUNTIF($AH30:AT30,$O30)<$AA30,$O30,0) ->  | AV30: =IF(COUNTIF($AH30:AU30,$O30)<$AA30,$O30,0) ->  | AW30: =IF(COUNTIF($AH30:AV30,$O30)<$AA30,$O30,0) ->  | AX30: =IF(COUNTIF($AH30:AW30,$O30)<$AA30,$O30,0) ->  | AY30: =IF(COUNTIF($AH30:AX30,$O30)<$AA30,$O30,0) ->  | AZ30: =IF(COUNTIF($AH30:AY30,$O30)<$AA30,$O30,0) ->  | BA30: =IF(COUNTIF($AH30:AZ30,$O30)<$AA30,$O30,0) ->  | BB30: =IF(COUNTIF($AH30:BA30,$O30)<$AA30,$O30,0) ->  | BC30: =IF(COUNTIF($AH30:BB30,$O30)<$AA30,$O30,0) ->  | BD30: =IF(COUNTIF($AH30:BC30,$O30)<$AA30,$O30,0) ->  | BE30: =IF(COUNTIF($AH30:BD30,$O30)<$AA30,$O30,0) ->  | BF30: =IF(COUNTIF($AH30:BE30,$O30)<$AA30,$O30,0) ->  | BG30: =IF(COUNTIF($AH30:BF30,$O30)<$AA30,$O30,0) ->  | BH30: =IF(COUNTIF($AH30:BG30,$O30)<$AA30,$O30,0) ->  | BI30: =IF(COUNTIF($AH30:BH30,$O30)<$AA30,$O30,0) ->  | BJ30: =IF(COUNTIF($AH30:BI30,$O30)<$AA30,$O30,0) ->  | BK30: =IF(COUNTIF($AH30:BJ30,$O30)<$AA30,$O30,0) ->  | BL30: =IF(COUNTIF($AH30:BK30,$O30)<$AA30,$O30,0) ->  | BM30: =IF(COUNTIF($AH30:BL30,$O30)<$AA30,$O30,0) ->  | BN30: =IF(COUNTIF($AH30:BM30,$O30)<$AA30,$O30,0) ->  | BO30: =IF(COUNTIF($AH30:BN30,$O30)<$AA30,$O30,0) ->  | BP30: =IF(COUNTIF($AH30:BO30,$O30)<$AA30,$O30,0) ->  | BQ30: =IF(COUNTIF($AH30:BP30,$O30)<$AA30,$O30,0) ->  | BR30: =IF(COUNTIF($AH30:BQ30,$O30)<$AA30,$O30,0) ->  | BS30: =IF(COUNTIF($AH30:BR30,$O30)<$AA30,$O30,0) ->  | BT30: =IF(COUNTIF($AH30:BS30,$O30)<$AA30,$O30,0) ->  | BU30: =IF(COUNTIF($AH30:BT30,$O30)<$AA30,$O30,0) ->  | BV30: -0.3
B31: 23 | C31: =IF(OR('Measure Descriptions'!C31="",'Measure Descriptions'!D31="",'Measure Descriptions'!E31="")=TRUE,"",'Measure Descriptions'!C31) ->  | D31: =IF(OR('Measure Descriptions'!C31="",'Measure Descriptions'!D31="",'Measure Descriptions'!E31="")=TRUE,"",'Measure Descriptions'!D31) ->  | E31: =IF(OR('Measure Descriptions'!C31="",'Measure Descriptions'!D31="",'Measure Descriptions'!E31="")=TRUE,"",'Measure Descriptions'!E31) ->  | O31: =IF(E31="","",(G31+H31)*VLOOKUP(N31,'Utility Info'!$B$15:$G$19,5,FALSE)+(I31+J31)*'Utility Info'!$F$14) ->  | P31: 0 | S31: 0 | T31: =IFERROR(IF(F31=0,0,IF(OR(C31="Fuel Conversion",Y31="Yes")=TRUE,"N/A",'TRC Test'!K29/'TRC Test'!M29)),0) -> 0 | U31: ='Measure QC'!H29 -> 0 | AG31: 0 | AJ31: =IF(COUNTIF($AH31:AI31,$O31)<$AA31,$O31,0) ->  | AK31: =IF(COUNTIF($AH31:AJ31,$O31)<$AA31,$O31,0) ->  | AL31: =IF(COUNTIF($AH31:AK31,$O31)<$AA31,$O31,0) ->  | AM31: =IF(COUNTIF($AH31:AL31,$O31)<$AA31,$O31,0) ->  | AN31: =IF(COUNTIF($AH31:AM31,$O31)<$AA31,$O31,0) ->  | AO31: =IF(COUNTIF($AH31:AN31,$O31)<$AA31,$O31,0) ->  | AP31: =IF(COUNTIF($AH31:AO31,$O31)<$AA31,$O31,0) ->  | AQ31: =IF(COUNTIF($AH31:AP31,$O31)<$AA31,$O31,0) ->  | AR31: =IF(COUNTIF($AH31:AQ31,$O31)<$AA31,$O31,0) ->  | AS31: =IF(COUNTIF($AH31:AR31,$O31)<$AA31,$O31,0) ->  | AT31: =IF(COUNTIF($AH31:AS31,$O31)<$AA31,$O31,0) ->  | AU31: =IF(COUNTIF($AH31:AT31,$O31)<$AA31,$O31,0) ->  | AV31: =IF(COUNTIF($AH31:AU31,$O31)<$AA31,$O31,0) ->  | AW31: =IF(COUNTIF($AH31:AV31,$O31)<$AA31,$O31,0) ->  | AX31: =IF(COUNTIF($AH31:AW31,$O31)<$AA31,$O31,0) ->  | AY31: =IF(COUNTIF($AH31:AX31,$O31)<$AA31,$O31,0) ->  | AZ31: =IF(COUNTIF($AH31:AY31,$O31)<$AA31,$O31,0) ->  | BA31: =IF(COUNTIF($AH31:AZ31,$O31)<$AA31,$O31,0) ->  | BB31: =IF(COUNTIF($AH31:BA31,$O31)<$AA31,$O31,0) ->  | BC31: =IF(COUNTIF($AH31:BB31,$O31)<$AA31,$O31,0) ->  | BD31: =IF(COUNTIF($AH31:BC31,$O31)<$AA31,$O31,0) ->  | BE31: =IF(COUNTIF($AH31:BD31,$O31)<$AA31,$O31,0) ->  | BF31: =IF(COUNTIF($AH31:BE31,$O31)<$AA31,$O31,0) ->  | BG31: =IF(COUNTIF($AH31:BF31,$O31)<$AA31,$O31,0) ->  | BH31: =IF(COUNTIF($AH31:BG31,$O31)<$AA31,$O31,0) ->  | BI31: =IF(COUNTIF($AH31:BH31,$O31)<$AA31,$O31,0) ->  | BJ31: =IF(COUNTIF($AH31:BI31,$O31)<$AA31,$O31,0) ->  | BK31: =IF(COUNTIF($AH31:BJ31,$O31)<$AA31,$O31,0) ->  | BL31: =IF(COUNTIF($AH31:BK31,$O31)<$AA31,$O31,0) ->  | BM31: =IF(COUNTIF($AH31:BL31,$O31)<$AA31,$O31,0) ->  | BN31: =IF(COUNTIF($AH31:BM31,$O31)<$AA31,$O31,0) ->  | BO31: =IF(COUNTIF($AH31:BN31,$O31)<$AA31,$O31,0) ->  | BP31: =IF(COUNTIF($AH31:BO31,$O31)<$AA31,$O31,0) ->  | BQ31: =IF(COUNTIF($AH31:BP31,$O31)<$AA31,$O31,0) ->  | BR31: =IF(COUNTIF($AH31:BQ31,$O31)<$AA31,$O31,0) ->  | BS31: =IF(COUNTIF($AH31:BR31,$O31)<$AA31,$O31,0) ->  | BT31: =IF(COUNTIF($AH31:BS31,$O31)<$AA31,$O31,0) ->  | BU31: =IF(COUNTIF($AH31:BT31,$O31)<$AA31,$O31,0) ->  | BV31: -0.3
B32: 24 | C32: =IF(OR('Measure Descriptions'!C32="",'Measure Descriptions'!D32="",'Measure Descriptions'!E32="")=TRUE,"",'Measure Descriptions'!C32) ->  | D32: =IF(OR('Measure Descriptions'!C32="",'Measure Descriptions'!D32="",'Measure Descriptions'!E32="")=TRUE,"",'Measure Descriptions'!D32) ->  | E32: =IF(OR('Measure Descriptions'!C32="",'Measure Descriptions'!D32="",'Measure Descriptions'!E32="")=TRUE,"",'Measure Descriptions'!E32) ->  | O32: =IF(E32="","",(G32+H32)*VLOOKUP(N32,'Utility Info'!$B$15:$G$19,5,FALSE)+(I32+J32)*'Utility Info'!$F$14) ->  | P32: 0 | S32: 0 | T32: =IFERROR(IF(F32=0,0,IF(OR(C32="Fuel Conversion",Y32="Yes")=TRUE,"N/A",'TRC Test'!K30/'TRC Test'!M30)),0) -> 0 | U32: ='Measure QC'!H30 -> 0 | AG32: 0 | AJ32: =IF(COUNTIF($AH32:AI32,$O32)<$AA32,$O32,0) ->  | AK32: =IF(COUNTIF($AH32:AJ32,$O32)<$AA32,$O32,0) ->  | AL32: =IF(COUNTIF($AH32:AK32,$O32)<$AA32,$O32,0) ->  | AM32: =IF(COUNTIF($AH32:AL32,$O32)<$AA32,$O32,0) ->  | AN32: =IF(COUNTIF($AH32:AM32,$O32)<$AA32,$O32,0) ->  | AO32: =IF(COUNTIF($AH32:AN32,$O32)<$AA32,$O32,0) ->  | AP32: =IF(COUNTIF($AH32:AO32,$O32)<$AA32,$O32,0) ->  | AQ32: =IF(COUNTIF($AH32:AP32,$O32)<$AA32,$O32,0) ->  | AR32: =IF(COUNTIF($AH32:AQ32,$O32)<$AA32,$O32,0) ->  | AS32: =IF(COUNTIF($AH32:AR32,$O32)<$AA32,$O32,0) ->  | AT32: =IF(COUNTIF($AH32:AS32,$O32)<$AA32,$O32,0) ->  | AU32: =IF(COUNTIF($AH32:AT32,$O32)<$AA32,$O32,0) ->  | AV32: =IF(COUNTIF($AH32:AU32,$O32)<$AA32,$O32,0) ->  | AW32: =IF(COUNTIF($AH32:AV32,$O32)<$AA32,$O32,0) ->  | AX32: =IF(COUNTIF($AH32:AW32,$O32)<$AA32,$O32,0) ->  | AY32: =IF(COUNTIF($AH32:AX32,$O32)<$AA32,$O32,0) ->  | AZ32: =IF(COUNTIF($AH32:AY32,$O32)<$AA32,$O32,0) ->  | BA32: =IF(COUNTIF($AH32:AZ32,$O32)<$AA32,$O32,0) ->  | BB32: =IF(COUNTIF($AH32:BA32,$O32)<$AA32,$O32,0) ->  | BC32: =IF(COUNTIF($AH32:BB32,$O32)<$AA32,$O32,0) ->  | BD32: =IF(COUNTIF($AH32:BC32,$O32)<$AA32,$O32,0) ->  | BE32: =IF(COUNTIF($AH32:BD32,$O32)<$AA32,$O32,0) ->  | BF32: =IF(COUNTIF($AH32:BE32,$O32)<$AA32,$O32,0) ->  | BG32: =IF(COUNTIF($AH32:BF32,$O32)<$AA32,$O32,0) ->  | BH32: =IF(COUNTIF($AH32:BG32,$O32)<$AA32,$O32,0) ->  | BI32: =IF(COUNTIF($AH32:BH32,$O32)<$AA32,$O32,0) ->  | BJ32: =IF(COUNTIF($AH32:BI32,$O32)<$AA32,$O32,0) ->  | BK32: =IF(COUNTIF($AH32:BJ32,$O32)<$AA32,$O32,0) ->  | BL32: =IF(COUNTIF($AH32:BK32,$O32)<$AA32,$O32,0) ->  | BM32: =IF(COUNTIF($AH32:BL32,$O32)<$AA32,$O32,0) ->  | BN32: =IF(COUNTIF($AH32:BM32,$O32)<$AA32,$O32,0) ->  | BO32: =IF(COUNTIF($AH32:BN32,$O32)<$AA32,$O32,0) ->  | BP32: =IF(COUNTIF($AH32:BO32,$O32)<$AA32,$O32,0) ->  | BQ32: =IF(COUNTIF($AH32:BP32,$O32)<$AA32,$O32,0) ->  | BR32: =IF(COUNTIF($AH32:BQ32,$O32)<$AA32,$O32,0) ->  | BS32: =IF(COUNTIF($AH32:BR32,$O32)<$AA32,$O32,0) ->  | BT32: =IF(COUNTIF($AH32:BS32,$O32)<$AA32,$O32,0) ->  | BU32: =IF(COUNTIF($AH32:BT32,$O32)<$AA32,$O32,0) ->  | BV32: -0.3
B33: 25 | C33: =IF(OR('Measure Descriptions'!C33="",'Measure Descriptions'!D33="",'Measure Descriptions'!E33="")=TRUE,"",'Measure Descriptions'!C33) ->  | D33: =IF(OR('Measure Descriptions'!C33="",'Measure Descriptions'!D33="",'Measure Descriptions'!E33="")=TRUE,"",'Measure Descriptions'!D33) ->  | E33: =IF(OR('Measure Descriptions'!C33="",'Measure Descriptions'!D33="",'Measure Descriptions'!E33="")=TRUE,"",'Measure Descriptions'!E33) ->  | O33: =IF(E33="","",(G33+H33)*VLOOKUP(N33,'Utility Info'!$B$15:$G$19,5,FALSE)+(I33+J33)*'Utility Info'!$F$14) ->  | P33: 0 | S33: 0 | T33: =IFERROR(IF(F33=0,0,IF(OR(C33="Fuel Conversion",Y33="Yes")=TRUE,"N/A",'TRC Test'!K31/'TRC Test'!M31)),0) -> 0 | U33: ='Measure QC'!H31 -> 0 | AG33: 0 | AJ33: =IF(COUNTIF($AH33:AI33,$O33)<$AA33,$O33,0) ->  | AK33: =IF(COUNTIF($AH33:AJ33,$O33)<$AA33,$O33,0) ->  | AL33: =IF(COUNTIF($AH33:AK33,$O33)<$AA33,$O33,0) ->  | AM33: =IF(COUNTIF($AH33:AL33,$O33)<$AA33,$O33,0) ->  | AN33: =IF(COUNTIF($AH33:AM33,$O33)<$AA33,$O33,0) ->  | AO33: =IF(COUNTIF($AH33:AN33,$O33)<$AA33,$O33,0) ->  | AP33: =IF(COUNTIF($AH33:AO33,$O33)<$AA33,$O33,0) ->  | AQ33: =IF(COUNTIF($AH33:AP33,$O33)<$AA33,$O33,0) ->  | AR33: =IF(COUNTIF($AH33:AQ33,$O33)<$AA33,$O33,0) ->  | AS33: =IF(COUNTIF($AH33:AR33,$O33)<$AA33,$O33,0) ->  | AT33: =IF(COUNTIF($AH33:AS33,$O33)<$AA33,$O33,0) ->  | AU33: =IF(COUNTIF($AH33:AT33,$O33)<$AA33,$O33,0) ->  | AV33: =IF(COUNTIF($AH33:AU33,$O33)<$AA33,$O33,0) ->  | AW33: =IF(COUNTIF($AH33:AV33,$O33)<$AA33,$O33,0) ->  | AX33: =IF(COUNTIF($AH33:AW33,$O33)<$AA33,$O33,0) ->  | AY33: =IF(COUNTIF($AH33:AX33,$O33)<$AA33,$O33,0) ->  | AZ33: =IF(COUNTIF($AH33:AY33,$O33)<$AA33,$O33,0) ->  | BA33: =IF(COUNTIF($AH33:AZ33,$O33)<$AA33,$O33,0) ->  | BB33: =IF(COUNTIF($AH33:BA33,$O33)<$AA33,$O33,0) ->  | BC33: =IF(COUNTIF($AH33:BB33,$O33)<$AA33,$O33,0) ->  | BD33: =IF(COUNTIF($AH33:BC33,$O33)<$AA33,$O33,0) ->  | BE33: =IF(COUNTIF($AH33:BD33,$O33)<$AA33,$O33,0) ->  | BF33: =IF(COUNTIF($AH33:BE33,$O33)<$AA33,$O33,0) ->  | BG33: =IF(COUNTIF($AH33:BF33,$O33)<$AA33,$O33,0) ->  | BH33: =IF(COUNTIF($AH33:BG33,$O33)<$AA33,$O33,0) ->  | BI33: =IF(COUNTIF($AH33:BH33,$O33)<$AA33,$O33,0) ->  | BJ33: =IF(COUNTIF($AH33:BI33,$O33)<$AA33,$O33,0) ->  | BK33: =IF(COUNTIF($AH33:BJ33,$O33)<$AA33,$O33,0) ->  | BL33: =IF(COUNTIF($AH33:BK33,$O33)<$AA33,$O33,0) ->  | BM33: =IF(COUNTIF($AH33:BL33,$O33)<$AA33,$O33,0) ->  | BN33: =IF(COUNTIF($AH33:BM33,$O33)<$AA33,$O33,0) ->  | BO33: =IF(COUNTIF($AH33:BN33,$O33)<$AA33,$O33,0) ->  | BP33: =IF(COUNTIF($AH33:BO33,$O33)<$AA33,$O33,0) ->  | BQ33: =IF(COUNTIF($AH33:BP33,$O33)<$AA33,$O33,0) ->  | BR33: =IF(COUNTIF($AH33:BQ33,$O33)<$AA33,$O33,0) ->  | BS33: =IF(COUNTIF($AH33:BR33,$O33)<$AA33,$O33,0) ->  | BT33: =IF(COUNTIF($AH33:BS33,$O33)<$AA33,$O33,0) ->  | BU33: =IF(COUNTIF($AH33:BT33,$O33)<$AA33,$O33,0) ->  | BV33: -0.3
B35: Total for Improvements | F35: =SUM(F8:F33) -> 0 | Z35: =SUM(Z8:Z33) -> 0 | AA35: =IF(AD35<>0,NPER($Y$42,-O41,AD35+F41),0) -> 0 | AD35: =SUM(AD8:AD33)-SUM(F36:F39) -> 0
B36: Provider Fees - SAV-IT | F36: 0 | W36: Measure Data
B37: Provider Fees - Construction Period | F37: 0 | G37: Overall project management, all fees associated with specific measures should be noted above. | W37: If one of the following measures is in your workscope, you must provide the following:
B38: Provider Fees - Post-Construction | F38: 0 | W38: Gas Furnace AFUE
B39: Construction Management Fees | F39: 0 | G39: Overall construction management, all fees associated with specific measures should be noted above. | W39: Chiller Type/Capacity
W40: Central AC/HP SEER
B41: TOTALS | F41: =SUM(F35:F39) -> 0 | G41: =SUM(G8:G33) -> 0 | H41: 0 | I41: 0 | J41: 0 | K41: 0 | L41: 0 | M41: =SUM(M8:M33) -> 0 | O41: =SUM(O8:O33) -> 0 | Q41: =IF(O41=0,0,F41/O41) -> 0 | R41: =IF(F41=0,0,AD35/F41+1) -> 0 | S41: =IF(O41=0,0,(IRR(AG41:BU41,BV41))) -> 0 | T41: =IFERROR(#REF!,0) -> 0 | U41: =SUM(U8:U33) -> 0 | AG41: =-F41 -> 0 | AH41: =SUM(AH8:AH33) -> 0 | AI41: =SUM(AI8:AI33) -> 0 | AJ41: 0 | AK41: 0 | AL41: 0 | AM41: 0 | AN41: 0 | AO41: 0 | AP41: 0 | AQ41: 0 | AR41: 0 | AS41: 0 | AT41: 0 | AU41: 0 | AV41: 0 | AW41: 0 | AX41: 0 | AY41: 0 | AZ41: 0 | BA41: 0 | BB41: 0 | BC41: 0 | BD41: 0 | BE41: 0 | BF41: 0 | BG41: 0 | BH41: 0 | BI41: 0 | BJ41: 0 | BK41: 0 | BL41: 0 | BM41: 0 | BN41: 0 | BO41: 0 | BP41: 0 | BQ41: 0 | BR41: 0 | BS41: 0 | BT41: 0 | BU41: 0 | BV41: =IF(O41*AC41>F41,0.3,-0.3) -> -0.3
W42: Discount Rate for SIR | Y42: 0.03
B43: Incentive Details
B44: Analysis Payment | F44: =IF($F$48<Incentives!$C$40,"",IF(OR(Incentives!$C$30>50,'General Project Info'!$C$24="Yes")=TRUE,"",Incentives!C36)) -> 0 | G44: =IF(F44="","This project is not eligible for an Analysis payment.","") -> 
B45: Construction Management Payment | F45: =IF($F$48<Incentives!$C$40,"",IF('General Project Info'!C23="Yes",Incentives!C37,"")) ->  | G45: =IF(F45="","Construction Management is not part of this project. The value of the Construction Management payment ("&TEXT(Incentives!C37,"$#,##0")&") has been added to the Construction Complete payment.","") -> Construction Management is not part of this project. The value of the Construction Management payment ($0) has been added to the Construction Complete payment.
B46: Construction Complete Payment | F46: =IF($F$48<Incentives!$C$40,"",IF('General Project Info'!C23="Yes",Incentives!C38,Incentives!C37+Incentives!C38)) -> 0
B47: Performance Payment | F47: =IF($F$48<Incentives!$C$40,"",Incentives!C39) -> 0
B48: Total Funding Eligibility | F48: =MIN(0.5*(F35-SUMIF(Y8:Y22,"Yes",F8:F22)-SUMIF(Y24:Y33,"Yes",F24:F33)),Incentives!$C$40-Z35) -> 0 | G48: =IF($F$48<Incentives!$C$40,"The project's incentives are being capped. Please contact your Case Manager or Project Manager for more information.","") -> 

Sheet Measure QC
B1: Measure Savings Quality Control
B2: Instructions
B3: 1) Measure Check (rows 5-31): Typical data ranges were determined based on approved MPP projects and are meant to indicate typical values. If the value falls outside of the range, it does not mean that it is "wrong", just that it is outside of typical values. Likewise, if the value is inside the range, it does not mean that it is "right" for the conditions in a particular project. All columns are linked to pull information from other tabs in this workbook. 2) Values will be highlighted in red (above) or blue (below) if they are outside the range of expected values, based on a database of approved existing building projects. Required Response fields will be highlighted in orange. Other conditional formatting is for administrative purposes only. 3) If the Response column is highlighted, provide justification/explanation for why the value(s) may be out of range for typical projects. Explanations must include details regarding savings calculation assumptions, detailed building information, testing results, etc. This should be done before submitting the SAV-IT for review. Acceptance of the explanations is at the discretion of the reviewer. More information may be requested. Certain measures will have the maximum savings and total source energy savings capped. In these cases, Providers are encouraged to review assumptions and inputs and reduce the savings accordingly. The SAV-IT will not be approved until the savings are brought below the cap. 4) End Use Savings Check (rows 33-37): Aggregate measure savings are evaluated to ensure estimated savings are realistic. Review this section and follow instructions in the "Comment" column, revising tool inputs and providing responses as necessary. | M3: Reviewer Guide | R3: Project Measure QC Calculations
M4: Cost Range | O4: Savings Range | R4: Detailed Measures | W4: Cost QC Calcs | AC4: Measure Cost Range | AE4: Energy Savings Calcs | AK4: Measure Savings Range | AM4: Upper Savings Limits
B5: Measure Classification | D5: Measure Name | E5: Cost | F5: Site Energy Savings (MMBtu) | G5: Source Energy Savings (MMBtu) | H5: Source Energy Savings (%) | J5: Comment | K5: Response | M5: Min Cost | N5: Max Cost | O5: Min Savings (MMBtu) | P5: Max Savings (MMBtu) | R5: Total Qty | S5: Units | T5: No. of Apartment Units | U5: Total SqFt | V5: Lowrise/ Highrise | W5: QC Check? | X5: Cost Units | Y5: Min Measure Cost (Upstate) | Z5: Max Measure Cost (Upstate) | AA5: Min Measure Cost (Downstate) | AB5: Max Measure Cost (Downstate) | AC5: Min Measure Cost | AD5: Max Measure Cost | AE5: Savings Units | AF5: EMS/Air Sealing/INS. $ Spent | AG5: Min Measure Savings Btu (Lowrise) | AH5: Max Measure Savings Btu (Lowrise) | AI5: Min Measure Savings Btu (Highrise) | AJ5: Max Measure Savings Btu (Highrise) | AK5: Min Measure Savings (MMBtu) | AL5: Max Measure Savings (MMBtu) | AM5: Upper Limit Check? | AN5: Upper Limit Units | AO5: Upper Limit Savings (MMBtu) | AP5: Max Source Energy (%) | AQ5: Cost Low? | AR5: Savings High? | AS5: Exceeds Upper Limit? | BE5: Row Check
B6: ='Measure Descriptions'!B8 -> 1 | C6: ='Measure Summary'!E8 ->  | D6: ='Measure Summary'!C8 ->  | E6: ='Measure Summary'!F8 -> 0 | F6: ='Measure Summary'!G8+'Measure Summary'!H8+('Measure Summary'!J8+'Measure Summary'!I8)*Calcs!$B$88 -> 0 | G6: =IFERROR(('Measure Summary'!I8+'Measure Summary'!J8)*Calcs!$B$88*Calcs!$B$89+('Measure Summary'!G8+'Measure Summary'!H8)*IF('Measure Summary'!N8="Natural Gas",Calcs!$B$90,IF('Measure Summary'!N8="Fuel Oil",Calcs!$B$91,IF('Measure Summary'!N8="Steam",Calcs!$B$92,IF('Measure Summary'!N8="Propane",Calcs!$B$93,Calcs!$B$94)))),0) -> 0 | H6: =IF('Utility Info'!$E$20>0,G6/'Utility Info'!$E$20,0) -> 0 | I6: * * * * * * | J6: =IFERROR(IF(AS6="Y","This measure is being flagged as projecting savings above the maximum allowable site savings of "&TEXT(AO6,"#,###")&" MMBtu. Please check your assumptions and data inputs to lower the savings accordingly. This SAV-IT will not be approved until the savings are brought below the cap.",IF(OR(AQ6="Y",AR6="Y")=TRUE,"This measure is being flagged as either falling outside of the cost, site energy savings, or source energy savings typical values. Please refer to the guidance in the above instructions and respond accordingly.","")),"") ->  | M6: =IF(ISERROR(AC6),"",AC6) ->  | N6: =IF(ISERROR(AD6),"",AD6) ->  | O6: =IF(ISERROR(AK6),"",AK6) ->  | P6: =IF(ISERROR(AL6),"",AL6) ->  | R6: ='Measure Summary'!W8 -> 0 | S6: =IF(C6="Other","N/A",VLOOKUP($C6,MeasureQCData,2,FALSE)) ->  | T6: =Units -> 0 | U6: =SqFt -> 0 | V6: =Rise -> 0 | W6: =IF(C6="Other","Y",VLOOKUP($C6,MeasureQCData,4,FALSE)) ->  | X6: =IF(C6="Other","N/A",VLOOKUP($C6,MeasureQCData,9,FALSE)) ->  | Y6: =IF($X6="Each",(VLOOKUP($C6,MeasureQCData,5,FALSE)*$R6),IF($X6="Unit",(VLOOKUP($C6,MeasureQCData,5,FALSE)*$T6),IF($X6="Sqft",(VLOOKUP($C6,MeasureQCData,5,FALSE)*$U6),IF($X6="MBH",(VLOOKUP($C6,MeasureQCData,5,FALSE)*$R6),IF($X6="Ins. Sqft",(VLOOKUP($C6,MeasureQCData,5,FALSE)*$R6),IF(X6="N/A","N/A",0)))))) ->  | Z6: =IF($X6="Each",(VLOOKUP($C6,MeasureQCData,6,FALSE)*$R6),IF($X6="Unit",(VLOOKUP($C6,MeasureQCData,6,FALSE)*$T6),IF($X6="Sqft",(VLOOKUP($C6,MeasureQCData,6,FALSE)*$U6),IF($X6="MBH",(VLOOKUP($C6,MeasureQCData,6,FALSE)*$R6),IF($X6="Ins. Sqft",(VLOOKUP($C6,MeasureQCData,6,FALSE)*$R6),IF(X6="N/A","N/A",0)))))) ->  | AA6: =IF($X6="Each",(VLOOKUP($C6,MeasureQCData,7,FALSE)*$R6),IF($X6="Unit",(VLOOKUP($C6,MeasureQCData,7,FALSE)*$T6),IF($X6="Sqft",(VLOOKUP($C6,MeasureQCData,7,FALSE)*$U6),IF($X6="MBH",(VLOOKUP($C6,MeasureQCData,7,FALSE)*$R6),IF($X6="Ins. Sqft",(VLOOKUP($C6,MeasureQCData,7,FALSE)*$R6),IF(X6="N/A","N/A",0)))))) ->  | AB6: =IF($X6="Each",(VLOOKUP($C6,MeasureQCData,8,FALSE)*$R6),IF($X6="Unit",(VLOOKUP($C6,MeasureQCData,8,FALSE)*$T6),IF($X6="Sqft",(VLOOKUP($C6,MeasureQCData,8,FALSE)*$U6),IF($X6="MBH",(VLOOKUP($C6,MeasureQCData,8,FALSE)*$R6),IF($X6="Ins. Sqft",(VLOOKUP($C6,MeasureQCData,8,FALSE)*$R6),IF(X6="N/A","N/A",0)))))) ->  | AC6: =IF(Location="Upstate",Y6,IF(Location="Downstate",AA6,"")) ->  | AD6: =IF(Location="Upstate",Z6,IF(Location="Downstate",AB6,"")) ->  | AE6: =IF(C6="Other","N/A",VLOOKUP($C6,MeasureQCData,14,FALSE)) ->  | AF6: =IF(OR(C6="Energy Management System (EMS), Install",C6="Air Sealing",C6="Piping, DHW, Insulate",C6="Piping, Heating, Insulate",C6="Windows, Weatherstrip or Airseal"),E6,"N/A") -> N/A | AG6: =IF($AE6="Each",(VLOOKUP($C6,MeasureQCData,10,FALSE)*$R6),IF($AE6="Unit",(VLOOKUP($C6,MeasureQCData,10,FALSE)*$T6),IF($AE6="Sqft",(VLOOKUP($C6,MeasureQCData,10,FALSE)*$U6),IF($AE6="MBH",(VLOOKUP($C6,MeasureQCData,10,FALSE)*$R6),IF($AE6="Ins. Sqft",(VLOOKUP($C6,MeasureQCData,10,FALSE)*$R6),IF($AE6="$",(VLOOKUP($C6,MeasureQCData,10,FALSE)*$AF6),IF($AE6="N/A","N/A",0))))))) ->  | AH6: =IF($AE6="Each",(VLOOKUP($C6,MeasureQCData,11,FALSE)*$R6),IF($AE6="Unit",(VLOOKUP($C6,MeasureQCData,11,FALSE)*$T6),IF($AE6="Sqft",(VLOOKUP($C6,MeasureQCData,11,FALSE)*$U6),IF($AE6="MBH",(VLOOKUP($C6,MeasureQCData,11,FALSE)*$R6),IF($AE6="Ins. Sqft",(VLOOKUP($C6,MeasureQCData,11,FALSE)*$R6),IF($AE6="$",(VLOOKUP($C6,MeasureQCData,11,FALSE)*$AF6),IF($AE6="N/A","N/A",0))))))) ->  | AI6: =IF($AE6="Each",(VLOOKUP($C6,MeasureQCData,12,FALSE)*$R6),IF($AE6="Unit",(VLOOKUP($C6,MeasureQCData,12,FALSE)*$T6),IF($AE6="Sqft",(VLOOKUP($C6,MeasureQCData,12,FALSE)*$U6),IF($AE6="MBH",(VLOOKUP($C6,MeasureQCData,12,FALSE)*$R6),IF($AE6="Ins. Sqft",(VLOOKUP($C6,MeasureQCData,12,FALSE)*$R6),IF($AE6="$",(VLOOKUP($C6,MeasureQCData,12,FALSE)*$AF6),IF($AE6="N/A","N/A",0))))))) ->  | AJ6: =IF($AE6="Each",(VLOOKUP($C6,MeasureQCData,13,FALSE)*$R6),IF($AE6="Unit",(VLOOKUP($C6,MeasureQCData,13,FALSE)*$T6),IF($AE6="Sqft",(VLOOKUP($C6,MeasureQCData,13,FALSE)*$U6),IF($AE6="MBH",(VLOOKUP($C6,MeasureQCData,13,FALSE)*$R6),IF($AE6="Ins. Sqft",(VLOOKUP($C6,MeasureQCData,13,FALSE)*$R6),IF($AE6="$",(VLOOKUP($C6,MeasureQCData,13,FALSE)*$AF6),IF($AE6="N/A","N/A",0))))))) ->  | AK6: =IF(AE6="N/A","N/A",IF(Rise="Low",AG6/1000000,IF(Rise="High",AI6/1000000,""))) ->  | AL6: =IF(AE6="N/A","N/A",IF(Rise="Low",AH6/1000000,IF(Rise="High",AJ6/1000000,""))) ->  | AM6: =IF(C6="Other","N",VLOOKUP($C6,MeasureQCData,105,FALSE)) ->  | AN6: =IF(C6="Other","N/A",VLOOKUP($C6,MeasureQCData,107,FALSE)) ->  | AO6: =IF($AN6="Each",(VLOOKUP($C6,MeasureQCData,106,FALSE)*$R6)/1000000,IF($AN6="Unit",(VLOOKUP($C6,MeasureQCData,106,FALSE)*$T6)/1000000,IF($AN6="Sqft",(VLOOKUP($C6,MeasureQCData,106,FALSE)*$U6)/1000000,IF($AN6="MBH",(VLOOKUP($C6,MeasureQCData,106,FALSE)*$R6)/1000000,IF($AN6="Ins. Sqft",(VLOOKUP($C6,MeasureQCData,106,FALSE)*$R6)/1000000,IF($AN6="Tons",(VLOOKUP($C6,MeasureQCData,106,FALSE)*$R6)/1000000,IF($AN6="Total",VLOOKUP($C6,MeasureQCData,106,FALSE)/1000000,"N/A"))))))) ->  | AP6: =IF(C6="Other","N/A",VLOOKUP($C6,MeasureQCData,16,FALSE)) ->  | AQ6: =IF(W6="N","N",IF(E6<AC6,"Y","N")) ->  | AR6: =IF(W6="N","N",IF(OR(F6>AL6,H6>AP6),"Y","N")) ->  | AS6: =IF(AM6="N","N",IF(F6>AO6,"Y","N")) ->  | BE6: =IFERROR(IF(AND(OR(AQ6="y",AR6="y")=TRUE,K6="")=TRUE,"ERR",""),"") -> 
B7: ='Measure Descriptions'!B9 -> 2 | C7: ='Measure Summary'!E9 ->  | D7: ='Measure Summary'!C9 ->  | E7: ='Measure Summary'!F9 -> 0 | F7: ='Measure Summary'!G9+'Measure Summary'!H9+('Measure Summary'!J9+'Measure Summary'!I9)*Calcs!$B$88 -> 0 | G7: =IFERROR(('Measure Summary'!I9+'Measure Summary'!J9)*Calcs!$B$88*Calcs!$B$89+('Measure Summary'!G9+'Measure Summary'!H9)*IF('Measure Summary'!N9="Natural Gas",Calcs!$B$90,IF('Measure Summary'!N9="Fuel Oil",Calcs!$B$91,IF('Measure Summary'!N9="Steam",Calcs!$B$92,IF('Measure Summary'!N9="Propane",Calcs!$B$93,Calcs!$B$94)))),0) -> 0 | H7: =IF('Utility Info'!$E$20>0,G7/'Utility Info'!$E$20,0) -> 0 | I7: * * * * * * | J7: =IFERROR(IF(AS7="Y","This measure is being flagged as projecting savings above the maximum allowable site savings of "&TEXT(AO7,"#,###")&" MMBtu. Please check your assumptions and data inputs to lower the savings accordingly. This SAV-IT will not be approved until the savings are brought below the cap.",IF(OR(AQ7="Y",AR7="Y")=TRUE,"This measure is being flagged as either falling outside of the cost, site energy savings, or source energy savings typical values. Please refer to the guidance in the above instructions and respond accordingly.","")),"") ->  | M7: =IF(ISERROR(AC7),"",AC7) ->  | O7: =IF(ISERROR(AK7),"",AK7) ->  | R7: ='Measure Summary'!W9 -> 0 | T7: 0 | U7: 0 | V7: 0 | X7: =IF(C7="Other","N/A",VLOOKUP($C7,MeasureQCData,9,FALSE)) ->  | AE7: =IF(C7="other","N/A",VLOOKUP($C7,MeasureQCData,14)) ->  | AF7: N/A | AS7: =IF(AM7="N","N",IF(F7>AO7,"Y","N")) ->  | BE7: =IFERROR(IF(AND(OR(AQ7="y",AR7="y")=TRUE,K7="")=TRUE,"ERR",""),"") -> 
B8: ='Measure Descriptions'!B10 -> 3 | C8: ='Measure Summary'!E10 ->  | D8: ='Measure Summary'!C10 ->  | E8: ='Measure Summary'!F10 -> 0 | F8: ='Measure Summary'!G10+'Measure Summary'!H10+('Measure Summary'!J10+'Measure Summary'!I10)*Calcs!$B$88 -> 0 | G8: =IFERROR(('Measure Summary'!I10+'Measure Summary'!J10)*Calcs!$B$88*Calcs!$B$89+('Measure Summary'!G10+'Measure Summary'!H10)*IF('Measure Summary'!N10="Natural Gas",Calcs!$B$90,IF('Measure Summary'!N10="Fuel Oil",Calcs!$B$91,IF('Measure Summary'!N10="Steam",Calcs!$B$92,IF('Measure Summary'!N10="Propane",Calcs!$B$93,Calcs!$B$94)))),0) -> 0 | H8: =IF('Utility Info'!$E$20>0,G8/'Utility Info'!$E$20,0) -> 0 | I8: * * * * * * | R8: ='Measure Summary'!W10 -> 0 | T8: 0 | U8: 0 | V8: 0 | X8: =IF(C8="Other","N/A",VLOOKUP($C8,MeasureQCData,9)) ->  | AF8: N/A
B9: ='Measure Descriptions'!B11 -> 4 | C9: ='Measure Summary'!E11 ->  | D9: ='Measure Summary'!C11 ->  | E9: ='Measure Summary'!F11 -> 0 | F9: ='Measure Summary'!G11+'Measure Summary'!H11+('Measure Summary'!J11+'Measure Summary'!I11)*Calcs!$B$88 -> 0 | G9: =IFERROR(('Measure Summary'!I11+'Measure Summary'!J11)*Calcs!$B$88*Calcs!$B$89+('Measure Summary'!G11+'Measure Summary'!H11)*IF('Measure Summary'!N11="Natural Gas",Calcs!$B$90,IF('Measure Summary'!N11="Fuel Oil",Calcs!$B$91,IF('Measure Summary'!N11="Steam",Calcs!$B$92,IF('Measure Summary'!N11="Propane",Calcs!$B$93,Calcs!$B$94)))),0) -> 0 | H9: =IF('Utility Info'!$E$20>0,G9/'Utility Info'!$E$20,0) -> 0 | I9: * * * * * * | R9: ='Measure Summary'!W11 -> 0 | T9: 0 | U9: 0 | V9: 0 | AF9: N/A
B10: ='Measure Descriptions'!B12 -> 5 | C10: ='Measure Summary'!E12 ->  | D10: ='Measure Summary'!C12 ->  | E10: ='Measure Summary'!F12 -> 0 | F10: ='Measure Summary'!G12+'Measure Summary'!H12+('Measure Summary'!J12+'Measure Summary'!I12)*Calcs!$B$88 -> 0 | G10: =IFERROR(('Measure Summary'!I12+'Measure Summary'!J12)*Calcs!$B$88*Calcs!$B$89+('Measure Summary'!G12+'Measure Summary'!H12)*IF('Measure Summary'!N12="Natural Gas",Calcs!$B$90,IF('Measure Summary'!N12="Fuel Oil",Calcs!$B$91,IF('Measure Summary'!N12="Steam",Calcs!$B$92,IF('Measure Summary'!N12="Propane",Calcs!$B$93,Calcs!$B$94)))),0) -> 0 | H10: =IF('Utility Info'!$E$20>0,G10/'Utility Info'!$E$20,0) -> 0 | I10: * * * * * * | R10: ='Measure Summary'!W12 -> 0 | T10: 0 | U10: 0 | V10: 0 | AF10: N/A
B11: ='Measure Descriptions'!B13 -> 6 | C11: ='Measure Summary'!E13 ->  | D11: ='Measure Summary'!C13 ->  | E11: ='Measure Summary'!F13 -> 0 | F11: ='Measure Summary'!G13+'Measure Summary'!H13+('Measure Summary'!J13+'Measure Summary'!I13)*Calcs!$B$88 -> 0 | G11: =IFERROR(('Measure Summary'!I13+'Measure Summary'!J13)*Calcs!$B$88*Calcs!$B$89+('Measure Summary'!G13+'Measure Summary'!H13)*IF('Measure Summary'!N13="Natural Gas",Calcs!$B$90,IF('Measure Summary'!N13="Fuel Oil",Calcs!$B$91,IF('Measure Summary'!N13="Steam",Calcs!$B$92,IF('Measure Summary'!N13="Propane",Calcs!$B$93,Calcs!$B$94)))),0) -> 0 | H11: =IF('Utility Info'!$E$20>0,G11/'Utility Info'!$E$20,0) -> 0 | I11: * * * * * * | R11: ='Measure Summary'!W13 -> 0 | T11: 0 | U11: 0 | V11: 0 | AF11: N/A
B12: ='Measure Descriptions'!B14 -> 7 | C12: ='Measure Summary'!E14 ->  | D12: ='Measure Summary'!C14 ->  | E12: ='Measure Summary'!F14 -> 0 | F12: ='Measure Summary'!G14+'Measure Summary'!H14+('Measure Summary'!J14+'Measure Summary'!I14)*Calcs!$B$88 -> 0 | G12: =IFERROR(('Measure Summary'!I14+'Measure Summary'!J14)*Calcs!$B$88*Calcs!$B$89+('Measure Summary'!G14+'Measure Summary'!H14)*IF('Measure Summary'!N14="Natural Gas",Calcs!$B$90,IF('Measure Summary'!N14="Fuel Oil",Calcs!$B$91,IF('Measure Summary'!N14="Steam",Calcs!$B$92,IF('Measure Summary'!N14="Propane",Calcs!$B$93,Calcs!$B$94)))),0) -> 0 | H12: =IF('Utility Info'!$E$20>0,G12/'Utility Info'!$E$20,0) -> 0 | I12: * * * * * * | R12: ='Measure Summary'!W14 -> 0 | T12: 0 | U12: 0 | V12: 0 | AF12: N/A
B13: ='Measure Descriptions'!B15 -> 8 | C13: ='Measure Summary'!E15 ->  | D13: ='Measure Summary'!C15 ->  | E13: ='Measure Summary'!F15 -> 0 | F13: ='Measure Summary'!G15+'Measure Summary'!H15+('Measure Summary'!J15+'Measure Summary'!I15)*Calcs!$B$88 -> 0 | G13: =IFERROR(('Measure Summary'!I15+'Measure Summary'!J15)*Calcs!$B$88*Calcs!$B$89+('Measure Summary'!G15+'Measure Summary'!H15)*IF('Measure Summary'!N15="Natural Gas",Calcs!$B$90,IF('Measure Summary'!N15="Fuel Oil",Calcs!$B$91,IF('Measure Summary'!N15="Steam",Calcs!$B$92,IF('Measure Summary'!N15="Propane",Calcs!$B$93,Calcs!$B$94)))),0) -> 0 | H13: =IF('Utility Info'!$E$20>0,G13/'Utility Info'!$E$20,0) -> 0 | I13: * * * * * * | R13: ='Measure Summary'!W15 -> 0 | T13: 0 | U13: 0 | V13: 0 | AF13: N/A
B14: ='Measure Descriptions'!B16 -> 9 | C14: ='Measure Summary'!E16 ->  | D14: ='Measure Summary'!C16 ->  | E14: ='Measure Summary'!F16 -> 0 | F14: ='Measure Summary'!G16+'Measure Summary'!H16+('Measure Summary'!J16+'Measure Summary'!I16)*Calcs!$B$88 -> 0 | G14: =IFERROR(('Measure Summary'!I16+'Measure Summary'!J16)*Calcs!$B$88*Calcs!$B$89+('Measure Summary'!G16+'Measure Summary'!H16)*IF('Measure Summary'!N16="Natural Gas",Calcs!$B$90,IF('Measure Summary'!N16="Fuel Oil",Calcs!$B$91,IF('Measure Summary'!N16="Steam",Calcs!$B$92,IF('Measure Summary'!N16="Propane",Calcs!$B$93,Calcs!$B$94)))),0) -> 0 | H14: =IF('Utility Info'!$E$20>0,G14/'Utility Info'!$E$20,0) -> 0 | I14: * * * * * * | R14: ='Measure Summary'!W16 -> 0 | T14: 0 | U14: 0 | V14: 0 | AF14: N/A
B15: ='Measure Descriptions'!B17 -> 10 | C15: ='Measure Summary'!E17 ->  | D15: ='Measure Summary'!C17 ->  | E15: ='Measure Summary'!F17 -> 0 | F15: ='Measure Summary'!G17+'Measure Summary'!H17+('Measure Summary'!J17+'Measure Summary'!I17)*Calcs!$B$88 -> 0 | G15: =IFERROR(('Measure Summary'!I17+'Measure Summary'!J17)*Calcs!$B$88*Calcs!$B$89+('Measure Summary'!G17+'Measure Summary'!H17)*IF('Measure Summary'!N17="Natural Gas",Calcs!$B$90,IF('Measure Summary'!N17="Fuel Oil",Calcs!$B$91,IF('Measure Summary'!N17="Steam",Calcs!$B$92,IF('Measure Summary'!N17="Propane",Calcs!$B$93,Calcs!$B$94)))),0) -> 0 | H15: =IF('Utility Info'!$E$20>0,G15/'Utility Info'!$E$20,0) -> 0 | I15: * * * * * * | R15: ='Measure Summary'!W17 -> 0 | T15: 0 | U15: 0 | V15: 0 | AF15: N/A
B16: ='Measure Descriptions'!B18 -> 11 | C16: ='Measure Summary'!E18 ->  | D16: ='Measure Summary'!C18 ->  | E16: ='Measure Summary'!F18 -> 0 | F16: ='Measure Summary'!G18+'Measure Summary'!H18+('Measure Summary'!J18+'Measure Summary'!I18)*Calcs!$B$88 -> 0 | G16: =IFERROR(('Measure Summary'!I18+'Measure Summary'!J18)*Calcs!$B$88*Calcs!$B$89+('Measure Summary'!G18+'Measure Summary'!H18)*IF('Measure Summary'!N18="Natural Gas",Calcs!$B$90,IF('Measure Summary'!N18="Fuel Oil",Calcs!$B$91,IF('Measure Summary'!N18="Steam",Calcs!$B$92,IF('Measure Summary'!N18="Propane",Calcs!$B$93,Calcs!$B$94)))),0) -> 0 | H16: =IF('Utility Info'!$E$20>0,G16/'Utility Info'!$E$20,0) -> 0 | I16: * * * * * * | R16: ='Measure Summary'!W18 -> 0 | T16: 0 | U16: 0 | V16: 0 | AF16: N/A
B17: ='Measure Descriptions'!B19 -> 12 | C17: ='Measure Summary'!E19 ->  | D17: ='Measure Summary'!C19 ->  | E17: ='Measure Summary'!F19 -> 0 | F17: ='Measure Summary'!G19+'Measure Summary'!H19+('Measure Summary'!J19+'Measure Summary'!I19)*Calcs!$B$88 -> 0 | G17: =IFERROR(('Measure Summary'!I19+'Measure Summary'!J19)*Calcs!$B$88*Calcs!$B$89+('Measure Summary'!G19+'Measure Summary'!H19)*IF('Measure Summary'!N19="Natural Gas",Calcs!$B$90,IF('Measure Summary'!N19="Fuel Oil",Calcs!$B$91,IF('Measure Summary'!N19="Steam",Calcs!$B$92,IF('Measure Summary'!N19="Propane",Calcs!$B$93,Calcs!$B$94)))),0) -> 0 | H17: =IF('Utility Info'!$E$20>0,G17/'Utility Info'!$E$20,0) -> 0 | I17: * * * * * * | R17: ='Measure Summary'!W19 -> 0 | T17: 0 | U17: 0 | V17: 0 | AF17: N/A
B18: ='Measure Descriptions'!B20 -> 13 | C18: ='Measure Summary'!E20 ->  | D18: ='Measure Summary'!C20 ->  | E18: ='Measure Summary'!F20 -> 0 | F18: ='Measure Summary'!G20+'Measure Summary'!H20+('Measure Summary'!J20+'Measure Summary'!I20)*Calcs!$B$88 -> 0 | G18: =IFERROR(('Measure Summary'!I20+'Measure Summary'!J20)*Calcs!$B$88*Calcs!$B$89+('Measure Summary'!G20+'Measure Summary'!H20)*IF('Measure Summary'!N20="Natural Gas",Calcs!$B$90,IF('Measure Summary'!N20="Fuel Oil",Calcs!$B$91,IF('Measure Summary'!N20="Steam",Calcs!$B$92,IF('Measure Summary'!N20="Propane",Calcs!$B$93,Calcs!$B$94)))),0) -> 0 | H18: =IF('Utility Info'!$E$20>0,G18/'Utility Info'!$E$20,0) -> 0 | I18: * * * * * * | R18: ='Measure Summary'!W20 -> 0 | T18: 0 | U18: 0 | V18: 0 | AF18: N/A
B19: ='Measure Descriptions'!B21 -> 14 | C19: ='Measure Summary'!E21 ->  | D19: ='Measure Summary'!C21 ->  | E19: ='Measure Summary'!F21 -> 0 | F19: ='Measure Summary'!G21+'Measure Summary'!H21+('Measure Summary'!J21+'Measure Summary'!I21)*Calcs!$B$88 -> 0 | G19: =IFERROR(('Measure Summary'!I21+'Measure Summary'!J21)*Calcs!$B$88*Calcs!$B$89+('Measure Summary'!G21+'Measure Summary'!H21)*IF('Measure Summary'!N21="Natural Gas",Calcs!$B$90,IF('Measure Summary'!N21="Fuel Oil",Calcs!$B$91,IF('Measure Summary'!N21="Steam",Calcs!$B$92,IF('Measure Summary'!N21="Propane",Calcs!$B$93,Calcs!$B$94)))),0) -> 0 | H19: =IF('Utility Info'!$E$20>0,G19/'Utility Info'!$E$20,0) -> 0 | I19: * * * * * * | R19: ='Measure Summary'!W21 -> 0 | T19: 0 | U19: 0 | V19: 0 | AF19: N/A
B20: ='Measure Descriptions'!B22 -> 15 | C20: ='Measure Summary'!E22 ->  | D20: ='Measure Summary'!C22 ->  | E20: ='Measure Summary'!F22 -> 0 | F20: ='Measure Summary'!G22+'Measure Summary'!H22+('Measure Summary'!J22+'Measure Summary'!I22)*Calcs!$B$88 -> 0 | G20: =IFERROR(('Measure Summary'!I22+'Measure Summary'!J22)*Calcs!$B$88*Calcs!$B$89+('Measure Summary'!G22+'Measure Summary'!H22)*IF('Measure Summary'!N22="Natural Gas",Calcs!$B$90,IF('Measure Summary'!N22="Fuel Oil",Calcs!$B$91,IF('Measure Summary'!N22="Steam",Calcs!$B$92,IF('Measure Summary'!N22="Propane",Calcs!$B$93,Calcs!$B$94)))),0) -> 0 | H20: =IF('Utility Info'!$E$20>0,G20/'Utility Info'!$E$20,0) -> 0 | I20: * * * * * * | R20: ='Measure Summary'!W22 -> 0 | T20: 0 | U20: 0 | V20: 0 | AF20: N/A | AN20: =IF(C20="Other","N",VLOOKUP($C20,MeasureQCData,107,FALSE)) -> 
B22: ='Measure Descriptions'!B24 -> 16 | C22: ='Measure Summary'!E24 ->  | D22: ='Measure Summary'!C24 ->  | E22: ='Measure Summary'!F24 -> 0 | F22: ='Measure Summary'!G24+'Measure Summary'!H24+('Measure Summary'!J24+'Measure Summary'!I24)*Calcs!$B$88 -> 0 | G22: =IFERROR(('Measure Summary'!I24+'Measure Summary'!J24)*Calcs!$B$88*Calcs!$B$89+('Measure Summary'!G24+'Measure Summary'!H24)*IF('Measure Summary'!N24="Natural Gas",Calcs!$B$90,IF('Measure Summary'!N24="Fuel Oil",Calcs!$B$91,IF('Measure Summary'!N24="Steam",Calcs!$B$92,IF('Measure Summary'!N24="Propane",Calcs!$B$93,Calcs!$B$94)))),0) -> 0 | H22: =IF('Utility Info'!$E$20>0,G22/'Utility Info'!$E$20,0) -> 0 | I22: * * * * * * | R22: ='Measure Summary'!W24 -> 0 | S22: =IF(C22="Other","N/A",VLOOKUP($C22,MeasureQCData,2,FALSE)) ->  | T22: 0 | U22: 0 | V22: 0 | W22: =IF(C22="Other","Y",VLOOKUP($C22,MeasureQCData,4,FALSE)) ->  | X22: =IF(C22="Other","N/A",VLOOKUP($C22,MeasureQCData,9)) ->  | Y22: =IF($X22="Each",(VLOOKUP($C22,MeasureQCData,5,FALSE)*$R22),IF($X22="Unit",(VLOOKUP($C22,MeasureQCData,5,FALSE)*$T22),IF($X22="Sqft",(VLOOKUP($C22,MeasureQCData,5,FALSE)*$U22),IF($X22="MBH",(VLOOKUP($C22,MeasureQCData,5,FALSE)*$R22),IF($X22="Ins. Sqft",(VLOOKUP($C22,MeasureQCData,5,FALSE)*$R22),IF(X22="N/A","N/A",0)))))) ->  | Z22: =IF($X22="Each",(VLOOKUP($C22,MeasureQCData,6,FALSE)*$R22),IF($X22="Unit",(VLOOKUP($C22,MeasureQCData,6,FALSE)*$T22),IF($X22="Sqft",(VLOOKUP($C22,MeasureQCData,6,FALSE)*$U22),IF($X22="MBH",(VLOOKUP($C22,MeasureQCData,6,FALSE)*$R22),IF($X22="Ins. Sqft",(VLOOKUP($C22,MeasureQCData,6,FALSE)*$R22),IF(X22="N/A","N/A",0)))))) ->  | AA22: =IF($X22="Each",(VLOOKUP($C22,MeasureQCData,7,FALSE)*$R22),IF($X22="Unit",(VLOOKUP($C22,MeasureQCData,7,FALSE)*$T22),IF($X22="Sqft",(VLOOKUP($C22,MeasureQCData,7,FALSE)*$U22),IF($X22="MBH",(VLOOKUP($C22,MeasureQCData,7,FALSE)*$R22),IF($X22="Ins. Sqft",(VLOOKUP($C22,MeasureQCData,7,FALSE)*$R22),IF(X22="N/A","N/A",0)))))) ->  | AB22: =IF($X22="Each",(VLOOKUP($C22,MeasureQCData,8,FALSE)*$R22),IF($X22="Unit",(VLOOKUP($C22,MeasureQCData,8,FALSE)*$T22),IF($X22="Sqft",(VLOOKUP($C22,MeasureQCData,8,FALSE)*$U22),IF($X22="MBH",(VLOOKUP($C22,MeasureQCData,8,FALSE)*$R22),IF($X22="Ins. Sqft",(VLOOKUP($C22,MeasureQCData,8,FALSE)*$R22),IF(X22="N/A","N/A",0)))))) ->  | AE22: =IF(C22="other","N/A",VLOOKUP($C22,MeasureQCData,14)) ->  | AF22: =IF(OR(C22="Energy Management System (EMS), Install",C22="Air Sealing",C22="Piping, DHW, Insulate",C22="Piping, Heating, Insulate",C22="Windows, Weatherstrip or Airseal"),E22,"N/A") -> N/A | AG22: =IF($AE22="Each",(VLOOKUP($C22,MeasureQCData,10,FALSE)*$R22),IF($AE22="Unit",(VLOOKUP($C22,MeasureQCData,10,FALSE)*$T22),IF($AE22="Sqft",(VLOOKUP($C22,MeasureQCData,10,FALSE)*$U22),IF($AE22="MBH",(VLOOKUP($C22,MeasureQCData,10,FALSE)*$R22),IF($AE22="Ins. Sqft",(VLOOKUP($C22,MeasureQCData,10,FALSE)*$R22),IF($AE22="$",(VLOOKUP($C22,MeasureQCData,10,FALSE)*$AF22),IF($AE22="N/A","N/A",0))))))) ->  | AH22: =IF($AE22="Each",(VLOOKUP($C22,MeasureQCData,11,FALSE)*$R22),IF($AE22="Unit",(VLOOKUP($C22,MeasureQCData,11,FALSE)*$T22),IF($AE22="Sqft",(VLOOKUP($C22,MeasureQCData,11,FALSE)*$U22),IF($AE22="MBH",(VLOOKUP($C22,MeasureQCData,11,FALSE)*$R22),IF($AE22="Ins. Sqft",(VLOOKUP($C22,MeasureQCData,11,FALSE)*$R22),IF($AE22="$",(VLOOKUP($C22,MeasureQCData,11,FALSE)*$AF22),IF($AE22="N/A","N/A",0))))))) ->  | AI22: =IF($AE22="Each",(VLOOKUP($C22,MeasureQCData,12,FALSE)*$R22),IF($AE22="Unit",(VLOOKUP($C22,MeasureQCData,12,FALSE)*$T22),IF($AE22="Sqft",(VLOOKUP($C22,MeasureQCData,12,FALSE)*$U22),IF($AE22="MBH",(VLOOKUP($C22,MeasureQCData,12,FALSE)*$R22),IF($AE22="Ins. Sqft",(VLOOKUP($C22,MeasureQCData,12,FALSE)*$R22),IF($AE22="$",(VLOOKUP($C22,MeasureQCData,12,FALSE)*$AF22),IF($AE22="N/A","N/A",0))))))) ->  | AJ22: =IF($AE22="Each",(VLOOKUP($C22,MeasureQCData,13,FALSE)*$R22),IF($AE22="Unit",(VLOOKUP($C22,MeasureQCData,13,FALSE)*$T22),IF($AE22="Sqft",(VLOOKUP($C22,MeasureQCData,13,FALSE)*$U22),IF($AE22="MBH",(VLOOKUP($C22,MeasureQCData,13,FALSE)*$R22),IF($AE22="Ins. Sqft",(VLOOKUP($C22,MeasureQCData,13,FALSE)*$R22),IF($AE22="$",(VLOOKUP($C22,MeasureQCData,13,FALSE)*$AF22),IF($AE22="N/A","N/A",0))))))) ->  | AM22: =IF(C22="Other","N",VLOOKUP($C22,MeasureQCData,105,FALSE)) ->  | AN22: =IF(C22="Other","N",VLOOKUP($C22,MeasureQCData,107,FALSE)) ->  | AO22: =IF($AN22="Each",(VLOOKUP($C22,MeasureQCData,106,FALSE)*$R22)/1000000,IF($AN22="Unit",(VLOOKUP($C22,MeasureQCData,106,FALSE)*$T22)/1000000,IF($AN22="Sqft",(VLOOKUP($C22,MeasureQCData,106,FALSE)*$U22)/1000000,IF($AN22="MBH",(VLOOKUP($C22,MeasureQCData,106,FALSE)*$R22)/1000000,IF($AN22="Ins. Sqft",(VLOOKUP($C22,MeasureQCData,106,FALSE)*$R22)/1000000,IF($AN22="Tons",(VLOOKUP($C22,MeasureQCData,106,FALSE)*$R22)/1000000,IF($AN22="Total",VLOOKUP($C22,MeasureQCData,106,FALSE)/1000000,"N/A"))))))) ->  | AP22: =IF(C22="Other","N/A",VLOOKUP($C22,MeasureQCData,16,FALSE)) ->  | AQ22: =IF(W22="N","N",IF(E22<AC22,"Y","N")) ->  | AR22: =IF(W22="N","N",IF(OR(F22>AL22,H22>AP22),"Y","N")) -> 
B23: ='Measure Descriptions'!B25 -> 17 | C23: ='Measure Summary'!E25 ->  | D23: ='Measure Summary'!C25 ->  | E23: ='Measure Summary'!F25 -> 0 | F23: ='Measure Summary'!G25+'Measure Summary'!H25+('Measure Summary'!J25+'Measure Summary'!I25)*Calcs!$B$88 -> 0 | G23: =IFERROR(('Measure Summary'!I25+'Measure Summary'!J25)*Calcs!$B$88*Calcs!$B$89+('Measure Summary'!G25+'Measure Summary'!H25)*IF('Measure Summary'!N25="Natural Gas",Calcs!$B$90,IF('Measure Summary'!N25="Fuel Oil",Calcs!$B$91,IF('Measure Summary'!N25="Steam",Calcs!$B$92,IF('Measure Summary'!N25="Propane",Calcs!$B$93,Calcs!$B$94)))),0) -> 0 | H23: =IF('Utility Info'!$E$20>0,G23/'Utility Info'!$E$20,0) -> 0 | I23: * * * * * * | R23: ='Measure Summary'!W25 -> 0 | T23: 0 | U23: 0 | V23: 0 | AF23: N/A
B24: ='Measure Descriptions'!B26 -> 18 | C24: ='Measure Summary'!E26 ->  | D24: ='Measure Summary'!C26 ->  | E24: ='Measure Summary'!F26 -> 0 | F24: ='Measure Summary'!G26+'Measure Summary'!H26+('Measure Summary'!J26+'Measure Summary'!I26)*Calcs!$B$88 -> 0 | G24: =IFERROR(('Measure Summary'!I26+'Measure Summary'!J26)*Calcs!$B$88*Calcs!$B$89+('Measure Summary'!G26+'Measure Summary'!H26)*IF('Measure Summary'!N26="Natural Gas",Calcs!$B$90,IF('Measure Summary'!N26="Fuel Oil",Calcs!$B$91,IF('Measure Summary'!N26="Steam",Calcs!$B$92,IF('Measure Summary'!N26="Propane",Calcs!$B$93,Calcs!$B$94)))),0) -> 0 | H24: =IF('Utility Info'!$E$20>0,G24/'Utility Info'!$E$20,0) -> 0 | I24: * * * * * * | R24: ='Measure Summary'!W26 -> 0 | T24: 0 | U24: 0 | V24: 0 | AF24: N/A
B25: ='Measure Descriptions'!B27 -> 19 | C25: ='Measure Summary'!E27 ->  | D25: ='Measure Summary'!C27 ->  | E25: ='Measure Summary'!F27 -> 0 | F25: ='Measure Summary'!G27+'Measure Summary'!H27+('Measure Summary'!J27+'Measure Summary'!I27)*Calcs!$B$88 -> 0 | G25: =IFERROR(('Measure Summary'!I27+'Measure Summary'!J27)*Calcs!$B$88*Calcs!$B$89+('Measure Summary'!G27+'Measure Summary'!H27)*IF('Measure Summary'!N27="Natural Gas",Calcs!$B$90,IF('Measure Summary'!N27="Fuel Oil",Calcs!$B$91,IF('Measure Summary'!N27="Steam",Calcs!$B$92,IF('Measure Summary'!N27="Propane",Calcs!$B$93,Calcs!$B$94)))),0) -> 0 | H25: =IF('Utility Info'!$E$20>0,G25/'Utility Info'!$E$20,0) -> 0 | I25: * * * * * * | R25: ='Measure Summary'!W27 -> 0 | T25: 0 | U25: 0 | V25: 0 | AF25: N/A
B26: ='Measure Descriptions'!B28 -> 20 | C26: ='Measure Summary'!E28 ->  | D26: ='Measure Summary'!C28 ->  | E26: ='Measure Summary'!F28 -> 0 | F26: ='Measure Summary'!G28+'Measure Summary'!H28+('Measure Summary'!J28+'Measure Summary'!I28)*Calcs!$B$88 -> 0 | G26: =IFERROR(('Measure Summary'!I28+'Measure Summary'!J28)*Calcs!$B$88*Calcs!$B$89+('Measure Summary'!G28+'Measure Summary'!H28)*IF('Measure Summary'!N28="Natural Gas",Calcs!$B$90,IF('Measure Summary'!N28="Fuel Oil",Calcs!$B$91,IF('Measure Summary'!N28="Steam",Calcs!$B$92,IF('Measure Summary'!N28="Propane",Calcs!$B$93,Calcs!$B$94)))),0) -> 0 | H26: =IF('Utility Info'!$E$20>0,G26/'Utility Info'!$E$20,0) -> 0 | I26: * * * * * * | M26: =IF(ISERROR(AC26),"",AC26) ->  | O26: =IF(ISERROR(AK26),"",AK26) ->  | R26: ='Measure Summary'!W28 -> 0 | T26: 0 | U26: 0 | V26: 0 | AC26: =IF(Location="Upstate",Y26,IF(Location="Downstate",AA26,"")) ->  | AD26: =IF(Location="Upstate",Z26,IF(Location="Downstate",AB26,"")) ->  | AF26: N/A | AK26: =IF(AE26="N/A","N/A",IF(Rise="Low",AG26/1000000,IF(Rise="High",AI26/1000000,""))) ->  | AL26: =IF(AE26="N/A","N/A",IF(Rise="Low",AH26/1000000,IF(Rise="High",AJ26/1000000,""))) -> 
B27: ='Measure Descriptions'!B29 -> 21 | C27: ='Measure Summary'!E29 ->  | D27: ='Measure Summary'!C29 ->  | E27: ='Measure Summary'!F29 -> 0 | F27: ='Measure Summary'!G29+'Measure Summary'!H29+('Measure Summary'!J29+'Measure Summary'!I29)*Calcs!$B$88 -> 0 | G27: =IFERROR(('Measure Summary'!I29+'Measure Summary'!J29)*Calcs!$B$88*Calcs!$B$89+('Measure Summary'!G29+'Measure Summary'!H29)*IF('Measure Summary'!N29="Natural Gas",Calcs!$B$90,IF('Measure Summary'!N29="Fuel Oil",Calcs!$B$91,IF('Measure Summary'!N29="Steam",Calcs!$B$92,IF('Measure Summary'!N29="Propane",Calcs!$B$93,Calcs!$B$94)))),0) -> 0 | H27: =IF('Utility Info'!$E$20>0,G27/'Utility Info'!$E$20,0) -> 0 | I27: * * * * * * | R27: ='Measure Summary'!W29 -> 0 | T27: 0 | U27: 0 | V27: 0 | AF27: N/A
B28: ='Measure Descriptions'!B30 -> 22 | C28: ='Measure Summary'!E30 ->  | D28: ='Measure Summary'!C30 ->  | E28: ='Measure Summary'!F30 -> 0 | F28: ='Measure Summary'!G30+'Measure Summary'!H30+('Measure Summary'!J30+'Measure Summary'!I30)*Calcs!$B$88 -> 0 | G28: =IFERROR(('Measure Summary'!I30+'Measure Summary'!J30)*Calcs!$B$88*Calcs!$B$89+('Measure Summary'!G30+'Measure Summary'!H30)*IF('Measure Summary'!N30="Natural Gas",Calcs!$B$90,IF('Measure Summary'!N30="Fuel Oil",Calcs!$B$91,IF('Measure Summary'!N30="Steam",Calcs!$B$92,IF('Measure Summary'!N30="Propane",Calcs!$B$93,Calcs!$B$94)))),0) -> 0 | H28: =IF('Utility Info'!$E$20>0,G28/'Utility Info'!$E$20,0) -> 0 | I28: * * * * * * | R28: ='Measure Summary'!W30 -> 0 | T28: 0 | U28: 0 | V28: 0 | AF28: N/A
B29: ='Measure Descriptions'!B31 -> 23 | C29: ='Measure Summary'!E31 ->  | D29: ='Measure Summary'!C31 ->  | E29: ='Measure Summary'!F31 -> 0 | F29: ='Measure Summary'!G31+'Measure Summary'!H31+('Measure Summary'!J31+'Measure Summary'!I31)*Calcs!$B$88 -> 0 | G29: =IFERROR(('Measure Summary'!I31+'Measure Summary'!J31)*Calcs!$B$88*Calcs!$B$89+('Measure Summary'!G31+'Measure Summary'!H31)*IF('Measure Summary'!N31="Natural Gas",Calcs!$B$90,IF('Measure Summary'!N31="Fuel Oil",Calcs!$B$91,IF('Measure Summary'!N31="Steam",Calcs!$B$92,IF('Measure Summary'!N31="Propane",Calcs!$B$93,Calcs!$B$94)))),0) -> 0 | H29: =IF('Utility Info'!$E$20>0,G29/'Utility Info'!$E$20,0) -> 0 | I29: * * * * * * | R29: ='Measure Summary'!W31 -> 0 | T29: 0 | U29: 0 | V29: 0 | AF29: N/A
B30: ='Measure Descriptions'!B32 -> 24 | C30: ='Measure Summary'!E32 ->  | D30: ='Measure Summary'!C32 ->  | E30: ='Measure Summary'!F32 -> 0 | F30: ='Measure Summary'!G32+'Measure Summary'!H32+('Measure Summary'!J32+'Measure Summary'!I32)*Calcs!$B$88 -> 0 | G30: =IFERROR(('Measure Summary'!I32+'Measure Summary'!J32)*Calcs!$B$88*Calcs!$B$89+('Measure Summary'!G32+'Measure Summary'!H32)*IF('Measure Summary'!N32="Natural Gas",Calcs!$B$90,IF('Measure Summary'!N32="Fuel Oil",Calcs!$B$91,IF('Measure Summary'!N32="Steam",Calcs!$B$92,IF('Measure Summary'!N32="Propane",Calcs!$B$93,Calcs!$B$94)))),0) -> 0 | H30: =IF('Utility Info'!$E$20>0,G30/'Utility Info'!$E$20,0) -> 0 | I30: * * * * * * | R30: ='Measure Summary'!W32 -> 0 | T30: 0 | U30: 0 | V30: 0 | AF30: N/A
B31: ='Measure Descriptions'!B33 -> 25 | C31: ='Measure Summary'!E33 ->  | D31: ='Measure Summary'!C33 ->  | E31: ='Measure Summary'!F33 -> 0 | F31: ='Measure Summary'!G33+'Measure Summary'!H33+('Measure Summary'!J33+'Measure Summary'!I33)*Calcs!$B$88 -> 0 | G31: =IFERROR(('Measure Summary'!I33+'Measure Summary'!J33)*Calcs!$B$88*Calcs!$B$89+('Measure Summary'!G33+'Measure Summary'!H33)*IF('Measure Summary'!N33="Natural Gas",Calcs!$B$90,IF('Measure Summary'!N33="Fuel Oil",Calcs!$B$91,IF('Measure Summary'!N33="Steam",Calcs!$B$92,IF('Measure Summary'!N33="Propane",Calcs!$B$93,Calcs!$B$94)))),0) -> 0 | H31: =IF('Utility Info'!$E$20>0,G31/'Utility Info'!$E$20,0) -> 0 | I31: * * * * * * | R31: ='Measure Summary'!W33 -> 0 | T31: 0 | U31: 0 | V31: 0 | AF31: N/A
B33: End Use Savings Check | J33: Comment | K33: Response
B34: End Use | D34: Pre-Construction Energy Consumption (MMBtu) | E34: Projected Site Savings (MMBtu) | F34: Projected % Savings
B35: Heating | D35: ='Utility Info'!B25+'Utility Info'!B30+'Utility Info'!B35+'Utility Info'!B40+'Utility Info'!B45 -> 0 | E35: ='Measure Summary'!G41+SUMIF('Measure Summary'!D8:D33,"Heating/Cooling",'Measure Summary'!J8:J33)*0.003412 -> 0 | F35: =E35/D35 ->  | I35: * * * * * * * * | J35: =IFERROR(IF(F35>0.75,"Proposed measures reflect >75% heating savings."&" Please review cells B22:F45 on the Utility Info tab to ensure baseline energy usage data was transferred correctly, review all inputs in this file specific to heating impact measures and revise as necessary."&" If all information is considered accurate, please provide justification in the 'Response' column.",IF(F35>0.5,"Proposed measures reflect >50% heating savings."&" Please review cells B22:F45 on the Utility Info tab to ensure baseline energy usage data was transferred correctly, review all inputs in this file specific to heating impact measures and revise as necessary."&" If all information is considered accurate, please provide justification in the 'Response' column.",IF(F35>0.25,"Proposed measures reflect >25% heating savings."&" Please review cells B22:F45 on the Utility Info tab to ensure baseline energy usage data was transferred correctly, review all inputs in this file specific to heating impact measures and revise as necessary."&" If all information is considered accurate, please provide justification in the 'Response' column.","OK"))),"Baseline energy usage or critical measure data missing. Please review cells B22:F45 on the Utility Info tab to ensure baseline energy usage data is transferred correctly and review the Measure Summary tab for any erroneous values.") -> Baseline energy usage or critical measure data missing. Please review cells B22:F45 on the Utility Info tab to ensure baseline energy usage data is transferred correctly and review the Measure Summary tab for any erroneous values.
B36: Cooling | D36: ='Utility Info'!C25+'Utility Info'!C30+'Utility Info'!C35+'Utility Info'!C40+'Utility Info'!C45 -> 0 | E36: ='Measure Summary'!I41*0.003412+SUMIF('Measure Summary'!D8:D33,"Heating/Cooling",'Measure Summary'!H8:H33) -> 0 | F36: =E36/D36 ->  | I36: * * * * * * * * | J36: =IFERROR(IF(F36>0.75,"Proposed measures reflect >75% cooling savings."&" Please review cells B22:F45 on the Utility Info tab to ensure baseline energy usage data was transferred correctly, review all inputs in this file specific to cooling impact measures and revise as necessary."&" If all information is considered accurate, please provide justification in the 'Response' column.",IF(F36>0.5,"Proposed measures reflect >50% cooling savings."&" Please review cells B22:F45 on the Utility Info tab to ensure baseline energy usage data was transferred correctly, review all inputs in this file specific to cooling impact measures and revise as necessary."&" If all information is considered accurate, please provide justification in the 'Response' column.",IF(F36>0.25,"Proposed measures reflect >25% cooling savings."&" Please review cells B22:F45 on the Utility Info tab to ensure baseline energy usage data was transferred correctly, review all inputs in this file specific to cooling impact measures and revise as necessary."&" If all information is considered accurate, please provide justification in the 'Response' column.","OK"))),"Baseline energy usage or critical measure data missing. Please review cells B22:F45 on the Utility Info tab to ensure baseline energy usage data is transferred correctly and review the Measure Summary tab for any erroneous values.") -> Baseline energy usage or critical measure data missing. Please review cells B22:F45 on the Utility Info tab to ensure baseline energy usage data is transferred correctly and review the Measure Summary tab for any erroneous values.
B37: Baseload | D37: ='Utility Info'!D25+'Utility Info'!D30+'Utility Info'!D35+'Utility Info'!D40+'Utility Info'!D45 -> 0 | E37: =(SUM('Measure Summary'!G41:H41)+SUM('Measure Summary'!I41:J41)*0.003412)-SUM(E35:E36) -> 0 | I37: * * * * * * * * | J37: =IFERROR(IF(F37>0.75,"Proposed measures reflect >75% baseload savings."&" Please review cells B22:F45 on the Utility Info tab to ensure baseline energy usage data was transferred correctly, review all inputs in this file specific to baseload impact measures and revise as necessary."&" If all information is considered accurate, please provide justification in the 'Response' column.",IF(F37>0.5,"Proposed measures reflect >50% baseload savings."&" Please review cells B22:F45 on the Utility Info tab to ensure baseline energy usage data was transferred correctly, review all inputs in this file specific to baseload impact measures and revise as necessary."&" If all information is considered accurate, please provide justification in the 'Response' column.",IF(F37>0.25,"Proposed measures reflect >25% baseload savings."&" Please review cells B22:F45 on the Utility Info tab to ensure baseline energy usage data was transferred correctly, review all inputs in this file specific to baseload impact measures and revise as necessary."&" If all information is considered accurate, please provide justification in the 'Response' column.","OK"))),"Baseline energy usage or critical measure data missing. Please review cells B22:F45 on the Utility Info tab to ensure baseline energy usage data is transferred correctly and review the Measure Summary tab for any erroneous values.") -> Baseline energy usage or critical measure data missing. Please review cells B22:F45 on the Utility Info tab to ensure baseline energy usage data is transferred correctly and review the Measure Summary tab for any erroneous values.

Sheet QC Check
B1: Project Quality Control Check
B2: Instructions
B3: 1) Once all project data has been entered, review the items below to ensure the project meets the specified criteria. 2) Comments highlighted in green indicate that the project passes the corresponding check. Yellow highlighted comments require additional review. Red highlighted comments indicate that the project requires revision in order to meet minimum quality control standards.
B5: QC Check Type | C5: Comment
A6: * * * | B6: Measure Quantity Check | C6: =IF(COUNTBLANK('Measure Summary'!$C$8:$C$33)=26,"",IF(SUMPRODUCT(--('Measure Summary'!$C$8:$C$33<>""),--('Measure Summary'!$W$8:$W$33=""))>0,"Error - All measures listed in the Measure Summary table must have associated quantities entered. Please review column W of the Measure Summary table and ensure quantities are entered for all measures.","OK - All measure quantities entered.")) -> 
A7: * * * | B7: Measure Unit Check | C7: =IF(COUNTBLANK('Measure Summary'!$C$8:$C$33)=26,"",IF(SUMPRODUCT(--('Measure Summary'!$C$8:$C$33<>""),--('Measure Summary'!$X$8:$X$33=""))>0,"Error - All measures listed in the Measure Summary table must have associated units entered. Please review column X of the Measure Summary table and ensure units are entered for all measures.","OK - All measure units entered.")) -> 
A8: * * * | B8: Measure Lives Check | C8: =IF(COUNTBLANK('Measure Summary'!$C$8:$C$33)=26,"",IF(SUMPRODUCT(--('Measure Summary'!$C$8:$C$33<>""),--('Measure Summary'!$AA$8:$AA$33=""))>0,"Error - All measures listed in the Measure Summary table must have an associated measure life. This is automatic for most measures, but must be manually entered for some measure categories. "&"Please review column AA of the Measure Summary table and ensure measure lives are entered for all measures.","OK - All measure lives entered.")) -> 
A9: * * * * | B9: Baseline Year of Manufacture Check | C9: =IF(COUNTBLANK('Measure Summary'!$C$8:$C$33)=26,"",IF(SUMPRODUCT(--('Measure Summary'!$C$8:$C$33<>""),--('Measure Summary'!$AB$8:$AB$33<>"Full"),--('Measure Summary'!$AC$8:$AC$33=""))>0,"Error - All measures listed in the Measure Summary table must have associated baseline equipment year of manufacture for purposes of the TRC test calculation. "&"Please review column AC of the Measure Summary table and ensure baseline manufacture years are entered as required. Missing data is highlighted in orange.","OK – Baseline years of manufacture entered as required.")) -> 
A10: * * * * * | B10: Measure QC Check | C10: =IF(COUNTBLANK('Measure Summary'!$C$8:$C$33)=26,"",IF(COUNTIF('Measure QC'!$AS$6:$AS$31,"Y")>0,"Error - One or more measures exceed the upper limit for site savings. Please review the Measure QC tab and reduce savings for any measure flagged for exceeding maximum allowable savings.",IF(OR(COUNTIFS('Measure QC'!$AQ$6:$AQ$31,"Y",'Measure QC'!$K$6:$K$31,"")>0,COUNTIFS('Measure QC'!$AR$6:$AR$31,"Y",'Measure QC'!$K$6:$K$31,"")>0,COUNTIFS('Measure QC'!$F$35:$F$37,">0.25",'Measure QC'!$K$35:$K$37,"")>0)=TRUE,"Caution - Please provide responses in all orange-shaded cells on the Measure QC tab.","OK - Responses provided on Measure QC tab."))) -> 
A11: * * * | B11: Critical Inputs Check | C11: =IF(OR(DT_GeneralProjectInfo_ProjectInfo_Name="",DT_GeneralProjectInfo_ProjectInfo_City="",DT_GeneralProjectInfo_ProjectInfo_Zip="",'General Project Info'!C23="",AND('General Project Info'!C24="",NOT('General Project Info'!C40>50))=TRUE,DT_GeneralProjectInfo_BuildingInfo_NumStories1="",DT_GeneralProjectInfo_BuildingInfo_YearBuilt1="",DT_GeneralProjectInfo_BuildingInfo_Units_Studios1="",DT_GeneralProjectInfo_BuildingInfo_Units_1Bed1="",DT_GeneralProjectInfo_BuildingInfo_Units_2Bed1="",DT_GeneralProjectInfo_BuildingInfo_Units_3Bed1="",DT_GeneralProjectInfo_BuildingInfo_Units_4Bed1="",DT_GeneralProjectInfo_BuildingInfo_Areas_Apartments1="",DT_GeneralProjectInfo_BuildingInfo_Areas_CommonAreaResidential1="",DT_GeneralProjectInfo_BuildingInfo_Areas_CommonAreaNonResidential1="",DT_GeneralProjectInfo_BuildingInfo_Areas_Commercial1="",DT_GeneralProjectInfo_BuildingInfo_Areas_CondGarage1="",'Utility Info'!D20=0,SUM('Utility Info'!F14:F19)=0,COUNTIF('Measure Descriptions'!AA8:AA33,"ERR")>0,COUNTIF('Measure Summary'!CA8:CA33,"ERR")>0,COUNTIF('Measure QC'!BE6:BE31,"ERR")>0,'Measure Summary'!A3=FALSE)=TRUE,"Error - One or more critical input fields have been left blank - please review the input tabs of this workbook and enter relevant data into all orange highlighted cells.","OK - All critical inputs entered.") -> Error - One or more critical input fields have been left blank - please review the input tabs of this workbook and enter relevant data into all orange highlighted cells.

Sheet QC Feedback
A1: NYSERDA's Multifamily Performance Program
A2: Comprehensive Option
A3: QC Review Feedback Form
A5: Project Name | B5: =DT_GeneralProjectInfo_ProjectInfo_Name -> 0
A6: Provider | B6: ='General Project Info'!C8 -> 0
A7: Provider's Auditor | B7: ='General Project Info'!D63 -> 0
A8: NYSERDA Review By
A9: Reviewer's Phone
A10: Review Date & Revision #
A11: Draft SAV-IT Date & Revision #
A13: General Comments
B14: Reviewer Comments (Rev0) | C14: Provider Comments (Rev0) | D14: Reviewer Comments (Rev1)
A15: Has all required documentation been submitted? SAV-IT; Provider Contract; DRAFs; Photos.
A16: Measure Description Tab: Do selected Measure Categories/Classifications correctly reflect the measures?
A17: Measure Summary Tab: Have any included water and O&M savings been justified appropriately?
A18: Have all orange “critical input” cells been completed? (General Project Info, Utility Info, and Measure Summary tabs)
A19: Review any warnings or errors on the QC Check tab. Are there any items that need further investigation?
A21: Administrative/ Funding Comments
B22: Reviewer Comments (Rev0) | C22: Provider Comments (Rev0) | D22: Reviewer Comments (Rev1)
A23: Measure Summary Tab: Are all Provider Fees included?
A24: Meausure Summary Tab: Have all incentives provided by outside Programs (utility or NYSERDA) been inidicated?
A26: Billing Analysis Comments
B27: Reviewer Comments (Rev0) | C27: Provider Comments (Rev0) | D27: Reviewer Comments (Rev1)
A28: Does utility data match NYSERDA's Baselining Report?
A30: Building Envelope Comments
B31: Reviewer Comments (Rev0) | C31: Provider Comments (Rev0) | D31: Reviewer Comments (Rev1)
A32: Are exisitng conditions thoroughly described?
A33: Are proposed measure descriptions thoroughly described?
A35: HVAC Comments
B36: Reviewer Comments (Rev0) | C36: Provider Comments (Rev0) | D36: Reviewer Comments (Rev1)
A37: Are exisitng conditions thoroughly described?
A38: Are proposed measure descriptions thoroughly described?
A40: DHW Comments
B41: Reviewer Comments (Rev0) | C41: Provider Comments (Rev0) | D41: Reviewer Comments (Rev1)
A42: Are exisitng conditions thoroughly described?
A43: Are proposed measure descriptions thoroughly described?
A45: Lighting Comments
B46: Reviewer Comments (Rev0) | C46: Provider Comments (Rev0) | D46: Reviewer Comments (Rev1)
A47: Are exisitng conditions thoroughly described?
A48: Are proposed measure descriptions thoroughly described?
A50: Appliance/Laundry Comments
B51: Reviewer Comments (Rev0) | C51: Provider Comments (Rev0) | D51: Reviewer Comments (Rev1)
A52: Are exisitng conditions thoroughly described?
A53: Are proposed measure descriptions thoroughly described?
A58: FOR OFFICIAL USE ONLY: The technical reviewer for the Rev0 submittal must complete the table to calculate a score for the Rev0 submittal only. Scores given should be a reflection of the QC Comments.
A59: Scoring Parameter | B59: Score 0-2 | C59: Parameters
A60: Submittal Completeness | C60: 0 - Missing major parts of project submittal. Review could not be completed. 0.5 - Missing major parts of project submittal but review could be completed. 1 - Some supporting documentation was missing. Review could still be completed. 1.5 – Very minor documents or parts of documents incomplete. 2 - All documents were submitted and filled out completely.
A61: Existing Conditions Description | C61: 0 - Significant information about the Project's existing conditions was missing. 0.5 – Moderate amount of the Project’s existing conditions were missing. 1 - The Project's existing conditions were somewhat complete and accurate, but additional information was needed. 1.5 – Minor parts of the Project's existing conditions were missing. 2 - The ERP tool described the Project's existing conditions thoroughly and accurately.
A62: Measure Descriptions | C62: 0 - Significant information about the proposed measures was missing. 0.5 – A large portion of the measure descriptions were missing or inaccurate. 1 - The Project's measure descriptions were somewhat complete and accurate, but additional information was needed. 1.5 – Minor parts of the measure descriptions were missing or inaccurate. 2 - The measure descriptions were thorough and accurate. The Measure Summary tab was filled out completely and accurately. The SAV-IT formulas were not changed to manipulate results.
A63: Program Comprehension | C63: 0 - Showed a weak understanding of Program Rules and Requirements. Did not follow file naming conventions, did not submit complete documentation and/or did not know or meet deadlines. 0.5 - Showed a below average understanding of Program Rules and Requirements. 1 - Showed an average understanding of Program Rules and Requirements. 1.5 - Showed an above average understanding of Program Rules and Requirements. 2 - Showed a strong understanding of Program Rules and Requirements by adhering to them throughout submittals. File naming conventions were followed, complete documentation was submitted.
A64: Total Score | B64: =SUM(B60:B63) -> 0
A65: Score on 100 Pt Scale | B65: =(B64*100)/(4*2) -> 0

Sheet Project Summary
A1: 1 | B1: Project Summary
A2: 1 | B2: This worksheet displays key information, metrics and graphics relevant to the site and project. Projected Percent Source Energy Savings, Projected Total Source EUI and Eligible NYSERDA Incentive are provided in cells D26, D28 and D30, respectively.
A3: 1
A4: 1
A5: 1 | B5: PROJECT DETAILS
A6: 1
A7: 1
A8: 1 | C8: Project Name | D8: =IF('General Project Info'!C17="","",'General Project Info'!C17) -> 
A9: 1 | C9: City | D9: =IF('General Project Info'!C19="","",'General Project Info'!C19) -> 
A10: 1 | C10: Year Built | D10: =IF('General Project Info'!C30="","",'General Project Info'!C30) -> 
A11: 1 | C11: Floor Area (sq. ft.) | D11: =IF('General Project Info'!C48="","",'General Project Info'!C48) -> 0
A12: 1 | C12: Residential Units (#) | D12: =IF('General Project Info'!C40="","",'General Project Info'!C40) -> 0
A13: 1
A14: 1 | Q14: Chart Data
A15: 1 | C15: Projected Energy Savings | H15: Pre-Retrofit Energy Use | M15: Pre-Retrofit Energy Cost
A16: 1
A17: =IF(AND(N(D17)=0,N(J17)=0)=TRUE,"",1) ->  | C17: Electricity (kWh) | D17: =SUM('Measure Summary'!I41:J41) -> 0 | E17: =IF(N(J17)=0,0,D17/J17) -> 0 | I17: Electricity (kWh) | J17: ='Utility Info'!D14/Calcs!$B$88 -> 0 | M17: Electricity | N17: =J17*'Utility Info'!F14 -> 0 | Q17: =IF(N(J17)=0,"","E") ->  | R17: =J17*3412/1000000 -> 0 | S17: =N17 -> 0
A18: =IF(AND(N(D18)=0,N(J18)=0)=TRUE,"",1) ->  | C18: Natural Gas (MMBtu) | D18: =SUMIF('Measure Summary'!N8:N22,"Natural Gas",'Measure Summary'!G8:G22)+SUMIF('Measure Summary'!N8:N22,"Natural Gas",'Measure Summary'!H8:H22)+SUMIF('Measure Summary'!N24:N33,"Natural Gas",'Measure Summary'!G24:G33)+SUMIF('Measure Summary'!N24:N33,"Natural Gas",'Measure Summary'!H24:H33) -> 0 | E18: 0 | I18: Natural Gas (MMBtu) | J18: ='Utility Info'!D15 -> 0 | M18: Natural Gas | N18: =J18*'Utility Info'!F15 -> 0 | Q18: =IF(N(J18)=0,"","NG") ->  | R18: =J18 -> 0 | S18: 0
C19: Fuel Oil (MMBtu) | D19: =SUMIF('Measure Summary'!N8:N22,"Fuel Oil",'Measure Summary'!G8:G22)+SUMIF('Measure Summary'!N8:N22,"Fuel Oil",'Measure Summary'!H8:H22)+SUMIF('Measure Summary'!N24:N33,"Fuel Oil",'Measure Summary'!G24:G33)+SUMIF('Measure Summary'!N24:N33,"Fuel Oil",'Measure Summary'!H24:H33) -> 0 | E19: 0 | I19: Fuel Oil (MMBtu) | J19: ='Utility Info'!D16 -> 0 | M19: Fuel Oil | N19: =J19*'Utility Info'!F16 -> 0 | Q19: =IF(N(J19)=0,"","Oil") ->  | R19: 0 | S19: 0
C20: Steam (MMBtu) | D20: =SUMIF('Measure Summary'!N8:N22,"Steam",'Measure Summary'!G8:G22)+SUMIF('Measure Summary'!N8:N22,"Steam",'Measure Summary'!H8:H22)+SUMIF('Measure Summary'!N24:N33,"Steam",'Measure Summary'!G24:G33)+SUMIF('Measure Summary'!N24:N33,"Steam",'Measure Summary'!H24:H33) -> 0 | E20: 0 | I20: Steam (MMBtu) | J20: ='Utility Info'!D17 -> 0 | M20: Steam | N20: =J20*'Utility Info'!F17 -> 0 | Q20: =IF(N(J20)=0,"","S") ->  | R20: 0 | S20: 0
C21: Propane (MMBtu) | D21: =SUMIF('Measure Summary'!N8:N22,"Propane",'Measure Summary'!G8:G22)+SUMIF('Measure Summary'!N8:N22,"Propane",'Measure Summary'!H8:H22)+SUMIF('Measure Summary'!N24:N33,"Propane",'Measure Summary'!G24:G33)+SUMIF('Measure Summary'!N24:N33,"Propane",'Measure Summary'!H24:H33) -> 0 | E21: 0 | I21: Propane (MMBtu) | J21: ='Utility Info'!D18 -> 0 | M21: Propane | N21: =J21*'Utility Info'!F18 -> 0 | Q21: =IF(N(J21)=0,"","P") ->  | R21: 0 | S21: 0
C22: ='Utility Info'!$B$19&" (MMBtu)" -> Select Other Fuel Type… (MMBtu) | D22: =SUMIF('Measure Summary'!N8:N22,'Utility Info'!$B$19,'Measure Summary'!G8:G22)+SUMIF('Measure Summary'!N8:N22,'Utility Info'!$B$19,'Measure Summary'!H8:H22)+SUMIF('Measure Summary'!N24:N33,'Utility Info'!$B$19,'Measure Summary'!G24:G33)+SUMIF('Measure Summary'!N24:N33,'Utility Info'!$B$19,'Measure Summary'!H24:H33) -> 0 | E22: 0 | I22: ='Utility Info'!$B$19&" (MMBtu)" -> Select Other Fuel Type… (MMBtu) | J22: ='Utility Info'!D19 -> 0 | M22: ='Utility Info'!$B$19 -> Select Other Fuel Type… | N22: =J22*'Utility Info'!F19 -> 0 | Q22: =IF(N(J22)=0,"","Oth") ->  | R22: 0 | S22: 0
A23: 1
A24: 1 | C24: Total Site Savings (MMBtu) | D24: =D17*Calcs!$B$88+SUM(D18:D22) -> 0 | E24: =IFERROR(D24/J24,"") ->  | I24: Total Site Usage (MMBtu) | J24: =J17*Calcs!$B$88+SUM(J18:J22) -> 0 | M24: Total Cost | N24: =SUM(N17:N22) -> 0
A25: 1
A26: 1 | C26: Total Source Savings (%) | D26: ='Measure Summary'!$U$41 -> 0
A27: 1
A28: 1 | C28: Total Source EUI (kBtu/sqft) | D28: =IFERROR((('Utility Info'!$E$20*1000)-(SUM('Measure QC'!$G$6:$G$31)*1000))/'General Project Info'!$C$47,0) -> 0
A29: 1
A30: 1 | C30: NYSERDA Incentive | D30: =IF(N('Measure Summary'!$F$48)=0,0,'Measure Summary'!$F$48) -> 0
A31: 1
A32: 1 | B32: POST-CONSTRUCTION RESULTS
A33: 1
A34: 1
A35: 1
A36: 1
A37: 1
A38: 1
A39: 1
A40: 1 | Q40: Chart Data
A41: 1
A42: 1 | C42: Actual Energy Savings | H42: Post-Retrofit Energy Use | M42: Post-Retrofit Energy Cost
A43: 1
A44: =IF(AND(N(D44)=0,N(J44)=0)=TRUE,"",1) ->  | C44: Electricity (kWh) | D44: =IF(J44="","",J17-J44) -> 0 | E44: =IF(N(J44)=0,0,D44/J17) -> 0 | I44: Electricity (kWh) | J44: =IF('Utility Info'!D49="",IF(J17="","",0),'Utility Info'!D49/Calcs!$B$88) -> 0 | M44: Electricity | N44: =IF(J44="","",J44*'Utility Info'!F49) -> 0 | Q44: =IF(J44="","","E") -> E | R44: =J44*3412/1000000 -> 0 | S44: =N44 -> 0
A45: =IF(AND(N(D45)=0,N(J45)=0)=TRUE,"",1) ->  | C45: Natural Gas (MMBtu) | D45: 0 | E45: =IF(N(J45)=0,0,D45/J18) -> 0 | I45: Natural Gas (MMBtu) | J45: =IF('Utility Info'!D50="",IF(J18="","",0),'Utility Info'!D50) -> 0 | M45: Natural Gas | N45: =IF(J45="","",J45*'Utility Info'!F50) -> 0 | Q45: =IF(J45="","","NG") -> NG | R45: =J45 -> 0 | S45: 0
C46: Fuel Oil (MMBtu) | D46: 0 | E46: 0 | I46: Fuel Oil (MMBtu) | J46: =IF('Utility Info'!D51="",IF(J19="","",0),'Utility Info'!D51) -> 0 | M46: Fuel Oil | N46: =IF(J46="","",J46*'Utility Info'!F51) -> 0 | Q46: =IF(J46="","","Oil") -> Oil | R46: =J46 -> 0 | S46: 0
C47: Steam (MMBtu) | D47: 0 | E47: 0 | I47: Steam (MMBtu) | J47: =IF('Utility Info'!D52="",IF(J20="","",0),'Utility Info'!D52) -> 0 | M47: Steam | N47: =IF(J47="","",J47*'Utility Info'!F52) -> 0 | Q47: =IF(J47="","","S") -> S | R47: =J47 -> 0 | S47: 0
C48: Propane (MMBtu) | D48: 0 | E48: 0 | I48: Propane (MMBtu) | J48: =IF('Utility Info'!D53="",IF(J21="","",0),'Utility Info'!D53) -> 0 | M48: Propane | N48: =IF(J48="","",J48*'Utility Info'!F53) -> 0 | Q48: =IF(J48="","","P") -> P | R48: =J48 -> 0 | S48: 0
C49: ='Utility Info'!$B$19&" (MMBtu)" -> Select Other Fuel Type… (MMBtu) | D49: 0 | E49: 0 | I49: ='Utility Info'!$B$19&" (MMBtu)" -> Select Other Fuel Type… (MMBtu) | J49: =IF('Utility Info'!D54="",IF(J22="","",0),'Utility Info'!D54) -> 0 | M49: ='Utility Info'!$B$19 -> Select Other Fuel Type… | N49: =IF(J49="","",J49*'Utility Info'!F54) -> 0 | Q49: =IF(J49="","","Oth") -> Oth | R49: =J49 -> 0 | S49: 0
A50: 1
A51: 1 | C51: Total Site Savings (MMBtu) | D51: =IFERROR(D44*Calcs!$B$88+SUM(D45:D49),"") -> 0 | E51: =IFERROR(D51/J24,"") ->  | I51: Total Site Usage (MMBtu) | J51: =IFERROR(J44*Calcs!$B$88+SUM(J45:J49),"") -> 0 | M51: Total Cost | N51: =SUM(N44:N49) -> 0
A52: 1
A53: 1 | C53: Total Source Savings (%) | D53: =IFERROR(('Utility Info'!E20-'Utility Info'!E55)/'Utility Info'!E20,0) -> 0
A54: 1
A55: 1 | C55: Total Source EUI (kBtu/sqft) | D55: =IFERROR((('Utility Info'!$E$55*1000))/'General Project Info'!$C$47,0) -> 0
A56: 1

Sheet External Calculations

Sheet UDAT Support (hidden)
A1: Drop Down Lists | N1: Named Ranges
A2: GasUnits | B2: OilUnits | C2: SteamUnits | D2: PropaneUnits | E2: OtherFuels | F2: OtherUnits | G2: ElecUtil | H2: GasUtil | I2: MeterConf | J2: UDAT_YesNo | K2: UDAT_UnitTypes | L2: MeterRead | N2: UDAT_UnitCount
A3: <Not Used> | B3: <Not Used> | C3: <Not Used> | D3: <Not Used> | E3: Select Other Fuel Type… | F3: <Not Used> | G3: <Select One> | H3: <Select One> | I3: Direct Metered | J3: <Select> | K3: Studio | L3: Actual | N3: ='General Project Info'!C40 -> 0
A4: Therms | B4: #2 Oil gallons | C4: Mlbs | D4: Gallons | E4: Wood | F4: MMBtu | G4: Central Hudson | H4: Central Hudson | I4: Submetered | J4: Yes | K4: 1-Bedroom | L4: Estimated
A5: MMBtu | B5: #4 Oil gallons | C5: MMBtu | E5: Biofuel | G5: Con Edison | H5: Con Edison | I5: Master Metered | J5: No | K5: 2-Bedroom
B6: #6 Oil gallons | E6: Other | G6: PSEG LI | H6: KEDLI | K6: 3-Bedroom
G7: National Grid | H7: KEDNY | K7: 4+ Bedroom
G8: NYSEG | H8: National Fuel Gas
G9: O&R | H9: National Grid
A10: Oil Conversion | G10: RG&E | H10: NYSEG
B11: Type | C11: Conversion | G11: Other | H11: O&R
A12: Pre-Retrofit | C12: =VLOOKUP(B12,$A$16:$B$19,2,FALSE) ->  | H12: RG&E
A13: Post-Retrofit | C13: =VLOOKUP(B13,$A$16:$B$19,2,FALSE) ->  | H13: Other
A15: Type | B15: MMBtu/gallon
A16: #2 Oil gallons | B16: 0.1386
A17: #4 Oil gallons | B17: 0.145
A18: #6 Oil gallons | B18: 0.14859
A19: <Not Used> | B19: 0
A21: Steam Conversion
B22: Type | C22: Conversion
A23: Pre-retrofit | C23: =VLOOKUP(B23,$A$27:$B$29,2,FALSE) -> 
A24: Post-retrofit | C24: =VLOOKUP(B24,$A$27:$B$29,2,FALSE) -> 
A26: Type | B26: MMBtu/Unit
A27: Mlbs | B27: 1.194
A28: MMBtu | B28: 1
A29: <Not Used> | B29: 0
A31: Propane Conversion
A32: Type | B32: MMBtu/gallon
A33: Propane | B33: 0.0916
A35: Energy Unit Costs (for Detailed Measures)
A36: Type | B36: Unit | C36: $/Unit
B37: kWh
B38: MMBtu
B39: MMBtu
B40: MMBtu
B41: MMBtu
B42: MMBtu

Sheet Calcs (hidden)
A1: Measure Data for QC Calculations
A2: Column Count: | AC2: Adjustments to TRC Test for early Replacement Measures | CR2: TRC Test: Annual Average Electric LRAC Multiplier | CV2: Savings Multiplier | DA2: Upper Limit Savings Check
A3: 1 | B3: 2 | C3: 3 | D3: 4 | E3: 5 | F3: 6 | G3: 7 | H3: 8 | I3: 9 | J3: 10 | K3: 11 | L3: 12 | M3: 13 | N3: 14 | O3: 15 | P3: 16 | Q3: 17 | R3: 18 | S3: 19 | T3: 20 | U3: 21 | V3: 22 | W3: 23 | X3: 24 | Y3: 25 | Z3: 26 | AA3: 27 | AB3: 28 | AC3: 29 | AD3: 30 | AE3: 31 | AF3: 32 | AG3: 33 | AH3: 34 | AI3: 35 | AJ3: 36 | AK3: 37 | AL3: 38 | AM3: 39 | AN3: 40 | AO3: 41 | AP3: 42 | AQ3: 43 | AR3: 44 | AS3: 45 | AT3: 46 | AU3: 47 | AV3: 48 | AW3: 49 | AX3: 50 | AY3: 51 | AZ3: 52 | BA3: 53 | BB3: 54 | BC3: 55 | BD3: 56 | BE3: 57 | BF3: 58 | BG3: 59 | BH3: 60 | BI3: 61 | BJ3: 62 | BK3: 63 | BL3: 64 | BM3: 65 | BN3: 66 | BO3: 67 | BP3: 68 | BQ3: 69 | BR3: 70 | BS3: 71 | BT3: 72 | BU3: 73 | BV3: 74 | BW3: 75 | BX3: 76 | BY3: 77 | BZ3: 78 | CA3: 79 | CB3: 80 | CC3: 81 | CD3: 82 | CE3: 83 | CF3: 84 | CG3: 85 | CH3: 86 | CI3: 87 | CJ3: 88 | CK3: 89 | CL3: 90 | CM3: 91 | CN3: 92 | CO3: 93 | CP3: 94 | CQ3: 95 | CR3: 96 | CS3: 97 | CT3: 98 | CU3: 99 | CV3: 100 | CW3: 101 | CX3: 102 | CY3: 103 | CZ3: 104 | DA3: 105 | DB3: 106 | DC3: 107
A4: Measure | B4: CRIS Units | C4: Measure Life | D4: QC Check? | E4: Measure Cost Upstate | G4: Measure Cost Downstate | I4: Cost | J4: Measure Savings LowRise (BTU) | L4: Measure Savings HighRise (BTU) | N4: Savings | O4: Source Energy Savings | P4: Source Energy Savings | R4: Demand Savings (not used) | V4: Demand Savings Factors | AA4: Full or Incremental Savings | AB4: Potential Special Circumstance? | AC4: Savings Median Ratio | AD4: Savings SC Ratio | AE4: Inflated Lifecycle Benefit Adjustment Factors RUL = | AY4: Cost Median Ratio | AZ4: Cost SC Ratio | BA4: Full Cost Adjustment Factors RUL = | BU4: EUL Median Ratio | BV4: EUL SC (years) | BW4: Adjusted EUL | CR4: Upstate | CS4: NYC | CT4: Lower Hudson | CV4: Cooling | CW4: Non-Cooling | CX4: Heating | CY4: Non-Heating | DA4: Upper Limit Check? | DB4: Upper Limit (Btu) | DC4: Upper Limit Units
E5: Min | F5: Max | G5: Min | H5: Max | I5: Units | J5: Min | K5: Max | L5: Min | M5: Max | N5: Units | O5: Min | P5: Max | R5: days/year | S5: hours/day | T5: Diversity factor | V5: Upstate (non-cooling) | W5: Upstate (cooling) | X5: Downstate (non-cooling) | Y5: Downstate (cooling) | AE5: 1 | AF5: 2 | AG5: 3 | AH5: 4 | AI5: 5 | AJ5: 6 | AK5: 7 | AL5: 8 | AM5: 9 | AN5: 10 | AO5: 11 | AP5: 12 | AQ5: 13 | AR5: 14 | AS5: 15 | AT5: 16 | AU5: 17 | AV5: 18 | AW5: 19 | AX5: 20 | BA5: 1 | BB5: 2 | BC5: 3 | BD5: 4 | BE5: 5 | BF5: 6 | BG5: 7 | BH5: 8 | BI5: 9 | BJ5: 10 | BK5: 11 | BL5: 12 | BM5: 13 | BN5: 14 | BO5: 15 | BP5: 16 | BQ5: 17 | BR5: 18 | BS5: 19 | BT5: 20 | BW5: 1 | BX5: 2 | BY5: 3 | BZ5: 4 | CA5: 5 | CB5: 6 | CC5: 7 | CD5: 8 | CE5: 9 | CF5: 10 | CG5: 11 | CH5: 12 | CI5: 13 | CJ5: 14 | CK5: 15 | CL5: 16 | CM5: 17 | CN5: 18 | CO5: 19 | CP5: 20
A6: Air Sealing | B6: sqft | C6: 15 | D6: y | E6: 0.03 | F6: 0.655845087 | G6: 0.03 | H6: 0.5 | I6: Sqft | J6: 4000 | K6: 25000 | L6: 4000 | M6: 25000 | N6: $ | O6: 0 | P6: 0.05 | R6: 62.5 | S6: 8 | T6: 0.84 | V6: 0 | W6: 0.00185 | X6: 0 | Y6: 0.00113 | AA6: Full | CR6: 1 | CS6: 1 | CT6: 1 | CV6: 0 | CW6: 1 | CX6: 0 | CY6: 1 | DA6: N
A7: Boiler, Replace (Central) | B7: 1000 Btu/hr | C7: 20 | D7: y | E7: 45 | F7: 80 | G7: 30 | H7: 70 | I7: MBH | J7: 145000 | K7: 400000 | L7: 100000 | M7: 250000 | N7: MBH | O7: 0 | P7: 0.12 | R7: 0 | S7: 0 | T7: 0 | V7: 0 | W7: 0.00185 | X7: 0 | Y7: 0.00113 | AA7: Inc | AB7: y | AC7: 0.27 | AD7: =AI7 -> 0.5273366768 | AE7: 0.3546101669 | AF7: 0.3546101669 | AG7: 0.4149617241 | AH7: 0.4724939148 | AI7: 0.5273366768 | AJ7: 0.5793203375 | AK7: 0.6285939495 | AL7: 0.675298795 | AM7: 0.675298795 | AN7: 0.7195687907 | AO7: 0.761530872 | AP7: 0.8013053566 | AQ7: 0.8390062899 | AR7: 0.8390062899 | AS7: 0.8747417717 | AT7: 0.9086142663 | AU7: 0.9407208962 | AV7: 0.9711537208 | AW7: 0.9711537208 | AY7: 0.48 | AZ7: =BE7 -> 0.602130136 | BA7: 0.5071090047 | BB7: 0.5328047438 | BC7: 0.5571608946 | BD7: 0.5802472935 | BE7: 0.602130136 | BF7: 0.6228721668 | BG7: 0.6425328596 | BH7: 0.6611685873 | BI7: 0.6788327841 | BJ7: 0.6955760987 | BK7: 0.711446539 | BL7: 0.7264896105 | BM7: 0.7407484459 | BN7: 0.7542639298 | BO7: 0.767074815 | BP7: 0.7792178341 | BQ7: 0.7907278048 | BR7: 0.8016377297 | BS7: 0.8119788907 | BU7: =0.27*C7 -> 5.4 | BV7: =CA7 -> 8 | BW7: 5 | BX7: 5 | BY7: 6 | BZ7: 7 | CA7: 8 | CB7: 9 | CC7: 10 | CD7: 11 | CE7: 11 | CF7: 12 | CG7: 13 | CH7: 14 | CI7: 15 | CJ7: 15 | CK7: 16 | CL7: 17 | CM7: 18 | CN7: 19 | CO7: 19 | CR7: 1 | CS7: 0.9 | CT7: 1 | CV7: 0 | CW7: 1 | CX7: 0 | CY7: 1 | DA7: Y | DB7: 17800 | DC7: Sqft
A8: Boiler, Replace (In-Unit) | B8: 1000 Btu/hr | C8: 25 | D8: y | E8: 45 | F8: 80 | G8: 30 | H8: 70 | I8: MBH | J8: 145000 | K8: 400000 | L8: 100000 | M8: 250000 | N8: MBH | O8: 0 | P8: 0.12 | R8: 0 | S8: 0 | T8: 0 | V8: 0 | W8: 0.00185 | X8: 0 | Y8: 0.00113 | AA8: Inc | AB8: n | AC8: 0.15 | AE8: 0.1998912722 | AF8: 0.2593552914 | AG8: 0.3157192906 | AH8: 0.3694519599 | AI8: 0.4206744688 | AJ8: 0.4695025046 | AK8: 0.5157850029 | AL8: 0.5596546696 | AM8: 0.6012372921 | AN8: 0.6406521001 | AO8: 0.6780121077 | AP8: 0.6780121077 | AQ8: 0.7134244372 | AR8: 0.7469906262 | AS8: 0.7788069192 | AT8: 0.8089645429 | AU8: 0.8375499681 | AV8: 0.864645158 | AW8: 0.8903278024 | AX8: 0.9146715411 | AY8: 0.16 | BA8: 0.2037914692 | BB8: 0.2452999708 | BC8: 0.2846445221 | BD8: 0.3219379356 | BE8: 0.3572871428 | BF8: 0.3907935003 | BG8: 0.4225530808 | BH8: 0.4526569486 | BI8: 0.4811914205 | BJ8: 0.5082383133 | BK8: 0.5338751785 | BL8: 0.5581755246 | BM8: 0.5812090281 | BN8: 0.6030417328 | BO8: 0.6237362396 | BP8: 0.6433518859 | BQ8: 0.6619449155 | BR8: 0.6795686403 | BS8: 0.6962735927 | BT8: 0.7121076708 | BU8: =0.15*C8 -> 3.75 | BW8: 3 | BX8: 4 | BY8: 5 | BZ8: 6 | CA8: 7 | CB8: 8 | CC8: 9 | CD8: 10 | CE8: 11 | CF8: 12 | CG8: 13 | CH8: 13 | CI8: 14 | CJ8: 15 | CK8: 16 | CL8: 17 | CM8: 18 | CN8: 19 | CO8: 20 | CP8: 21 | CR8: 1 | CS8: 0.9 | CT8: 1 | CV8: 0 | CW8: 1 | CX8: 0 | CY8: 1 | DA8: N
A9: Boiler/Burner Clean and Tune | B9: each | C9: 1 | D9: y | E9: 500 | F9: 3250 | G9: 400 | H9: 3000 | I9: Each | J9: 40000000 | K9: 175000000 | L9: 40000000 | M9: 175000000 | N9: Each | O9: 0 | P9: 0 | V9: 0 | W9: 0.00185 | X9: 0 | Y9: 0.00113 | AA9: Full | CR9: 1 | CS9: 1 | CT9: 1 | CV9: 0 | CW9: 1 | CX9: 0 | CY9: 1 | DA9: N
A10: Burner, Replace | B10: 1000 Btu/hr | C10: 20 | D10: y | E10: 3.25 | F10: 8.25 | G10: 3.25 | H10: 8.25 | I10: MBH | J10: 28000 | K10: 100000 | L10: 28000 | M10: 100000 | N10: MBH | O10: 0 | P10: 0.02 | V10: 0 | W10: 0.00185 | X10: 0 | Y10: 0.00113 | AA10: Full | CR10: 1 | CS10: 1 | CT10: 1 | CV10: 0 | CW10: 1 | CX10: 0 | CY10: 1 | DA10: N
A11: Central AC/HP | B11: each | C11: 15 | D11: y | E11: 0 | F11: 9999999 | G11: 0 | H11: 9999999 | I11: Each | J11: 0 | K11: 9999999999 | L11: 0 | M11: 9999999999 | N11: Each | O11: 0 | P11: 0.03 | V11: 0 | W11: 0.00185 | X11: 0 | Y11: 0.00113 | AA11: Inc | AB11: y | AC11: =VLOOKUP($H$82,$AA$95:$CP$99,AC80) ->  | AD11: =AH11 ->  | AE11: =VLOOKUP($H$82,$AA$95:$CP$99,AE80) ->  | AF11: =VLOOKUP($H$82,$AA$95:$CP$99,AF80) ->  | AY11: =VLOOKUP($H$82,$AA$95:$CP$99,AY80) ->  | AZ11: =BD11 ->  | BA11: =VLOOKUP($H$82,$AA$95:$CP$99,BA80) ->  | BU11: =VLOOKUP($H$82,$AA$95:$CP$99,BU80)*C11 ->  | BV11: =BZ11 ->  | BW11: =VLOOKUP($H$82,$AA$95:$CP$99,BW80) ->  | CR11: 1 | CS11: 0.9 | CT11: 1 | CV11: 0 | CW11: 1 | CX11: 0 | CY11: 1 | DA11: N
A12: Chiller, Replace | B12: tons | C12: 20 | D12: y | E12: 800 | F12: 2600 | G12: 800 | H12: 2600 | I12: Tons | J12: 2000000 | K12: 16000000 | L12: 2000000 | M12: 16000000 | N12: Tons | O12: 0 | P12: 0.08 | R12: 62.5 | S12: 8 | T12: 0.9 | V12: 0 | W12: 0.00185 | X12: 0 | Y12: 0.00113 | AA12: Inc | AB12: y | AC12: =VLOOKUP($H$81,$AA$86:$CP$93,AC80) ->  | AD12: =AI12 ->  | AE12: =VLOOKUP($H$81,$AA$86:$CP$93,AE80) ->  | AF12: =VLOOKUP($H$81,$AA$86:$CP$93,AF80) ->  | AZ12: =BE12 ->  | BU12: =VLOOKUP($H$81,$AA$86:$CP$93,BU80)*C12 ->  | BV12: =CA12 ->  | BW12: =VLOOKUP($H$81,$AA$86:$CP$93,BW80) ->  | CR12: 1 | CS12: 1 | CT12: 1 | CV12: 0 | CW12: 1 | CX12: 0 | CY12: 1 | DA12: Y | DB12: 22000000 | DC12: Tons
A13: CHP | B13: 1000 Btu/hr | D13: n | AA13: Full | DA13: N
A14: Constant Air Regulators, Install | B14: each | C14: 10 | D14: y | E14: 0.25 | F14: 0.5 | G14: 0.06 | H14: 0.1 | I14: Sqft | J14: 1300 | K14: 3500 | L14: 1300 | M14: 3500 | N14: Sqft | O14: 0 | P14: 0.035 | R14: 365 | S14: 24 | T14: 1 | V14: 0 | W14: 0.00185 | X14: 0 | Y14: 0.00113 | AA14: Full | CR14: 1 | CS14: 1 | CT14: 1 | CV14: 0 | CW14: 1 | CX14: 0 | CY14: 1 | DA14: N
A15: Controls | B15: each | C15: 10 | D15: y | E15: 6 | F15: 16 | G15: 6 | H15: 16 | I15: Unit | J15: 115000 | K15: 600000 | L15: 100000 | M15: 600000 | N15: Unit | O15: 0 | P15: 0.008 | R15: 365 | S15: 24 | T15: 1 | V15: 0.000114 | W15: 0.00185 | X15: 0.000114 | Y15: 0.00113 | AA15: Full | CR15: 1 | CS15: 1 | CT15: 1 | CV15: 0 | CW15: 1 | CX15: 0 | CY15: 1 | DA15: N
A16: DHW Tank, Insulate | B16: Ins. Sqft | C16: 11 | D16: y | E16: 0.01 | F16: 0.04 | G16: 0.01 | H16: 0.04 | I16: Sqft | J16: 225 | K16: 400 | L16: 225 | M16: 400 | N16: Sqft | O16: 0 | P16: 0 | V16: 0.000114 | W16: 0.00185 | X16: 0.000114 | Y16: 0.00113 | AA16: Full | CR16: 1 | CS16: 1 | CT16: 1 | CV16: 0 | CW16: 1 | CX16: 0 | CY16: 1 | DA16: N
A17: Dishwasher, Install Energy Star | B17: each | C17: 11 | D17: y | E17: 350 | F17: 500 | G17: 350 | H17: 500 | I17: Each | J17: 850000 | K17: 2400000 | L17: 625000 | M17: 1800000 | N17: Each | O17: 0 | P17: 0.005 | R17: 365 | S17: 0.8 | T17: 0.41 | V17: 0.000114 | W17: 0.00185 | X17: 0.000114 | Y17: 0.00113 | AA17: Inc | AB17: n | AC17: 0.33 | AE17: 0.4348072519 | AF17: 0.5284335091 | AG17: 0.5284335091 | AH17: 0.617396572 | AI17: 0.7019286979 | AJ17: 0.7822505762 | AK17: 0.7822505762 | AL17: 0.8585719044 | AM17: 0.931091936 | AN17: 0.931091936 | AY17: 0.06 | BA17: 0.1090047393 | BB17: 0.1554547292 | BC17: 0.1994831557 | BD17: 0.2412162613 | BE17: 0.2807737074 | BF17: 0.318268917 | BG17: 0.3538094 | BH17: 0.3874970616 | BI17: 0.4194284944 | BJ17: 0.4496952553 | BU17: =0.33*C17 -> 3.63 | BW17: 4 | BX17: 5 | BY17: 5 | BZ17: 6 | CA17: 7 | CB17: 8 | CC17: 8 | CD17: 9 | CE17: 10 | CF17: 10 | CR17: 1 | CS17: 1 | CT17: 1 | CV17: 0 | CW17: 1 | CX17: 0 | CY17: 1 | DA17: N
A18: Distribution System, Upgrade | B18: each | D18: y | E18: 0.15 | F18: 0.3 | G18: 0.15 | H18: 0.3 | I18: Sqft | J18: 750 | K18: 3750 | L18: 750 | M18: 3750 | N18: Sqft | O18: 0 | P18: 0.04 | V18: 0 | W18: 0.00185 | X18: 0 | Y18: 0.00113 | AA18: Full | CR18: 1 | CS18: 1 | CT18: 1 | CV18: 0 | CW18: 1 | CX18: 0 | CY18: 1 | DA18: N
A19: Duct Sealing | B19: sqft | C19: 18 | D19: y | E19: 0.3 | F19: 1.15 | G19: 0.3 | H19: 1.15 | I19: Ins. Sqft | J19: 4250 | K19: 14000 | L19: 4250 | M19: 14000 | N19: Ins. Sqft | O19: 0 | P19: 0.03 | R19: 0 | S19: 0 | T19: 0 | V19: 0 | W19: 0.00185 | X19: 0 | Y19: 0.00113 | AA19: Full | CR19: 1 | CS19: 1 | CT19: 1.1 | CV19: 1 | CW19: 0 | CX19: 1 | CY19: 0 | DA19: N
A20: Economizer, Install | B20: each | C20: 10 | D20: y | E20: 0 | F20: 9999999 | G20: 0 | H20: 9999999 | I20: Each | J20: 0 | K20: 9999999999 | L20: 0 | M20: 9999999999 | N20: Each | O20: 0 | P20: 0.02 | R20: 0 | S20: 0 | T20: 0 | V20: 0 | W20: 0.00185 | X20: 0 | Y20: 0.00113 | AA20: Full | CR20: 1 | CS20: 0.9 | CT20: 1 | CV20: 1 | CW20: 0 | CX20: 1 | CY20: 0 | DA20: N
A21: Elevator Motors and Controls, Upgrade | B21: each | C21: 20 | D21: y | E21: 3500 | F21: 50000 | G21: 3500 | H21: 50000 | I21: Each | J21: 7500000 | K21: 75000000 | L21: 7500000 | M21: 75000000 | N21: Each | O21: 0 | P21: 0.03 | V21: 0.000114 | W21: 0.00185 | X21: 0.000114 | Y21: 0.00113 | AA21: Inc | AB21: y | AC21: 0 | AD21: 0 | AE21: 0 | AF21: 0 | AG21: 0 | AH21: 0 | AI21: 0 | AJ21: 0 | AK21: 0 | AL21: 0 | AM21: 0 | AN21: 0 | AO21: 0 | AP21: 0 | AQ21: 0 | AR21: 0 | AS21: 0 | AT21: 0 | AU21: 0 | AV21: 0 | AW21: 0 | AX21: 0 | AY21: 0 | AZ21: 0 | BA21: 0 | BB21: 0 | BC21: 0 | BD21: 0 | BE21: 0 | BF21: 0 | BG21: 0 | BH21: 0 | BI21: 0 | BJ21: 0 | BK21: 0 | BL21: 0 | BM21: 0 | BN21: 0 | BO21: 0 | BP21: 0 | BQ21: 0 | BR21: 0 | BS21: 0 | BT21: 0 | CR21: 1 | CS21: 1 | CT21: 1 | CV21: 0 | CW21: 1 | CX21: 1 | CY21: 0 | DA21: Y | DB21: 102000000 | DC21: Each
A22: Energy Management System (EMS), Install | B22: sqft | C22: 15 | D22: y | E22: 0.1 | F22: 0.45 | G22: 0.12 | H22: 0.45 | I22: Sqft | J22: 15000 | K22: 45000 | L22: 15000 | M22: 45000 | N22: $ | O22: 0 | P22: 0.06 | R22: 0 | S22: 0 | T22: 0 | V22: 0 | W22: 0.00185 | X22: 0 | Y22: 0.00113 | AA22: Full | CR22: 1 | CS22: 0.9 | CT22: 1 | CV22: 1 | CW22: 0 | CX22: 1 | CY22: 0 | DA22: Y | DB22: 8300 | DC22: Sqft
A23: Exhaust Fan Demand Control | B23: each | C23: 10 | D23: y | E23: 1500 | F23: 18000 | G23: 1500 | H23: 18000 | I23: Each | J23: 25000000 | K23: 900000000 | L23: 25000000 | M23: 900000000 | N23: Each | O23: 0 | P23: 0.04 | V23: 0.000114 | W23: 0.00185 | X23: 0.000114 | Y23: 0.00113 | AA23: Full | CR23: 1 | CS23: 1 | CT23: 1 | CV23: 1 | CW23: 0 | CX23: 1 | CY23: 0 | DA23: N
A24: Exhaust Fans, Replace | B24: each | C24: 15 | D24: y | E24: 500 | F24: 1500 | G24: 500 | H24: 1500 | I24: Each | J24: 500000 | K24: 4000000 | L24: 500000 | M24: 4000000 | N24: Each | O24: 0 | P24: 0.009 | R24: 365 | S24: 24 | T24: 0.78 | V24: 0.000114 | W24: 0.00185 | X24: 0.000114 | Y24: 0.00113 | AA24: Inc | AB24: y | AC24: 0 | AD24: 0 | AE24: 0 | AF24: 0 | AG24: 0 | AH24: 0 | AI24: 0 | AJ24: 0 | AK24: 0 | AL24: 0 | AM24: 0 | AN24: 0 | AO24: 0 | AP24: 0 | AQ24: 0 | AR24: 0 | AS24: 0 | AT24: 0 | AU24: 0 | AV24: 0 | AW24: 0 | AX24: 0 | AY24: 0 | AZ24: 0 | BA24: 0 | BB24: 0 | BC24: 0 | BD24: 0 | BE24: 0 | BF24: 0 | BG24: 0 | BH24: 0 | BI24: 0 | BJ24: 0 | BK24: 0 | BL24: 0 | BM24: 0 | BN24: 0 | BO24: 0 | BP24: 0 | BQ24: 0 | BR24: 0 | BS24: 0 | BT24: 0 | CR24: 1 | CS24: 1 | CT24: 1 | CV24: 1 | CW24: 0 | CX24: 1 | CY24: 0 | DA24: N
A25: Exterior Doors, Replace | B25: each | C25: 20 | D25: y | E25: 350 | F25: 1250 | G25: 500 | H25: 1500 | I25: Each | J25: 500000 | K25: 4000000 | L25: 500000 | M25: 4000000 | N25: Each | O25: 0 | P25: 0.02 | R25: 62.5 | S25: 8 | T25: 0.84 | V25: 0 | W25: 0.00185 | X25: 0 | Y25: 0.00113 | AA25: Inc | AB25: y | AC25: 0.63 | AD25: =AI25 -> 0.761530872 | AE25: 0.675298795 | AF25: 0.675298795 | AG25: 0.7195687907 | AH25: 0.7195687907 | AI25: 0.761530872 | AJ25: 0.8013053566 | AK25: 0.8013053566 | AL25: 0.8390062899 | AM25: 0.8390062899 | AN25: 0.8747417717 | AO25: 0.8747417717 | AP25: 0.9086142663 | AQ25: 0.9086142663 | AR25: 0.9407208962 | AS25: 0.9407208962 | AT25: 0.9407208962 | AU25: 0.9711537208 | AV25: 0.9711537208 | AW25: 1 | AY25: 0.1 | AZ25: =BE25 -> 0.3113790815 | BA25: 0.1469194313 | BB25: 0.1913928259 | BC25: 0.2335477022 | BD25: 0.273504931 | BE25: 0.3113790815 | BF25: 0.3472787503 | BG25: 0.3813068723 | BH25: 0.4135610164 | BI25: 0.4441336648 | BJ25: 0.4731124785 | BK25: 0.5005805484 | BL25: 0.5266166335 | BM25: 0.5512953872 | BN25: 0.5746875708 | BO25: 0.5968602567 | BP25: 0.6178770206 | BQ25: 0.6377981238 | BR25: 0.656680686 | BS25: 0.6745788493 | BU25: =0.63*C25 -> 12.6 | BV25: =CA25 -> 13 | BW25: 11 | BX25: 11 | BY25: 12 | BZ25: 12 | CA25: 13 | CB25: 14 | CC25: 14 | CD25: 15 | CE25: 15 | CF25: 16 | CG25: 16 | CH25: 17 | CI25: 17 | CJ25: 18 | CK25: 18 | CL25: 18 | CM25: 19 | CN25: 19 | CO25: 20 | CR25: 1 | CS25: 1 | CT25: 1 | CV25: 0 | CW25: 1 | CX25: 0 | CY25: 1 | DA25: N
A26: Exterior Lighting, Upgrade | B26: each | C26: 20 | D26: y | E26: 15 | F26: 110 | G26: 25 | H26: 225 | I26: Each | J26: 200000 | K26: 1750000 | L26: 200000 | M26: 1750000 | N26: Each | O26: 0 | P26: 0.013 | R26: 0 | S26: 0 | T26: 0 | V26: 0 | W26: 0.00185 | X26: 0 | Y26: 0.00113 | AA26: Full | CR26: 1 | CS26: 1 | CT26: 1 | CV26: 1 | CW26: 0 | CX26: 1 | CY26: 0 | DA26: Y | DB26: 2300000 | DC26: Each
A27: Fan/Air Handlers, Upgrade | B27: each | C27: 15 | D27: y | E27: 500 | F27: 4000 | G27: 500 | H27: 4000 | I27: Each | J27: 7500000 | K27: 40000000 | L27: 7500000 | M27: 40000000 | N27: Each | O27: 0 | P27: 0.04 | V27: 0.000114 | W27: 0.00185 | X27: 0.000114 | Y27: 0.00113 | AA27: Inc | AB27: y | AC27: 0 | AD27: 0 | AE27: 0 | AF27: 0 | AG27: 0 | AH27: 0 | AI27: 0 | AJ27: 0 | AK27: 0 | AL27: 0 | AM27: 0 | AN27: 0 | AO27: 0 | AP27: 0 | AQ27: 0 | AR27: 0 | AS27: 0 | AT27: 0 | AU27: 0 | AV27: 0 | AW27: 0 | AX27: 0 | AY27: 0 | AZ27: 0 | BA27: 0 | BB27: 0 | BC27: 0 | BD27: 0 | BE27: 0 | BF27: 0 | BG27: 0 | BH27: 0 | BI27: 0 | BJ27: 0 | BK27: 0 | BL27: 0 | BM27: 0 | BN27: 0 | BO27: 0 | BP27: 0 | BQ27: 0 | BR27: 0 | BS27: 0 | BT27: 0 | CR27: 1 | CS27: 1 | CT27: 1 | CV27: 0 | CW27: 1 | CX27: 1 | CY27: 0 | DA27: N
A28: Furnace, Replace | B28: 1000 Btu/hr | C28: 20 | D28: y | E28: 45 | F28: 80 | G28: 33 | H28: 70 | I28: MBH | J28: 145000 | K28: 400000 | L28: 145000 | M28: 250000 | N28: MBH | O28: 0 | P28: 0.12 | R28: 0 | S28: 0 | T28: 0 | V28: 0 | W28: 0.00185 | X28: 0 | Y28: 0.00113 | AA28: Inc | AB28: y | AC28: =VLOOKUP($H$80,$AA$81:$CP$84,AC80) ->  | AD28: =AI28 ->  | AE28: =VLOOKUP($H$80,$AA$81:$CP$84,AE80) ->  | AF28: =VLOOKUP($H$80,$AA$81:$CP$84,AF80) ->  | AZ28: =BE28 ->  | BU28: =VLOOKUP($H$80,$AA$81:$CP$84,BU80)*C28 ->  | BV28: =CA28 ->  | CR28: 1 | CS28: 0.9 | CT28: 1 | CV28: 1 | CW28: 0 | CX28: 1 | CY28: 0 | DA28: N
A29: Gas-fired Dryers, Replace Electric | B29: each | C29: 14 | D29: y | E29: 700 | F29: 1800 | G29: 1000 | H29: 1800 | I29: Each | J29: -8000000 | K29: 2500000 | L29: -7500000 | M29: 2500000 | N29: Each | O29: 0 | P29: 0.015 | V29: 0.000114 | W29: 0.00185 | X29: 0.000114 | Y29: 0.00113 | AA29: Full | CR29: 1 | CS29: 1 | CT29: 1 | CV29: 1 | CW29: 0 | CX29: 1 | CY29: 0 | DA29: N
A30: Geothermal Heat Pump | B30: 1000 Btu/hr | D30: n | AA30: Full | DA30: N
A31: Heat/Energy Recovery | B31: 1000 Btu/hr | C31: 15 | D31: y | E31: 0 | F31: 9999999 | G31: 0 | H31: 9999999 | I31: MBH | J31: 0 | K31: 9999999999 | L31: 0 | M31: 9999999999 | N31: MBH | O31: 0 | P31: 0.04 | R31: 0 | S31: 0 | T31: 0 | V31: 0 | W31: 0.00185 | X31: 0 | Y31: 0.00113 | AA31: Full | CR31: 1 | CS31: 0.9 | CT31: 1 | CV31: 0 | CW31: 1 | CX31: 1 | CY31: 0 | DA31: N
A32: High Efficiency Fluorescent, Apt, Install | B32: each | C32: 8 | D32: y | E32: 5 | F32: 35 | G32: 10 | H32: 100 | I32: Each | J32: 30000 | K32: 120000 | L32: 30000 | M32: 140000 | N32: Each | O32: 0 | P32: 0.035 | R32: 365 | S32: 3 | T32: 0.103 | V32: 0.00021 | W32: 0.00185 | X32: 0.00021 | Y32: 0.00113 | AA32: Full | CR32: 1 | CS32: 1 | CT32: 1 | CV32: 0 | CW32: 1 | CX32: 1 | CY32: 0 | DA32: Y | DB32: 300000 | DC32: Unit
A33: High Efficiency Fluorescent, CA, Install | B33: each | C33: 15 | D33: y | E33: 20 | F33: 160 | G33: 60 | H33: 240 | I33: Each | J33: 55000 | K33: 300000 | L33: 100000 | M33: 450000 | N33: Each | O33: 0 | P33: 0.035 | R33: 365 | S33: 24 | T33: 0.9 | V33: 0.000114 | W33: 0.00185 | X33: 0.000114 | Y33: 0.00113 | AA33: Full | CR33: 1 | CS33: 1 | CT33: 1 | CV33: 0 | CW33: 1 | CX33: 1 | CY33: 0 | DA33: Y | DB33: 918000 | DC33: Each
A34: Insulation, Above Grade Walls | B34: Ins. sqft | C34: 30 | D34: y | E34: 1.5 | F34: 3.5 | G34: 1.5 | H34: 3.5 | I34: Ins. Sqft | J34: 5000 | K34: 22500 | L34: 5000 | M34: 22500 | N34: Ins. Sqft | O34: 0 | P34: 0.05 | R34: 62.5 | S34: 8 | T34: 0.84 | V34: 0 | W34: 0.00185 | X34: 0 | Y34: 0.00113 | AA34: Full | CR34: 1 | CS34: 1 | CT34: 1 | CV34: 0 | CW34: 1 | CX34: 1 | CY34: 0 | DA34: Y | DB34: 27500 | DC34: Ins. Sqft
A35: Insulation, Below Grade Walls | B35: Ins. sqft | C35: 30 | D35: y | E35: 1.5 | F35: 3.5 | G35: 1.5 | H35: 3.5 | I35: Ins. Sqft | J35: 5000 | K35: 22500 | L35: 5000 | M35: 22500 | N35: Ins. Sqft | O35: 0 | P35: 0.02 | R35: 62.5 | S35: 8 | T35: 0.84 | V35: 0 | W35: 0.00185 | X35: 0 | Y35: 0.00113 | AA35: Full | CR35: 1 | CS35: 1 | CT35: 1 | CV35: 1 | CW35: 0 | CX35: 1 | CY35: 0 | DA35: N
A36: Insulation, Other Shell | B36: Ins. sqft | C36: 30 | D36: y | E36: 1 | F36: 4.5 | G36: 1.5 | H36: 4.5 | I36: Ins. Sqft | J36: 6000 | K36: 55000 | L36: 4500 | M36: 50000 | N36: Ins. Sqft | O36: 0 | P36: 0.03 | V36: 0 | W36: 0.00185 | X36: 0 | Y36: 0.00113 | AA36: Full | CR36: 1 | CS36: 1 | CT36: 1 | CV36: 1 | CW36: 0 | CX36: 0 | CY36: 1 | DA36: N
A37: Insulation, Roof Deck or Attic | B37: Ins. Sqft | C37: 30 | D37: y | E37: 1 | F37: 3 | G37: 2 | H37: 4 | I37: Ins. Sqft | J37: 3200 | K37: 17500 | L37: 7500 | M37: 20000 | N37: Ins. Sqft | O37: 0 | P37: 0.05 | R37: 62.5 | S37: 8 | T37: 0.84 | V37: 0 | W37: 0.00185 | X37: 0 | Y37: 0.00113 | AA37: Full | CR37: 1 | CS37: 1 | CT37: 1 | CV37: 1 | CW37: 0 | CX37: 1 | CY37: 0 | DA37: Y | DB37: 40000 | DC37: Ins. Sqft
A38: Insulation, Slab | B38: Ins. sqft | C38: 30 | D38: y | E38: 0 | F38: 9999999 | G38: 0 | H38: 9999999 | I38: Ins. Sqft | J38: 0 | K38: 9999999999 | L38: 0 | M38: 9999999999 | N38: Ins. Sqft | O38: 0 | P38: 0.03 | V38: 0 | W38: 0.00185 | X38: 0 | Y38: 0.00113 | AA38: Full | CR38: 1 | CS38: 1 | CT38: 1 | CV38: 1 | CW38: 0 | CX38: 1 | CY38: 0 | DA38: N
A39: LED Exit Signs | B39: each | C39: 15 | D39: y | E39: 50 | F39: 160 | G39: 50 | H39: 180 | I39: Each | J39: 100000 | K39: 1000000 | L39: 100000 | M39: 1000000 | N39: Each | O39: 0 | P39: 0.015 | V39: 0.000114 | W39: 0.00185 | X39: 0.000114 | Y39: 0.00113 | AA39: Full | CR39: 1 | CS39: 1 | CT39: 1 | CV39: 1 | CW39: 0 | CX39: 1 | CY39: 0 | DA39: Y | DB39: 1140000 | DC39: Each
A40: LED Fixtures & Screw-Ins | B40: each | C40: 15 | D40: y | E40: 25 | F40: 225 | G40: 20 | H40: 300 | I40: Each | J40: 67250 | K40: 1600000 | L40: 67250 | M40: 1600000 | N40: Each | O40: 0 | P40: 0.035 | V40: 0.000114 | W40: 0.00185 | X40: 0.000114 | Y40: 0.00113 | AA40: Full | CR40: 1 | CS40: 1 | CT40: 1 | CV40: 1 | CW40: 0 | CX40: 1 | CY40: 0 | DA40: Y | DB40: 1600000 | DC40: Each
A41: Low-flow Devices | B41: each | C41: 10 | D41: y | E41: 10 | F41: 45 | G41: 15 | H41: 100 | I41: Unit | J41: 500000 | K41: 3000000 | L41: 500000 | M41: 4000000 | N41: Unit | O41: 0 | P41: 0.03 | R41: 365 | S41: 24 | T41: 0.98 | V41: 0.000114 | W41: 0.00185 | X41: 0.000114 | Y41: 0.00113 | AA41: Full | CR41: 1 | CS41: 1 | CT41: 1 | CV41: 1 | CW41: 0 | CX41: 1 | CY41: 0 | DA41: Y | DB41: 2400000 | DC41: Each
A42: Motors, Install NEMA Premium Efficiency | B42: each | C42: 15 | D42: y | E42: 525 | F42: 4000 | G42: 500 | H42: 4000 | I42: Each | J42: 2000000 | K42: 11000000 | L42: 2000000 | M42: 11000000 | N42: Each | O42: 0 | P42: 0.009 | R42: 365 | S42: 24 | T42: 0.78 | V42: 0.000114 | W42: 0.00185 | X42: 0.000114 | Y42: 0.00113 | AA42: Inc | AB42: y | AC42: 0 | AD42: 0 | AE42: 0 | AF42: 0 | AG42: 0 | AH42: 0 | AI42: 0 | AJ42: 0 | AK42: 0 | AL42: 0 | AM42: 0 | AN42: 0 | AO42: 0 | AP42: 0 | AQ42: 0 | AR42: 0 | AS42: 0 | AT42: 0 | AU42: 0 | AV42: 0 | AW42: 0 | AX42: 0 | AY42: 0 | AZ42: 0 | BA42: 0 | BB42: 0 | BC42: 0 | BD42: 0 | BE42: 0 | BF42: 0 | BG42: 0 | BH42: 0 | BI42: 0 | BJ42: 0 | BK42: 0 | BL42: 0 | BM42: 0 | BN42: 0 | BO42: 0 | BP42: 0 | BQ42: 0 | BR42: 0 | BS42: 0 | BT42: 0 | CR42: 1 | CS42: 1 | CT42: 1 | CV42: 0 | CW42: 1 | CX42: 1 | CY42: 0 | DA42: Y | DB42: 23000000 | DC42: Each
A43: Other | D43: y | E43: 0 | F43: 9999999 | G43: 0 | H43: 9999999 | I43: Each | J43: 0 | K43: 9999999999 | L43: 0 | M43: 9999999999 | N43: Each | O43: 0 | P43: 0.03 | V43: 0.000114 | W43: 0.00185 | X43: 0.000114 | Y43: 0.00113 | AA43: Full | CR43: 1 | CS43: 1 | CT43: 1 | CV43: 0 | CW43: 1 | CX43: 1 | CY43: 0 | DA43: N
A44: Other Appliances, Install Energy Star | B44: each | D44: y | E44: 200 | F44: 2500 | G44: 200 | H44: 2500 | I44: Each | J44: 1500000 | K44: 5500000 | L44: 1500000 | M44: 5500000 | N44: Each | O44: 0 | P44: 0.02 | V44: 0.000114 | W44: 0.00185 | X44: 0.000114 | Y44: 0.00113 | AA44: Full | CR44: 1 | CS44: 1 | CT44: 1 | CV44: 1 | CW44: 0 | CX44: 1 | CY44: 0 | DA44: N
A45: Other Cooling Measure | D45: y | E45: 0 | F45: 9999999 | G45: 0 | H45: 9999999 | I45: Each | J45: 0 | K45: 9999999999 | L45: 0 | M45: 9999999999 | N45: Each | O45: 0 | P45: 0.02 | V45: 0 | W45: 0.00185 | X45: 0 | Y45: 0.00113 | AA45: Full | CR45: 1 | CS45: 1 | CT45: 1 | CV45: 1 | CW45: 0 | CX45: 1 | CY45: 0 | DA45: N
A46: Other DHW Measure | D46: y | E46: 0 | F46: 9999999 | G46: 0 | H46: 9999999 | I46: Each | J46: 0 | K46: 9999999999 | L46: 0 | M46: 9999999999 | N46: Each | O46: 0 | P46: 0.02 | V46: 0.000114 | W46: 0.00185 | X46: 0.000114 | Y46: 0.00113 | AA46: Full | CR46: 1 | CS46: 1 | CT46: 1 | CV46: 0 | CW46: 1 | CX46: 1 | CY46: 0 | DA46: N
A47: Other Heating Measure | D47: y | E47: 0 | F47: 9999999 | G47: 0 | H47: 9999999 | I47: Each | J47: 0 | K47: 9999999999 | L47: 0 | M47: 9999999999 | N47: Each | O47: 0 | P47: 0.02 | V47: 0 | W47: 0.00185 | X47: 0 | Y47: 0.00113 | AA47: Full | CR47: 1 | CS47: 1 | CT47: 1 | CV47: 0 | CW47: 1 | CX47: 1 | CY47: 0 | DA47: N
A48: Other Lighting Measure | B48: each | D48: y | E48: 0 | F48: 9999999 | G48: 0 | H48: 9999999 | I48: Each | J48: 0 | K48: 9999999999 | L48: 0 | M48: 9999999999 | N48: Each | O48: 0 | P48: 0.02 | V48: 0.000114 | W48: 0.00185 | X48: 0.000114 | Y48: 0.00113 | AA48: Full | CR48: 1 | CS48: 1 | CT48: 1 | CV48: 1 | CW48: 0 | CX48: 1 | CY48: 0 | DA48: N
A49: Other Motor Measure | B49: each | C49: 15 | D49: y | E49: 525 | F49: 4000 | G49: 500 | H49: 4000 | I49: Each | J49: 2000000 | K49: 11000000 | L49: 2000000 | M49: 11000000 | N49: Each | O49: 0 | P49: 0.009 | R49: 365 | S49: 24 | T49: 0.78 | V49: 0.000114 | W49: 0.00185 | X49: 0.000114 | Y49: 0.00113 | AA49: Inc | AB49: y | AC49: 0 | AD49: 0 | AE49: 0 | AF49: 0 | AG49: 0 | AH49: 0 | AI49: 0 | AJ49: 0 | AK49: 0 | AL49: 0 | AM49: 0 | AN49: 0 | AO49: 0 | AP49: 0 | AQ49: 0 | AR49: 0 | AS49: 0 | AT49: 0 | AU49: 0 | AV49: 0 | AW49: 0 | AX49: 0 | AY49: 0 | AZ49: 0 | BA49: 0 | BB49: 0 | BC49: 0 | BD49: 0 | BE49: 0 | BF49: 0 | BG49: 0 | BH49: 0 | BI49: 0 | BJ49: 0 | BK49: 0 | BL49: 0 | BM49: 0 | BN49: 0 | BO49: 0 | BP49: 0 | BQ49: 0 | BR49: 0 | BS49: 0 | BT49: 0 | CR49: 1 | CS49: 1 | CT49: 1 | CV49: 1 | CW49: 0 | CX49: 1 | CY49: 0 | DA49: N
A50: Other Ventilation Measure | D50: y | E50: 0 | F50: 9999999 | G50: 0 | H50: 9999999 | I50: Each | J50: 0 | K50: 9999999999 | L50: 0 | M50: 9999999999 | N50: Each | O50: 0 | P50: 0.03 | V50: 0.000114 | W50: 0.00185 | X50: 0.000114 | Y50: 0.00113 | AA50: Full | CR50: 1 | CS50: 1 | CT50: 1 | CV50: 1 | CW50: 0 | CX50: 1 | CY50: 0 | DA50: N
A51: Outdoor Reset Control, Install | B51: each | C51: 15 | D51: y | E51: 1200 | F51: 8500 | G51: 1200 | H51: 8500 | I51: Each | J51: 13000000 | K51: 250000000 | L51: 13000000 | M51: 250000000 | N51: Each | O51: 0 | P51: 0.03 | V51: 0 | W51: 0.00185 | X51: 0 | Y51: 0.00113 | AA51: Full | CR51: 1 | CS51: 1 | CT51: 1 | CV51: 1 | CW51: 0 | CX51: 0 | CY51: 1 | DA51: N
A52: Photovoltaic System | D52: n | AA52: Full | DA52: N
A53: Piping, DHW, Insulate | B53: Ins. Sqft | C53: 11 | D53: y | E53: 1.33 | F53: 8 | G53: 2 | H53: 10 | I53: Ins. Sqft | J53: 7500 | K53: 35000 | L53: 7500 | M53: 45000 | N53: $ | O53: 0 | P53: 0.015 | R53: 365 | S53: 24 | T53: 0.98 | V53: 0.000114 | W53: 0.00185 | X53: 0.000114 | Y53: 0.00113 | AA53: Full | CR53: 1 | CS53: 1 | CT53: 1 | CV53: 1 | CW53: 0 | CX53: 0 | CY53: 1 | DA53: Y | DB53: 3300 | DC53: Sqft
A54: Piping, Heating, Insulate | B54: Ins. Sqft | C54: 11 | D54: y | E54: 2.6 | F54: 8 | G54: 2.75 | H54: 10 | I54: Ins. Sqft | J54: 10000 | K54: 35000 | L54: 8500 | M54: 45000 | N54: $ | O54: 0 | P54: 0.015 | R54: 365 | S54: 24 | T54: 0.98 | V54: 0.000114 | W54: 0.00185 | X54: 0.000114 | Y54: 0.00113 | AA54: Full | CR54: 1 | CS54: 1 | CT54: 1 | CV54: 0 | CW54: 1 | CX54: 1 | CY54: 0 | DA54: Y | DB54: 1700000 | DC54: Ins. Sqft
A55: Programmable Thermostats, Common Area | B55: each | C55: 11 | D55: y | E55: 50 | F55: 325 | G55: 50 | H55: 325 | I55: Each | J55: 875000 | K55: 5000000 | L55: 900000 | M55: 5000000 | N55: Each | O55: 0 | P55: 0.015 | R55: 0 | S55: 0 | T55: 0 | V55: 0 | W55: 0.00185 | X55: 0 | Y55: 0.00113 | AA55: Full | CR55: 1 | CS55: 0.9 | CT55: 1 | CV55: 0 | CW55: 1 | CX55: 1 | CY55: 0 | DA55: Y | DB55: 3900000 | DC55: Unit
A56: Pumps, Upgrade | B56: each | C56: 15 | D56: y | E56: 500 | F56: 4000 | G56: 500 | H56: 4000 | I56: Each | J56: 2000000 | K56: 11000000 | L56: 1500000 | M56: 11000000 | N56: Each | O56: 0 | P56: 0.009 | R56: 365 | S56: 24 | T56: 0.78 | V56: 0.000114 | W56: 0.00185 | X56: 0.000114 | Y56: 0.00113 | AA56: Inc | AB56: y | AC56: 0 | AD56: 0 | AE56: 0 | AF56: 0 | AG56: 0 | AH56: 0 | AI56: 0 | AJ56: 0 | AK56: 0 | AL56: 0 | AM56: 0 | AN56: 0 | AO56: 0 | AP56: 0 | AQ56: 0 | AR56: 0 | AS56: 0 | AT56: 0 | AU56: 0 | AV56: 0 | AW56: 0 | AX56: 0 | AY56: 0 | AZ56: 0 | BA56: 0 | BB56: 0 | BC56: 0 | BD56: 0 | BE56: 0 | BF56: 0 | BG56: 0 | BH56: 0 | BI56: 0 | BJ56: 0 | BK56: 0 | BL56: 0 | BM56: 0 | BN56: 0 | BO56: 0 | BP56: 0 | BQ56: 0 | BR56: 0 | BS56: 0 | BT56: 0 | CR56: 1 | CS56: 1 | CT56: 1 | CV56: 0 | CW56: 1 | CX56: 1 | CY56: 0 | DA56: Y | DB56: 36000000 | DC56: Each
A57: Refrigerators, install Energy Star | B57: each | C57: 17 | D57: y | E57: 400 | F57: 750 | G57: 400 | H57: 750 | I57: Each | J57: 341200 | K57: 1194200 | L57: 341200 | M57: 1194200 | N57: Each | O57: 0 | P57: 0.04 | R57: 365 | S57: 24 | T57: 0.863 | V57: 0.000114 | W57: 0.00185 | X57: 0.000114 | Y57: 0.00113 | AA57: Inc | AB57: n | AC57: 0.11 | AE57: 0.1713390564 | AF57: 0.2493223828 | AG57: 0.3229649686 | AH57: 0.3925084297 | AI57: 0.4585881758 | AJ57: 0.5213767224 | AK57: 0.5810379925 | AL57: 0.6377277447 | AM57: 0.69159398 | AN57: 0.7427773276 | AO57: 0.7914114129 | AP57: 0.7914114129 | AQ57: 0.8376232056 | AR57: 0.8815333516 | AS57: 0.923154343 | AT57: 0.9626055197 | AY57: 0.12 | BA57: 0.1658767773 | BB57: 0.2093618742 | BC57: 0.2505799755 | BD57: 0.2896492659 | BE57: 0.3266817686 | BF57: 0.3617836669 | BG57: 0.3950556085 | BH57: 0.4265929938 | BI57: 0.4564862501 | BJ57: 0.4848210901 | BK57: 0.5116787584 | BL57: 0.5371362639 | BM57: 0.5612666008 | BN57: 0.5841389581 | BO57: 0.6058189177 | BP57: 0.6263686423 | BU57: =0.11*C57 -> 1.87 | BW57: 2 | BX57: 3 | BY57: 4 | BZ57: 5 | CA57: 6 | CB57: 7 | CC57: 8 | CD57: 9 | CE57: 10 | CF57: 11 | CG57: 12 | CH57: 12 | CI57: 13 | CJ57: 14 | CK57: 15 | CL57: 16 | CR57: 1 | CS57: 1 | CT57: 1 | CV57: 0 | CW57: 1 | CX57: 1 | CY57: 0 | DA57: Y | DB57: =650*3413 -> 2218450 | DC57: Each
A58: Replace DHW Heater (Central) | B58: 1000 Btu/hr | C58: 15 | D58: y | E58: 0.3 | F58: 0.75 | G58: 0.3 | H58: 0.75 | I58: Sqft | J58: 1500 | K58: 5500 | L58: 1500 | M58: 7000 | N58: Sqft | O58: 0 | P58: 0.04 | R58: 365 | S58: 24 | T58: 0.98 | V58: 0.000114 | W58: 0.00185 | X58: 0.000114 | Y58: 0.00113 | AA58: Inc | AB58: y | AC58: 0.21 | AD58: =AH58 -> 0.4943020432 | AE58: 0.347015767 | AF58: 0.347015767 | AG58: 0.4223994079 | AH58: 0.4943020432 | AI58: 0.5628817425 | AJ58: 0.6282895546 | AK58: 0.6282895546 | AL58: 0.6902874808 | AM58: 0.7490532876 | AN58: 0.8047554741 | AO58: 0.8575537552 | AP58: 0.9075995192 | AQ58: 0.9075995192 | AR58: 0.9550362624 | AY58: 0.22 | AZ58: =BD58 -> 0.3703709402 | BA58: 0.2606635071 | BB58: 0.2992071157 | BC58: 0.3357413419 | BD58: 0.3703709402 | BE58: 0.403195204 | BF58: 0.4343082502 | BG58: 0.4637992893 | BH58: 0.4917528809 | BI58: 0.5182491762 | BJ58: 0.543364148 | BK58: 0.5671698086 | BL58: 0.5897344157 | BM58: 0.6111226689 | BN58: 0.6313958947 | BU58: =0.21*C58 -> 3.15 | BV58: =BZ58 -> 6 | BW58: 4 | BX58: 4 | BY58: 5 | BZ58: 6 | CA58: 7 | CB58: 8 | CC58: 8 | CD58: 9 | CE58: 10 | CF58: 11 | CG58: 12 | CH58: 13 | CI58: 13 | CJ58: 14 | CR58: 1 | CS58: 1 | CT58: 1 | CV58: 0 | CW58: 1 | CX58: 0 | CY58: 1 | DA58: Y | DB58: 12000000 | DC58: Unit
A59: Replace DHW Heater (In-Unit) | B59: 1000 Btu/hr | C59: 11 | D59: y | E59: 0.3 | F59: 0.75 | G59: 0.3 | H59: 0.75 | I59: Sqft | J59: 1500 | K59: 5500 | L59: 1500 | M59: 7000 | N59: Sqft | O59: 0 | P59: 0.04 | R59: 365 | S59: 24 | T59: 0.98 | V59: 0.000114 | W59: 0.00185 | X59: 0.000114 | Y59: 0.00113 | AA59: Inc | AB59: n | AC59: 0.21 | AE59: 0.3320999788 | AF59: 0.430665425 | AG59: 0.430665425 | AH59: 0.5240923883 | AI59: 0.6133632346 | AJ59: 0.6986573856 | AK59: 0.7801468511 | AL59: 0.8573880506 | AM59: 0.8573880506 | AN59: 0.9306024577 | AY59: 0.22 | BA59: 0.2606635071 | BB59: 0.2992071157 | BC59: 0.3357413419 | BD59: 0.3703709402 | BE59: 0.403195204 | BF59: 0.4343082502 | BG59: 0.4637992893 | BH59: 0.4917528809 | BI59: 0.5182491762 | BJ59: 0.543364148 | BU59: =0.21*C59 -> 2.31 | BW59: 3 | BX59: 4 | BY59: 4 | BZ59: 5 | CA59: 6 | CB59: 7 | CC59: 8 | CD59: 9 | CE59: 9 | CF59: 10 | CR59: 1 | CS59: 1 | CT59: 1 | CV59: 0 | CW59: 1 | CX59: 1 | CY59: 0 | DA59: N
A60: Replace DHW Indirect-fired Heater | B60: 1000 Btu/hr | C60: 15 | D60: y | E60: 0.3 | F60: 0.65 | G60: 0.3 | H60: 0.65 | I60: Sqft | J60: 3000 | K60: 5500 | L60: 3000 | M60: 7000 | N60: Sqft | O60: 0 | P60: 0.04 | R60: 365 | S60: 24 | T60: 0.98 | V60: 0.000114 | W60: 0.00185 | X60: 0.000114 | Y60: 0.00113 | AA60: Inc | AB60: y | AC60: 0.34 | AD60: =AH60 -> 0.5628817425 | AE60: 0.4223994079 | AF60: 0.4943020432 | AG60: 0.4943020432 | AH60: 0.5628817425 | AI60: 0.6282895546 | AJ60: 0.6902874808 | AK60: 0.6902874808 | AL60: 0.7490532876 | AM60: 0.8047554741 | AN60: 0.8575537552 | AO60: 0.8575537552 | AP60: 0.9075995192 | AQ60: 0.9550362624 | AR60: 0.9550362624 | AY60: 0.93 | AZ60: =BD60 -> 0.943494828 | BA60: 0.9336492891 | BB60: 0.9371083309 | BC60: 0.9403870435 | BD60: 0.943494828 | BE60: 0.9464405952 | BF60: 0.9492327917 | BG60: 0.9518794234 | BH60: 0.9543880791 | BI60: 0.9567659517 | BJ60: 0.9590198594 | BK60: 0.9611562649 | BL60: 0.9631812937 | BM60: 0.9651007523 | BN60: 0.9669201444 | BU60: =0.34*C60 -> 5.1 | BV60: =BZ60 -> 7 | BW60: 5 | BX60: 6 | BY60: 6 | BZ60: 7 | CA60: 8 | CB60: 9 | CC60: 9 | CD60: 10 | CE60: 11 | CF60: 12 | CG60: 12 | CH60: 13 | CI60: 14 | CJ60: 14 | CR60: 1 | CS60: 1 | CT60: 1 | CV60: 0 | CW60: 1 | CX60: 1 | CY60: 0 | DA60: N
A61: Smoke-Driven Louver, Install | B61: each | C61: 15 | D61: y | E61: 1500 | F61: 5000 | G61: 1500 | H61: 5000 | I61: Each | J61: 6000000 | K61: 80000000 | L61: 6000000 | M61: 80000000 | N61: Each | O61: 0 | P61: 0.015 | V61: 0 | W61: 0.00185 | X61: 0 | Y61: 0.00113 | AA61: Full | CR61: 1 | CS61: 1 | CT61: 1 | CV61: 0 | CW61: 1 | CX61: 1 | CY61: 0 | DA61: N
A62: Solar Hot Water | D62: n | AA62: Full | DA62: N
A63: Split System AC/HP | B63: each | C63: 15 | D63: y | E63: 0 | F63: 9999999 | G63: 0 | H63: 9999999 | I63: Each | J63: 0 | K63: 9999999999 | L63: 0 | M63: 9999999999 | N63: Each | O63: 0 | P63: 0.03 | V63: 0 | W63: 0.00185 | X63: 0 | Y63: 0.00113 | AA63: Inc | AB63: y | AC63: =VLOOKUP($H$82,$AA$95:$CP$99,AC80) ->  | AD63: =AH63 ->  | AE63: =VLOOKUP($H$82,$AA$95:$CP$99,AE80) ->  | AF63: =VLOOKUP($H$82,$AA$95:$CP$99,AF80) ->  | AY63: =VLOOKUP($H$82,$AA$95:$CP$99,AY80) ->  | AZ63: =BD63 ->  | BU63: =VLOOKUP($H$82,$AA$95:$CP$99,BU80)*C63 ->  | BV63: =BZ63 ->  | BW63: =VLOOKUP($H$82,$AA$95:$CP$99,BW80) ->  | CR63: 1 | CS63: 0.9 | CT63: 1 | CV63: 0 | CW63: 1 | CX63: 0 | CY63: 1 | DA63: N
A64: Steam Traps, Replace | B64: each | C64: 5 | D64: y | E64: 75 | F64: 150 | G64: 75 | H64: 150 | I64: Each | J64: 1750000 | K64: 5750000 | L64: 1750000 | M64: 5750000 | N64: Each | O64: 0 | P64: 0.035 | V64: 0 | W64: 0.00185 | X64: 0 | Y64: 0.00113 | AA64: Full | CR64: 1 | CS64: 1 | CT64: 1 | CV64: 0 | CW64: 1 | CX64: 0 | CY64: 1 | DA64: N
A65: Submetering | B65: each | D65: y | E65: 375 | F65: 650 | G65: 375 | H65: 650 | I65: Each | J65: 1000000 | K65: 4000000 | L65: 1000000 | M65: 4000000 | N65: Each | O65: 0 | P65: 0.09 | AA65: Full | DA65: Y | DB65: ='Utility Info'!D14*1000000*16% -> 0 | DC65: Total
A66: Thermostatic Radiator Valves, install | B66: each | C66: 12 | D66: y | E66: 200 | F66: 625 | G66: 200 | H66: 750 | I66: Unit | J66: 2000000 | K66: 6000000 | L66: 3000000 | M66: 9000000 | N66: Unit | O66: 0 | P66: 0.05 | R66: 0 | S66: 0 | T66: 0 | V66: 0 | W66: 0.00185 | X66: 0 | Y66: 0.00113 | AA66: Full | CR66: 1 | CS66: 0.9 | CT66: 1 | CV66: 0 | CW66: 1 | CX66: 0 | CY66: 1 | DA66: Y | DB66: 8000000 | DC66: Unit
A67: Timers/Sensors, Install | B67: each | C67: 8 | D67: y | E67: 50 | F67: 160 | G67: 60 | H67: 240 | I67: Each | J67: 180000 | K67: 300000 | L67: 180000 | M67: 450000 | N67: Each | O67: 0 | P67: 0.035 | R67: 0 | S67: 0 | T67: 0 | V67: 0 | W67: 0.00185 | X67: 0 | Y67: 0.00113 | AA67: Full | CR67: 1 | CS67: 1 | CT67: 1 | CV67: 0 | CW67: 1 | CX67: 0 | CY67: 1 | DA67: Y | DB67: 1200000 | DC67: Each
A68: Var. Speed Drive | B68: each | C68: 15 | D68: y | E68: 575 | F68: 20000 | G68: 725 | H68: 20000 | I68: Each | J68: 2500000 | K68: 40000000 | L68: 2500000 | M68: 40000000 | N68: Each | O68: 0 | P68: 0.03 | R68: 365 | S68: 24 | T68: 0.78 | V68: 0.000114 | W68: 0.00185 | X68: 0.000114 | Y68: 0.00113 | AA68: Full | CR68: 1 | CS68: 1 | CT68: 1 | CV68: 0 | CW68: 1 | CX68: 0 | CY68: 1 | DA68: N
A69: Ventilation Central Controls | B69: each | C69: 10 | D69: y | E69: 0.25 | F69: 0.5 | G69: 0.02 | H69: 0.1 | I69: Sqft | J69: 500 | K69: 3500 | L69: 500 | M69: 3500 | N69: Sqft | O69: 0 | P69: 0.035 | V69: 0 | W69: 0.00185 | X69: 0 | Y69: 0.00113 | AA69: Full | CR69: 1 | CS69: 1 | CT69: 1.1 | CV69: 0 | CW69: 1 | CX69: 0 | CY69: 1 | DA69: N
A70: Vertical Shafts, Seal | B70: each | C70: 15 | D70: y | E70: 2300 | F70: 5000 | G70: 2300 | H70: 5000 | I70: Each | J70: 38000000 | K70: 75000000 | L70: 38000000 | M70: 75000000 | N70: Each | O70: 0 | P70: 0.02 | V70: 0 | W70: 0.00185 | X70: 0 | Y70: 0.00113 | AA70: Full | CR70: 1 | CS70: 1 | CT70: 1 | CV70: 0 | CW70: 1 | CX70: 0 | CY70: 1 | DA70: N
A71: Washing Machines, Install Energy Star | B71: each | C71: 14 | D71: y | E71: 750 | F71: 1750 | G71: 1000 | H71: 1875 | I71: Each | J71: 2225000 | K71: 5000000 | L71: 7000000 | M71: 12500000 | N71: Each | O71: 0 | P71: 0.008 | R71: 365 | S71: 1.1 | T71: 0.523 | V71: 0.000114 | W71: 0.00185 | X71: 0.000114 | Y71: 0.00113 | AA71: Inc | AB71: n | AC71: 0.39 | AE71: 0.4452564716 | AF71: 0.5202164785 | AG71: 0.5914429913 | AH71: 0.5914429913 | AI71: 0.6591219623 | AJ71: 0.7234300819 | AK71: 0.7234300819 | AL71: 0.7845352405 | AM71: 0.8425969662 | AN71: 0.8425969662 | AO71: 0.8977668417 | AP71: 0.9501889 | AQ71: 0.9501889 | AY71: 0.24 | BA71: 0.2796208531 | BB71: 0.3171761641 | BC71: 0.3527736152 | BD71: 0.3865152751 | BE71: 0.4184978911 | BF71: 0.4488131669 | BG71: 0.4775480255 | BH71: 0.5047848583 | BI71: 0.5306017614 | BJ71: 0.5550727596 | BK71: 0.5782680186 | BL71: 0.6002540461 | BM71: 0.6210938825 | BU71: =0.39*C71 -> 5.46 | BW71: 5 | BX71: 6 | BY71: 7 | BZ71: 7 | CA71: 8 | CB71: 9 | CC71: 9 | CD71: 10 | CE71: 11 | CF71: 11 | CG71: 12 | CH71: 13 | CI71: 13 | CR71: 1 | CS71: 1 | CT71: 1 | CV71: 0 | CW71: 1 | CX71: 0 | CY71: 1 | DA71: Y | DB71: 1200000 | DC71: Unit
A72: Water Source AC/HP | B72: 1000 Btu/hr | C72: 15 | D72: y | E72: 0 | F72: 9999999 | G72: 0 | H72: 9999999 | I72: Each | J72: 0 | K72: 9999999999 | L72: 0 | M72: 9999999999 | N72: Each | O72: 0 | P72: 0.08 | V72: 0 | W72: 0.00185 | X72: 0 | Y72: 0.00113 | AA72: Inc | AB72: y | AC72: =VLOOKUP($H$82,$AA$95:$CP$99,AC80) ->  | AD72: =AH72 ->  | AE72: =VLOOKUP($H$82,$AA$95:$CP$99,AE80) ->  | AF72: =VLOOKUP($H$82,$AA$95:$CP$99,AF80) ->  | AY72: =VLOOKUP($H$82,$AA$95:$CP$99,AY80) ->  | AZ72: =BD72 ->  | BU72: =VLOOKUP($H$82,$AA$95:$CP$99,BU80)*C72 ->  | BV72: =BZ72 ->  | BW72: =VLOOKUP($H$82,$AA$95:$CP$99,BW80) ->  | CR72: 1 | CS72: 0.9 | CT72: 1 | CV72: 0 | CW72: 1 | CX72: 0 | CY72: 1 | DA72: N
A73: Wind Turbine | D73: n | AA73: Full | DA73: N
A74: Window Air Conditioners, Install | B74: each | C74: 10 | D74: y | E74: 250 | F74: 600 | G74: 250 | H74: 500 | I74: Each | J74: 250000 | K74: 750000 | L74: 250000 | M74: 750000 | N74: Each | O74: 0 | P74: 0.015 | R74: 62.5 | S74: 8 | T74: 0.84 | V74: 0 | W74: 0.00185 | X74: 0 | Y74: 0.00113 | AA74: Inc | AB74: n | AC74: 0.25 | AE74: 0.3605039807 | AF74: 0.4669863792 | AG74: 0.5675417095 | AH74: 0.5675417095 | AI74: 0.6630887329 | AJ74: 0.7538768953 | AK74: 0.8401432189 | AL74: 0.8401432189 | AM74: 0.9221129206 | AY74: 0.23 | BA74: 0.2701421801 | BB74: 0.3081916399 | BC74: 0.3442574786 | BD74: 0.3784431077 | BE74: 0.4108465475 | BF74: 0.4415607086 | BG74: 0.4706736574 | BH74: 0.4982688696 | BI74: 0.5244254688 | BU74: =0.25*C74 -> 2.5 | BW74: 3 | BX74: 4 | BY74: 5 | BZ74: 5 | CA74: 6 | CB74: 7 | CC74: 8 | CD74: 8 | CE74: 9 | CR74: 1 | CS74: 1 | CT74: 1 | CV74: 0 | CW74: 1 | CX74: 1 | CY74: 0 | DA74: N
A75: Windows, Replace | B75: each | C75: 20 | D75: y | E75: 300 | F75: 500 | G75: 400 | H75: 650 | I75: Each | J75: 400000 | K75: 1500000 | L75: 400000 | M75: 2000000 | N75: Each | O75: 0 | P75: 0.07 | R75: 62.5 | S75: 8 | T75: 0.84 | V75: 0 | W75: 0.00185 | X75: 0 | Y75: 0.00113 | AA75: Inc | AB75: y | AC75: 0.63 | AD75: =AI75 -> 0.761530872 | AE75: 0.675298795 | AF75: 0.675298795 | AG75: 0.7195687907 | AH75: 0.7195687907 | AI75: 0.761530872 | AJ75: 0.8013053566 | AK75: 0.8013053566 | AL75: 0.8390062899 | AM75: 0.8390062899 | AN75: 0.8747417717 | AO75: 0.8747417717 | AP75: 0.9086142663 | AQ75: 0.9086142663 | AR75: 0.9407208962 | AS75: 0.9407208962 | AT75: 0.9407208962 | AU75: 0.9711537208 | AV75: 0.9711537208 | AW75: 1 | AY75: 0.1 | AZ75: =BE75 -> 0.3113790815 | BA75: 0.1469194313 | BB75: 0.1913928259 | BC75: 0.2335477022 | BD75: 0.273504931 | BE75: 0.3113790815 | BF75: 0.3472787503 | BG75: 0.3813068723 | BH75: 0.4135610164 | BI75: 0.4441336648 | BJ75: 0.4731124785 | BK75: 0.5005805484 | BL75: 0.5266166335 | BM75: 0.5512953872 | BN75: 0.5746875708 | BO75: 0.5968602567 | BP75: 0.6178770206 | BQ75: 0.6377981238 | BR75: 0.656680686 | BS75: 0.6745788493 | BU75: =0.63*C75 -> 12.6 | BV75: =CA75 -> 13 | BW75: 11 | BX75: 11 | BY75: 12 | BZ75: 12 | CA75: 13 | CB75: 14 | CC75: 14 | CD75: 15 | CE75: 15 | CF75: 16 | CG75: 16 | CH75: 17 | CI75: 17 | CJ75: 18 | CK75: 18 | CL75: 18 | CM75: 19 | CN75: 19 | CO75: 20 | CR75: 1 | CS75: 1 | CT75: 1 | CV75: 0 | CW75: 1 | CX75: 0 | CY75: 1 | DA75: Y | DB75: 2500000 | DC75: Each
A76: Windows, Weatherstrip or Airseal | B76: sqft | C76: 15 | D76: y | E76: 0.04 | F76: 0.32 | G76: 0.04 | H76: 0.32 | I76: Sqft | J76: 4000 | K76: 15000 | L76: 4500 | M76: 15000 | N76: $ | O76: 0 | P76: 0.03 | R76: 62.5 | S76: 8 | T76: 0.84 | V76: 0 | W76: 0.00185 | X76: 0 | Y76: 0.00113 | AA76: Full | CR76: 1 | CS76: 1 | CT76: 1 | CV76: 0 | CW76: 1 | CX76: 0 | CY76: 1 | DA76: N
A79: Project Information for Calculations: | F79: Special Measures for TRC Test: | AA79: Appendix M Data for Measures with Multiple Efficiency/Type Options
A80: Location | B80: =IF(UpDown="U","Upstate","Downstate") ->  | F80: ='Measure Summary'!W38 -> Gas Furnace AFUE | H80: ='Measure Summary'!Y38 -> 0 | AA80: Gas Furnace | AC80: 3 | AD80: 4 | AE80: 5 | AF80: 6 | AG80: 7 | AH80: 8 | AI80: 9 | AJ80: 10 | AK80: 11 | AL80: 12 | AM80: 13 | AN80: 14 | AO80: 15 | AP80: 16 | AQ80: 17 | AR80: 18 | AS80: 19 | AT80: 20 | AU80: 21 | AV80: 22 | AW80: 23 | AX80: 24 | AY80: 25 | AZ80: 26 | BA80: 27 | BB80: 28 | BC80: 29 | BD80: 30 | BE80: 31 | BF80: 32 | BG80: 33 | BH80: 34 | BI80: 35 | BJ80: 36 | BK80: 37 | BL80: 38 | BM80: 39 | BN80: 40 | BO80: 41 | BP80: 42 | BQ80: 43 | BR80: 44 | BS80: 45 | BT80: 46 | BU80: 47 | BV80: 26 | BW80: 48 | BX80: 49 | BY80: 50 | BZ80: 51 | CA80: 52 | CB80: 53 | CC80: 54 | CD80: 55 | CE80: 56 | CF80: 57 | CG80: 58 | CH80: 59 | CI80: 60 | CJ80: 61 | CK80: 62 | CL80: 63 | CM80: 64 | CN80: 65 | CO80: 66
A81: Number of floors | B81: =DT_GeneralProjectInfo_BuildingInfo_NumStories1 -> 0 | F81: ='Measure Summary'!W39 -> Chiller Type/Capacity | H81: ='Measure Summary'!Y39 -> 0 | AA81: 90 AFUE | AC81: 0.44 | AE81: 0.4724939148 | AF81: 0.5273366768 | AG81: 0.5793203375 | AH81: 0.6285939495 | AI81: 0.6285939495 | AJ81: 0.675298795 | AK81: 0.7195687907 | AL81: 0.7195687907 | AM81: 0.761530872 | AN81: 0.8013053566 | AO81: 0.8013053566 | AP81: 0.8390062899 | AQ81: 0.8747417717 | AR81: 0.8747417717 | AS81: 0.9086142663 | AT81: 0.9407208962 | AU81: 0.9407208962 | AV81: 0.9711537208 | AW81: 0.9711537208 | AY81: 0.28 | BA81: 0.317535545 | BB81: 0.3531142607 | BC81: 0.3868381618 | BD81: 0.4188039448 | BE81: 0.4491032652 | BF81: 0.4778230002 | BG81: 0.5050454978 | BH81: 0.5308488131 | BI81: 0.5553069319 | BJ81: 0.5784899828 | BK81: 0.6004644387 | BL81: 0.6212933068 | BM81: 0.6410363098 | BN81: 0.6597500567 | BO81: 0.6774882054 | BP81: 0.6943016165 | BQ81: 0.710238499 | BR81: 0.7253445488 | BS81: 0.7396630795 | BU81: 0.44 | BW81: 7 | BX81: 8 | BY81: 9 | BZ81: 10 | CA81: 10 | CB81: 11 | CC81: 12 | CD81: 12 | CE81: 13 | CF81: 14 | CG81: 14 | CH81: 15 | CI81: 16 | CJ81: 16 | CK81: 17 | CL81: 18 | CM81: 18 | CN81: 19 | CO81: 19
A82: Low/High rise | B82: =IF(Floors=0,0,IF(Floors<=3,"low","high")) -> 0 | F82: ='Measure Summary'!W40 -> Central AC/HP SEER | H82: ='Measure Summary'!Y40 -> 0 | AA82: 92 AFUE | AC82: 0.48 | AE82: 0.5273366768 | AF82: 0.5793203375 | AG82: 0.5793203375 | AH82: 0.6285939495 | AI82: 0.675298795 | AJ82: 0.675298795 | AK82: 0.7195687907 | AL82: 0.761530872 | AM82: 0.761530872 | AN82: 0.8013053566 | AO82: 0.8390062899 | AP82: 0.8390062899 | AQ82: 0.8747417717 | AR82: 0.9086142663 | AS82: 0.9086142663 | AT82: 0.9407208962 | AU82: 0.9407208962 | AV82: 0.9711537208 | AW82: 0.9711537208 | AY82: 0.31 | BA82: 0.345971564 | BB82: 0.3800678332 | BC82: 0.4123865717 | BD82: 0.4430204471 | BE82: 0.4720572958 | BF82: 0.4995803752 | BG82: 0.5256686021 | BH82: 0.5503967792 | BI82: 0.5738358097 | BJ82: 0.5960529002 | BK82: 0.6171117537 | BL82: 0.6370727524 | BM82: 0.6559931302 | BN82: 0.6739271376 | BO82: 0.6909261968 | BP82: 0.7070390491 | BQ82: 0.7223118949 | BR82: 0.736788526 | BS82: 0.7505104511 | BU82: 0.48 | BW82: 8 | BX82: 9 | BY82: 9 | BZ82: 10 | CA82: 11 | CB82: 11 | CC82: 12 | CD82: 13 | CE82: 13 | CF82: 14 | CG82: 15 | CH82: 15 | CI82: 16 | CJ82: 17 | CK82: 17 | CL82: 18 | CM82: 18 | CN82: 19 | CO82: 19
A83: Total sqft | B83: ='General Project Info'!C48 -> 0 | AA83: 94 AFUE | AC83: 0.51 | AE83: 0.5273366768 | AF83: 0.5793203375 | AG83: 0.6285939495 | AH83: 0.675298795 | AI83: 0.675298795 | AJ83: 0.7195687907 | AK83: 0.761530872 | AL83: 0.761530872 | AM83: 0.8013053566 | AN83: 0.8013053566 | AO83: 0.8390062899 | AP83: 0.8747417717 | AQ83: 0.8747417717 | AR83: 0.9086142663 | AS83: 0.9086142663 | AT83: 0.9407208962 | AU83: 0.9407208962 | AV83: 0.9711537208 | AW83: 1 | AY83: 0.34 | BA83: 0.3744075829 | BB83: 0.4070214056 | BC83: 0.4379349816 | BD83: 0.4672369494 | BE83: 0.4950113265 | BF83: 0.5213377502 | BG83: 0.5462917064 | BH83: 0.5699447454 | BI83: 0.5923646875 | BJ83: 0.6136158176 | BK83: 0.6337590688 | BL83: 0.6528521979 | BM83: 0.6709499506 | BN83: 0.6881042186 | BO83: 0.7043641882 | BP83: 0.7197764818 | BQ83: 0.7343852908 | BR83: 0.7482325031 | BS83: 0.7613578228 | BU83: 0.51 | BW83: 8 | BX83: 9 | BY83: 10 | BZ83: 11 | CA83: 11 | CB83: 12 | CC83: 13 | CD83: 13 | CE83: 14 | CF83: 14 | CG83: 15 | CH83: 16 | CI83: 16 | CJ83: 17 | CK83: 17 | CL83: 18 | CM83: 18 | CN83: 19 | CO83: 20
A84: Number of Units | B84: ='General Project Info'!C40 -> 0 | AA84: 96 AFUE | AC84: 0.54 | AE84: 0.5793203375 | AF84: 0.6285939495 | AG84: 0.6285939495 | AH84: 0.675298795 | AI84: 0.7195687907 | AJ84: 0.7195687907 | AK84: 0.761530872 | AL84: 0.8013053566 | AM84: 0.8013053566 | AN84: 0.8390062899 | AO84: 0.8390062899 | AP84: 0.8747417717 | AQ84: 0.8747417717 | AR84: 0.9086142663 | AS84: 0.9407208962 | AT84: 0.9407208962 | AU84: 0.9711537208 | AV84: 0.9711537208 | AW84: 1 | AY84: 0.36 | BA84: 0.3933649289 | BB84: 0.4249904539 | BC84: 0.4549672549 | BD84: 0.4833812843 | BE84: 0.5103140135 | BF84: 0.5358426669 | BG84: 0.5600404425 | BH84: 0.5829767228 | BI84: 0.6047172728 | BJ84: 0.6253244292 | BK84: 0.6448572788 | BL84: 0.6633718283 | BM84: 0.6809211642 | BN84: 0.6975556059 | BO84: 0.7133228492 | BP84: 0.7282681035 | BQ84: 0.7424342213 | BR84: 0.7558618212 | BS84: 0.768589404 | BU84: 0.54 | BW84: 9 | BX84: 10 | BY84: 10 | BZ84: 11 | CA84: 12 | CB84: 12 | CC84: 13 | CD84: 14 | CE84: 14 | CF84: 15 | CG84: 15 | CH84: 16 | CI84: 16 | CJ84: 17 | CK84: 18 | CL84: 18 | CM84: 19 | CN84: 19 | CO84: 20
AA85: Chillers
AA86: Air Cooled, Reciprocal/Screw | AC86: 0.5 | AE86: 0.527790374 | AF86: 0.5792849509 | AG86: 0.6282147641 | AH86: 0.6282147641 | AI86: 0.6747075555 | AJ86: 0.7188847047 | AK86: 0.7188847047 | AL86: 0.7608615456 | AM86: 0.8007476677 | AN86: 0.8007476677 | AO86: 0.8385544186 | AP86: 0.8743902015 | AQ86: 0.8743902015 | AR86: 0.9083577681 | AS86: 0.9083577681 | AT86: 0.9405545138 | AU86: 0.9405545138 | AV86: 0.9710727561 | AW86: 1 | AY86: 0.18 | BA86: 0.2227488152 | BB86: 0.2632690191 | BC86: 0.3016767954 | BD86: 0.3380822705 | BE86: 0.3725898299 | BF86: 0.4052984169 | BG86: 0.436301817 | BH86: 0.4656889261 | BI86: 0.4935440057 | BJ86: 0.5199469249 | BK86: 0.5449733885 | BL86: 0.568695155 | BM86: 0.5911802417 | BN86: 0.6124931201 | BO86: 0.6326949006 | BP86: 0.6518435076 | BQ86: 0.6699938461 | BR86: 0.6871979584 | BS86: 0.7035051738 | BU86: 0.5 | BW86: 8 | BX86: 9 | BY86: 10 | BZ86: 10 | CA86: 11 | CB86: 12 | CC86: 12 | CD86: 13 | CE86: 14 | CF86: 14 | CG86: 15 | CH86: 16 | CI86: 16 | CJ86: 17 | CK86: 17 | CL86: 18 | CM86: 18 | CN86: 19 | CO86: 20
A87: Unit Conversions: | AA87: Water Cooled Centrifugal, <150 ton | AC87: 0.58 | AE87: 0.6282147641 | AF87: 0.6282147641 | AG87: 0.6747075555 | AH87: 0.7188847047 | AI87: 0.7188847047 | AJ87: 0.7608615456 | AK87: 0.7608615456 | AL87: 0.8007476677 | AM87: 0.8385544186 | AN87: 0.8385544186 | AO87: 0.8743902015 | AP87: 0.8743902015 | AQ87: 0.9083577681 | AR87: 0.9083577681 | AS87: 0.9405545138 | AT87: 0.9405545138 | AU87: 0.9710727561 | AV87: 0.9710727561 | AW87: 1 | AY87: 0.21 | BA87: 0.2511848341 | BB87: 0.2902225916 | BC87: 0.3272252053 | BD87: 0.3622987728 | BE87: 0.3955438605 | BF87: 0.4270557919 | BG87: 0.4569249212 | BH87: 0.4852368922 | BI87: 0.5120728836 | BJ87: 0.5375098423 | BK87: 0.5616207036 | BL87: 0.5844746005 | BM87: 0.6061370621 | BN87: 0.6266702011 | BO87: 0.646132892 | BP87: 0.6645809403 | BQ87: 0.682067242 | BR87: 0.6986419355 | BS87: 0.7143525455 | BU87: 0.58 | BW87: 10 | BX87: 10 | BY87: 11 | BZ87: 12 | CA87: 12 | CB87: 13 | CC87: 13 | CD87: 14 | CE87: 15 | CF87: 15 | CG87: 16 | CH87: 16 | CI87: 17 | CJ87: 17 | CK87: 18 | CL87: 18 | CM87: 19 | CN87: 19 | CO87: 20
A88: Electricity | B88: =3412/1000000 -> 0.003412 | C88: MMBtu/kWh | AA88: Water Cooled Centrifugal, >300 ton | AC88: 0.31 | AE88: 0.3565380812 | AF88: 0.4165621319 | AG88: 0.4735965959 | AH88: 0.527790374 | AI88: 0.5792849509 | AJ88: 0.5792849509 | AK88: 0.6282147641 | AL88: 0.6747075555 | AM88: 0.7188847047 | AN88: 0.7608615456 | AO88: 0.7608615456 | AP88: 0.8007476677 | AQ88: 0.8385544186 | AR88: 0.8743902015 | AS88: 0.8743902015 | AT88: 0.9083577681 | AU88: 0.9405545138 | AV88: 0.9710727561 | AW88: 0.9710727561 | AY88: 0.33 | BA88: 0.36492891 | BB88: 0.3980368815 | BC88: 0.429418845 | BD88: 0.459164782 | BE88: 0.4873599829 | BF88: 0.5140852919 | BG88: 0.5394173383 | BH88: 0.5634287567 | BI88: 0.5861883949 | BJ88: 0.6077615118 | BK88: 0.6282099638 | BL88: 0.6475923827 | BM88: 0.6659643438 | BN88: 0.6833785249 | BO88: 0.6998848578 | BP88: 0.7155306709 | BQ88: 0.7303608255 | BR88: 0.744417844 | BS88: 0.7577420323 | BU88: 0.31 | BW88: 5 | BX88: 6 | BY88: 7 | BZ88: 8 | CA88: 9 | CB88: 9 | CC88: 10 | CD88: 11 | CE88: 12 | CF88: 13 | CG88: 13 | CH88: 14 | CI88: 15 | CJ88: 16 | CK88: 16 | CL88: 17 | CM88: 18 | CN88: 19 | CO88: 19
A89: Electricity site to source | B89: 2.55 | AA89: Water Cooled Centrifugal, 150-300 ton | AC89: 0.38 | AE89: 0.4165621319 | AF89: 0.4735965959 | AG89: 0.527790374 | AH89: 0.5792849509 | AI89: 0.5792849509 | AJ89: 0.6282147641 | AK89: 0.6747075555 | AL89: 0.7188847047 | AM89: 0.7188847047 | AN89: 0.7608615456 | AO89: 0.8007476677 | AP89: 0.8385544186 | AQ89: 0.8385544186 | AR89: 0.8743902015 | AS89: 0.9083577681 | AT89: 0.9083577681 | AU89: 0.9405545138 | AV89: 0.9710727561 | AW89: 0.9710727561 | AY89: 0.24 | BA89: 0.2796208531 | BB89: 0.3171761641 | BC89: 0.3527736152 | BD89: 0.3865152751 | BE89: 0.4184978911 | BF89: 0.4488131669 | BG89: 0.4775480255 | BH89: 0.5047848583 | BI89: 0.5306017614 | BJ89: 0.5550727596 | BK89: 0.5782680186 | BL89: 0.6002540461 | BM89: 0.6210938825 | BN89: 0.640847282 | BO89: 0.6595708834 | BP89: 0.6773183729 | BQ89: 0.6941406378 | BR89: 0.7100859126 | BS89: 0.7251999172 | BU89: 0.38 | BW89: 6 | BX89: 7 | BY89: 8 | BZ89: 9 | CA89: 9 | CB89: 10 | CC89: 11 | CD89: 12 | CE89: 12 | CF89: 13 | CG89: 14 | CH89: 15 | CI89: 15 | CJ89: 16 | CK89: 17 | CL89: 17 | CM89: 18 | CN89: 19 | CO89: 19
A90: Gas site to source | B90: 1.05 | AA90: Water Cooled Recriprocal | AC90: 0.15 | AE90: 0.2264739232 | AF90: 0.293367738 | AG90: 0.3565380812 | AH90: 0.4165621319 | AI90: 0.4735965959 | AJ90: 0.527790374 | AK90: 0.527790374 | AL90: 0.5792849509 | AM90: 0.6282147641 | AN90: 0.6747075555 | AO90: 0.7188847047 | AP90: 0.7608615456 | AQ90: 0.8007476677 | AR90: 0.8385544186 | AS90: 0.8743902015 | AT90: 0.9083577681 | AU90: 0.9083577681 | AV90: 0.9405545138 | AW90: 0.9710727561 | AY90: 0.03 | BA90: 0.08056872038 | BB90: 0.1285011568 | BC90: 0.1739347457 | BD90: 0.216999759 | BE90: 0.2578196768 | BF90: 0.296511542 | BG90: 0.3331862957 | BH90: 0.3679490955 | BI90: 0.4008996165 | BJ90: 0.432132338 | BK90: 0.4617368132 | BL90: 0.4897979272 | BM90: 0.5163961396 | BN90: 0.5416077152 | BO90: 0.5655049433 | BP90: 0.5881563444 | BQ90: 0.6096268667 | BR90: 0.6299780727 | BS90: 0.6492683154 | BU90: 0.15 | BW90: 3 | BX90: 4 | BY90: 5 | BZ90: 6 | CA90: 7 | CB90: 8 | CC90: 8 | CD90: 9 | CE90: 10 | CF90: 11 | CG90: 12 | CH90: 13 | CI90: 14 | CJ90: 15 | CK90: 16 | CL90: 17 | CM90: 17 | CN90: 18 | CO90: 19
A91: Oil site to source | B91: 1.01 | AA91: Water Cooled Screw, <150 ton | AC91: 0.37 | AE91: 0.4165621319 | AF91: 0.4735965959 | AG91: 0.527790374 | AH91: 0.5792849509 | AI91: 0.5792849509 | AJ91: 0.6282147641 | AK91: 0.6747075555 | AL91: 0.7188847047 | AM91: 0.7188847047 | AN91: 0.7608615456 | AO91: 0.8007476677 | AP91: 0.8385544186 | AQ91: 0.8385544186 | AR91: 0.8743902015 | AS91: 0.9083577681 | AT91: 0.9083577681 | AU91: 0.9405545138 | AV91: 0.9710727561 | AW91: 0.9710727561 | AY91: 0.16 | BA91: 0.2037914692 | BB91: 0.2452999708 | BC91: 0.2846445221 | BD91: 0.3219379356 | BE91: 0.3572871428 | BF91: 0.3907935003 | BG91: 0.4225530808 | BH91: 0.4526569486 | BI91: 0.4811914205 | BJ91: 0.5082383133 | BK91: 0.5338751785 | BL91: 0.5581755246 | BM91: 0.5812090281 | BN91: 0.6030417328 | BO91: 0.6237362396 | BP91: 0.6433518859 | BQ91: 0.6619449155 | BR91: 0.6795686403 | BS91: 0.6962735927 | BU91: 0.37 | BW91: 6 | BX91: 7 | BY91: 8 | BZ91: 9 | CA91: 9 | CB91: 10 | CC91: 11 | CD91: 12 | CE91: 12 | CF91: 13 | CG91: 14 | CH91: 15 | CI91: 15 | CJ91: 16 | CK91: 17 | CL91: 17 | CM91: 18 | CN91: 19 | CO91: 19
A92: Steam site to source | B92: 1.45 | AA92: Water Cooled Screw, >300 ton | AC92: 0.69 | AE92: 0.7188847047 | AF92: 0.7188847047 | AG92: 0.7608615456 | AH92: 0.7608615456 | AI92: 0.8007476677 | AJ92: 0.8007476677 | AK92: 0.8385544186 | AL92: 0.8385544186 | AM92: 0.8743902015 | AN92: 0.8743902015 | AO92: 0.9083577681 | AP92: 0.9083577681 | AQ92: 0.9405545138 | AR92: 0.9405545138 | AS92: 0.9405545138 | AT92: 0.9710727561 | AU92: 0.9710727561 | AV92: 0.9710727561 | AW92: 1 | AY92: 0.12 | BA92: 0.1658767773 | BB92: 0.2093618742 | BC92: 0.2505799755 | BD92: 0.2896492659 | BE92: 0.3266817686 | BF92: 0.3617836669 | BG92: 0.3950556085 | BH92: 0.4265929938 | BI92: 0.4564862501 | BJ92: 0.4848210901 | BK92: 0.5116787584 | BL92: 0.5371362639 | BM92: 0.5612666008 | BN92: 0.5841389581 | BO92: 0.6058189177 | BP92: 0.6263686423 | BQ92: 0.6458470543 | BR92: 0.6643100041 | BS92: 0.6818104304 | BU92: 0.69 | BW92: 12 | BX92: 12 | BY92: 13 | BZ92: 13 | CA92: 14 | CB92: 14 | CC92: 15 | CD92: 15 | CE92: 16 | CF92: 16 | CG92: 17 | CH92: 17 | CI92: 18 | CJ92: 18 | CK92: 18 | CL92: 19 | CM92: 19 | CN92: 19 | CO92: 20
A93: Propane site to source | B93: 1.01 | AA93: Water Cooled Screw, 150-300 ton | AC93: 0.31 | AE93: 0.3565380812 | AF93: 0.4165621319 | AG93: 0.4735965959 | AH93: 0.527790374 | AI93: 0.5792849509 | AJ93: 0.5792849509 | AK93: 0.6282147641 | AL93: 0.6747075555 | AM93: 0.7188847047 | AN93: 0.7608615456 | AO93: 0.7608615456 | AP93: 0.8007476677 | AQ93: 0.8385544186 | AR93: 0.8743902015 | AS93: 0.8743902015 | AT93: 0.9083577681 | AU93: 0.9405545138 | AV93: 0.9710727561 | AW93: 0.9710727561 | AY93: 0.13 | BA93: 0.1753554502 | BB93: 0.2183463983 | BC93: 0.2590961122 | BD93: 0.2977214333 | BE93: 0.3343331122 | BF93: 0.3690361253 | BG93: 0.4019299766 | BH93: 0.4331089825 | BI93: 0.4626625427 | BJ93: 0.4906753959 | BK93: 0.5172278634 | BL93: 0.5423960791 | BM93: 0.5662522076 | BN93: 0.5888646518 | BO93: 0.6102982481 | BP93: 0.6306144532 | BQ93: 0.6498715196 | BR93: 0.6681246632 | BS93: 0.685426221 | BU93: 0.31 | BW93: 5 | BX93: 6 | BY93: 7 | BZ93: 8 | CA93: 9 | CB93: 9 | CC93: 10 | CD93: 11 | CE93: 12 | CF93: 13 | CG93: 13 | CH93: 14 | CI93: 15 | CJ93: 16 | CK93: 16 | CL93: 17 | CM93: 18 | CN93: 19 | CO93: 19
A94: Other site to source | B94: ='Utility Info'!$C$19 -> 1 | AA94: Central AC/HP
AA95: SEER 14 | AC95: 0.19 | AE95: 0.2700765963 | AF95: 0.3498493735 | AG95: 0.4251818048 | AH95: 0.4967621929 | AI95: 0.5647774138 | AJ95: 0.5647774138 | AK95: 0.629405036 | AL95: 0.6908137838 | AM95: 0.7491639781 | AN95: 0.8046079545 | AO95: 0.8572904617 | AP95: 0.9073490386 | AQ95: 0.9073490386 | AR95: 0.954914374 | AY95: 0.1 | BA95: 0.1469194313 | BB95: 0.1913928259 | BC95: 0.2335477022 | BD95: 0.273504931 | BE95: 0.3113790815 | BF95: 0.3472787503 | BG95: 0.3813068723 | BH95: 0.4135610164 | BI95: 0.4441336648 | BJ95: 0.4731124785 | BK95: 0.5005805484 | BL95: 0.5266166335 | BM95: 0.5512953872 | BN95: 0.5746875708 | BU95: 0.19 | BW95: 3 | BX95: 4 | BY95: 5 | BZ95: 6 | CA95: 7 | CB95: 7 | CC95: 8 | CD95: 9 | CE95: 10 | CF95: 11 | CG95: 12 | CH95: 13 | CI95: 13 | CJ95: 14
AA96: SEER 15 | AC96: 0.31 | AE96: 0.3498493735 | AF96: 0.4251818048 | AG96: 0.4967621929 | AH96: 0.5647774138 | AI96: 0.629405036 | AJ96: 0.629405036 | AK96: 0.6908137838 | AL96: 0.7491639781 | AM96: 0.8046079545 | AN96: 0.8046079545 | AO96: 0.8572904617 | AP96: 0.9073490386 | AQ96: 0.954914374 | AR96: 0.954914374 | AY96: 0.2 | BA96: 0.2417061611 | BB96: 0.2812380674 | BC96: 0.3187090687 | BD96: 0.3542266054 | BE96: 0.3878925169 | BF96: 0.4198033336 | BG96: 0.4500505532 | BH96: 0.4787209035 | BI96: 0.505896591 | BJ96: 0.5316555365 | BK96: 0.5560715985 | BL96: 0.5792147853 | BM96: 0.6011514553 | BN96: 0.6219445074 | BU96: 0.31 | BW96: 4 | BX96: 5 | BY96: 6 | BZ96: 7 | CA96: 8 | CB96: 8 | CC96: 9 | CD96: 10 | CE96: 11 | CF96: 11 | CG96: 12 | CH96: 13 | CI96: 14 | CJ96: 14
AA97: SEER 16 | AC97: 0.38 | AE97: 0.4967621929 | AF97: 0.4967621929 | AG97: 0.5647774138 | AH97: 0.5647774138 | AI97: 0.629405036 | AJ97: 0.6908137838 | AK97: 0.7491639781 | AL97: 0.7491639781 | AM97: 0.8046079545 | AN97: 0.8572904617 | AO97: 0.8572904617 | AP97: 0.9073490386 | AQ97: 0.954914374 | AR97: 0.954914374 | AY97: 0.26 | BA97: 0.2985781991 | BB97: 0.3351452124 | BC97: 0.3698058885 | BD97: 0.40265961 | BE97: 0.4338005782 | BF97: 0.4633180836 | BG97: 0.4912967617 | BH97: 0.5178168357 | BI97: 0.5429543466 | BJ97: 0.5667813712 | BK97: 0.5893662286 | BL97: 0.6107736764 | BM97: 0.6310650962 | BN97: 0.6502986693 | BU97: 0.38 | BW97: 6 | BX97: 6 | BY97: 7 | BZ97: 7 | CA97: 8 | CB97: 9 | CC97: 10 | CD97: 10 | CE97: 11 | CF97: 12 | CG97: 12 | CH97: 13 | CI97: 14 | CJ97: 14
AA98: SEER 17 | AC98: 0.44 | AE98: 0.4967621929 | AF98: 0.5647774138 | AG98: 0.5647774138 | AH98: 0.629405036 | AI98: 0.6908137838 | AJ98: 0.6908137838 | AK98: 0.7491639781 | AL98: 0.8046079545 | AM98: 0.8046079545 | AN98: 0.8572904617 | AO98: 0.9073490386 | AP98: 0.9073490386 | AQ98: 0.954914374 | AR98: 0.954914374 | AY98: 0.31 | BA98: 0.345971564 | BB98: 0.3800678332 | BC98: 0.4123865717 | BD98: 0.4430204471 | BE98: 0.4720572958 | BF98: 0.4995803752 | BG98: 0.5256686021 | BH98: 0.5503967792 | BI98: 0.5738358097 | BJ98: 0.5960529002 | BK98: 0.6171117537 | BL98: 0.6370727524 | BM98: 0.6559931302 | BN98: 0.6739271376 | BU98: 0.44 | BW98: 6 | BX98: 7 | BY98: 7 | BZ98: 8 | CA98: 9 | CB98: 9 | CC98: 10 | CD98: 11 | CE98: 11 | CF98: 12 | CG98: 13 | CH98: 13 | CI98: 14 | CJ98: 14
AA99: SEER 18 | AC99: 0.48 | AE99: 0.5647774138 | AF99: 0.5647774138 | AG99: 0.629405036 | AH99: 0.6908137838 | AI99: 0.6908137838 | AJ99: 0.7491639781 | AK99: 0.7491639781 | AL99: 0.8046079545 | AM99: 0.8572904617 | AN99: 0.8572904617 | AO99: 0.9073490386 | AP99: 0.9073490386 | AQ99: 0.954914374 | AR99: 0.954914374 | AY99: 0.37 | BA99: 0.4028436019 | BB99: 0.4339749781 | BC99: 0.4634833916 | BD99: 0.4914534517 | BE99: 0.5179653571 | BF99: 0.5430951252 | BG99: 0.5669148106 | BH99: 0.5894927115 | BI99: 0.6108935654 | BJ99: 0.631178735 | BK99: 0.6504063838 | BL99: 0.6686316435 | BM99: 0.6859067711 | BN99: 0.7022812996 | BU99: 0.48 | BW99: 7 | BX99: 7 | BY99: 8 | BZ99: 9 | CA99: 9 | CB99: 10 | CC99: 10 | CD99: 11 | CE99: 12 | CF99: 12 | CG99: 13 | CH99: 13 | CI99: 14 | CJ99: 14

Sheet TRC Test (hidden)
A1: TRC Test Calculations
P2: PV Calculations for TRC Test
B3: Values for TRC Test | P3: COST BENEFITS | W3: COST REDUCTION | AG3: TRC Test Side/Interim Calcs:
B4: Measure Name | D4: Measure Classification | E4: Type of Installation | F4: Ratio of Incremental Savings to Full Savings | G4: Ratio of Incremental Costs to Full Costs | H4: Artificial Lifecycle Benefit Adjusment Factor (Savings) | I4: Full Cost Adjustment Factor | J4: Inflated Lifecycle Benefits | K4: Adjusted Lifecycle Benefits | L4: Full Cost | M4: Adjusted Full Cost | N4: Adjusted EUL (years) | P4: PV of Cooling kWh Savings | Q4: PV of Non-Cooling kWh Savings | R4: PV of kW Savings | S4: PV of Gas Heating MMBtu Savings | T4: PV of Gas Non-Heating MMBtu Savings | U4: PV of Electric CO2 | V4: PV of Gas CO2 | W4: Sum MMBtu Savings | X4: PV of Propane MMBtu Savings | Y4: PV of Oil MMBtu Savings | Z4: PV of Steam MMBtu Savings | AA4: PV of Other MMBtu Savings | AB4: PV of Water Savings | AC4: PV of O&M Savings | AD4: PV of Full Savings | AE4: PV of "Other" Costs | AG4: RUL | AH4: Full Savings (MMBtu) | AI4: Full or Incremental Savings | AJ4: Measure Life for PV Calcs | AK4: Ratio RUL/EUL | AL4: SC? | AM4: Vlookup Value - Savings | AN4: Vlookup Value - Cost | AO4: Vlookup Value - EUL | AP4: LRAC kWh Multiplier
B6: 1 | C6: ='Measure Summary'!C8 ->  | D6: ='Measure Summary'!E8 ->  | E6: =IF(AI6="Full","AO",IF(AG6="","",IF(AL6="Y","SC",IF(AG6>0,"ER","NR")))) ->  | F6: =IF(D6="","",IF(OR(E6="NR",E6="ER",E6="SC"),VLOOKUP(D6,MeasureQCData,29,FALSE),"")) ->  | G6: =IF(D6="","",IF(OR(E6="NR",E6="ER",E6="SC"),VLOOKUP(D6,MeasureQCData,51,FALSE),"")) ->  | H6: =IF(E6="",0,IF($E6="AO",1,VLOOKUP($D6,MeasureQCData,AM6,FALSE))) -> 0 | I6: =IF(E6="",0,IF($E6="AO",1,VLOOKUP($D6,MeasureQCData,AN6,FALSE))) -> 0 | J6: =AD6 -> 0 | K6: =IF(H6=0,AD6,IF(AD6*H6<0,0,AD6*H6)) -> 0 | L6: =AE6 -> 1e-05 | M6: =IF(I6=0,AE6,I6*AE6) -> 1e-05 | N6: =IF(E6="",0,IF(OR($E6="AO",$E6="NR"),'Measure Summary'!AA8,VLOOKUP($D6,MeasureQCData,AO6,FALSE))) -> 0 | P6: =IF($C6="",0,IF(OR(MIN('Measure Summary'!I8,$AJ6)=0,OR(ElecUtility="",ElecUtility=0,ElecUtility="<Select One>"))=TRUE,0,1.1*'Measure Summary'!I8*HLOOKUP($AJ6,AvoidedCostTable,$E$38))) -> 0 | Q6: =IF($C6="",0,IF(OR(MIN('Measure Summary'!J8,$AJ6)=0,OR(ElecUtility="",ElecUtility=0,ElecUtility="<Select One>"))=TRUE,0,'Measure Summary'!J8*HLOOKUP($AJ6,AvoidedCostTable,$E$38)*$AP6)) -> 0 | R6: =IF($C6="",0,IF(OR(MIN('Measure Summary'!$K8,$AJ6)=0,OR(ElecUtility="",ElecUtility=0,ElecUtility="<Select One>"))=TRUE,0,'Measure Summary'!$K8*HLOOKUP($AJ6,AvoidedCostTable,$E$39,FALSE))) -> 0 | S6: =IF($C6="",0,IF('Measure Summary'!N8<>"Natural Gas",0,IF(MIN('Measure Summary'!G8,$AJ6)=0,0,'Measure Summary'!G8*HLOOKUP($AJ6,AvoidedCostTable,$E$40)))) -> 0 | T6: =IF($C6="",0,IF('Measure Summary'!N8<>"Natural Gas",0,IF(MIN('Measure Summary'!H8,$AJ6)=0,0,'Measure Summary'!H8*HLOOKUP($AJ6,AvoidedCostTable,$E$40)))) -> 0 | U6: =IF(OR(N($P6+$Q6)=0,N($AJ6)=0)=TRUE,0,HLOOKUP($AJ6,AvoidedCostTable,12,FALSE)*('Measure Summary'!I8+'Measure Summary'!J8)) -> 0 | V6: =IF(OR(N($S6+$T6)=0,N($AJ6)=0)=TRUE,0,HLOOKUP($AJ6,AvoidedCostTable,13,FALSE)*($W6)) -> 0 | W6: ='Measure Summary'!G8+'Measure Summary'!H8 -> 0 | X6: =IF($C6="",0,IF('Measure Summary'!N8<>"Propane",0,IF(MIN('Measure Summary'!G8+'Measure Summary'!H8,$AJ6)=0,0,-PV($D$42,$AJ6,('Measure Summary'!G8+'Measure Summary'!H8))*$D$45))) -> 0 | Y6: =IF($C6="",0,IF('Measure Summary'!N8<>"Fuel Oil",0,IF(MIN('Measure Summary'!G8+'Measure Summary'!H8,$AJ6)=0,0,-PV($D$42,$AJ6,('Measure Summary'!G8+'Measure Summary'!H8))*$E$45))) -> 0 | Z6: =IF($C6="",0,IF('Measure Summary'!N8<>"Steam",0,IF(MIN('Measure Summary'!G8+'Measure Summary'!H8,$AJ6)=0,0,-PV($D$42,$AJ6,('Measure Summary'!G8+'Measure Summary'!H8))*$F$45))) -> 0 | AA6: =IF($C6="",0,IF('Measure Summary'!N8<>'Utility Info'!$B$19,0,IF(MIN('Measure Summary'!G8+'Measure Summary'!H8,$AJ6)=0,0,-PV($D$42,$AJ6,('Measure Summary'!G8+'Measure Summary'!H8))*$G$45))) -> 0 | AB6: =IF(OR(N('Measure Summary'!$L8)=0,N($AJ6)=0)=TRUE,0,-PV('TRC Test'!$D$42,'Measure Summary'!$AA$8,'Measure Summary'!$L8*'Measure Summary'!$P8)) -> 0 | AC6: =IF(N($AJ6)=0,0,-PV($D$42,$AJ6,'Measure Summary'!$M8)) -> 0 | AD6: =MAX(SUM($P6:$V6),0) -> 0 | AE6: =IF(OR($D6=Calcs!$A$42,$D6=Calcs!$A$24,$D6=Calcs!$A$56,$D6=Calcs!$A$21,$D6=Calcs!$A$27)=TRUE,'Measure Summary'!$F8/'Measure Summary'!$AA8*$AJ6,'Measure Summary'!$F8-SUM($X6:$AC6))+0.00001 -> 1e-05 | AG6: =IF($AI6="Inc",'Measure Summary'!$AA8-(YEAR(TODAY())-'Measure Summary'!$AC8),"") ->  | AH6: =SUM('Measure Summary'!$G8:$H8)+SUM('Measure Summary'!$I8:$J8)*3412/1000000 -> 0 | AI6: =IF($D6="","",VLOOKUP($D6,MeasureQCData,27,FALSE)) ->  | AJ6: =IF(OR($D6=Calcs!$A$42,$D6=Calcs!$A$24,$D6=Calcs!$A$56,$D6=Calcs!$A$21,$D6=Calcs!$A$27)=TRUE,IF($AG6<-3.75,4,IF($AG6<0,ROUND('Measure Summary'!$AA8,0),$AG6)),ROUND(IF(N('Measure Summary'!$AA8)=0,0,'Measure Summary'!$AA8),0)) -> 0 | AK6: =IF(OR($AI6="Full",$AI6=""),"",IF($AG6>=0,0,-$AG6/'Measure Summary'!$AA8)) ->  | AL6: =IF($D6="","",IF(AND(VLOOKUP($D6,MeasureQCData,28,FALSE)="Y",$AK6>0.249),"Y","N")) ->  | AM6: =IF($E6="NR",29,IF($E6="SC",30,IF($E6="ER",$AG6+30,""))) ->  | AN6: =IF($E6="NR",51,IF($E6="SC",52,IF($E6="ER",$AG6+52,""))) ->  | AO6: =IF($E6="NR",73,IF($E6="SC",74,IF($E6="ER",$AG6+74,""))) ->  | AP6: =IF($D$38="Upstate",VLOOKUP($D6,MeasureQCData,96,FALSE),IF($D$38="NYC",VLOOKUP($D6,MeasureQCData,97,FALSE),IF($D$38="Lower Hudson",VLOOKUP($D6,MeasureQCData,98,FALSE),""))) -> 
B7: 2 | C7: ='Measure Summary'!C9 ->  | D7: ='Measure Summary'!E9 ->  | F7: =IF(D7="","",IF(OR(E7="NR",E7="ER",E7="SC"),VLOOKUP(D7,MeasureQCData,29,FALSE),"")) ->  | H7: 0 | I7: 0 | J7: =AD7 -> 0 | K7: 0 | L7: =AE7 -> 1e-05 | M7: 1e-05 | N7: =IF(E7="",0,IF(OR($E7="AO",$E7="NR"),'Measure Summary'!AA9,VLOOKUP($D7,MeasureQCData,AO7,FALSE))) -> 0 | P7: =IF($C7="",0,IF(OR(MIN('Measure Summary'!I9,$AJ7)=0,OR(ElecUtility="",ElecUtility=0,ElecUtility="<Select One>"))=TRUE,0,1.1*'Measure Summary'!I9*HLOOKUP($AJ7,AvoidedCostTable,$E$38))) -> 0 | Q7: =IF($C7="",0,IF(OR(MIN('Measure Summary'!J9,$AJ7)=0,OR(ElecUtility="",ElecUtility=0,ElecUtility="<Select One>"))=TRUE,0,'Measure Summary'!J9*HLOOKUP($AJ7,AvoidedCostTable,$E$38)*$AP7)) -> 0 | R7: =IF($C7="",0,IF(OR(MIN('Measure Summary'!$K9,$AJ7)=0,OR(ElecUtility="",ElecUtility=0,ElecUtility="<Select One>"))=TRUE,0,'Measure Summary'!$K9*HLOOKUP($AJ7,AvoidedCostTable,$E$39,FALSE))) -> 0 | S7: =IF($C7="",0,IF('Measure Summary'!N9<>"Natural Gas",0,IF(MIN('Measure Summary'!G9,$AJ7)=0,0,'Measure Summary'!G9*HLOOKUP($AJ7,AvoidedCostTable,$E$40)))) -> 0 | T7: =IF($C7="",0,IF('Measure Summary'!N9<>"Natural Gas",0,IF(MIN('Measure Summary'!H9,$AJ7)=0,0,'Measure Summary'!H9*HLOOKUP($AJ7,AvoidedCostTable,$E$40)))) -> 0 | U7: =IF(OR(N($P7+$Q7)=0,N($AJ7)=0)=TRUE,0,HLOOKUP($AJ7,AvoidedCostTable,12,FALSE)*('Measure Summary'!I9+'Measure Summary'!J9)) -> 0 | V7: 0 | W7: ='Measure Summary'!G9+'Measure Summary'!H9 -> 0 | X7: =IF($C7="",0,IF('Measure Summary'!N9<>"Propane",0,IF(MIN('Measure Summary'!G9+'Measure Summary'!H9,$AJ7)=0,0,-PV($D$42,$AJ7,('Measure Summary'!G9+'Measure Summary'!H9))*$D$45))) -> 0 | Y7: =IF($C7="",0,IF('Measure Summary'!N9<>"Fuel Oil",0,IF(MIN('Measure Summary'!G9+'Measure Summary'!H9,$AJ7)=0,0,-PV($D$42,$AJ7,('Measure Summary'!G9+'Measure Summary'!H9))*$E$45))) -> 0 | Z7: =IF($C7="",0,IF('Measure Summary'!N9<>"Steam",0,IF(MIN('Measure Summary'!G9+'Measure Summary'!H9,$AJ7)=0,0,-PV($D$42,$AJ7,('Measure Summary'!G9+'Measure Summary'!H9))*$F$45))) -> 0 | AA7: =IF($C7="",0,IF('Measure Summary'!N9<>'Utility Info'!$B$19,0,IF(MIN('Measure Summary'!G9+'Measure Summary'!H9,$AJ7)=0,0,-PV($D$42,$AJ7,('Measure Summary'!G9+'Measure Summary'!H9))*$G$45))) -> 0 | AB7: =IF(OR(N('Measure Summary'!$L9)=0,N($AJ7)=0)=TRUE,0,-PV('TRC Test'!$D$42,'Measure Summary'!$AA$8,'Measure Summary'!$L9*'Measure Summary'!$P9)) -> 0 | AC7: =IF(N($AJ7)=0,0,-PV($D$42,$AJ7,'Measure Summary'!$M9)) -> 0 | AD7: =MAX(SUM($P7:$V7),0) -> 0 | AE7: =IF(OR($D7=Calcs!$A$42,$D7=Calcs!$A$24,$D7=Calcs!$A$56,$D7=Calcs!$A$21,$D7=Calcs!$A$27)=TRUE,'Measure Summary'!$F9/'Measure Summary'!$AA9*$AJ7,'Measure Summary'!$F9-SUM($X7:$AC7))+0.00001 -> 1e-05 | AG7: =IF($AI7="Inc",'Measure Summary'!$AA9-(YEAR(TODAY())-'Measure Summary'!$AC9),"") ->  | AH7: =SUM('Measure Summary'!$G9:$H9)+SUM('Measure Summary'!$I9:$J9)*3412/1000000 -> 0 | AJ7: =IF(OR($D7=Calcs!$A$42,$D7=Calcs!$A$24,$D7=Calcs!$A$56,$D7=Calcs!$A$21,$D7=Calcs!$A$27)=TRUE,IF($AG7<-3.75,4,IF($AG7<0,ROUND('Measure Summary'!$AA9,0),$AG7)),ROUND(IF(N('Measure Summary'!$AA9)=0,0,'Measure Summary'!$AA9),0)) -> 0 | AK7: =IF(OR($AI7="Full",$AI7=""),"",IF($AG7>=0,0,-$AG7/'Measure Summary'!$AA9)) -> 
B8: 3 | C8: ='Measure Summary'!C10 ->  | D8: ='Measure Summary'!E10 ->  | H8: 0 | I8: 0 | J8: 0 | K8: 0 | L8: =AE8 -> 1e-05 | M8: 1e-05 | N8: =IF(E8="",0,IF(OR($E8="AO",$E8="NR"),'Measure Summary'!AA10,VLOOKUP($D8,MeasureQCData,AO8,FALSE))) -> 0 | P8: =IF($C8="",0,IF(OR(MIN('Measure Summary'!I10,$AJ8)=0,OR(ElecUtility="",ElecUtility=0,ElecUtility="<Select One>"))=TRUE,0,1.1*'Measure Summary'!I10*HLOOKUP($AJ8,AvoidedCostTable,$E$38))) -> 0 | Q8: =IF($C8="",0,IF(OR(MIN('Measure Summary'!J10,$AJ8)=0,OR(ElecUtility="",ElecUtility=0,ElecUtility="<Select One>"))=TRUE,0,'Measure Summary'!J10*HLOOKUP($AJ8,AvoidedCostTable,$E$38)*$AP8)) -> 0 | R8: =IF($C8="",0,IF(OR(MIN('Measure Summary'!$K10,$AJ8)=0,OR(ElecUtility="",ElecUtility=0,ElecUtility="<Select One>"))=TRUE,0,'Measure Summary'!$K10*HLOOKUP($AJ8,AvoidedCostTable,$E$39,FALSE))) -> 0 | S8: =IF($C8="",0,IF('Measure Summary'!N10<>"Natural Gas",0,IF(MIN('Measure Summary'!G10,$AJ8)=0,0,'Measure Summary'!G10*HLOOKUP($AJ8,AvoidedCostTable,$E$40)))) -> 0 | T8: =IF($C8="",0,IF('Measure Summary'!N10<>"Natural Gas",0,IF(MIN('Measure Summary'!H10,$AJ8)=0,0,'Measure Summary'!H10*HLOOKUP($AJ8,AvoidedCostTable,$E$40)))) -> 0 | U8: =IF(OR(N($P8+$Q8)=0,N($AJ8)=0)=TRUE,0,HLOOKUP($AJ8,AvoidedCostTable,12,FALSE)*('Measure Summary'!I10+'Measure Summary'!J10)) -> 0 | V8: 0 | W8: ='Measure Summary'!G10+'Measure Summary'!H10 -> 0 | X8: =IF($C8="",0,IF('Measure Summary'!N10<>"Propane",0,IF(MIN('Measure Summary'!G10+'Measure Summary'!H10,$AJ8)=0,0,-PV($D$42,$AJ8,('Measure Summary'!G10+'Measure Summary'!H10))*$D$45))) -> 0 | Y8: =IF($C8="",0,IF('Measure Summary'!N10<>"Fuel Oil",0,IF(MIN('Measure Summary'!G10+'Measure Summary'!H10,$AJ8)=0,0,-PV($D$42,$AJ8,('Measure Summary'!G10+'Measure Summary'!H10))*$E$45))) -> 0 | Z8: =IF($C8="",0,IF('Measure Summary'!N10<>"Steam",0,IF(MIN('Measure Summary'!G10+'Measure Summary'!H10,$AJ8)=0,0,-PV($D$42,$AJ8,('Measure Summary'!G10+'Measure Summary'!H10))*$F$45))) -> 0 | AA8: =IF($C8="",0,IF('Measure Summary'!N10<>'Utility Info'!$B$19,0,IF(MIN('Measure Summary'!G10+'Measure Summary'!H10,$AJ8)=0,0,-PV($D$42,$AJ8,('Measure Summary'!G10+'Measure Summary'!H10))*$G$45))) -> 0 | AB8: =IF(OR(N('Measure Summary'!$L10)=0,N($AJ8)=0)=TRUE,0,-PV('TRC Test'!$D$42,'Measure Summary'!$AA$8,'Measure Summary'!$L10*'Measure Summary'!$P10)) -> 0 | AC8: =IF(N($AJ8)=0,0,-PV($D$42,$AJ8,'Measure Summary'!$M10)) -> 0 | AD8: 0 | AE8: =IF(OR($D8=Calcs!$A$42,$D8=Calcs!$A$24,$D8=Calcs!$A$56,$D8=Calcs!$A$21,$D8=Calcs!$A$27)=TRUE,'Measure Summary'!$F10/'Measure Summary'!$AA10*$AJ8,'Measure Summary'!$F10-SUM($X8:$AC8))+0.00001 -> 1e-05 | AG8: =IF($AI8="Inc",'Measure Summary'!$AA10-(YEAR(TODAY())-'Measure Summary'!$AC10),"") ->  | AH8: =SUM('Measure Summary'!$G10:$H10)+SUM('Measure Summary'!$I10:$J10)*3412/1000000 -> 0 | AJ8: =IF(OR($D8=Calcs!$A$42,$D8=Calcs!$A$24,$D8=Calcs!$A$56,$D8=Calcs!$A$21,$D8=Calcs!$A$27)=TRUE,IF($AG8<-3.75,4,IF($AG8<0,ROUND('Measure Summary'!$AA10,0),$AG8)),ROUND(IF(N('Measure Summary'!$AA10)=0,0,'Measure Summary'!$AA10),0)) -> 0 | AK8: =IF(OR($AI8="Full",$AI8=""),"",IF($AG8>=0,0,-$AG8/'Measure Summary'!$AA10)) -> 
B9: 4 | C9: ='Measure Summary'!C11 ->  | D9: ='Measure Summary'!E11 ->  | H9: 0 | I9: 0 | J9: 0 | K9: 0 | L9: 1e-05 | M9: 1e-05 | N9: =IF(E9="",0,IF(OR($E9="AO",$E9="NR"),'Measure Summary'!AA11,VLOOKUP($D9,MeasureQCData,AO9,FALSE))) -> 0 | P9: =IF($C9="",0,IF(OR(MIN('Measure Summary'!I11,$AJ9)=0,OR(ElecUtility="",ElecUtility=0,ElecUtility="<Select One>"))=TRUE,0,1.1*'Measure Summary'!I11*HLOOKUP($AJ9,AvoidedCostTable,$E$38))) -> 0 | Q9: =IF($C9="",0,IF(OR(MIN('Measure Summary'!J11,$AJ9)=0,OR(ElecUtility="",ElecUtility=0,ElecUtility="<Select One>"))=TRUE,0,'Measure Summary'!J11*HLOOKUP($AJ9,AvoidedCostTable,$E$38)*$AP9)) -> 0 | R9: =IF($C9="",0,IF(OR(MIN('Measure Summary'!$K11,$AJ9)=0,OR(ElecUtility="",ElecUtility=0,ElecUtility="<Select One>"))=TRUE,0,'Measure Summary'!$K11*HLOOKUP($AJ9,AvoidedCostTable,$E$39,FALSE))) -> 0 | S9: =IF($C9="",0,IF('Measure Summary'!N11<>"Natural Gas",0,IF(MIN('Measure Summary'!G11,$AJ9)=0,0,'Measure Summary'!G11*HLOOKUP($AJ9,AvoidedCostTable,$E$40)))) -> 0 | T9: =IF($C9="",0,IF('Measure Summary'!N11<>"Natural Gas",0,IF(MIN('Measure Summary'!H11,$AJ9)=0,0,'Measure Summary'!H11*HLOOKUP($AJ9,AvoidedCostTable,$E$40)))) -> 0 | U9: =IF(OR(N($P9+$Q9)=0,N($AJ9)=0)=TRUE,0,HLOOKUP($AJ9,AvoidedCostTable,12,FALSE)*('Measure Summary'!I11+'Measure Summary'!J11)) -> 0 | V9: 0 | W9: ='Measure Summary'!G11+'Measure Summary'!H11 -> 0 | X9: =IF($C9="",0,IF('Measure Summary'!N11<>"Propane",0,IF(MIN('Measure Summary'!G11+'Measure Summary'!H11,$AJ9)=0,0,-PV($D$42,$AJ9,('Measure Summary'!G11+'Measure Summary'!H11))*$D$45))) -> 0 | Y9: =IF($C9="",0,IF('Measure Summary'!N11<>"Fuel Oil",0,IF(MIN('Measure Summary'!G11+'Measure Summary'!H11,$AJ9)=0,0,-PV($D$42,$AJ9,('Measure Summary'!G11+'Measure Summary'!H11))*$E$45))) -> 0 | Z9: =IF($C9="",0,IF('Measure Summary'!N11<>"Steam",0,IF(MIN('Measure Summary'!G11+'Measure Summary'!H11,$AJ9)=0,0,-PV($D$42,$AJ9,('Measure Summary'!G11+'Measure Summary'!H11))*$F$45))) -> 0 | AA9: =IF($C9="",0,IF('Measure Summary'!N11<>'Utility Info'!$B$19,0,IF(MIN('Measure Summary'!G11+'Measure Summary'!H11,$AJ9)=0,0,-PV($D$42,$AJ9,('Measure Summary'!G11+'Measure Summary'!H11))*$G$45))) -> 0 | AB9: =IF(OR(N('Measure Summary'!$L11)=0,N($AJ9)=0)=TRUE,0,-PV('TRC Test'!$D$42,'Measure Summary'!$AA$8,'Measure Summary'!$L11*'Measure Summary'!$P11)) -> 0 | AC9: =IF(N($AJ9)=0,0,-PV($D$42,$AJ9,'Measure Summary'!$M11)) -> 0 | AD9: 0 | AE9: =IF(OR($D9=Calcs!$A$42,$D9=Calcs!$A$24,$D9=Calcs!$A$56,$D9=Calcs!$A$21,$D9=Calcs!$A$27)=TRUE,'Measure Summary'!$F11/'Measure Summary'!$AA11*$AJ9,'Measure Summary'!$F11-SUM($X9:$AC9))+0.00001 -> 1e-05 | AG9: =IF($AI9="Inc",'Measure Summary'!$AA11-(YEAR(TODAY())-'Measure Summary'!$AC11),"") ->  | AH9: =SUM('Measure Summary'!$G11:$H11)+SUM('Measure Summary'!$I11:$J11)*3412/1000000 -> 0 | AJ9: =IF(OR($D9=Calcs!$A$42,$D9=Calcs!$A$24,$D9=Calcs!$A$56,$D9=Calcs!$A$21,$D9=Calcs!$A$27)=TRUE,IF($AG9<-3.75,4,IF($AG9<0,ROUND('Measure Summary'!$AA11,0),$AG9)),ROUND(IF(N('Measure Summary'!$AA11)=0,0,'Measure Summary'!$AA11),0)) -> 0 | AK9: =IF(OR($AI9="Full",$AI9=""),"",IF($AG9>=0,0,-$AG9/'Measure Summary'!$AA11)) -> 
B10: 5 | C10: ='Measure Summary'!C12 ->  | D10: ='Measure Summary'!E12 ->  | H10: 0 | I10: 0 | J10: 0 | K10: 0 | L10: 1e-05 | M10: 1e-05 | N10: =IF(E10="",0,IF(OR($E10="AO",$E10="NR"),'Measure Summary'!AA12,VLOOKUP($D10,MeasureQCData,AO10,FALSE))) -> 0 | P10: =IF($C10="",0,IF(OR(MIN('Measure Summary'!I12,$AJ10)=0,OR(ElecUtility="",ElecUtility=0,ElecUtility="<Select One>"))=TRUE,0,1.1*'Measure Summary'!I12*HLOOKUP($AJ10,AvoidedCostTable,$E$38))) -> 0 | Q10: =IF($C10="",0,IF(OR(MIN('Measure Summary'!J12,$AJ10)=0,OR(ElecUtility="",ElecUtility=0,ElecUtility="<Select One>"))=TRUE,0,'Measure Summary'!J12*HLOOKUP($AJ10,AvoidedCostTable,$E$38)*$AP10)) -> 0 | R10: =IF($C10="",0,IF(OR(MIN('Measure Summary'!$K12,$AJ10)=0,OR(ElecUtility="",ElecUtility=0,ElecUtility="<Select One>"))=TRUE,0,'Measure Summary'!$K12*HLOOKUP($AJ10,AvoidedCostTable,$E$39,FALSE))) -> 0 | S10: =IF($C10="",0,IF('Measure Summary'!N12<>"Natural Gas",0,IF(MIN('Measure Summary'!G12,$AJ10)=0,0,'Measure Summary'!G12*HLOOKUP($AJ10,AvoidedCostTable,$E$40)))) -> 0 | T10: =IF($C10="",0,IF('Measure Summary'!N12<>"Natural Gas",0,IF(MIN('Measure Summary'!H12,$AJ10)=0,0,'Measure Summary'!H12*HLOOKUP($AJ10,AvoidedCostTable,$E$40)))) -> 0 | U10: =IF(OR(N($P10+$Q10)=0,N($AJ10)=0)=TRUE,0,HLOOKUP($AJ10,AvoidedCostTable,12,FALSE)*('Measure Summary'!I12+'Measure Summary'!J12)) -> 0 | V10: 0 | W10: ='Measure Summary'!G12+'Measure Summary'!H12 -> 0 | X10: =IF($C10="",0,IF('Measure Summary'!N12<>"Propane",0,IF(MIN('Measure Summary'!G12+'Measure Summary'!H12,$AJ10)=0,0,-PV($D$42,$AJ10,('Measure Summary'!G12+'Measure Summary'!H12))*$D$45))) -> 0 | Y10: =IF($C10="",0,IF('Measure Summary'!N12<>"Fuel Oil",0,IF(MIN('Measure Summary'!G12+'Measure Summary'!H12,$AJ10)=0,0,-PV($D$42,$AJ10,('Measure Summary'!G12+'Measure Summary'!H12))*$E$45))) -> 0 | Z10: =IF($C10="",0,IF('Measure Summary'!N12<>"Steam",0,IF(MIN('Measure Summary'!G12+'Measure Summary'!H12,$AJ10)=0,0,-PV($D$42,$AJ10,('Measure Summary'!G12+'Measure Summary'!H12))*$F$45))) -> 0 | AA10: =IF($C10="",0,IF('Measure Summary'!N12<>'Utility Info'!$B$19,0,IF(MIN('Measure Summary'!G12+'Measure Summary'!H12,$AJ10)=0,0,-PV($D$42,$AJ10,('Measure Summary'!G12+'Measure Summary'!H12))*$G$45))) -> 0 | AB10: =IF(OR(N('Measure Summary'!$L12)=0,N($AJ10)=0)=TRUE,0,-PV('TRC Test'!$D$42,'Measure Summary'!$AA$8,'Measure Summary'!$L12*'Measure Summary'!$P12)) -> 0 | AC10: =IF(N($AJ10)=0,0,-PV($D$42,$AJ10,'Measure Summary'!$M12)) -> 0 | AD10: 0 | AE10: =IF(OR($D10=Calcs!$A$42,$D10=Calcs!$A$24,$D10=Calcs!$A$56,$D10=Calcs!$A$21,$D10=Calcs!$A$27)=TRUE,'Measure Summary'!$F12/'Measure Summary'!$AA12*$AJ10,'Measure Summary'!$F12-SUM($X10:$AC10))+0.00001 -> 1e-05 | AG10: =IF($AI10="Inc",'Measure Summary'!$AA12-(YEAR(TODAY())-'Measure Summary'!$AC12),"") ->  | AH10: =SUM('Measure Summary'!$G12:$H12)+SUM('Measure Summary'!$I12:$J12)*3412/1000000 -> 0 | AJ10: =IF(OR($D10=Calcs!$A$42,$D10=Calcs!$A$24,$D10=Calcs!$A$56,$D10=Calcs!$A$21,$D10=Calcs!$A$27)=TRUE,IF($AG10<-3.75,4,IF($AG10<0,ROUND('Measure Summary'!$AA12,0),$AG10)),ROUND(IF(N('Measure Summary'!$AA12)=0,0,'Measure Summary'!$AA12),0)) -> 0 | AK10: =IF(OR($AI10="Full",$AI10=""),"",IF($AG10>=0,0,-$AG10/'Measure Summary'!$AA12)) -> 
B11: 6 | C11: ='Measure Summary'!C13 ->  | D11: ='Measure Summary'!E13 ->  | H11: 0 | I11: 0 | J11: 0 | K11: 0 | L11: 1e-05 | M11: 1e-05 | N11: =IF(E11="",0,IF(OR($E11="AO",$E11="NR"),'Measure Summary'!AA13,VLOOKUP($D11,MeasureQCData,AO11,FALSE))) -> 0 | P11: =IF($C11="",0,IF(OR(MIN('Measure Summary'!I13,$AJ11)=0,OR(ElecUtility="",ElecUtility=0,ElecUtility="<Select One>"))=TRUE,0,1.1*'Measure Summary'!I13*HLOOKUP($AJ11,AvoidedCostTable,$E$38))) -> 0 | Q11: =IF($C11="",0,IF(OR(MIN('Measure Summary'!J13,$AJ11)=0,OR(ElecUtility="",ElecUtility=0,ElecUtility="<Select One>"))=TRUE,0,'Measure Summary'!J13*HLOOKUP($AJ11,AvoidedCostTable,$E$38)*$AP11)) -> 0 | R11: =IF($C11="",0,IF(OR(MIN('Measure Summary'!$K13,$AJ11)=0,OR(ElecUtility="",ElecUtility=0,ElecUtility="<Select One>"))=TRUE,0,'Measure Summary'!$K13*HLOOKUP($AJ11,AvoidedCostTable,$E$39,FALSE))) -> 0 | S11: =IF($C11="",0,IF('Measure Summary'!N13<>"Natural Gas",0,IF(MIN('Measure Summary'!G13,$AJ11)=0,0,'Measure Summary'!G13*HLOOKUP($AJ11,AvoidedCostTable,$E$40)))) -> 0 | T11: =IF($C11="",0,IF('Measure Summary'!N13<>"Natural Gas",0,IF(MIN('Measure Summary'!H13,$AJ11)=0,0,'Measure Summary'!H13*HLOOKUP($AJ11,AvoidedCostTable,$E$40)))) -> 0 | U11: =IF(OR(N($P11+$Q11)=0,N($AJ11)=0)=TRUE,0,HLOOKUP($AJ11,AvoidedCostTable,12,FALSE)*('Measure Summary'!I13+'Measure Summary'!J13)) -> 0 | V11: 0 | W11: ='Measure Summary'!G13+'Measure Summary'!H13 -> 0 | X11: =IF($C11="",0,IF('Measure Summary'!N13<>"Propane",0,IF(MIN('Measure Summary'!G13+'Measure Summary'!H13,$AJ11)=0,0,-PV($D$42,$AJ11,('Measure Summary'!G13+'Measure Summary'!H13))*$D$45))) -> 0 | Y11: =IF($C11="",0,IF('Measure Summary'!N13<>"Fuel Oil",0,IF(MIN('Measure Summary'!G13+'Measure Summary'!H13,$AJ11)=0,0,-PV($D$42,$AJ11,('Measure Summary'!G13+'Measure Summary'!H13))*$E$45))) -> 0 | Z11: =IF($C11="",0,IF('Measure Summary'!N13<>"Steam",0,IF(MIN('Measure Summary'!G13+'Measure Summary'!H13,$AJ11)=0,0,-PV($D$42,$AJ11,('Measure Summary'!G13+'Measure Summary'!H13))*$F$45))) -> 0 | AA11: =IF($C11="",0,IF('Measure Summary'!N13<>'Utility Info'!$B$19,0,IF(MIN('Measure Summary'!G13+'Measure Summary'!H13,$AJ11)=0,0,-PV($D$42,$AJ11,('Measure Summary'!G13+'Measure Summary'!H13))*$G$45))) -> 0 | AB11: =IF(OR(N('Measure Summary'!$L13)=0,N($AJ11)=0)=TRUE,0,-PV('TRC Test'!$D$42,'Measure Summary'!$AA$8,'Measure Summary'!$L13*'Measure Summary'!$P13)) -> 0 | AC11: =IF(N($AJ11)=0,0,-PV($D$42,$AJ11,'Measure Summary'!$M13)) -> 0 | AD11: 0 | AE11: =IF(OR($D11=Calcs!$A$42,$D11=Calcs!$A$24,$D11=Calcs!$A$56,$D11=Calcs!$A$21,$D11=Calcs!$A$27)=TRUE,'Measure Summary'!$F13/'Measure Summary'!$AA13*$AJ11,'Measure Summary'!$F13-SUM($X11:$AC11))+0.00001 -> 1e-05 | AG11: =IF($AI11="Inc",'Measure Summary'!$AA13-(YEAR(TODAY())-'Measure Summary'!$AC13),"") ->  | AH11: =SUM('Measure Summary'!$G13:$H13)+SUM('Measure Summary'!$I13:$J13)*3412/1000000 -> 0 | AJ11: =IF(OR($D11=Calcs!$A$42,$D11=Calcs!$A$24,$D11=Calcs!$A$56,$D11=Calcs!$A$21,$D11=Calcs!$A$27)=TRUE,IF($AG11<-3.75,4,IF($AG11<0,ROUND('Measure Summary'!$AA13,0),$AG11)),ROUND(IF(N('Measure Summary'!$AA13)=0,0,'Measure Summary'!$AA13),0)) -> 0 | AK11: =IF(OR($AI11="Full",$AI11=""),"",IF($AG11>=0,0,-$AG11/'Measure Summary'!$AA13)) -> 
B12: 7 | C12: ='Measure Summary'!C14 ->  | D12: ='Measure Summary'!E14 ->  | H12: 0 | I12: 0 | J12: 0 | K12: 0 | L12: 1e-05 | M12: 1e-05 | N12: =IF(E12="",0,IF(OR($E12="AO",$E12="NR"),'Measure Summary'!AA14,VLOOKUP($D12,MeasureQCData,AO12,FALSE))) -> 0 | P12: =IF($C12="",0,IF(OR(MIN('Measure Summary'!I14,$AJ12)=0,OR(ElecUtility="",ElecUtility=0,ElecUtility="<Select One>"))=TRUE,0,1.1*'Measure Summary'!I14*HLOOKUP($AJ12,AvoidedCostTable,$E$38))) -> 0 | Q12: =IF($C12="",0,IF(OR(MIN('Measure Summary'!J14,$AJ12)=0,OR(ElecUtility="",ElecUtility=0,ElecUtility="<Select One>"))=TRUE,0,'Measure Summary'!J14*HLOOKUP($AJ12,AvoidedCostTable,$E$38)*$AP12)) -> 0 | R12: =IF($C12="",0,IF(OR(MIN('Measure Summary'!$K14,$AJ12)=0,OR(ElecUtility="",ElecUtility=0,ElecUtility="<Select One>"))=TRUE,0,'Measure Summary'!$K14*HLOOKUP($AJ12,AvoidedCostTable,$E$39,FALSE))) -> 0 | S12: =IF($C12="",0,IF('Measure Summary'!N14<>"Natural Gas",0,IF(MIN('Measure Summary'!G14,$AJ12)=0,0,'Measure Summary'!G14*HLOOKUP($AJ12,AvoidedCostTable,$E$40)))) -> 0 | T12: =IF($C12="",0,IF('Measure Summary'!N14<>"Natural Gas",0,IF(MIN('Measure Summary'!H14,$AJ12)=0,0,'Measure Summary'!H14*HLOOKUP($AJ12,AvoidedCostTable,$E$40)))) -> 0 | U12: =IF(OR(N($P12+$Q12)=0,N($AJ12)=0)=TRUE,0,HLOOKUP($AJ12,AvoidedCostTable,12,FALSE)*('Measure Summary'!I14+'Measure Summary'!J14)) -> 0 | V12: 0 | W12: ='Measure Summary'!G14+'Measure Summary'!H14 -> 0 | X12: =IF($C12="",0,IF('Measure Summary'!N14<>"Propane",0,IF(MIN('Measure Summary'!G14+'Measure Summary'!H14,$AJ12)=0,0,-PV($D$42,$AJ12,('Measure Summary'!G14+'Measure Summary'!H14))*$D$45))) -> 0 | Y12: =IF($C12="",0,IF('Measure Summary'!N14<>"Fuel Oil",0,IF(MIN('Measure Summary'!G14+'Measure Summary'!H14,$AJ12)=0,0,-PV($D$42,$AJ12,('Measure Summary'!G14+'Measure Summary'!H14))*$E$45))) -> 0 | Z12: =IF($C12="",0,IF('Measure Summary'!N14<>"Steam",0,IF(MIN('Measure Summary'!G14+'Measure Summary'!H14,$AJ12)=0,0,-PV($D$42,$AJ12,('Measure Summary'!G14+'Measure Summary'!H14))*$F$45))) -> 0 | AA12: =IF($C12="",0,IF('Measure Summary'!N14<>'Utility Info'!$B$19,0,IF(MIN('Measure Summary'!G14+'Measure Summary'!H14,$AJ12)=0,0,-PV($D$42,$AJ12,('Measure Summary'!G14+'Measure Summary'!H14))*$G$45))) -> 0 | AB12: =IF(OR(N('Measure Summary'!$L14)=0,N($AJ12)=0)=TRUE,0,-PV('TRC Test'!$D$42,'Measure Summary'!$AA$8,'Measure Summary'!$L14*'Measure Summary'!$P14)) -> 0 | AC12: =IF(N($AJ12)=0,0,-PV($D$42,$AJ12,'Measure Summary'!$M14)) -> 0 | AD12: 0 | AE12: =IF(OR($D12=Calcs!$A$42,$D12=Calcs!$A$24,$D12=Calcs!$A$56,$D12=Calcs!$A$21,$D12=Calcs!$A$27)=TRUE,'Measure Summary'!$F14/'Measure Summary'!$AA14*$AJ12,'Measure Summary'!$F14-SUM($X12:$AC12))+0.00001 -> 1e-05 | AG12: =IF($AI12="Inc",'Measure Summary'!$AA14-(YEAR(TODAY())-'Measure Summary'!$AC14),"") ->  | AH12: =SUM('Measure Summary'!$G14:$H14)+SUM('Measure Summary'!$I14:$J14)*3412/1000000 -> 0 | AJ12: =IF(OR($D12=Calcs!$A$42,$D12=Calcs!$A$24,$D12=Calcs!$A$56,$D12=Calcs!$A$21,$D12=Calcs!$A$27)=TRUE,IF($AG12<-3.75,4,IF($AG12<0,ROUND('Measure Summary'!$AA14,0),$AG12)),ROUND(IF(N('Measure Summary'!$AA14)=0,0,'Measure Summary'!$AA14),0)) -> 0 | AK12: =IF(OR($AI12="Full",$AI12=""),"",IF($AG12>=0,0,-$AG12/'Measure Summary'!$AA14)) -> 
B13: 8 | C13: ='Measure Summary'!C15 ->  | D13: ='Measure Summary'!E15 ->  | H13: 0 | I13: 0 | J13: 0 | K13: 0 | L13: 1e-05 | M13: 1e-05 | N13: =IF(E13="",0,IF(OR($E13="AO",$E13="NR"),'Measure Summary'!AA15,VLOOKUP($D13,MeasureQCData,AO13,FALSE))) -> 0 | P13: =IF($C13="",0,IF(OR(MIN('Measure Summary'!I15,$AJ13)=0,OR(ElecUtility="",ElecUtility=0,ElecUtility="<Select One>"))=TRUE,0,1.1*'Measure Summary'!I15*HLOOKUP($AJ13,AvoidedCostTable,$E$38))) -> 0 | Q13: =IF($C13="",0,IF(OR(MIN('Measure Summary'!J15,$AJ13)=0,OR(ElecUtility="",ElecUtility=0,ElecUtility="<Select One>"))=TRUE,0,'Measure Summary'!J15*HLOOKUP($AJ13,AvoidedCostTable,$E$38)*$AP13)) -> 0 | R13: =IF($C13="",0,IF(OR(MIN('Measure Summary'!$K15,$AJ13)=0,OR(ElecUtility="",ElecUtility=0,ElecUtility="<Select One>"))=TRUE,0,'Measure Summary'!$K15*HLOOKUP($AJ13,AvoidedCostTable,$E$39,FALSE))) -> 0 | S13: =IF($C13="",0,IF('Measure Summary'!N15<>"Natural Gas",0,IF(MIN('Measure Summary'!G15,$AJ13)=0,0,'Measure Summary'!G15*HLOOKUP($AJ13,AvoidedCostTable,$E$40)))) -> 0 | T13: =IF($C13="",0,IF('Measure Summary'!N15<>"Natural Gas",0,IF(MIN('Measure Summary'!H15,$AJ13)=0,0,'Measure Summary'!H15*HLOOKUP($AJ13,AvoidedCostTable,$E$40)))) -> 0 | U13: =IF(OR(N($P13+$Q13)=0,N($AJ13)=0)=TRUE,0,HLOOKUP($AJ13,AvoidedCostTable,12,FALSE)*('Measure Summary'!I15+'Measure Summary'!J15)) -> 0 | V13: 0 | W13: ='Measure Summary'!G15+'Measure Summary'!H15 -> 0 | X13: =IF($C13="",0,IF('Measure Summary'!N15<>"Propane",0,IF(MIN('Measure Summary'!G15+'Measure Summary'!H15,$AJ13)=0,0,-PV($D$42,$AJ13,('Measure Summary'!G15+'Measure Summary'!H15))*$D$45))) -> 0 | Y13: =IF($C13="",0,IF('Measure Summary'!N15<>"Fuel Oil",0,IF(MIN('Measure Summary'!G15+'Measure Summary'!H15,$AJ13)=0,0,-PV($D$42,$AJ13,('Measure Summary'!G15+'Measure Summary'!H15))*$E$45))) -> 0 | Z13: =IF($C13="",0,IF('Measure Summary'!N15<>"Steam",0,IF(MIN('Measure Summary'!G15+'Measure Summary'!H15,$AJ13)=0,0,-PV($D$42,$AJ13,('Measure Summary'!G15+'Measure Summary'!H15))*$F$45))) -> 0 | AA13: =IF($C13="",0,IF('Measure Summary'!N15<>'Utility Info'!$B$19,0,IF(MIN('Measure Summary'!G15+'Measure Summary'!H15,$AJ13)=0,0,-PV($D$42,$AJ13,('Measure Summary'!G15+'Measure Summary'!H15))*$G$45))) -> 0 | AB13: =IF(OR(N('Measure Summary'!$L15)=0,N($AJ13)=0)=TRUE,0,-PV('TRC Test'!$D$42,'Measure Summary'!$AA$8,'Measure Summary'!$L15*'Measure Summary'!$P15)) -> 0 | AC13: =IF(N($AJ13)=0,0,-PV($D$42,$AJ13,'Measure Summary'!$M15)) -> 0 | AD13: 0 | AE13: =IF(OR($D13=Calcs!$A$42,$D13=Calcs!$A$24,$D13=Calcs!$A$56,$D13=Calcs!$A$21,$D13=Calcs!$A$27)=TRUE,'Measure Summary'!$F15/'Measure Summary'!$AA15*$AJ13,'Measure Summary'!$F15-SUM($X13:$AC13))+0.00001 -> 1e-05 | AG13: =IF($AI13="Inc",'Measure Summary'!$AA15-(YEAR(TODAY())-'Measure Summary'!$AC15),"") ->  | AH13: =SUM('Measure Summary'!$G15:$H15)+SUM('Measure Summary'!$I15:$J15)*3412/1000000 -> 0 | AJ13: =IF(OR($D13=Calcs!$A$42,$D13=Calcs!$A$24,$D13=Calcs!$A$56,$D13=Calcs!$A$21,$D13=Calcs!$A$27)=TRUE,IF($AG13<-3.75,4,IF($AG13<0,ROUND('Measure Summary'!$AA15,0),$AG13)),ROUND(IF(N('Measure Summary'!$AA15)=0,0,'Measure Summary'!$AA15),0)) -> 0 | AK13: =IF(OR($AI13="Full",$AI13=""),"",IF($AG13>=0,0,-$AG13/'Measure Summary'!$AA15)) -> 
B14: 9 | C14: ='Measure Summary'!C16 ->  | D14: ='Measure Summary'!E16 ->  | H14: 0 | I14: 0 | J14: 0 | K14: 0 | L14: 1e-05 | M14: 1e-05 | N14: =IF(E14="",0,IF(OR($E14="AO",$E14="NR"),'Measure Summary'!AA16,VLOOKUP($D14,MeasureQCData,AO14,FALSE))) -> 0 | P14: =IF($C14="",0,IF(OR(MIN('Measure Summary'!I16,$AJ14)=0,OR(ElecUtility="",ElecUtility=0,ElecUtility="<Select One>"))=TRUE,0,1.1*'Measure Summary'!I16*HLOOKUP($AJ14,AvoidedCostTable,$E$38))) -> 0 | Q14: =IF($C14="",0,IF(OR(MIN('Measure Summary'!J16,$AJ14)=0,OR(ElecUtility="",ElecUtility=0,ElecUtility="<Select One>"))=TRUE,0,'Measure Summary'!J16*HLOOKUP($AJ14,AvoidedCostTable,$E$38)*$AP14)) -> 0 | R14: =IF($C14="",0,IF(OR(MIN('Measure Summary'!$K16,$AJ14)=0,OR(ElecUtility="",ElecUtility=0,ElecUtility="<Select One>"))=TRUE,0,'Measure Summary'!$K16*HLOOKUP($AJ14,AvoidedCostTable,$E$39,FALSE))) -> 0 | S14: =IF($C14="",0,IF('Measure Summary'!N16<>"Natural Gas",0,IF(MIN('Measure Summary'!G16,$AJ14)=0,0,'Measure Summary'!G16*HLOOKUP($AJ14,AvoidedCostTable,$E$40)))) -> 0 | T14: =IF($C14="",0,IF('Measure Summary'!N16<>"Natural Gas",0,IF(MIN('Measure Summary'!H16,$AJ14)=0,0,'Measure Summary'!H16*HLOOKUP($AJ14,AvoidedCostTable,$E$40)))) -> 0 | U14: =IF(OR(N($P14+$Q14)=0,N($AJ14)=0)=TRUE,0,HLOOKUP($AJ14,AvoidedCostTable,12,FALSE)*('Measure Summary'!I16+'Measure Summary'!J16)) -> 0 | V14: 0 | W14: ='Measure Summary'!G16+'Measure Summary'!H16 -> 0 | X14: =IF($C14="",0,IF('Measure Summary'!N16<>"Propane",0,IF(MIN('Measure Summary'!G16+'Measure Summary'!H16,$AJ14)=0,0,-PV($D$42,$AJ14,('Measure Summary'!G16+'Measure Summary'!H16))*$D$45))) -> 0 | Y14: =IF($C14="",0,IF('Measure Summary'!N16<>"Fuel Oil",0,IF(MIN('Measure Summary'!G16+'Measure Summary'!H16,$AJ14)=0,0,-PV($D$42,$AJ14,('Measure Summary'!G16+'Measure Summary'!H16))*$E$45))) -> 0 | Z14: =IF($C14="",0,IF('Measure Summary'!N16<>"Steam",0,IF(MIN('Measure Summary'!G16+'Measure Summary'!H16,$AJ14)=0,0,-PV($D$42,$AJ14,('Measure Summary'!G16+'Measure Summary'!H16))*$F$45))) -> 0 | AA14: =IF($C14="",0,IF('Measure Summary'!N16<>'Utility Info'!$B$19,0,IF(MIN('Measure Summary'!G16+'Measure Summary'!H16,$AJ14)=0,0,-PV($D$42,$AJ14,('Measure Summary'!G16+'Measure Summary'!H16))*$G$45))) -> 0 | AB14: =IF(OR(N('Measure Summary'!$L16)=0,N($AJ14)=0)=TRUE,0,-PV('TRC Test'!$D$42,'Measure Summary'!$AA$8,'Measure Summary'!$L16*'Measure Summary'!$P16)) -> 0 | AC14: =IF(N($AJ14)=0,0,-PV($D$42,$AJ14,'Measure Summary'!$M16)) -> 0 | AD14: 0 | AE14: =IF(OR($D14=Calcs!$A$42,$D14=Calcs!$A$24,$D14=Calcs!$A$56,$D14=Calcs!$A$21,$D14=Calcs!$A$27)=TRUE,'Measure Summary'!$F16/'Measure Summary'!$AA16*$AJ14,'Measure Summary'!$F16-SUM($X14:$AC14))+0.00001 -> 1e-05 | AG14: =IF($AI14="Inc",'Measure Summary'!$AA16-(YEAR(TODAY())-'Measure Summary'!$AC16),"") ->  | AH14: =SUM('Measure Summary'!$G16:$H16)+SUM('Measure Summary'!$I16:$J16)*3412/1000000 -> 0 | AJ14: =IF(OR($D14=Calcs!$A$42,$D14=Calcs!$A$24,$D14=Calcs!$A$56,$D14=Calcs!$A$21,$D14=Calcs!$A$27)=TRUE,IF($AG14<-3.75,4,IF($AG14<0,ROUND('Measure Summary'!$AA16,0),$AG14)),ROUND(IF(N('Measure Summary'!$AA16)=0,0,'Measure Summary'!$AA16),0)) -> 0 | AK14: =IF(OR($AI14="Full",$AI14=""),"",IF($AG14>=0,0,-$AG14/'Measure Summary'!$AA16)) -> 
B15: 10 | C15: ='Measure Summary'!C17 ->  | D15: ='Measure Summary'!E17 ->  | H15: 0 | I15: 0 | J15: 0 | K15: 0 | L15: 1e-05 | M15: 1e-05 | N15: =IF(E15="",0,IF(OR($E15="AO",$E15="NR"),'Measure Summary'!AA17,VLOOKUP($D15,MeasureQCData,AO15,FALSE))) -> 0 | P15: =IF($C15="",0,IF(OR(MIN('Measure Summary'!I17,$AJ15)=0,OR(ElecUtility="",ElecUtility=0,ElecUtility="<Select One>"))=TRUE,0,1.1*'Measure Summary'!I17*HLOOKUP($AJ15,AvoidedCostTable,$E$38))) -> 0 | Q15: =IF($C15="",0,IF(OR(MIN('Measure Summary'!J17,$AJ15)=0,OR(ElecUtility="",ElecUtility=0,ElecUtility="<Select One>"))=TRUE,0,'Measure Summary'!J17*HLOOKUP($AJ15,AvoidedCostTable,$E$38)*$AP15)) -> 0 | R15: =IF($C15="",0,IF(OR(MIN('Measure Summary'!$K17,$AJ15)=0,OR(ElecUtility="",ElecUtility=0,ElecUtility="<Select One>"))=TRUE,0,'Measure Summary'!$K17*HLOOKUP($AJ15,AvoidedCostTable,$E$39,FALSE))) -> 0 | S15: =IF($C15="",0,IF('Measure Summary'!N17<>"Natural Gas",0,IF(MIN('Measure Summary'!G17,$AJ15)=0,0,'Measure Summary'!G17*HLOOKUP($AJ15,AvoidedCostTable,$E$40)))) -> 0 | T15: =IF($C15="",0,IF('Measure Summary'!N17<>"Natural Gas",0,IF(MIN('Measure Summary'!H17,$AJ15)=0,0,'Measure Summary'!H17*HLOOKUP($AJ15,AvoidedCostTable,$E$40)))) -> 0 | U15: =IF(OR(N($P15+$Q15)=0,N($AJ15)=0)=TRUE,0,HLOOKUP($AJ15,AvoidedCostTable,12,FALSE)*('Measure Summary'!I17+'Measure Summary'!J17)) -> 0 | V15: 0 | W15: ='Measure Summary'!G17+'Measure Summary'!H17 -> 0 | X15: =IF($C15="",0,IF('Measure Summary'!N17<>"Propane",0,IF(MIN('Measure Summary'!G17+'Measure Summary'!H17,$AJ15)=0,0,-PV($D$42,$AJ15,('Measure Summary'!G17+'Measure Summary'!H17))*$D$45))) -> 0 | Y15: =IF($C15="",0,IF('Measure Summary'!N17<>"Fuel Oil",0,IF(MIN('Measure Summary'!G17+'Measure Summary'!H17,$AJ15)=0,0,-PV($D$42,$AJ15,('Measure Summary'!G17+'Measure Summary'!H17))*$E$45))) -> 0 | Z15: =IF($C15="",0,IF('Measure Summary'!N17<>"Steam",0,IF(MIN('Measure Summary'!G17+'Measure Summary'!H17,$AJ15)=0,0,-PV($D$42,$AJ15,('Measure Summary'!G17+'Measure Summary'!H17))*$F$45))) -> 0 | AA15: =IF($C15="",0,IF('Measure Summary'!N17<>'Utility Info'!$B$19,0,IF(MIN('Measure Summary'!G17+'Measure Summary'!H17,$AJ15)=0,0,-PV($D$42,$AJ15,('Measure Summary'!G17+'Measure Summary'!H17))*$G$45))) -> 0 | AB15: =IF(OR(N('Measure Summary'!$L17)=0,N($AJ15)=0)=TRUE,0,-PV('TRC Test'!$D$42,'Measure Summary'!$AA$8,'Measure Summary'!$L17*'Measure Summary'!$P17)) -> 0 | AC15: =IF(N($AJ15)=0,0,-PV($D$42,$AJ15,'Measure Summary'!$M17)) -> 0 | AD15: 0 | AE15: =IF(OR($D15=Calcs!$A$42,$D15=Calcs!$A$24,$D15=Calcs!$A$56,$D15=Calcs!$A$21,$D15=Calcs!$A$27)=TRUE,'Measure Summary'!$F17/'Measure Summary'!$AA17*$AJ15,'Measure Summary'!$F17-SUM($X15:$AC15))+0.00001 -> 1e-05 | AG15: =IF($AI15="Inc",'Measure Summary'!$AA17-(YEAR(TODAY())-'Measure Summary'!$AC17),"") ->  | AH15: =SUM('Measure Summary'!$G17:$H17)+SUM('Measure Summary'!$I17:$J17)*3412/1000000 -> 0 | AJ15: =IF(OR($D15=Calcs!$A$42,$D15=Calcs!$A$24,$D15=Calcs!$A$56,$D15=Calcs!$A$21,$D15=Calcs!$A$27)=TRUE,IF($AG15<-3.75,4,IF($AG15<0,ROUND('Measure Summary'!$AA17,0),$AG15)),ROUND(IF(N('Measure Summary'!$AA17)=0,0,'Measure Summary'!$AA17),0)) -> 0 | AK15: =IF(OR($AI15="Full",$AI15=""),"",IF($AG15>=0,0,-$AG15/'Measure Summary'!$AA17)) -> 
B16: 11 | C16: ='Measure Summary'!C18 ->  | D16: ='Measure Summary'!E18 ->  | H16: 0 | I16: 0 | J16: 0 | K16: 0 | L16: 1e-05 | M16: 1e-05 | N16: =IF(E16="",0,IF(OR($E16="AO",$E16="NR"),'Measure Summary'!AA18,VLOOKUP($D16,MeasureQCData,AO16,FALSE))) -> 0 | P16: =IF($C16="",0,IF(OR(MIN('Measure Summary'!I18,$AJ16)=0,OR(ElecUtility="",ElecUtility=0,ElecUtility="<Select One>"))=TRUE,0,1.1*'Measure Summary'!I18*HLOOKUP($AJ16,AvoidedCostTable,$E$38))) -> 0 | Q16: =IF($C16="",0,IF(OR(MIN('Measure Summary'!J18,$AJ16)=0,OR(ElecUtility="",ElecUtility=0,ElecUtility="<Select One>"))=TRUE,0,'Measure Summary'!J18*HLOOKUP($AJ16,AvoidedCostTable,$E$38)*$AP16)) -> 0 | R16: =IF($C16="",0,IF(OR(MIN('Measure Summary'!$K18,$AJ16)=0,OR(ElecUtility="",ElecUtility=0,ElecUtility="<Select One>"))=TRUE,0,'Measure Summary'!$K18*HLOOKUP($AJ16,AvoidedCostTable,$E$39,FALSE))) -> 0 | S16: =IF($C16="",0,IF('Measure Summary'!N18<>"Natural Gas",0,IF(MIN('Measure Summary'!G18,$AJ16)=0,0,'Measure Summary'!G18*HLOOKUP($AJ16,AvoidedCostTable,$E$40)))) -> 0 | T16: =IF($C16="",0,IF('Measure Summary'!N18<>"Natural Gas",0,IF(MIN('Measure Summary'!H18,$AJ16)=0,0,'Measure Summary'!H18*HLOOKUP($AJ16,AvoidedCostTable,$E$40)))) -> 0 | U16: =IF(OR(N($P16+$Q16)=0,N($AJ16)=0)=TRUE,0,HLOOKUP($AJ16,AvoidedCostTable,12,FALSE)*('Measure Summary'!I18+'Measure Summary'!J18)) -> 0 | V16: 0 | W16: ='Measure Summary'!G18+'Measure Summary'!H18 -> 0 | X16: =IF($C16="",0,IF('Measure Summary'!N18<>"Propane",0,IF(MIN('Measure Summary'!G18+'Measure Summary'!H18,$AJ16)=0,0,-PV($D$42,$AJ16,('Measure Summary'!G18+'Measure Summary'!H18))*$D$45))) -> 0 | Y16: =IF($C16="",0,IF('Measure Summary'!N18<>"Fuel Oil",0,IF(MIN('Measure Summary'!G18+'Measure Summary'!H18,$AJ16)=0,0,-PV($D$42,$AJ16,('Measure Summary'!G18+'Measure Summary'!H18))*$E$45))) -> 0 | Z16: =IF($C16="",0,IF('Measure Summary'!N18<>"Steam",0,IF(MIN('Measure Summary'!G18+'Measure Summary'!H18,$AJ16)=0,0,-PV($D$42,$AJ16,('Measure Summary'!G18+'Measure Summary'!H18))*$F$45))) -> 0 | AA16: =IF($C16="",0,IF('Measure Summary'!N18<>'Utility Info'!$B$19,0,IF(MIN('Measure Summary'!G18+'Measure Summary'!H18,$AJ16)=0,0,-PV($D$42,$AJ16,('Measure Summary'!G18+'Measure Summary'!H18))*$G$45))) -> 0 | AB16: =IF(OR(N('Measure Summary'!$L18)=0,N($AJ16)=0)=TRUE,0,-PV('TRC Test'!$D$42,'Measure Summary'!$AA$8,'Measure Summary'!$L18*'Measure Summary'!$P18)) -> 0 | AC16: =IF(N($AJ16)=0,0,-PV($D$42,$AJ16,'Measure Summary'!$M18)) -> 0 | AD16: 0 | AE16: =IF(OR($D16=Calcs!$A$42,$D16=Calcs!$A$24,$D16=Calcs!$A$56,$D16=Calcs!$A$21,$D16=Calcs!$A$27)=TRUE,'Measure Summary'!$F18/'Measure Summary'!$AA18*$AJ16,'Measure Summary'!$F18-SUM($X16:$AC16))+0.00001 -> 1e-05 | AG16: =IF($AI16="Inc",'Measure Summary'!$AA18-(YEAR(TODAY())-'Measure Summary'!$AC18),"") ->  | AH16: =SUM('Measure Summary'!$G18:$H18)+SUM('Measure Summary'!$I18:$J18)*3412/1000000 -> 0 | AJ16: =IF(OR($D16=Calcs!$A$42,$D16=Calcs!$A$24,$D16=Calcs!$A$56,$D16=Calcs!$A$21,$D16=Calcs!$A$27)=TRUE,IF($AG16<-3.75,4,IF($AG16<0,ROUND('Measure Summary'!$AA18,0),$AG16)),ROUND(IF(N('Measure Summary'!$AA18)=0,0,'Measure Summary'!$AA18),0)) -> 0 | AK16: =IF(OR($AI16="Full",$AI16=""),"",IF($AG16>=0,0,-$AG16/'Measure Summary'!$AA18)) -> 
B17: 12 | C17: ='Measure Summary'!C19 ->  | D17: ='Measure Summary'!E19 ->  | H17: 0 | I17: 0 | J17: 0 | K17: 0 | L17: 1e-05 | M17: 1e-05 | N17: =IF(E17="",0,IF(OR($E17="AO",$E17="NR"),'Measure Summary'!AA19,VLOOKUP($D17,MeasureQCData,AO17,FALSE))) -> 0 | P17: =IF($C17="",0,IF(OR(MIN('Measure Summary'!I19,$AJ17)=0,OR(ElecUtility="",ElecUtility=0,ElecUtility="<Select One>"))=TRUE,0,1.1*'Measure Summary'!I19*HLOOKUP($AJ17,AvoidedCostTable,$E$38))) -> 0 | Q17: =IF($C17="",0,IF(OR(MIN('Measure Summary'!J19,$AJ17)=0,OR(ElecUtility="",ElecUtility=0,ElecUtility="<Select One>"))=TRUE,0,'Measure Summary'!J19*HLOOKUP($AJ17,AvoidedCostTable,$E$38)*$AP17)) -> 0 | R17: =IF($C17="",0,IF(OR(MIN('Measure Summary'!$K19,$AJ17)=0,OR(ElecUtility="",ElecUtility=0,ElecUtility="<Select One>"))=TRUE,0,'Measure Summary'!$K19*HLOOKUP($AJ17,AvoidedCostTable,$E$39,FALSE))) -> 0 | S17: =IF($C17="",0,IF('Measure Summary'!N19<>"Natural Gas",0,IF(MIN('Measure Summary'!G19,$AJ17)=0,0,'Measure Summary'!G19*HLOOKUP($AJ17,AvoidedCostTable,$E$40)))) -> 0 | T17: =IF($C17="",0,IF('Measure Summary'!N19<>"Natural Gas",0,IF(MIN('Measure Summary'!H19,$AJ17)=0,0,'Measure Summary'!H19*HLOOKUP($AJ17,AvoidedCostTable,$E$40)))) -> 0 | U17: =IF(OR(N($P17+$Q17)=0,N($AJ17)=0)=TRUE,0,HLOOKUP($AJ17,AvoidedCostTable,12,FALSE)*('Measure Summary'!I19+'Measure Summary'!J19)) -> 0 | V17: 0 | W17: ='Measure Summary'!G19+'Measure Summary'!H19 -> 0 | X17: =IF($C17="",0,IF('Measure Summary'!N19<>"Propane",0,IF(MIN('Measure Summary'!G19+'Measure Summary'!H19,$AJ17)=0,0,-PV($D$42,$AJ17,('Measure Summary'!G19+'Measure Summary'!H19))*$D$45))) -> 0 | Y17: =IF($C17="",0,IF('Measure Summary'!N19<>"Fuel Oil",0,IF(MIN('Measure Summary'!G19+'Measure Summary'!H19,$AJ17)=0,0,-PV($D$42,$AJ17,('Measure Summary'!G19+'Measure Summary'!H19))*$E$45))) -> 0 | Z17: =IF($C17="",0,IF('Measure Summary'!N19<>"Steam",0,IF(MIN('Measure Summary'!G19+'Measure Summary'!H19,$AJ17)=0,0,-PV($D$42,$AJ17,('Measure Summary'!G19+'Measure Summary'!H19))*$F$45))) -> 0 | AA17: =IF($C17="",0,IF('Measure Summary'!N19<>'Utility Info'!$B$19,0,IF(MIN('Measure Summary'!G19+'Measure Summary'!H19,$AJ17)=0,0,-PV($D$42,$AJ17,('Measure Summary'!G19+'Measure Summary'!H19))*$G$45))) -> 0 | AB17: =IF(OR(N('Measure Summary'!$L19)=0,N($AJ17)=0)=TRUE,0,-PV('TRC Test'!$D$42,'Measure Summary'!$AA$8,'Measure Summary'!$L19*'Measure Summary'!$P19)) -> 0 | AC17: =IF(N($AJ17)=0,0,-PV($D$42,$AJ17,'Measure Summary'!$M19)) -> 0 | AD17: 0 | AE17: =IF(OR($D17=Calcs!$A$42,$D17=Calcs!$A$24,$D17=Calcs!$A$56,$D17=Calcs!$A$21,$D17=Calcs!$A$27)=TRUE,'Measure Summary'!$F19/'Measure Summary'!$AA19*$AJ17,'Measure Summary'!$F19-SUM($X17:$AC17))+0.00001 -> 1e-05 | AG17: =IF($AI17="Inc",'Measure Summary'!$AA19-(YEAR(TODAY())-'Measure Summary'!$AC19),"") ->  | AH17: =SUM('Measure Summary'!$G19:$H19)+SUM('Measure Summary'!$I19:$J19)*3412/1000000 -> 0 | AJ17: =IF(OR($D17=Calcs!$A$42,$D17=Calcs!$A$24,$D17=Calcs!$A$56,$D17=Calcs!$A$21,$D17=Calcs!$A$27)=TRUE,IF($AG17<-3.75,4,IF($AG17<0,ROUND('Measure Summary'!$AA19,0),$AG17)),ROUND(IF(N('Measure Summary'!$AA19)=0,0,'Measure Summary'!$AA19),0)) -> 0 | AK17: =IF(OR($AI17="Full",$AI17=""),"",IF($AG17>=0,0,-$AG17/'Measure Summary'!$AA19)) -> 
B18: 13 | C18: ='Measure Summary'!C20 ->  | D18: ='Measure Summary'!E20 ->  | H18: 0 | I18: 0 | J18: 0 | K18: 0 | L18: 1e-05 | M18: 1e-05 | N18: =IF(E18="",0,IF(OR($E18="AO",$E18="NR"),'Measure Summary'!AA20,VLOOKUP($D18,MeasureQCData,AO18,FALSE))) -> 0 | P18: =IF($C18="",0,IF(OR(MIN('Measure Summary'!I20,$AJ18)=0,OR(ElecUtility="",ElecUtility=0,ElecUtility="<Select One>"))=TRUE,0,1.1*'Measure Summary'!I20*HLOOKUP($AJ18,AvoidedCostTable,$E$38))) -> 0 | Q18: =IF($C18="",0,IF(OR(MIN('Measure Summary'!J20,$AJ18)=0,OR(ElecUtility="",ElecUtility=0,ElecUtility="<Select One>"))=TRUE,0,'Measure Summary'!J20*HLOOKUP($AJ18,AvoidedCostTable,$E$38)*$AP18)) -> 0 | R18: =IF($C18="",0,IF(OR(MIN('Measure Summary'!$K20,$AJ18)=0,OR(ElecUtility="",ElecUtility=0,ElecUtility="<Select One>"))=TRUE,0,'Measure Summary'!$K20*HLOOKUP($AJ18,AvoidedCostTable,$E$39,FALSE))) -> 0 | S18: =IF($C18="",0,IF('Measure Summary'!N20<>"Natural Gas",0,IF(MIN('Measure Summary'!G20,$AJ18)=0,0,'Measure Summary'!G20*HLOOKUP($AJ18,AvoidedCostTable,$E$40)))) -> 0 | T18: =IF($C18="",0,IF('Measure Summary'!N20<>"Natural Gas",0,IF(MIN('Measure Summary'!H20,$AJ18)=0,0,'Measure Summary'!H20*HLOOKUP($AJ18,AvoidedCostTable,$E$40)))) -> 0 | U18: =IF(OR(N($P18+$Q18)=0,N($AJ18)=0)=TRUE,0,HLOOKUP($AJ18,AvoidedCostTable,12,FALSE)*('Measure Summary'!I20+'Measure Summary'!J20)) -> 0 | V18: 0 | W18: ='Measure Summary'!G20+'Measure Summary'!H20 -> 0 | X18: =IF($C18="",0,IF('Measure Summary'!N20<>"Propane",0,IF(MIN('Measure Summary'!G20+'Measure Summary'!H20,$AJ18)=0,0,-PV($D$42,$AJ18,('Measure Summary'!G20+'Measure Summary'!H20))*$D$45))) -> 0 | Y18: =IF($C18="",0,IF('Measure Summary'!N20<>"Fuel Oil",0,IF(MIN('Measure Summary'!G20+'Measure Summary'!H20,$AJ18)=0,0,-PV($D$42,$AJ18,('Measure Summary'!G20+'Measure Summary'!H20))*$E$45))) -> 0 | Z18: =IF($C18="",0,IF('Measure Summary'!N20<>"Steam",0,IF(MIN('Measure Summary'!G20+'Measure Summary'!H20,$AJ18)=0,0,-PV($D$42,$AJ18,('Measure Summary'!G20+'Measure Summary'!H20))*$F$45))) -> 0 | AA18: =IF($C18="",0,IF('Measure Summary'!N20<>'Utility Info'!$B$19,0,IF(MIN('Measure Summary'!G20+'Measure Summary'!H20,$AJ18)=0,0,-PV($D$42,$AJ18,('Measure Summary'!G20+'Measure Summary'!H20))*$G$45))) -> 0 | AB18: =IF(OR(N('Measure Summary'!$L20)=0,N($AJ18)=0)=TRUE,0,-PV('TRC Test'!$D$42,'Measure Summary'!$AA$8,'Measure Summary'!$L20*'Measure Summary'!$P20)) -> 0 | AC18: =IF(N($AJ18)=0,0,-PV($D$42,$AJ18,'Measure Summary'!$M20)) -> 0 | AD18: 0 | AE18: =IF(OR($D18=Calcs!$A$42,$D18=Calcs!$A$24,$D18=Calcs!$A$56,$D18=Calcs!$A$21,$D18=Calcs!$A$27)=TRUE,'Measure Summary'!$F20/'Measure Summary'!$AA20*$AJ18,'Measure Summary'!$F20-SUM($X18:$AC18))+0.00001 -> 1e-05 | AG18: =IF($AI18="Inc",'Measure Summary'!$AA20-(YEAR(TODAY())-'Measure Summary'!$AC20),"") ->  | AH18: =SUM('Measure Summary'!$G20:$H20)+SUM('Measure Summary'!$I20:$J20)*3412/1000000 -> 0 | AJ18: =IF(OR($D18=Calcs!$A$42,$D18=Calcs!$A$24,$D18=Calcs!$A$56,$D18=Calcs!$A$21,$D18=Calcs!$A$27)=TRUE,IF($AG18<-3.75,4,IF($AG18<0,ROUND('Measure Summary'!$AA20,0),$AG18)),ROUND(IF(N('Measure Summary'!$AA20)=0,0,'Measure Summary'!$AA20),0)) -> 0 | AK18: =IF(OR($AI18="Full",$AI18=""),"",IF($AG18>=0,0,-$AG18/'Measure Summary'!$AA20)) -> 
B19: 14 | C19: ='Measure Summary'!C21 ->  | D19: ='Measure Summary'!E21 ->  | H19: 0 | I19: 0 | J19: 0 | K19: 0 | L19: 1e-05 | M19: 1e-05 | N19: =IF(E19="",0,IF(OR($E19="AO",$E19="NR"),'Measure Summary'!AA21,VLOOKUP($D19,MeasureQCData,AO19,FALSE))) -> 0 | P19: =IF($C19="",0,IF(OR(MIN('Measure Summary'!I21,$AJ19)=0,OR(ElecUtility="",ElecUtility=0,ElecUtility="<Select One>"))=TRUE,0,1.1*'Measure Summary'!I21*HLOOKUP($AJ19,AvoidedCostTable,$E$38))) -> 0 | Q19: =IF($C19="",0,IF(OR(MIN('Measure Summary'!J21,$AJ19)=0,OR(ElecUtility="",ElecUtility=0,ElecUtility="<Select One>"))=TRUE,0,'Measure Summary'!J21*HLOOKUP($AJ19,AvoidedCostTable,$E$38)*$AP19)) -> 0 | R19: =IF($C19="",0,IF(OR(MIN('Measure Summary'!$K21,$AJ19)=0,OR(ElecUtility="",ElecUtility=0,ElecUtility="<Select One>"))=TRUE,0,'Measure Summary'!$K21*HLOOKUP($AJ19,AvoidedCostTable,$E$39,FALSE))) -> 0 | S19: =IF($C19="",0,IF('Measure Summary'!N21<>"Natural Gas",0,IF(MIN('Measure Summary'!G21,$AJ19)=0,0,'Measure Summary'!G21*HLOOKUP($AJ19,AvoidedCostTable,$E$40)))) -> 0 | T19: =IF($C19="",0,IF('Measure Summary'!N21<>"Natural Gas",0,IF(MIN('Measure Summary'!H21,$AJ19)=0,0,'Measure Summary'!H21*HLOOKUP($AJ19,AvoidedCostTable,$E$40)))) -> 0 | U19: =IF(OR(N($P19+$Q19)=0,N($AJ19)=0)=TRUE,0,HLOOKUP($AJ19,AvoidedCostTable,12,FALSE)*('Measure Summary'!I21+'Measure Summary'!J21)) -> 0 | V19: 0 | W19: ='Measure Summary'!G21+'Measure Summary'!H21 -> 0 | X19: =IF($C19="",0,IF('Measure Summary'!N21<>"Propane",0,IF(MIN('Measure Summary'!G21+'Measure Summary'!H21,$AJ19)=0,0,-PV($D$42,$AJ19,('Measure Summary'!G21+'Measure Summary'!H21))*$D$45))) -> 0 | Y19: =IF($C19="",0,IF('Measure Summary'!N21<>"Fuel Oil",0,IF(MIN('Measure Summary'!G21+'Measure Summary'!H21,$AJ19)=0,0,-PV($D$42,$AJ19,('Measure Summary'!G21+'Measure Summary'!H21))*$E$45))) -> 0 | Z19: =IF($C19="",0,IF('Measure Summary'!N21<>"Steam",0,IF(MIN('Measure Summary'!G21+'Measure Summary'!H21,$AJ19)=0,0,-PV($D$42,$AJ19,('Measure Summary'!G21+'Measure Summary'!H21))*$F$45))) -> 0 | AA19: =IF($C19="",0,IF('Measure Summary'!N21<>'Utility Info'!$B$19,0,IF(MIN('Measure Summary'!G21+'Measure Summary'!H21,$AJ19)=0,0,-PV($D$42,$AJ19,('Measure Summary'!G21+'Measure Summary'!H21))*$G$45))) -> 0 | AB19: =IF(OR(N('Measure Summary'!$L21)=0,N($AJ19)=0)=TRUE,0,-PV('TRC Test'!$D$42,'Measure Summary'!$AA$8,'Measure Summary'!$L21*'Measure Summary'!$P21)) -> 0 | AC19: =IF(N($AJ19)=0,0,-PV($D$42,$AJ19,'Measure Summary'!$M21)) -> 0 | AD19: 0 | AE19: =IF(OR($D19=Calcs!$A$42,$D19=Calcs!$A$24,$D19=Calcs!$A$56,$D19=Calcs!$A$21,$D19=Calcs!$A$27)=TRUE,'Measure Summary'!$F21/'Measure Summary'!$AA21*$AJ19,'Measure Summary'!$F21-SUM($X19:$AC19))+0.00001 -> 1e-05 | AG19: =IF($AI19="Inc",'Measure Summary'!$AA21-(YEAR(TODAY())-'Measure Summary'!$AC21),"") ->  | AH19: =SUM('Measure Summary'!$G21:$H21)+SUM('Measure Summary'!$I21:$J21)*3412/1000000 -> 0 | AJ19: =IF(OR($D19=Calcs!$A$42,$D19=Calcs!$A$24,$D19=Calcs!$A$56,$D19=Calcs!$A$21,$D19=Calcs!$A$27)=TRUE,IF($AG19<-3.75,4,IF($AG19<0,ROUND('Measure Summary'!$AA21,0),$AG19)),ROUND(IF(N('Measure Summary'!$AA21)=0,0,'Measure Summary'!$AA21),0)) -> 0 | AK19: =IF(OR($AI19="Full",$AI19=""),"",IF($AG19>=0,0,-$AG19/'Measure Summary'!$AA21)) -> 
B20: 15 | C20: ='Measure Summary'!C22 ->  | D20: ='Measure Summary'!E22 ->  | H20: 0 | I20: 0 | J20: 0 | K20: 0 | L20: 1e-05 | M20: 1e-05 | N20: =IF(E20="",0,IF(OR($E20="AO",$E20="NR"),'Measure Summary'!AA22,VLOOKUP($D20,MeasureQCData,AO20,FALSE))) -> 0 | P20: =IF($C20="",0,IF(OR(MIN('Measure Summary'!I22,$AJ20)=0,OR(ElecUtility="",ElecUtility=0,ElecUtility="<Select One>"))=TRUE,0,1.1*'Measure Summary'!I22*HLOOKUP($AJ20,AvoidedCostTable,$E$38))) -> 0 | Q20: =IF($C20="",0,IF(OR(MIN('Measure Summary'!J22,$AJ20)=0,OR(ElecUtility="",ElecUtility=0,ElecUtility="<Select One>"))=TRUE,0,'Measure Summary'!J22*HLOOKUP($AJ20,AvoidedCostTable,$E$38)*$AP20)) -> 0 | R20: =IF($C20="",0,IF(OR(MIN('Measure Summary'!$K22,$AJ20)=0,OR(ElecUtility="",ElecUtility=0,ElecUtility="<Select One>"))=TRUE,0,'Measure Summary'!$K22*HLOOKUP($AJ20,AvoidedCostTable,$E$39,FALSE))) -> 0 | S20: =IF($C20="",0,IF('Measure Summary'!N22<>"Natural Gas",0,IF(MIN('Measure Summary'!G22,$AJ20)=0,0,'Measure Summary'!G22*HLOOKUP($AJ20,AvoidedCostTable,$E$40)))) -> 0 | T20: =IF($C20="",0,IF('Measure Summary'!N22<>"Natural Gas",0,IF(MIN('Measure Summary'!H22,$AJ20)=0,0,'Measure Summary'!H22*HLOOKUP($AJ20,AvoidedCostTable,$E$40)))) -> 0 | U20: =IF(OR(N($P20+$Q20)=0,N($AJ20)=0)=TRUE,0,HLOOKUP($AJ20,AvoidedCostTable,12,FALSE)*('Measure Summary'!I22+'Measure Summary'!J22)) -> 0 | V20: 0 | W20: ='Measure Summary'!G22+'Measure Summary'!H22 -> 0 | X20: =IF($C20="",0,IF('Measure Summary'!N22<>"Propane",0,IF(MIN('Measure Summary'!G22+'Measure Summary'!H22,$AJ20)=0,0,-PV($D$42,$AJ20,('Measure Summary'!G22+'Measure Summary'!H22))*$D$45))) -> 0 | Y20: =IF($C20="",0,IF('Measure Summary'!N22<>"Fuel Oil",0,IF(MIN('Measure Summary'!G22+'Measure Summary'!H22,$AJ20)=0,0,-PV($D$42,$AJ20,('Measure Summary'!G22+'Measure Summary'!H22))*$E$45))) -> 0 | Z20: =IF($C20="",0,IF('Measure Summary'!N22<>"Steam",0,IF(MIN('Measure Summary'!G22+'Measure Summary'!H22,$AJ20)=0,0,-PV($D$42,$AJ20,('Measure Summary'!G22+'Measure Summary'!H22))*$F$45))) -> 0 | AA20: =IF($C20="",0,IF('Measure Summary'!N22<>'Utility Info'!$B$19,0,IF(MIN('Measure Summary'!G22+'Measure Summary'!H22,$AJ20)=0,0,-PV($D$42,$AJ20,('Measure Summary'!G22+'Measure Summary'!H22))*$G$45))) -> 0 | AB20: =IF(OR(N('Measure Summary'!$L22)=0,N($AJ20)=0)=TRUE,0,-PV('TRC Test'!$D$42,'Measure Summary'!$AA$8,'Measure Summary'!$L22*'Measure Summary'!$P22)) -> 0 | AC20: =IF(N($AJ20)=0,0,-PV($D$42,$AJ20,'Measure Summary'!$M22)) -> 0 | AD20: 0 | AE20: =IF(OR($D20=Calcs!$A$42,$D20=Calcs!$A$24,$D20=Calcs!$A$56,$D20=Calcs!$A$21,$D20=Calcs!$A$27)=TRUE,'Measure Summary'!$F22/'Measure Summary'!$AA22*$AJ20,'Measure Summary'!$F22-SUM($X20:$AC20))+0.00001 -> 1e-05 | AG20: =IF($AI20="Inc",'Measure Summary'!$AA22-(YEAR(TODAY())-'Measure Summary'!$AC22),"") ->  | AH20: =SUM('Measure Summary'!$G22:$H22)+SUM('Measure Summary'!$I22:$J22)*3412/1000000 -> 0 | AJ20: =IF(OR($D20=Calcs!$A$42,$D20=Calcs!$A$24,$D20=Calcs!$A$56,$D20=Calcs!$A$21,$D20=Calcs!$A$27)=TRUE,IF($AG20<-3.75,4,IF($AG20<0,ROUND('Measure Summary'!$AA22,0),$AG20)),ROUND(IF(N('Measure Summary'!$AA22)=0,0,'Measure Summary'!$AA22),0)) -> 0 | AK20: =IF(OR($AI20="Full",$AI20=""),"",IF($AG20>=0,0,-$AG20/'Measure Summary'!$AA22)) -> 
B22: 16 | C22: ='Measure Summary'!C24 ->  | D22: ='Measure Summary'!E24 ->  | F22: =IF(D22="","",IF(OR(E22="NR",E22="ER",E22="SC"),VLOOKUP(D22,MeasureQCData,29,FALSE),"")) ->  | G22: =IF(D22="","",IF(OR(E22="NR",E22="ER",E22="SC"),VLOOKUP(D22,MeasureQCData,51,FALSE),"")) ->  | H22: =IF(E22="",0,IF($E22="AO",1,VLOOKUP($D22,MeasureQCData,AM22,FALSE))) -> 0 | I22: =IF(E22="",0,IF($E22="AO",1,VLOOKUP($D22,MeasureQCData,AN22,FALSE))) -> 0 | J22: 0 | K22: =IF(H22=0,AD22,IF(AD22*H22<0,0,AD22*H22)) -> 0 | L22: 1e-05 | M22: =IF(I22=0,AE22,I22*AE22) -> 1e-05 | N22: =IF(E22="",0,IF(OR($E22="AO",$E22="NR"),'Measure Summary'!AA24,VLOOKUP($D22,MeasureQCData,AO22,FALSE))) -> 0 | P22: =IF($C22="",0,IF(OR(MIN('Measure Summary'!I24,$AJ22)=0,OR(ElecUtility="",ElecUtility=0,ElecUtility="<Select One>"))=TRUE,0,1.1*'Measure Summary'!I24*HLOOKUP($AJ22,AvoidedCostTable,$E$38))) -> 0 | Q22: =IF($C22="",0,IF(OR(MIN('Measure Summary'!J24,$AJ22)=0,OR(ElecUtility="",ElecUtility=0,ElecUtility="<Select One>"))=TRUE,0,'Measure Summary'!J24*HLOOKUP($AJ22,AvoidedCostTable,$E$38)*$AP22)) -> 0 | R22: =IF($C22="",0,IF(OR(MIN('Measure Summary'!$K24,$AJ22)=0,OR(ElecUtility="",ElecUtility=0,ElecUtility="<Select One>"))=TRUE,0,'Measure Summary'!$K24*HLOOKUP($AJ22,AvoidedCostTable,$E$39,FALSE))) -> 0 | S22: =IF($C22="",0,IF('Measure Summary'!N24<>"Natural Gas",0,IF(MIN('Measure Summary'!G24,$AJ22)=0,0,'Measure Summary'!G24*HLOOKUP($AJ22,AvoidedCostTable,$E$40)))) -> 0 | T22: =IF($C22="",0,IF('Measure Summary'!N24<>"Natural Gas",0,IF(MIN('Measure Summary'!H24,$AJ22)=0,0,'Measure Summary'!H24*HLOOKUP($AJ22,AvoidedCostTable,$E$40)))) -> 0 | U22: =IF(OR(N($P22+$Q22)=0,N($AJ22)=0)=TRUE,0,HLOOKUP($AJ22,AvoidedCostTable,12,FALSE)*('Measure Summary'!I24+'Measure Summary'!J24)) -> 0 | V22: 0 | W22: ='Measure Summary'!G24+'Measure Summary'!H24 -> 0 | X22: =IF($C22="",0,IF('Measure Summary'!N24<>"Propane",0,IF(MIN('Measure Summary'!G24+'Measure Summary'!H24,$AJ22)=0,0,-PV($D$42,$AJ22,('Measure Summary'!G24+'Measure Summary'!H24))*$D$45))) -> 0 | Y22: =IF($C22="",0,IF('Measure Summary'!N24<>"Fuel Oil",0,IF(MIN('Measure Summary'!G24+'Measure Summary'!H24,$AJ22)=0,0,-PV($D$42,$AJ22,('Measure Summary'!G24+'Measure Summary'!H24))*$E$45))) -> 0 | Z22: =IF($C22="",0,IF('Measure Summary'!N24<>"Steam",0,IF(MIN('Measure Summary'!G24+'Measure Summary'!H24,$AJ22)=0,0,-PV($D$42,$AJ22,('Measure Summary'!G24+'Measure Summary'!H24))*$F$45))) -> 0 | AA22: =IF($C22="",0,IF('Measure Summary'!N24<>'Utility Info'!$B$19,0,IF(MIN('Measure Summary'!G24+'Measure Summary'!H24,$AJ22)=0,0,-PV($D$42,$AJ22,('Measure Summary'!G24+'Measure Summary'!H24))*$G$45))) -> 0 | AB22: =IF(OR(N('Measure Summary'!$L24)=0,N($AJ22)=0)=TRUE,0,-PV('TRC Test'!$D$42,'Measure Summary'!$AA$8,'Measure Summary'!$L24*'Measure Summary'!$P24)) -> 0 | AC22: =IF(N($AJ22)=0,0,-PV($D$42,$AJ22,'Measure Summary'!$M24)) -> 0 | AD22: 0 | AE22: =IF(OR($D22=Calcs!$A$42,$D22=Calcs!$A$24,$D22=Calcs!$A$56,$D22=Calcs!$A$21,$D22=Calcs!$A$27)=TRUE,'Measure Summary'!$F24/'Measure Summary'!$AA24*$AJ22,'Measure Summary'!$F24-SUM($X22:$AC22))+0.00001 -> 1e-05 | AG22: =IF($AI22="Inc",'Measure Summary'!$AA24-(YEAR(TODAY())-'Measure Summary'!$AC24),"") ->  | AH22: =SUM('Measure Summary'!$G24:$H24)+SUM('Measure Summary'!$I24:$J24)*3412/1000000 -> 0 | AI22: =IF($D22="","",VLOOKUP($D22,MeasureQCData,27,FALSE)) ->  | AJ22: =IF(OR($D22=Calcs!$A$42,$D22=Calcs!$A$24,$D22=Calcs!$A$56,$D22=Calcs!$A$21,$D22=Calcs!$A$27)=TRUE,IF($AG22<-3.75,4,IF($AG22<0,ROUND('Measure Summary'!$AA24,0),$AG22)),ROUND(IF(N('Measure Summary'!$AA24)=0,0,'Measure Summary'!$AA24),0)) -> 0 | AK22: =IF(OR($AI22="Full",$AI22=""),"",IF($AG22>=0,0,-$AG22/'Measure Summary'!$AA24)) ->  | AL22: =IF($D22="","",IF(AND(VLOOKUP($D22,MeasureQCData,28,FALSE)="Y",$AK22>0.249),"Y","N")) ->  | AN22: =IF($E22="NR",51,IF($E22="SC",52,IF($E22="ER",$AG22+52,""))) ->  | AO22: =IF($E22="NR",73,IF($E22="SC",74,IF($E22="ER",$AG22+74,""))) ->  | AP22: =IF($D$38="Upstate",VLOOKUP($D22,MeasureQCData,96,FALSE),IF($D$38="NYC",VLOOKUP($D22,MeasureQCData,97,FALSE),IF($D$38="Lower Hudson",VLOOKUP($D22,MeasureQCData,98,FALSE),""))) -> 
B23: 17 | C23: ='Measure Summary'!C25 ->  | D23: ='Measure Summary'!E25 ->  | H23: 0 | I23: 0 | J23: 0 | K23: 0 | L23: 1e-05 | M23: 1e-05 | N23: =IF(E23="",0,IF(OR($E23="AO",$E23="NR"),'Measure Summary'!AA25,VLOOKUP($D23,MeasureQCData,AO23,FALSE))) -> 0 | P23: =IF($C23="",0,IF(OR(MIN('Measure Summary'!I25,$AJ23)=0,OR(ElecUtility="",ElecUtility=0,ElecUtility="<Select One>"))=TRUE,0,1.1*'Measure Summary'!I25*HLOOKUP($AJ23,AvoidedCostTable,$E$38))) -> 0 | Q23: =IF($C23="",0,IF(OR(MIN('Measure Summary'!J25,$AJ23)=0,OR(ElecUtility="",ElecUtility=0,ElecUtility="<Select One>"))=TRUE,0,'Measure Summary'!J25*HLOOKUP($AJ23,AvoidedCostTable,$E$38)*$AP23)) -> 0 | R23: =IF($C23="",0,IF(OR(MIN('Measure Summary'!$K25,$AJ23)=0,OR(ElecUtility="",ElecUtility=0,ElecUtility="<Select One>"))=TRUE,0,'Measure Summary'!$K25*HLOOKUP($AJ23,AvoidedCostTable,$E$39,FALSE))) -> 0 | S23: =IF($C23="",0,IF('Measure Summary'!N25<>"Natural Gas",0,IF(MIN('Measure Summary'!G25,$AJ23)=0,0,'Measure Summary'!G25*HLOOKUP($AJ23,AvoidedCostTable,$E$40)))) -> 0 | T23: =IF($C23="",0,IF('Measure Summary'!N25<>"Natural Gas",0,IF(MIN('Measure Summary'!H25,$AJ23)=0,0,'Measure Summary'!H25*HLOOKUP($AJ23,AvoidedCostTable,$E$40)))) -> 0 | U23: =IF(OR(N($P23+$Q23)=0,N($AJ23)=0)=TRUE,0,HLOOKUP($AJ23,AvoidedCostTable,12,FALSE)*('Measure Summary'!I25+'Measure Summary'!J25)) -> 0 | V23: 0 | W23: ='Measure Summary'!G25+'Measure Summary'!H25 -> 0 | X23: =IF($C23="",0,IF('Measure Summary'!N25<>"Propane",0,IF(MIN('Measure Summary'!G25+'Measure Summary'!H25,$AJ23)=0,0,-PV($D$42,$AJ23,('Measure Summary'!G25+'Measure Summary'!H25))*$D$45))) -> 0 | Y23: =IF($C23="",0,IF('Measure Summary'!N25<>"Fuel Oil",0,IF(MIN('Measure Summary'!G25+'Measure Summary'!H25,$AJ23)=0,0,-PV($D$42,$AJ23,('Measure Summary'!G25+'Measure Summary'!H25))*$E$45))) -> 0 | Z23: =IF($C23="",0,IF('Measure Summary'!N25<>"Steam",0,IF(MIN('Measure Summary'!G25+'Measure Summary'!H25,$AJ23)=0,0,-PV($D$42,$AJ23,('Measure Summary'!G25+'Measure Summary'!H25))*$F$45))) -> 0 | AA23: =IF($C23="",0,IF('Measure Summary'!N25<>'Utility Info'!$B$19,0,IF(MIN('Measure Summary'!G25+'Measure Summary'!H25,$AJ23)=0,0,-PV($D$42,$AJ23,('Measure Summary'!G25+'Measure Summary'!H25))*$G$45))) -> 0 | AB23: =IF(OR(N('Measure Summary'!$L25)=0,N($AJ23)=0)=TRUE,0,-PV('TRC Test'!$D$42,'Measure Summary'!$AA$8,'Measure Summary'!$L25*'Measure Summary'!$P25)) -> 0 | AC23: =IF(N($AJ23)=0,0,-PV($D$42,$AJ23,'Measure Summary'!$M25)) -> 0 | AD23: 0 | AE23: =IF(OR($D23=Calcs!$A$42,$D23=Calcs!$A$24,$D23=Calcs!$A$56,$D23=Calcs!$A$21,$D23=Calcs!$A$27)=TRUE,'Measure Summary'!$F25/'Measure Summary'!$AA25*$AJ23,'Measure Summary'!$F25-SUM($X23:$AC23))+0.00001 -> 1e-05 | AG23: =IF($AI23="Inc",'Measure Summary'!$AA25-(YEAR(TODAY())-'Measure Summary'!$AC25),"") ->  | AH23: =SUM('Measure Summary'!$G25:$H25)+SUM('Measure Summary'!$I25:$J25)*3412/1000000 -> 0 | AJ23: =IF(OR($D23=Calcs!$A$42,$D23=Calcs!$A$24,$D23=Calcs!$A$56,$D23=Calcs!$A$21,$D23=Calcs!$A$27)=TRUE,IF($AG23<-3.75,4,IF($AG23<0,ROUND('Measure Summary'!$AA25,0),$AG23)),ROUND(IF(N('Measure Summary'!$AA25)=0,0,'Measure Summary'!$AA25),0)) -> 0 | AK23: =IF(OR($AI23="Full",$AI23=""),"",IF($AG23>=0,0,-$AG23/'Measure Summary'!$AA25)) -> 
B24: 18 | C24: ='Measure Summary'!C26 ->  | D24: ='Measure Summary'!E26 ->  | H24: 0 | I24: 0 | J24: 0 | K24: 0 | L24: 1e-05 | M24: 1e-05 | N24: =IF(E24="",0,IF(OR($E24="AO",$E24="NR"),'Measure Summary'!AA26,VLOOKUP($D24,MeasureQCData,AO24,FALSE))) -> 0 | P24: =IF($C24="",0,IF(OR(MIN('Measure Summary'!I26,$AJ24)=0,OR(ElecUtility="",ElecUtility=0,ElecUtility="<Select One>"))=TRUE,0,1.1*'Measure Summary'!I26*HLOOKUP($AJ24,AvoidedCostTable,$E$38))) -> 0 | Q24: =IF($C24="",0,IF(OR(MIN('Measure Summary'!J26,$AJ24)=0,OR(ElecUtility="",ElecUtility=0,ElecUtility="<Select One>"))=TRUE,0,'Measure Summary'!J26*HLOOKUP($AJ24,AvoidedCostTable,$E$38)*$AP24)) -> 0 | R24: =IF($C24="",0,IF(OR(MIN('Measure Summary'!$K26,$AJ24)=0,OR(ElecUtility="",ElecUtility=0,ElecUtility="<Select One>"))=TRUE,0,'Measure Summary'!$K26*HLOOKUP($AJ24,AvoidedCostTable,$E$39,FALSE))) -> 0 | S24: =IF($C24="",0,IF('Measure Summary'!N26<>"Natural Gas",0,IF(MIN('Measure Summary'!G26,$AJ24)=0,0,'Measure Summary'!G26*HLOOKUP($AJ24,AvoidedCostTable,$E$40)))) -> 0 | T24: =IF($C24="",0,IF('Measure Summary'!N26<>"Natural Gas",0,IF(MIN('Measure Summary'!H26,$AJ24)=0,0,'Measure Summary'!H26*HLOOKUP($AJ24,AvoidedCostTable,$E$40)))) -> 0 | U24: =IF(OR(N($P24+$Q24)=0,N($AJ24)=0)=TRUE,0,HLOOKUP($AJ24,AvoidedCostTable,12,FALSE)*('Measure Summary'!I26+'Measure Summary'!J26)) -> 0 | V24: 0 | W24: ='Measure Summary'!G26+'Measure Summary'!H26 -> 0 | X24: =IF($C24="",0,IF('Measure Summary'!N26<>"Propane",0,IF(MIN('Measure Summary'!G26+'Measure Summary'!H26,$AJ24)=0,0,-PV($D$42,$AJ24,('Measure Summary'!G26+'Measure Summary'!H26))*$D$45))) -> 0 | Y24: =IF($C24="",0,IF('Measure Summary'!N26<>"Fuel Oil",0,IF(MIN('Measure Summary'!G26+'Measure Summary'!H26,$AJ24)=0,0,-PV($D$42,$AJ24,('Measure Summary'!G26+'Measure Summary'!H26))*$E$45))) -> 0 | Z24: =IF($C24="",0,IF('Measure Summary'!N26<>"Steam",0,IF(MIN('Measure Summary'!G26+'Measure Summary'!H26,$AJ24)=0,0,-PV($D$42,$AJ24,('Measure Summary'!G26+'Measure Summary'!H26))*$F$45))) -> 0 | AA24: =IF($C24="",0,IF('Measure Summary'!N26<>'Utility Info'!$B$19,0,IF(MIN('Measure Summary'!G26+'Measure Summary'!H26,$AJ24)=0,0,-PV($D$42,$AJ24,('Measure Summary'!G26+'Measure Summary'!H26))*$G$45))) -> 0 | AB24: =IF(OR(N('Measure Summary'!$L26)=0,N($AJ24)=0)=TRUE,0,-PV('TRC Test'!$D$42,'Measure Summary'!$AA$8,'Measure Summary'!$L26*'Measure Summary'!$P26)) -> 0 | AC24: =IF(N($AJ24)=0,0,-PV($D$42,$AJ24,'Measure Summary'!$M26)) -> 0 | AD24: 0 | AE24: =IF(OR($D24=Calcs!$A$42,$D24=Calcs!$A$24,$D24=Calcs!$A$56,$D24=Calcs!$A$21,$D24=Calcs!$A$27)=TRUE,'Measure Summary'!$F26/'Measure Summary'!$AA26*$AJ24,'Measure Summary'!$F26-SUM($X24:$AC24))+0.00001 -> 1e-05 | AG24: =IF($AI24="Inc",'Measure Summary'!$AA26-(YEAR(TODAY())-'Measure Summary'!$AC26),"") ->  | AH24: =SUM('Measure Summary'!$G26:$H26)+SUM('Measure Summary'!$I26:$J26)*3412/1000000 -> 0 | AJ24: =IF(OR($D24=Calcs!$A$42,$D24=Calcs!$A$24,$D24=Calcs!$A$56,$D24=Calcs!$A$21,$D24=Calcs!$A$27)=TRUE,IF($AG24<-3.75,4,IF($AG24<0,ROUND('Measure Summary'!$AA26,0),$AG24)),ROUND(IF(N('Measure Summary'!$AA26)=0,0,'Measure Summary'!$AA26),0)) -> 0 | AK24: =IF(OR($AI24="Full",$AI24=""),"",IF($AG24>=0,0,-$AG24/'Measure Summary'!$AA26)) -> 
B25: 19 | C25: ='Measure Summary'!C27 ->  | D25: ='Measure Summary'!E27 ->  | H25: 0 | I25: 0 | J25: 0 | K25: 0 | L25: 1e-05 | M25: 1e-05 | N25: =IF(E25="",0,IF(OR($E25="AO",$E25="NR"),'Measure Summary'!AA27,VLOOKUP($D25,MeasureQCData,AO25,FALSE))) -> 0 | P25: =IF($C25="",0,IF(OR(MIN('Measure Summary'!I27,$AJ25)=0,OR(ElecUtility="",ElecUtility=0,ElecUtility="<Select One>"))=TRUE,0,1.1*'Measure Summary'!I27*HLOOKUP($AJ25,AvoidedCostTable,$E$38))) -> 0 | Q25: =IF($C25="",0,IF(OR(MIN('Measure Summary'!J27,$AJ25)=0,OR(ElecUtility="",ElecUtility=0,ElecUtility="<Select One>"))=TRUE,0,'Measure Summary'!J27*HLOOKUP($AJ25,AvoidedCostTable,$E$38)*$AP25)) -> 0 | R25: =IF($C25="",0,IF(OR(MIN('Measure Summary'!$K27,$AJ25)=0,OR(ElecUtility="",ElecUtility=0,ElecUtility="<Select One>"))=TRUE,0,'Measure Summary'!$K27*HLOOKUP($AJ25,AvoidedCostTable,$E$39,FALSE))) -> 0 | S25: =IF($C25="",0,IF('Measure Summary'!N27<>"Natural Gas",0,IF(MIN('Measure Summary'!G27,$AJ25)=0,0,'Measure Summary'!G27*HLOOKUP($AJ25,AvoidedCostTable,$E$40)))) -> 0 | T25: =IF($C25="",0,IF('Measure Summary'!N27<>"Natural Gas",0,IF(MIN('Measure Summary'!H27,$AJ25)=0,0,'Measure Summary'!H27*HLOOKUP($AJ25,AvoidedCostTable,$E$40)))) -> 0 | U25: =IF(OR(N($P25+$Q25)=0,N($AJ25)=0)=TRUE,0,HLOOKUP($AJ25,AvoidedCostTable,12,FALSE)*('Measure Summary'!I27+'Measure Summary'!J27)) -> 0 | V25: 0 | W25: ='Measure Summary'!G27+'Measure Summary'!H27 -> 0 | X25: =IF($C25="",0,IF('Measure Summary'!N27<>"Propane",0,IF(MIN('Measure Summary'!G27+'Measure Summary'!H27,$AJ25)=0,0,-PV($D$42,$AJ25,('Measure Summary'!G27+'Measure Summary'!H27))*$D$45))) -> 0 | Y25: =IF($C25="",0,IF('Measure Summary'!N27<>"Fuel Oil",0,IF(MIN('Measure Summary'!G27+'Measure Summary'!H27,$AJ25)=0,0,-PV($D$42,$AJ25,('Measure Summary'!G27+'Measure Summary'!H27))*$E$45))) -> 0 | Z25: =IF($C25="",0,IF('Measure Summary'!N27<>"Steam",0,IF(MIN('Measure Summary'!G27+'Measure Summary'!H27,$AJ25)=0,0,-PV($D$42,$AJ25,('Measure Summary'!G27+'Measure Summary'!H27))*$F$45))) -> 0 | AA25: =IF($C25="",0,IF('Measure Summary'!N27<>'Utility Info'!$B$19,0,IF(MIN('Measure Summary'!G27+'Measure Summary'!H27,$AJ25)=0,0,-PV($D$42,$AJ25,('Measure Summary'!G27+'Measure Summary'!H27))*$G$45))) -> 0 | AB25: =IF(OR(N('Measure Summary'!$L27)=0,N($AJ25)=0)=TRUE,0,-PV('TRC Test'!$D$42,'Measure Summary'!$AA$8,'Measure Summary'!$L27*'Measure Summary'!$P27)) -> 0 | AC25: =IF(N($AJ25)=0,0,-PV($D$42,$AJ25,'Measure Summary'!$M27)) -> 0 | AD25: 0 | AE25: =IF(OR($D25=Calcs!$A$42,$D25=Calcs!$A$24,$D25=Calcs!$A$56,$D25=Calcs!$A$21,$D25=Calcs!$A$27)=TRUE,'Measure Summary'!$F27/'Measure Summary'!$AA27*$AJ25,'Measure Summary'!$F27-SUM($X25:$AC25))+0.00001 -> 1e-05 | AG25: =IF($AI25="Inc",'Measure Summary'!$AA27-(YEAR(TODAY())-'Measure Summary'!$AC27),"") ->  | AH25: =SUM('Measure Summary'!$G27:$H27)+SUM('Measure Summary'!$I27:$J27)*3412/1000000 -> 0 | AJ25: =IF(OR($D25=Calcs!$A$42,$D25=Calcs!$A$24,$D25=Calcs!$A$56,$D25=Calcs!$A$21,$D25=Calcs!$A$27)=TRUE,IF($AG25<-3.75,4,IF($AG25<0,ROUND('Measure Summary'!$AA27,0),$AG25)),ROUND(IF(N('Measure Summary'!$AA27)=0,0,'Measure Summary'!$AA27),0)) -> 0 | AK25: =IF(OR($AI25="Full",$AI25=""),"",IF($AG25>=0,0,-$AG25/'Measure Summary'!$AA27)) -> 
B26: 20 | C26: ='Measure Summary'!C28 ->  | D26: ='Measure Summary'!E28 ->  | H26: 0 | I26: 0 | J26: 0 | K26: 0 | L26: 1e-05 | M26: 1e-05 | N26: =IF(E26="",0,IF(OR($E26="AO",$E26="NR"),'Measure Summary'!AA28,VLOOKUP($D26,MeasureQCData,AO26,FALSE))) -> 0 | P26: =IF($C26="",0,IF(OR(MIN('Measure Summary'!I28,$AJ26)=0,OR(ElecUtility="",ElecUtility=0,ElecUtility="<Select One>"))=TRUE,0,1.1*'Measure Summary'!I28*HLOOKUP($AJ26,AvoidedCostTable,$E$38))) -> 0 | Q26: =IF($C26="",0,IF(OR(MIN('Measure Summary'!J28,$AJ26)=0,OR(ElecUtility="",ElecUtility=0,ElecUtility="<Select One>"))=TRUE,0,'Measure Summary'!J28*HLOOKUP($AJ26,AvoidedCostTable,$E$38)*$AP26)) -> 0 | R26: =IF($C26="",0,IF(OR(MIN('Measure Summary'!$K28,$AJ26)=0,OR(ElecUtility="",ElecUtility=0,ElecUtility="<Select One>"))=TRUE,0,'Measure Summary'!$K28*HLOOKUP($AJ26,AvoidedCostTable,$E$39,FALSE))) -> 0 | S26: =IF($C26="",0,IF('Measure Summary'!N28<>"Natural Gas",0,IF(MIN('Measure Summary'!G28,$AJ26)=0,0,'Measure Summary'!G28*HLOOKUP($AJ26,AvoidedCostTable,$E$40)))) -> 0 | T26: =IF($C26="",0,IF('Measure Summary'!N28<>"Natural Gas",0,IF(MIN('Measure Summary'!H28,$AJ26)=0,0,'Measure Summary'!H28*HLOOKUP($AJ26,AvoidedCostTable,$E$40)))) -> 0 | U26: =IF(OR(N($P26+$Q26)=0,N($AJ26)=0)=TRUE,0,HLOOKUP($AJ26,AvoidedCostTable,12,FALSE)*('Measure Summary'!I28+'Measure Summary'!J28)) -> 0 | V26: 0 | W26: ='Measure Summary'!G28+'Measure Summary'!H28 -> 0 | X26: =IF($C26="",0,IF('Measure Summary'!N28<>"Propane",0,IF(MIN('Measure Summary'!G28+'Measure Summary'!H28,$AJ26)=0,0,-PV($D$42,$AJ26,('Measure Summary'!G28+'Measure Summary'!H28))*$D$45))) -> 0 | Y26: =IF($C26="",0,IF('Measure Summary'!N28<>"Fuel Oil",0,IF(MIN('Measure Summary'!G28+'Measure Summary'!H28,$AJ26)=0,0,-PV($D$42,$AJ26,('Measure Summary'!G28+'Measure Summary'!H28))*$E$45))) -> 0 | Z26: =IF($C26="",0,IF('Measure Summary'!N28<>"Steam",0,IF(MIN('Measure Summary'!G28+'Measure Summary'!H28,$AJ26)=0,0,-PV($D$42,$AJ26,('Measure Summary'!G28+'Measure Summary'!H28))*$F$45))) -> 0 | AA26: =IF($C26="",0,IF('Measure Summary'!N28<>'Utility Info'!$B$19,0,IF(MIN('Measure Summary'!G28+'Measure Summary'!H28,$AJ26)=0,0,-PV($D$42,$AJ26,('Measure Summary'!G28+'Measure Summary'!H28))*$G$45))) -> 0 | AB26: =IF(OR(N('Measure Summary'!$L28)=0,N($AJ26)=0)=TRUE,0,-PV('TRC Test'!$D$42,'Measure Summary'!$AA$8,'Measure Summary'!$L28*'Measure Summary'!$P28)) -> 0 | AC26: =IF(N($AJ26)=0,0,-PV($D$42,$AJ26,'Measure Summary'!$M28)) -> 0 | AD26: 0 | AE26: =IF(OR($D26=Calcs!$A$42,$D26=Calcs!$A$24,$D26=Calcs!$A$56,$D26=Calcs!$A$21,$D26=Calcs!$A$27)=TRUE,'Measure Summary'!$F28/'Measure Summary'!$AA28*$AJ26,'Measure Summary'!$F28-SUM($X26:$AC26))+0.00001 -> 1e-05 | AG26: =IF($AI26="Inc",'Measure Summary'!$AA28-(YEAR(TODAY())-'Measure Summary'!$AC28),"") ->  | AH26: =SUM('Measure Summary'!$G28:$H28)+SUM('Measure Summary'!$I28:$J28)*3412/1000000 -> 0 | AJ26: =IF(OR($D26=Calcs!$A$42,$D26=Calcs!$A$24,$D26=Calcs!$A$56,$D26=Calcs!$A$21,$D26=Calcs!$A$27)=TRUE,IF($AG26<-3.75,4,IF($AG26<0,ROUND('Measure Summary'!$AA28,0),$AG26)),ROUND(IF(N('Measure Summary'!$AA28)=0,0,'Measure Summary'!$AA28),0)) -> 0 | AK26: =IF(OR($AI26="Full",$AI26=""),"",IF($AG26>=0,0,-$AG26/'Measure Summary'!$AA28)) -> 
B27: 21 | C27: ='Measure Summary'!C29 ->  | D27: ='Measure Summary'!E29 ->  | H27: 0 | I27: 0 | J27: 0 | K27: 0 | L27: 1e-05 | M27: 1e-05 | N27: =IF(E27="",0,IF(OR($E27="AO",$E27="NR"),'Measure Summary'!AA29,VLOOKUP($D27,MeasureQCData,AO27,FALSE))) -> 0 | P27: =IF($C27="",0,IF(OR(MIN('Measure Summary'!I29,$AJ27)=0,OR(ElecUtility="",ElecUtility=0,ElecUtility="<Select One>"))=TRUE,0,1.1*'Measure Summary'!I29*HLOOKUP($AJ27,AvoidedCostTable,$E$38))) -> 0 | Q27: =IF($C27="",0,IF(OR(MIN('Measure Summary'!J29,$AJ27)=0,OR(ElecUtility="",ElecUtility=0,ElecUtility="<Select One>"))=TRUE,0,'Measure Summary'!J29*HLOOKUP($AJ27,AvoidedCostTable,$E$38)*$AP27)) -> 0 | R27: =IF($C27="",0,IF(OR(MIN('Measure Summary'!$K29,$AJ27)=0,OR(ElecUtility="",ElecUtility=0,ElecUtility="<Select One>"))=TRUE,0,'Measure Summary'!$K29*HLOOKUP($AJ27,AvoidedCostTable,$E$39,FALSE))) -> 0 | S27: =IF($C27="",0,IF('Measure Summary'!N29<>"Natural Gas",0,IF(MIN('Measure Summary'!G29,$AJ27)=0,0,'Measure Summary'!G29*HLOOKUP($AJ27,AvoidedCostTable,$E$40)))) -> 0 | T27: =IF($C27="",0,IF('Measure Summary'!N29<>"Natural Gas",0,IF(MIN('Measure Summary'!H29,$AJ27)=0,0,'Measure Summary'!H29*HLOOKUP($AJ27,AvoidedCostTable,$E$40)))) -> 0 | U27: =IF(OR(N($P27+$Q27)=0,N($AJ27)=0)=TRUE,0,HLOOKUP($AJ27,AvoidedCostTable,12,FALSE)*('Measure Summary'!I29+'Measure Summary'!J29)) -> 0 | V27: 0 | W27: ='Measure Summary'!G29+'Measure Summary'!H29 -> 0 | X27: =IF($C27="",0,IF('Measure Summary'!N29<>"Propane",0,IF(MIN('Measure Summary'!G29+'Measure Summary'!H29,$AJ27)=0,0,-PV($D$42,$AJ27,('Measure Summary'!G29+'Measure Summary'!H29))*$D$45))) -> 0 | Y27: =IF($C27="",0,IF('Measure Summary'!N29<>"Fuel Oil",0,IF(MIN('Measure Summary'!G29+'Measure Summary'!H29,$AJ27)=0,0,-PV($D$42,$AJ27,('Measure Summary'!G29+'Measure Summary'!H29))*$E$45))) -> 0 | Z27: =IF($C27="",0,IF('Measure Summary'!N29<>"Steam",0,IF(MIN('Measure Summary'!G29+'Measure Summary'!H29,$AJ27)=0,0,-PV($D$42,$AJ27,('Measure Summary'!G29+'Measure Summary'!H29))*$F$45))) -> 0 | AA27: =IF($C27="",0,IF('Measure Summary'!N29<>'Utility Info'!$B$19,0,IF(MIN('Measure Summary'!G29+'Measure Summary'!H29,$AJ27)=0,0,-PV($D$42,$AJ27,('Measure Summary'!G29+'Measure Summary'!H29))*$G$45))) -> 0 | AB27: =IF(OR(N('Measure Summary'!$L29)=0,N($AJ27)=0)=TRUE,0,-PV('TRC Test'!$D$42,'Measure Summary'!$AA$8,'Measure Summary'!$L29*'Measure Summary'!$P29)) -> 0 | AC27: =IF(N($AJ27)=0,0,-PV($D$42,$AJ27,'Measure Summary'!$M29)) -> 0 | AD27: 0 | AE27: =IF(OR($D27=Calcs!$A$42,$D27=Calcs!$A$24,$D27=Calcs!$A$56,$D27=Calcs!$A$21,$D27=Calcs!$A$27)=TRUE,'Measure Summary'!$F29/'Measure Summary'!$AA29*$AJ27,'Measure Summary'!$F29-SUM($X27:$AC27))+0.00001 -> 1e-05 | AG27: =IF($AI27="Inc",'Measure Summary'!$AA29-(YEAR(TODAY())-'Measure Summary'!$AC29),"") ->  | AH27: =SUM('Measure Summary'!$G29:$H29)+SUM('Measure Summary'!$I29:$J29)*3412/1000000 -> 0 | AJ27: =IF(OR($D27=Calcs!$A$42,$D27=Calcs!$A$24,$D27=Calcs!$A$56,$D27=Calcs!$A$21,$D27=Calcs!$A$27)=TRUE,IF($AG27<-3.75,4,IF($AG27<0,ROUND('Measure Summary'!$AA29,0),$AG27)),ROUND(IF(N('Measure Summary'!$AA29)=0,0,'Measure Summary'!$AA29),0)) -> 0 | AK27: =IF(OR($AI27="Full",$AI27=""),"",IF($AG27>=0,0,-$AG27/'Measure Summary'!$AA29)) -> 
B28: 22 | C28: ='Measure Summary'!C30 ->  | D28: ='Measure Summary'!E30 ->  | H28: 0 | I28: 0 | J28: 0 | K28: 0 | L28: 1e-05 | M28: 1e-05 | N28: =IF(E28="",0,IF(OR($E28="AO",$E28="NR"),'Measure Summary'!AA30,VLOOKUP($D28,MeasureQCData,AO28,FALSE))) -> 0 | P28: =IF($C28="",0,IF(OR(MIN('Measure Summary'!I30,$AJ28)=0,OR(ElecUtility="",ElecUtility=0,ElecUtility="<Select One>"))=TRUE,0,1.1*'Measure Summary'!I30*HLOOKUP($AJ28,AvoidedCostTable,$E$38))) -> 0 | Q28: =IF($C28="",0,IF(OR(MIN('Measure Summary'!J30,$AJ28)=0,OR(ElecUtility="",ElecUtility=0,ElecUtility="<Select One>"))=TRUE,0,'Measure Summary'!J30*HLOOKUP($AJ28,AvoidedCostTable,$E$38)*$AP28)) -> 0 | R28: =IF($C28="",0,IF(OR(MIN('Measure Summary'!$K30,$AJ28)=0,OR(ElecUtility="",ElecUtility=0,ElecUtility="<Select One>"))=TRUE,0,'Measure Summary'!$K30*HLOOKUP($AJ28,AvoidedCostTable,$E$39,FALSE))) -> 0 | S28: =IF($C28="",0,IF('Measure Summary'!N30<>"Natural Gas",0,IF(MIN('Measure Summary'!G30,$AJ28)=0,0,'Measure Summary'!G30*HLOOKUP($AJ28,AvoidedCostTable,$E$40)))) -> 0 | T28: =IF($C28="",0,IF('Measure Summary'!N30<>"Natural Gas",0,IF(MIN('Measure Summary'!H30,$AJ28)=0,0,'Measure Summary'!H30*HLOOKUP($AJ28,AvoidedCostTable,$E$40)))) -> 0 | U28: =IF(OR(N($P28+$Q28)=0,N($AJ28)=0)=TRUE,0,HLOOKUP($AJ28,AvoidedCostTable,12,FALSE)*('Measure Summary'!I30+'Measure Summary'!J30)) -> 0 | V28: 0 | W28: ='Measure Summary'!G30+'Measure Summary'!H30 -> 0 | X28: =IF($C28="",0,IF('Measure Summary'!N30<>"Propane",0,IF(MIN('Measure Summary'!G30+'Measure Summary'!H30,$AJ28)=0,0,-PV($D$42,$AJ28,('Measure Summary'!G30+'Measure Summary'!H30))*$D$45))) -> 0 | Y28: =IF($C28="",0,IF('Measure Summary'!N30<>"Fuel Oil",0,IF(MIN('Measure Summary'!G30+'Measure Summary'!H30,$AJ28)=0,0,-PV($D$42,$AJ28,('Measure Summary'!G30+'Measure Summary'!H30))*$E$45))) -> 0 | Z28: =IF($C28="",0,IF('Measure Summary'!N30<>"Steam",0,IF(MIN('Measure Summary'!G30+'Measure Summary'!H30,$AJ28)=0,0,-PV($D$42,$AJ28,('Measure Summary'!G30+'Measure Summary'!H30))*$F$45))) -> 0 | AA28: =IF($C28="",0,IF('Measure Summary'!N30<>'Utility Info'!$B$19,0,IF(MIN('Measure Summary'!G30+'Measure Summary'!H30,$AJ28)=0,0,-PV($D$42,$AJ28,('Measure Summary'!G30+'Measure Summary'!H30))*$G$45))) -> 0 | AB28: =IF(OR(N('Measure Summary'!$L30)=0,N($AJ28)=0)=TRUE,0,-PV('TRC Test'!$D$42,'Measure Summary'!$AA$8,'Measure Summary'!$L30*'Measure Summary'!$P30)) -> 0 | AC28: =IF(N($AJ28)=0,0,-PV($D$42,$AJ28,'Measure Summary'!$M30)) -> 0 | AD28: 0 | AE28: =IF(OR($D28=Calcs!$A$42,$D28=Calcs!$A$24,$D28=Calcs!$A$56,$D28=Calcs!$A$21,$D28=Calcs!$A$27)=TRUE,'Measure Summary'!$F30/'Measure Summary'!$AA30*$AJ28,'Measure Summary'!$F30-SUM($X28:$AC28))+0.00001 -> 1e-05 | AG28: =IF($AI28="Inc",'Measure Summary'!$AA30-(YEAR(TODAY())-'Measure Summary'!$AC30),"") ->  | AH28: =SUM('Measure Summary'!$G30:$H30)+SUM('Measure Summary'!$I30:$J30)*3412/1000000 -> 0 | AJ28: =IF(OR($D28=Calcs!$A$42,$D28=Calcs!$A$24,$D28=Calcs!$A$56,$D28=Calcs!$A$21,$D28=Calcs!$A$27)=TRUE,IF($AG28<-3.75,4,IF($AG28<0,ROUND('Measure Summary'!$AA30,0),$AG28)),ROUND(IF(N('Measure Summary'!$AA30)=0,0,'Measure Summary'!$AA30),0)) -> 0 | AK28: =IF(OR($AI28="Full",$AI28=""),"",IF($AG28>=0,0,-$AG28/'Measure Summary'!$AA30)) -> 
